{"text_format":"1","workbook":"xlsx","n_sheets":4,"sheets":["Global_Var","Blade_Definition","Spar_Thickness_Calculator","Beam_Thickness_Calculator"],"not_rendered":{"charts":13,"images":0,"macros":1,"external_links":1,"defined_names":310,"comments":0,"pivot_tables":0},"unopened":[],"bounds":{"document_bytes":16777216,"sheet_cells":100000,"rows_first":2000,"rows_last":500,"rows_between":2000,"halvings":0,"cell_chars":16384,"cell_head_chars":4096},"cells_cut":0,"cells_raw":0,"read":"whole","date_system":"1900"}

{"sheet":"Global_Var","index":0,"n_rows":14,"n_cols":11,"rows_kept":14,"cut":false,"hidden":false,"merged":[[1,1,1,4]]}
[]
[null,"Constants",null,null,null,null,"Cost"]
[null,"EUD","Modulus of Sparcap","[Pa]",39800000000,null,"foam",225,"$/ft^3",{"$f":"H3*35.31","v":7944.7500000000009},"$/M3"]
[null,"ρs","Density of sparcap","[kg/m3]",1920]
[null,"ϵUD(max)","Max allow design strain Sparcap","[-]",2.8999999999999998E-3,null,"Glass",3.5,"$/kg",{"$f":"H6*H5","v":2355.5},"$/M3"]
[null,"σs(allow)","Allowable stress in Sparcap","[Pa]",{"$f":"E5*E3","v":115419999.99999999},null,null,{"$f":"E8","v":673}]
[null,"EC","Modulus of Core","[Pa]",3790000]
[null,"ρc","Density of core","[kg/m3]",673]
[null,"ρw","Density of Seawater","[kg/m3]",1029]
[null,"L","Section Length","[m]",0.74166666666666647]
[null,null,"Beam width in terms of chord","[-]",{"$f":"3/5","v":0.6}]
[null,null,"Beam height in terms of thickness","[-]",0.85]
[null,null,"Chord Ratio Blade A/Blade B","[-]",{"$f":"2/3","v":0.66666666666666663}]
[null,null,"Moment Ratio Blade A/Blade B","[-]",{"$f":"2/3","v":0.66666666666666663}]

{"sheet":"Blade_Definition","index":1,"n_rows":16,"n_cols":16,"rows_kept":16,"cut":false,"hidden":false,"merged":[]}
[]
[null,"Loop",1]
[null,"#","r/R","Relm\n(m)","Twist\n(deg)","Chord\n(m)","Relative Thickness\n(t/c %)","Absolute Thickness\n(m)","Thr/Len\n(N/m)","Trq/Len\n(N)","R [m]","Element Fx [N]","Element Fy [N]","My","Mx","T/C"]
[null,null,null,null,null,2.2999999999999998,1,2.2999999999999998,null,null,0,null,null,{"$f":"L14*(K14-K4)+L13*(K13-K4)+L12*(K12-K4)+L11*(K11-K4)+L10*(K10-K4)+L9*(K9-K4)+L8*(K8-K4)+L7*(K7-K4)+L6*(K6-K4)+L5*(K5-K4)","v":15501225.096772185},{"$f":"M14*(K14-K4)+M13*(K13-K4)+M12*(K12-K4)+M11*(K11-K4)+M10*(K10-K4)+M9*(K9-K4)+M8*(K8-K4)+M7*(K7-K4)+M6*(K6-K4)+M5*(K5-K4)","v":1679610.4120249997},{"$f":"G4*100","v":100}]
[null,1,4.9999999999999996E-2,1.1375,23.5532,2.2999999999999998,1,2.2999999999999998,1092.018,-496.75200000000001,{"$f":"D5","v":1.1375},{"$f":"I5*($D$6-$D$5)","v":2484.3409499999993},{"$f":"J5*($D$6-$D$5)/D5","v":-993.50399999999979},{"$f":"L14*(K14-K5)+L13*(K13-K5)+L12*(K12-K5)+L11*(K11-K5)+L10*(K10-K5)+L9*(K9-K5)+L8*(K8-K5)+L7*(K7-K5)+L6*(K6-K5)","v":14315791.052460622},{"$f":"M14*(K14-K5)+M13*(K13-K5)+M12*(K12-K5)+M11*(K11-K5)+M10*(K10-K5)+M9*(K9-K5)+M8*(K8-K5)+M7*(K7-K5)+M6*(K6-K5)","v":1529780.2578891017},{"$f":"G5*100","v":100}]
[null,2,0.15,3.4124999999999996,23.5532,2.8572623749999995,0.629,1.7972180338749997,6401.8370000000004,7632.2079999999996,{"$f":"D6","v":3.4124999999999996},{"$f":"I6*($D$6-$D$5)","v":14564.179174999997},{"$f":"J6*($D$6-$D$5)/D6","v":5088.1386666666658},{"$f":"L14*(K14-K6)+L13*(K13-K6)+L12*(K12-K6)+L11*(K11-K6)+L10*(K10-K6)+L9*(K9-K6)+L8*(K8-K6)+L7*(K7-K6)","v":11950574.839498749},{"$f":"M14*(K14-K6)+M13*(K13-K6)+M12*(K12-K6)+M11*(K11-K6)+M10*(K10-K6)+M9*(K9-K6)+M8*(K8-K6)+M7*(K7-K6)","v":1227859.7280173055},62.9]
[null,3,0.25,5.6875,15.078000000000003,3.4145247499999996,0.24,0.81948593999999986,26675.460999999999,43752.190999999999,5.6875,60686.673774999981,17500.876399999997,{"$f":"L14*(K14-K7)+L13*(K13-K7)+L12*(K12-K7)+L11*(K11-K7)+L10*(K10-K7)+L9*(K9-K7)+L8*(K8-K7)","v":9618492.1341599971},{"$f":"M14*(K14-K7)+M13*(K13-K7)+M12*(K12-K7)+M11*(K11-K7)+M10*(K10-K7)+M9*(K9-K7)+M8*(K8-K7)","v":937514.7136121759},24]
[null,4,0.35000000000000003,7.9625000000000004,10.557499999999996,2.6968760000000001,0.23249999999999998,0.62702366999999992,37911.578000000001,61017.027000000002,7.9625000000000004,86248.83994999998,17433.436285714284,{"$f":"L14*(K14-K8)+L13*(K13-K8)+L12*(K12-K8)+L11*(K11-K8)+L10*(K10-K8)+L9*(K9-K8)","v":7424471.6116593722},{"$f":"M14*(K14-K8)+M13*(K13-K8)+M12*(K12-K8)+M11*(K11-K8)+M10*(K10-K8)+M9*(K9-K8)","v":686984.19301704608},23.25]
[null,5,0.45,10.237500000000001,7.8333999999999993,2.2305465,0.22499999999999998,0.50187296249999991,45290.785000000003,79002.843999999997,10.237500000000001,103036.53587499999,17556.187555555549,{"$f":"L14*(K14-K9)+L13*(K13-K9)+L12*(K12-K9)+L11*(K11-K9)+L10*(K10-K9)","v":5426667.2000449989},{"$f":"M14*(K14-K9)+M13*(K13-K9)+M12*(K12-K9)+M11*(K11-K9)+M10*(K10-K9)","v":476114.73997191654},22.499999999999996]
[null,6,0.55000000000000004,12.512500000000001,6.0318999999999967,1.9113639999999996,0.21749999999999997,0.41572166999999988,56001.351999999999,94896.616999999998,12.512500000000001,127403.07579999996,17253.930363636358,{"$f":"L14*(K14-K10)+L13*(K13-K10)+L12*(K12-K10)+L11*(K11-K10)","v":3663270.9075462483},{"$f":"M14*(K14-K10)+M13*(K13-K10)+M12*(K12-K10)+M11*(K11-K10)","v":305185.61361567583},21.749999999999996]
[null,7,0.65,14.787500000000001,4.7580999999999989,1.6765384999999997,0.21,0.35207308499999995,66897.773000000001,109223.82,14.787500000000001,152192.43357499997,16803.664615384612,{"$f":"L14*(K14-K11)+L13*(K13-K11)+L12*(K12-K11)","v":2189716.612492498},{"$f":"M14*(K14-K11)+M13*(K13-K11)+M12*(K12-K11)","v":173509.17883670781},21]
[null,8,0.75,17.0625,3.8119999999999994,1.4209877499999997,0.19333333333333333,0.27472429833333328,75190.233999999997,120695.539,17.0625,171057.78234999996,{"$f":"J12*($D$6-$D$5)/D12","v":16092.73853333333},{"$f":"L14*(K14-K12)+L13*(K13-K12)","v":1062400.1038218741},{"$f":"M14*(K14-K12)+M13*(K13-K12)","v":80061.081057739881},19.333333333333332]
[null,9,0.85,19.337499999999999,3.0824999999999987,1.1514230000000003,0.17666666666666667,0.2034180633333334,79974.883000000002,125587.609,19.337499999999999,181942.85882499997,14775.012823529411,{"$f":"L14*(K14-K13)","v":324240.04999749974},{"$f":"M14*(K14-K13)","v":23223.963442105247},17.666666666666668]
[null,10,0.94999999999999984,21.612499999999997,2.5032000000000001,0.72110675000000002,0.16,0.11537708000000001,62647.516000000003,96979.187999999995,21.612499999999997,142523.09889999998,10208.335578947368,0,0,16]
[]
[null,"*Operation at 1.8m/s,  6.0444 rpm, 8 TSR"]

{"sheet":"Spar_Thickness_Calculator","index":2,"n_rows":466,"n_cols":35,"rows_kept":466,"cut":false,"hidden":false,"merged":[[0,2,0,5],[3,2,3,4],[2,26,2,30],[2,31,2,34],[2,21,2,25],[3,14,3,16],[3,17,3,19],[47,21,47,25],[47,26,47,30],[47,31,47,34],[62,21,62,25],[62,26,62,30],[62,31,62,34],[17,21,17,25],[17,26,17,30],[17,31,17,34],[32,21,32,25],[32,26,32,30],[32,31,32,34],[77,26,77,30],[77,31,77,34],[92,21,92,25],[92,26,92,30],[92,31,92,34],[77,21,77,25],[107,21,107,25],[107,26,107,30],[107,31,107,34],[122,21,122,25],[122,26,122,30],[122,31,122,34],[137,21,137,25],[137,26,137,30],[137,31,137,34],[152,21,152,25],[152,26,152,30],[152,31,152,34],[167,21,167,25],[167,26,167,30],[167,31,167,34],[182,21,182,25],[182,26,182,30],[182,31,182,34],[197,21,197,25],[197,26,197,30],[197,31,197,34],[212,21,212,25],[212,26,212,30],[212,31,212,34],[227,21,227,25],[227,26,227,30],[227,31,227,34],[242,21,242,25],[242,26,242,30],[242,31,242,34],[257,21,257,25],[257,26,257,30],[257,31,257,34],[272,21,272,25],[272,26,272,30],[272,31,272,34],[287,21,287,25],[287,26,287,30],[287,31,287,34],[302,21,302,25],[302,26,302,30],[302,31,302,34],[362,31,362,34],[317,21,317,25],[317,26,317,30],[317,31,317,34],[332,21,332,25],[332,26,332,30],[332,31,332,34],[347,21,347,25],[347,26,347,30],[347,31,347,34],[362,21,362,25],[362,26,362,30],[452,21,452,25],[452,26,452,30],[452,31,452,34],[407,21,407,25],[407,26,407,30],[407,31,407,34],[422,21,422,25],[422,26,422,30],[422,31,422,34],[437,21,437,25],[437,26,437,30],[437,31,437,34],[377,21,377,25],[377,26,377,30],[377,31,377,34],[392,21,392,25],[392,26,392,30],[392,31,392,34]]}
[]
[]
[null,null,null,null,null,null,null,null,null,null,null,null,null,null,null,null,null,null,null,null,null,"Input/Output",null,null,null,null,"Intermediate Calculations",null,null,null,null,"Constants"]
[null,null,null,null,null,null,null,null,null,null,null,null,null,null,"Blade A",null,null,"Blade B",null,null,null,1,null,null,"Blade A","Blade B","b","Spar Cap Width","[m]",{"$f":"Spar_Thickness_Calculator!Y5*Spar_Thickness_Calculator!AI12","v":1.38},{"$f":"Spar_Thickness_Calculator!Z5*Spar_Thickness_Calculator!AI12","v":0.91999999999999993},"EUD","Modulus of Sparcap","[Pa]",{"$f":"Global_Var!$E$3","v":39800000000}]
[null,null,null,null,null,null,null,null,"A Total Spar Thickness","Element","Z","Chord","Moment My","T/C","Wet Weight","Spar Thickness","Height of Core","Wet Weight","Spar Thickness","Height of Core",null,"C","Chord","[m]",{"$f":"L7","v":2.2999999999999998},{"$f":"Y5*Spar_Thickness_Calculator!AI14","v":1.5333333333333332},"t","Airfoil thickness","[m]",{"$f":"Spar_Thickness_Calculator!Y6*Spar_Thickness_Calculator!Y5/100","v":2.2999999999999998},{"$f":"Spar_Thickness_Calculator!Z6*Spar_Thickness_Calculator!Z5/100","v":1.5333333333333332},"ρs","Density of sparcap","[kg/m3]",{"$f":"Global_Var!$E$4","v":1920}]
[null,null,null,null,null,null,null,null,"[m]","[-]","[m]","[m]","[N-m]","(%)","[kg]","[m]","[m]","[kg]","[m]","[m]",null,"AF%","% thickness of foil","[%]",{"$f":"N7","v":100},{"$f":"Y6","v":100},"ho","Section height outer","[m]",{"$f":"AD5*Spar_Thickness_Calculator!AI13","v":1.9549999999999998},{"$f":"AE5*Spar_Thickness_Calculator!AI13","v":1.3033333333333332},"ϵUD(max)","Max allow design strain Sparcap","[-]",{"$f":"Global_Var!$E$5","v":2.8999999999999998E-3}]
[null,null,null,null,null,null,null,null,{"$f":"P7*2","v":0.10502023613448086},1,{"$f":"Blade_Definition!K4","v":0},{"$f":"Blade_Definition!F4","v":2.2999999999999998},{"$f":"Blade_Definition!N4","v":15501225.096772185},{"$f":"Blade_Definition!G4*100","v":100},{"$f":"Y11","v":-1156.5954600609994},{"$f":"C_A1","v":5.251011806724043E-2},{"$f":"AD7","v":1.8499797638655191},{"$f":"Z11","v":-514.12721751768197},{"$f":"C_B1","v":8.5334943414558287E-2},{"$f":"AE7","v":1.1326634465042167},null,"M","Moment","[n-m]",{"$f":"M7","v":15501225.096772185},{"$f":"Y7*Spar_Thickness_Calculator!AI15","v":10334150.06451479},"hc","height of core","[m]",{"$f":"Spar_Thickness_Calculator!AD6-2*Spar_Thickness_Calculator!Y8","v":1.8499797638655191},{"$f":"Spar_Thickness_Calculator!AE6-2*Spar_Thickness_Calculator!Z8","v":1.1326634465042167},"σs(allow)","Allowable stress in Sparcap","[Pa]",{"$f":"Global_Var!$E$6","v":115419999.99999999}]
[null,null,null,null,null,null,null,null,{"$f":"P8*2","v":9.6583787413366748E-2},2,{"$f":"Blade_Definition!K5","v":1.1375},{"$f":"Blade_Definition!F5","v":2.2999999999999998},{"$f":"Blade_Definition!N5","v":14315791.052460622},{"$f":"Blade_Definition!G5*100","v":100},{"$f":"Y26","v":-1178.1304149945536},{"$f":"C_A2","v":4.8291893706683374E-2},{"$f":"AD22","v":1.858416212586633},{"$f":"Z26","v":-552.28003840791825},{"$f":"C_B2","v":7.7861644352650264E-2},{"$f":"AE22","v":1.1476100446280326},null,"t","Spar Cap Thickness","[m]",5.251011806724043E-2,8.5334943414558287E-2,"c","distance from neutral axis","[m]",{"$f":"Spar_Thickness_Calculator!AD6/2","v":0.97749999999999992},{"$f":"Spar_Thickness_Calculator!AE6/2","v":0.65166666666666662},"EC","Modulus of Core","[Pa]",{"$f":"Global_Var!$E$7","v":3790000}]
[null,null,null,null,null,null,null,null,8.3495044557154993E-2,3,{"$f":"Blade_Definition!K6","v":3.4124999999999996},{"$f":"Blade_Definition!F6","v":2.8572623749999995},{"$f":"Blade_Definition!N6","v":11950574.839498749},{"$f":"Blade_Definition!G6*100","v":62.9},{"$f":"Y41","v":-1118.1915513198678},{"$f":"C_A3","v":4.1747522278577497E-2},{"$f":"AD37","v":1.4441402842365947},{"$f":"Z41","v":-491.01908336989936},{"$f":"C_B3","v":6.7950869900289146E-2},{"$f":"AE37","v":0.88252181272858821},null,"σs(max)","Max Stress in Sparcap","[Pa]",{"$f":"(Y7*(Spar_Thickness_Calculator!AD6/2)*Spar_Thickness_Calculator!AI4)/(Spar_Thickness_Calculator!AI4*Spar_Thickness_Calculator!AD9+Spar_Thickness_Calculator!AI8*Spar_Thickness_Calculator!AD10)","v":115453267.00762264},{"$f":"(Z7*(Spar_Thickness_Calculator!AE6/2)*Spar_Thickness_Calculator!AI4)/(Spar_Thickness_Calculator!AI4*Spar_Thickness_Calculator!AE9+Spar_Thickness_Calculator!AI8*Spar_Thickness_Calculator!AE10)","v":115433830.82573275},"Is","Moment of inertia Spar","[m4]",{"$f":"(Spar_Thickness_Calculator!AD4/12)*(Spar_Thickness_Calculator!AD6^3-Spar_Thickness_Calculator!AD7^3)","v":0.13117378943237659},{"$f":"(Spar_Thickness_Calculator!AE4/12)*(Spar_Thickness_Calculator!AE6^3-Spar_Thickness_Calculator!AE7^3)","v":5.832949028277943E-2},"ρc","Density of core","[kg/m3]",{"$f":"Global_Var!$E$8","v":673}]
[null,null,null,null,null,null,null,null,0.14477185545723395,4,{"$f":"Blade_Definition!K7","v":5.6875},{"$f":"Blade_Definition!F7","v":3.4145247499999996},{"$f":"Blade_Definition!N7","v":9618492.1341599971},{"$f":"Blade_Definition!G7*100","v":24},{"$f":"Y56","v":-204.96329509337215},{"$f":"C_A4","v":7.2385927728616975E-2},{"$f":"AD52","v":0.55179119354276596},{"$f":"Z56","v":2152.9702488428434},{"$f":"C_B4","v":0.35035348089090101},{"$f":"AE52","v":-0.23633159578180218},null,"Ww","Wet Weight","[kg]",{"$f":"Spar_Thickness_Calculator!AD14+Spar_Thickness_Calculator!AD13-Spar_Thickness_Calculator!AD16","v":-578.29773003049968},{"$f":"Spar_Thickness_Calculator!AE14+Spar_Thickness_Calculator!AE13-Spar_Thickness_Calculator!AE16","v":-171.37573917256066},"Ic","Moment of inertia Core","[m4]",{"$f":"(Spar_Thickness_Calculator!AD4/12)*Spar_Thickness_Calculator!AD7^3","v":0.72811298119262313},{"$f":"(Spar_Thickness_Calculator!AE4/12)*Spar_Thickness_Calculator!AE7^3","v":0.11140616811228225},"ρw","Density of Seawater","[kg/m3]",{"$f":"Global_Var!$E$9","v":1029}]
[null,null,null,null,null,null,null,null,0.24303556721806369,5,{"$f":"Blade_Definition!K8","v":7.9625000000000004},{"$f":"Blade_Definition!F8","v":2.6968760000000001},{"$f":"Blade_Definition!N8","v":7424471.6116593722},{"$f":"Blade_Definition!G8*100","v":23.25},{"$f":"Y71","v":272.01206682909606},{"$f":"C_A5","v":0.12151778360903184},{"$f":"AD67","v":0.28993455228193638},{"$f":"Z71","v":1782.3835481303572},{"$f":"C_B5","v":0.34846969816278117},{"$f":"AE67","v":-0.34162598332556238},null,"Ww(rotor)","Wet Weight segment of rotor","[kg]",{"$f":"Y10*2","v":-1156.5954600609994},{"$f":"Z10*3","v":-514.12721751768197},"Vs","Volume of Spar","[m3]",{"$f":"Spar_Thickness_Calculator!AD4*Spar_Thickness_Calculator!Y8*Spar_Thickness_Calculator!AI11*2","v":0.10748821168364112},{"$f":"Spar_Thickness_Calculator!AE4*Spar_Thickness_Calculator!Z8*Spar_Thickness_Calculator!AI11*2","v":0.11645375277973384},"L","Section Length","[m]",{"$f":"Global_Var!$E$10","v":0.74166666666666647}]
[null,null,null,null,null,null,null,null,0.65737767700102612,6,{"$f":"Blade_Definition!K9","v":10.237500000000001},{"$f":"Blade_Definition!F9","v":2.2305465},{"$f":"Blade_Definition!N9","v":5426667.2000449989},{"$f":"Blade_Definition!G9*100","v":22.499999999999996},{"$f":"Y86","v":1325.8726448751622},{"$f":"C_A6","v":0.32868883850051306},{"$f":"AD82","v":-0.2307856588760262},{"$f":"Z86","v":1327.1822668837294},{"$f":"C_B6","v":0.3086557368314507},{"$f":"AE82","v":-0.33291679491290144},null,null,null,null,null,null,"Vc","Volume of Core","[m3]",{"$f":"Spar_Thickness_Calculator!AD7*Spar_Thickness_Calculator!AD4*Spar_Thickness_Calculator!AI11","v":1.8934542883163581},{"$f":"Spar_Thickness_Calculator!AE7*Spar_Thickness_Calculator!AE4*Spar_Thickness_Calculator!AI11","v":0.77285402499804357},null,"Beam width in terms of chord","[-]",{"$f":"Global_Var!$E$11","v":0.6}]
[null,null,null,null,null,null,null,null,0.59753896658358363,7,{"$f":"Blade_Definition!K10","v":12.512500000000001},{"$f":"Blade_Definition!F10","v":1.9113639999999996},{"$f":"Blade_Definition!N10","v":3663270.9075462483},{"$f":"Blade_Definition!G10*100","v":21.749999999999996},{"$f":"Y101","v":1053.5572267631719},{"$f":"C_A7","v":0.29876948329179182},{"$f":"AD97","v":-0.24417554708358374},{"$f":"Z101","v":985.87384914044196},{"$f":"C_B7","v":0.26600278763806084},{"$f":"AE97","v":-0.29642996227612178},null,null,"Spar Strain Limit (Goal Seek to 1)",null,{"$f":"(Y9/$AI$7)","v":1.0002882256768555},{"$f":"(Z9/$AI$7)","v":1.0001198304083587},"Ms","Mass of Spar","[kg]",{"$f":"Spar_Thickness_Calculator!AI5*AD11","v":206.37736643259095},{"$f":"Spar_Thickness_Calculator!AI5*AE11","v":223.59120533708898},null,"Beam height in terms of thickness","[-]",0.85]
[null,null,null,null,null,null,null,null,0.49115703493339868,8,{"$f":"Blade_Definition!K11","v":14.787500000000001},{"$f":"Blade_Definition!F11","v":1.6765384999999997},{"$f":"Blade_Definition!N11","v":2189716.612492498},{"$f":"Blade_Definition!G11*100","v":21},{"$f":"Y116","v":754.9161169033415},{"$f":"C_A8","v":0.24557851746669934},{"$f":"AD112","v":-0.19189491268339876},{"$f":"Z116","v":720.15597932753826},{"$f":"C_B8","v":0.2219986234549548},{"$f":"AE112","v":-0.24448916540990967},null,null,null,null,null,null,"Mc","Mass of Core","[kg]",{"$f":"AD12*Spar_Thickness_Calculator!AI9","v":1274.2947360369089},{"$f":"AE12*Spar_Thickness_Calculator!AI9","v":520.13075882368332},null,"Chord Ratio Blade A/Blade B","[-]",{"$f":"Global_Var!$E$13","v":0.66666666666666663}]
[null,null,null,null,null,null,null,null,0.36728606086880461,9,{"$f":"Blade_Definition!K12","v":17.0625},{"$f":"Blade_Definition!F12","v":1.4209877499999997},{"$f":"Blade_Definition!N12","v":1062400.1038218741},{"$f":"Blade_Definition!G12*100","v":19.333333333333332},{"$f":"Y131","v":474.09549566269266},{"$f":"C_A9","v":0.1836430304344023},{"$f":"AD127","v":-0.13377040728547132},{"$f":"Z131","v":466.7379910671421},{"$f":"C_B9","v":0.17019948223489351},{"$f":"AE127","v":-0.18472186208089816},null,null,null,null,null,null,"Vd","Displaced Volume","[m3]",{"$f":"Spar_Thickness_Calculator!AD6*Spar_Thickness_Calculator!AD4*Spar_Thickness_Calculator!AI11","v":2.0009424999999994},{"$f":"Spar_Thickness_Calculator!AE6*Spar_Thickness_Calculator!AE4*Spar_Thickness_Calculator!AI11","v":0.88930777777777748},null,"Moment Ratio Blade A/Blade B","[-]",{"$f":"Global_Var!$E$14","v":0.66666666666666663}]
[null,null,null,null,null,null,null,null,7.4566347931138574E-2,10,{"$f":"Blade_Definition!K13","v":19.337499999999999},{"$f":"Blade_Definition!F13","v":1.1514230000000003},{"$f":"Blade_Definition!N13","v":324240.04999749974},{"$f":"Blade_Definition!G13*100","v":17.666666666666668},{"$f":"Y146","v":32.208338321568874},{"$f":"C_A10","v":3.7283173965569287E-2},{"$f":"AD142","v":9.833900590219484E-2},{"$f":"Z146","v":244.0040952488844},{"$f":"C_B10","v":0.11192591368874877},{"$f":"AE142","v":-0.10858159148860862},null,null,null,null,null,null,"Mw","Mass of disp. Seawater","[kg]",{"$f":"Spar_Thickness_Calculator!AI10*Spar_Thickness_Calculator!AD15","v":2058.9698324999995},{"$f":"Spar_Thickness_Calculator!AI10*Spar_Thickness_Calculator!AE15","v":915.09770333333302}]
[null,null,null,null,null,null,null,null,null,11,{"$f":"Blade_Definition!K14","v":21.612499999999997},{"$f":"Blade_Definition!F14","v":0.72110675000000002},{"$f":"Blade_Definition!N14","v":0},{"$f":"Blade_Definition!G14*100","v":16},{"$f":"Y161","v":-5.5777956352755527E+73},{"$f":"C_A11","v":-3.484789756604605E+70},{"$f":"AD157","v":6.9695795132092101E+70},{"$f":"Z161","v":-3.1909485278623413E+74},{"$f":"C_B11","v":-1.9935805237148845E+71},{"$f":"AE157","v":3.987161047429769E+71}]
[null,null,null,null,null,null,null,null,null,null,null,null,null,null,{"$f":"Y176","v":0},{"$f":"C_A12","v":5.0342969758831513E-2},{"$f":"AD172","v":-0.10068593951766303},{"$f":"Z176","v":0},{"$f":"C_B12","v":0.28749948895293026},{"$f":"AE172","v":-0.57499897790586052},null,"Input/Output",null,null,null,null,"Intermediate Calculations",null,null,null,null,"Constants"]
[null,null,null,null,null,null,null,null,null,null,null,null,null,null,{"$f":"Y191","v":0},{"$f":"C_A13","v":4.9384675989989996E-2},{"$f":"AD187","v":-9.8769351979979991E-2},{"$f":"Z191","v":0},{"$f":"C_B13","v":0.28076312826632993},{"$f":"AE187","v":-0.56152625653265986},null,2,null,null,"Blade A","Blade B","b","Spar Cap Width","[m]",{"$f":"Spar_Thickness_Calculator!Y20*Spar_Thickness_Calculator!AI27","v":1.38},{"$f":"Spar_Thickness_Calculator!Z20*Spar_Thickness_Calculator!AI27","v":0.91999999999999993},"EUD","Modulus of Sparcap","[Pa]",{"$f":"Global_Var!$E$3","v":39800000000}]
[null,null,null,null,null,null,null,null,null,null,null,null,null,null,{"$f":"Y206","v":0},{"$f":"C_A14","v":4.7979465145045225E-2},{"$f":"AD202","v":-9.5958930290090449E-2},{"$f":"Z206","v":0},{"$f":"C_B14","v":0.27205728647448857},{"$f":"AE202","v":-0.54411457294897714},null,"C","Chord","[m]",{"$f":"L8","v":2.2999999999999998},{"$f":"Y20*Spar_Thickness_Calculator!AI29","v":1.5333333333333332},"t","Airfoil thickness","[m]",{"$f":"Spar_Thickness_Calculator!Y21*Spar_Thickness_Calculator!Y20/100","v":2.2999999999999998},{"$f":"Spar_Thickness_Calculator!Z21*Spar_Thickness_Calculator!Z20/100","v":1.5333333333333332},"ρs","Density of sparcap","[kg/m3]",{"$f":"Global_Var!$E$4","v":1920}]
[null,null,null,null,null,null,null,null,null,null,null,null,null,null,{"$f":"Y221","v":0},{"$f":"C_A15","v":4.6058462448049994E-2},{"$f":"AD217","v":-9.2116924896099989E-2},{"$f":"Z221","v":0},{"$f":"C_B15","v":0.26157381724747553},{"$f":"AE217","v":-0.52314763449495105},null,"AF%","% thickness of foil","[%]",{"$f":"N8","v":100},{"$f":"Y21","v":100},"ho","Section height outer","[m]",{"$f":"AD20*Spar_Thickness_Calculator!AI28","v":1.9549999999999998},{"$f":"AE20*Spar_Thickness_Calculator!AI28","v":1.3033333333333332},"ϵUD(max)","Max allow design strain Sparcap","[-]",{"$f":"Global_Var!$E$5","v":2.8999999999999998E-3}]
[null,null,null,null,null,null,null,null,null,null,null,null,null,null,{"$f":"Y236","v":0},{"$f":"C_A16","v":4.4234251730510772E-2},{"$f":"AD232","v":-8.8468503461021544E-2},{"$f":"Z236","v":0},{"$f":"C_B16","v":0.25081641341790623},{"$f":"AE232","v":-0.50163282683581245},null,"M","Moment","[n-m]",{"$f":"M8","v":14315791.052460622},{"$f":"Y22*Spar_Thickness_Calculator!AI30","v":9543860.7016404141},"hc","height of core","[m]",{"$f":"Spar_Thickness_Calculator!AD21-2*Spar_Thickness_Calculator!Y23","v":1.858416212586633},{"$f":"Spar_Thickness_Calculator!AE21-2*Spar_Thickness_Calculator!Z23","v":1.1476100446280326},"σs(allow)","Allowable stress in Sparcap","[Pa]",{"$f":"Global_Var!$E$6","v":115419999.99999999}]
[null,null,null,null,null,null,null,null,null,null,null,null,null,null,{"$f":"Y251","v":0},{"$f":"C_A17","v":4.1458203945325948E-2},{"$f":"AD247","v":-8.2916407890651897E-2},{"$f":"Z251","v":0},{"$f":"C_B17","v":0.23648561595789788},{"$f":"AE247","v":-0.47297123191579576},null,"t","Spar Cap Thickness","[m]",4.8291893706683374E-2,7.7861644352650264E-2,"c","distance from neutral axis","[m]",{"$f":"Spar_Thickness_Calculator!AD21/2","v":0.97749999999999992},{"$f":"Spar_Thickness_Calculator!AE21/2","v":0.65166666666666662},"EC","Modulus of Core","[Pa]",{"$f":"Global_Var!$E$7","v":3790000}]
[null,null,null,null,null,null,null,null,null,null,null,null,null,null,{"$f":"Y266","v":0},{"$f":"C_A18","v":3.8298656833516201E-2},{"$f":"AD262","v":-7.6597313667032402E-2},{"$f":"Z266","v":0},{"$f":"C_B18","v":0.21863594221380447},{"$f":"AE262","v":-0.43727188442760895},null,"σs(max)","Max Stress in Sparcap","[Pa]",{"$f":"(Y22*(Spar_Thickness_Calculator!AD21/2)*Spar_Thickness_Calculator!AI19)/(Spar_Thickness_Calculator!AI19*Spar_Thickness_Calculator!AD24+Spar_Thickness_Calculator!AI23*Spar_Thickness_Calculator!AD25)","v":115423875.61525747},{"$f":"(Z22*(Spar_Thickness_Calculator!AE21/2)*Spar_Thickness_Calculator!AI19)/(Spar_Thickness_Calculator!AI19*Spar_Thickness_Calculator!AE24+Spar_Thickness_Calculator!AI23*Spar_Thickness_Calculator!AE25)","v":115448599.4300725},"Is","Moment of inertia Spar","[m4]",{"$f":"(Spar_Thickness_Calculator!AD19/12)*(Spar_Thickness_Calculator!AD21^3-Spar_Thickness_Calculator!AD22^3)","v":0.12116706992544289},{"$f":"(Spar_Thickness_Calculator!AE19/12)*(Spar_Thickness_Calculator!AE21^3-Spar_Thickness_Calculator!AE22^3)","v":5.3860696656224838E-2},"ρc","Density of core","[kg/m3]",{"$f":"Global_Var!$E$8","v":673}]
[null,null,null,null,null,null,null,null,null,null,null,null,null,null,{"$f":"Y281","v":0},{"$f":"C_A19","v":3.4728350451465974E-2},{"$f":"AD277","v":-6.9456700902931948E-2},{"$f":"Z281","v":0},{"$f":"C_B19","v":0.19217939832705208},{"$f":"AE277","v":-0.38435879665410416},null,"Ww","Wet Weight","[kg]",{"$f":"Spar_Thickness_Calculator!AD29+Spar_Thickness_Calculator!AD28-Spar_Thickness_Calculator!AD31","v":-589.06520749727679},{"$f":"Spar_Thickness_Calculator!AE29+Spar_Thickness_Calculator!AE28-Spar_Thickness_Calculator!AE31","v":-184.09334613597275},"Ic","Moment of inertia Core","[m4]",{"$f":"(Spar_Thickness_Calculator!AD19/12)*Spar_Thickness_Calculator!AD22^3","v":0.7381197006995569},{"$f":"(Spar_Thickness_Calculator!AE19/12)*Spar_Thickness_Calculator!AE22^3","v":0.11587496173883685},"ρw","Density of Seawater","[kg/m3]",{"$f":"Global_Var!$E$9","v":1029}]
[null,null,null,null,null,null,null,null,null,null,null,null,null,null,{"$f":"Y296","v":0},{"$f":"C_A20","v":3.0853151408813048E-2},{"$f":"AD292","v":-6.1706302817626096E-2},{"$f":"Z296","v":0},{"$f":"C_B20","v":9.7029263067383908E-2},{"$f":"AE292","v":-0.19405852613476782},null,"Ww(rotor)","Wet Weight segment of rotor (+ floats)","[kg]",{"$f":"Y25*2","v":-1178.1304149945536},{"$f":"Z25*3","v":-552.28003840791825},"Vs","Volume of Spar","[m3]",{"$f":"Spar_Thickness_Calculator!AD19*Spar_Thickness_Calculator!Y23*Spar_Thickness_Calculator!AI26*2","v":9.8853506417580839E-2},{"$f":"Spar_Thickness_Calculator!AE19*Spar_Thickness_Calculator!Z23*Spar_Thickness_Calculator!AI26*2","v":0.10625519065991669},"L","Section Length","[m]",{"$f":"Global_Var!$E$10","v":0.74166666666666647}]
[null,null,null,null,null,null,null,null,null,null,null,null,null,null,{"$f":"Y311","v":0},{"$f":"C_A21","v":2.7223581136104302E-2},{"$f":"AD307","v":-5.4447162272208603E-2},{"$f":"Z311","v":0},{"$f":"C_B21","v":7.6336433512837198E-2},{"$f":"AE307","v":-0.1526728670256744},null,null,null,null,null,null,"Vc","Volume of Core","[m3]",{"$f":"Spar_Thickness_Calculator!AD22*Spar_Thickness_Calculator!AD19*Spar_Thickness_Calculator!AI26","v":1.9020889935824181},{"$f":"Spar_Thickness_Calculator!AE22*Spar_Thickness_Calculator!AE19*Spar_Thickness_Calculator!AI26","v":0.78305258711786063},null,"Beam width in terms of chord","[-]",{"$f":"Global_Var!$E$11","v":0.6}]
[null,null,null,null,null,null,null,null,null,null,null,null,null,null,{"$f":"Y326","v":0},{"$f":"C_A22","v":2.356411840194679E-2},{"$f":"AD322","v":-4.7128236803893581E-2},{"$f":"Z326","v":0},{"$f":"C_B22","v":6.1417679483084846E-2},{"$f":"AE322","v":-0.12283535896616969},null,null,"Spar Strain Limit (Goal Seek to 1)",null,{"$f":"(Y24/$AI$7)","v":1.0000335783681986},{"$f":"(Z24/$AI$7)","v":1.0002477857396683},"Ms","Mass of Spar","[kg]",{"$f":"Spar_Thickness_Calculator!AI20*AD26","v":189.79873232175521},{"$f":"Spar_Thickness_Calculator!AI20*AE26","v":204.00996606704004},null,"Beam height in terms of thickness","[-]",0.85]
[null,null,null,null,null,null,null,null,null,null,null,null,null,null,{"$f":"Y341","v":0},{"$f":"C_A23","v":1.9828348796497228E-2},{"$f":"AD337","v":-3.9656697592994457E-2},{"$f":"Z341","v":0},{"$f":"C_B23","v":4.9048947557474007E-2},{"$f":"AE337","v":-9.8097895114948014E-2},null,null,null,null,null,null,"Mc","Mass of Core","[kg]",{"$f":"AD27*Spar_Thickness_Calculator!AI24","v":1280.1058926809674},{"$f":"AE27*Spar_Thickness_Calculator!AI24","v":526.9943911303202},null,"Chord Ratio Blade A/Blade B","[-]",{"$f":"Global_Var!$E$13","v":0.66666666666666663}]
[null,null,null,null,null,null,null,null,null,null,null,null,null,null,{"$f":"Y356","v":0},{"$f":"C_A24","v":1.5728676937896039E-2},{"$f":"AD352","v":-3.1457353875792078E-2},{"$f":"Z356","v":0},{"$f":"C_B24","v":3.7304074042880969E-2},{"$f":"AE352","v":-7.4608148085761938E-2},null,null,null,null,null,null,"Vd","Displaced Volume","[m3]",{"$f":"Spar_Thickness_Calculator!AD21*Spar_Thickness_Calculator!AD19*Spar_Thickness_Calculator!AI26","v":2.0009424999999994},{"$f":"Spar_Thickness_Calculator!AE21*Spar_Thickness_Calculator!AE19*Spar_Thickness_Calculator!AI26","v":0.88930777777777748},null,"Moment Ratio Blade A/Blade B","[-]",{"$f":"Global_Var!$E$14","v":0.66666666666666663}]
[null,null,null,null,null,null,null,null,null,null,null,null,null,null,{"$f":"Y371","v":0},{"$f":"C_A25","v":1.1725622877013299E-2},{"$f":"AD367","v":-2.3451245754026597E-2},{"$f":"Z371","v":0},{"$f":"C_B25","v":2.7533596823820915E-2},{"$f":"AE367","v":-5.5067193647641829E-2},null,null,null,null,null,null,"Mw","Mass of disp. Seawater","[kg]",{"$f":"Spar_Thickness_Calculator!AI25*Spar_Thickness_Calculator!AD30","v":2058.9698324999995},{"$f":"Spar_Thickness_Calculator!AI25*Spar_Thickness_Calculator!AE30","v":915.09770333333302}]
[null,null,null,null,null,null,null,null,null,null,null,null,null,null,{"$f":"Y386","v":0},{"$f":"C_A26","v":7.8809611872574445E-3},{"$f":"AD382","v":-1.5761922374514889E-2},{"$f":"Z386","v":0},{"$f":"C_B26","v":1.9027422323090553E-2},{"$f":"AE382","v":-3.8054844646181106E-2}]
[null,null,null,null,null,null,null,null,null,null,null,null,null,null,{"$f":"Y401","v":0},{"$f":"C_A27","v":4.1911434005555614E-3},{"$f":"AD397","v":-8.3822868011111228E-3},{"$f":"Z401","v":0},{"$f":"C_B27","v":1.1727396480538036E-2},{"$f":"AE397","v":-2.3454792961076072E-2},null,"Input/Output",null,null,null,null,"Intermediate Calculations",null,null,null,null,"Constants"]
[null,null,null,null,null,null,null,null,null,null,null,null,null,null,{"$f":"Y416","v":0},{"$f":"C_A28","v":1.0669783482411827E-3},{"$f":"AD412","v":-2.1339566964823655E-3},{"$f":"Z416","v":0},{"$f":"C_B28","v":5.9920073275618038E-3},{"$f":"AE412","v":-1.1984014655123608E-2},null,3,null,null,"Blade A","Blade B","b","Spar Cap Width","[m]",{"$f":"Spar_Thickness_Calculator!Y35*Spar_Thickness_Calculator!AI42","v":1.7143574249999995},{"$f":"Spar_Thickness_Calculator!Z35*Spar_Thickness_Calculator!AI42","v":1.1429049499999997},"EUD","Modulus of Sparcap","[Pa]",{"$f":"Global_Var!$E$3","v":39800000000}]
[null,null,null,null,null,null,null,null,null,null,null,null,null,null,{"$f":"Y431","v":0},{"$f":"C_A29","v":-1.4728509641954368E-3},{"$f":"AD427","v":2.9457019283908735E-3},{"$f":"Z431","v":0},{"$f":"C_B29","v":1.6001411334365437E-3},{"$f":"AE427","v":-3.2002822668730875E-3},null,"C","Chord","[m]",{"$f":"L9","v":2.8572623749999995},{"$f":"Y35*Spar_Thickness_Calculator!AI44","v":1.904841583333333},"t","Airfoil thickness","[m]",{"$f":"Spar_Thickness_Calculator!Y36*Spar_Thickness_Calculator!Y35/100","v":1.7972180338749997},{"$f":"Spar_Thickness_Calculator!Z36*Spar_Thickness_Calculator!Z35/100","v":1.1981453559166664},"ρs","Density of sparcap","[kg/m3]",{"$f":"Global_Var!$E$4","v":1920}]
[null,null,null,null,null,null,null,null,null,null,null,null,null,null,{"$f":"Y446","v":0},{"$f":"C_A30","v":-3.1572318856345418E-3},{"$f":"AD442","v":6.3144637712690835E-3},{"$f":"Z446","v":0},{"$f":"C_B30","v":-1.2580089414460818E-3},{"$f":"AE442","v":2.5160178828921636E-3},null,"AF%","% thickness of foil","[%]",{"$f":"N9","v":62.9},{"$f":"Y36","v":62.9},"ho","Section height outer","[m]",{"$f":"AD35*Spar_Thickness_Calculator!AI43","v":1.5276353287937496},{"$f":"AE35*Spar_Thickness_Calculator!AI43","v":1.0184235525291665},"ϵUD(max)","Max allow design strain Sparcap","[-]",{"$f":"Global_Var!$E$5","v":2.8999999999999998E-3}]
[null,null,null,null,null,null,null,null,null,null,null,null,null,null,{"$f":"Y461","v":0},{"$f":"C_A31","v":5880034876.4795046},{"$f":"AD457","v":-11760069752.959009},{"$f":"Z461","v":0},{"$f":"C_B31","v":13908690602.373377},{"$f":"AE457","v":-27817381204.746754},null,"M","Moment","[n-m]",{"$f":"M9","v":11950574.839498749},{"$f":"Y37*Spar_Thickness_Calculator!AI45","v":7967049.8929991657},"hc","height of core","[m]",{"$f":"Spar_Thickness_Calculator!AD36-2*Spar_Thickness_Calculator!Y38","v":1.4441402842365947},{"$f":"Spar_Thickness_Calculator!AE36-2*Spar_Thickness_Calculator!Z38","v":0.88252181272858821},"σs(allow)","Allowable stress in Sparcap","[Pa]",{"$f":"Global_Var!$E$6","v":115419999.99999999}]
[null,null,null,null,null,null,null,null,null,null,null,null,null,null,null,null,null,null,null,null,null,"t","Spar Cap Thickness","[m]",4.1747522278577497E-2,6.7950869900289146E-2,"c","distance from neutral axis","[m]",{"$f":"Spar_Thickness_Calculator!AD36/2","v":0.76381766439687482},{"$f":"Spar_Thickness_Calculator!AE36/2","v":0.50921177626458325},"EC","Modulus of Core","[Pa]",{"$f":"Global_Var!$E$7","v":3790000}]
[null,null,null,null,null,null,null,null,null,null,null,null,null,null,null,null,null,null,null,null,null,"σs(max)","Max Stress in Sparcap","[Pa]",{"$f":"(Y37*(Spar_Thickness_Calculator!AD36/2)*Spar_Thickness_Calculator!AI34)/(Spar_Thickness_Calculator!AI34*Spar_Thickness_Calculator!AD39+Spar_Thickness_Calculator!AI38*Spar_Thickness_Calculator!AD40)","v":115442309.71142834},{"$f":"(Z37*(Spar_Thickness_Calculator!AE36/2)*Spar_Thickness_Calculator!AI34)/(Spar_Thickness_Calculator!AI34*Spar_Thickness_Calculator!AE39+Spar_Thickness_Calculator!AI38*Spar_Thickness_Calculator!AE40)","v":115431741.1984008},"Is","Moment of inertia Spar","[m4]",{"$f":"(Spar_Thickness_Calculator!AD34/12)*(Spar_Thickness_Calculator!AD36^3-Spar_Thickness_Calculator!AD37^3)","v":7.9029344568180518E-2},{"$f":"(Spar_Thickness_Calculator!AE34/12)*(Spar_Thickness_Calculator!AE36^3-Spar_Thickness_Calculator!AE37^3)","v":3.5139347228438395E-2},"ρc","Density of core","[kg/m3]",{"$f":"Global_Var!$E$8","v":673}]
[null,null,null,null,null,null,null,null,null,null,null,null,null,null,null,null,null,null,null,null,null,"Ww","Wet Weight","[kg]",{"$f":"Spar_Thickness_Calculator!AD44+Spar_Thickness_Calculator!AD43-Spar_Thickness_Calculator!AD46","v":-559.09577565993391},{"$f":"Spar_Thickness_Calculator!AE44+Spar_Thickness_Calculator!AE43-Spar_Thickness_Calculator!AE46","v":-163.67302778996645},"Ic","Moment of inertia Core","[m4]",{"$f":"(Spar_Thickness_Calculator!AD34/12)*Spar_Thickness_Calculator!AD37^3","v":0.43027714176221671},{"$f":"(Spar_Thickness_Calculator!AE34/12)*Spar_Thickness_Calculator!AE37^3","v":6.5464403157812948E-2},"ρw","Density of Seawater","[kg/m3]",{"$f":"Global_Var!$E$9","v":1029}]
[null,null,null,null,null,null,null,null,null,null,null,null,null,null,null,null,null,null,null,null,null,"Ww(rotor)","Wet Weight segment of rotor (+ floats)","[kg]",{"$f":"Y40*2","v":-1118.1915513198678},{"$f":"Z40*3","v":-491.01908336989936},"Vs","Volume of Spar","[m3]",{"$f":"Spar_Thickness_Calculator!AD34*Spar_Thickness_Calculator!Y38*Spar_Thickness_Calculator!AI41*2","v":0.10616242594388778},{"$f":"Spar_Thickness_Calculator!AE34*Spar_Thickness_Calculator!Z38*Spar_Thickness_Calculator!AI41*2","v":0.11519772192267221},"L","Section Length","[m]",{"$f":"Global_Var!$E$10","v":0.74166666666666647}]
[null,null,null,null,null,null,null,null,null,null,null,null,null,null,null,null,null,null,null,null,null,null,null,null,null,null,"Vc","Volume of Core","[m3]",{"$f":"Spar_Thickness_Calculator!AD37*Spar_Thickness_Calculator!AD34*Spar_Thickness_Calculator!AI41","v":1.8361980257751063},{"$f":"Spar_Thickness_Calculator!AE37*Spar_Thickness_Calculator!AE34*Spar_Thickness_Calculator!AI41","v":0.74807358995243634},null,"Beam width in terms of chord","[-]",{"$f":"Global_Var!$E$11","v":0.6}]
[null,null,null,null,null,null,null,null,null,null,null,null,null,null,null,null,null,null,null,null,null,null,"Spar Strain Limit (Goal Seek to 1)",null,{"$f":"(Y39/$AI$7)","v":1.0001932915563019},{"$f":"(Z39/$AI$7)","v":1.0001017258568776},"Ms","Mass of Spar","[kg]",{"$f":"Spar_Thickness_Calculator!AI35*AD41","v":203.83185781226453},{"$f":"Spar_Thickness_Calculator!AI35*AE41","v":221.17962609153062},null,"Beam height in terms of thickness","[-]",0.85]
[null,null,null,null,null,null,null,null,null,null,null,null,null,null,null,null,null,null,null,null,null,null,null,null,null,null,"Mc","Mass of Core","[kg]",{"$f":"AD42*Spar_Thickness_Calculator!AI39","v":1235.7612713466465},{"$f":"AE42*Spar_Thickness_Calculator!AI39","v":503.45352603798966},null,"Chord Ratio Blade A/Blade B","[-]",{"$f":"Global_Var!$E$13","v":0.66666666666666663}]
[null,null,null,null,null,null,null,null,null,null,null,null,null,null,null,null,null,null,null,null,null,null,null,null,null,null,"Vd","Displaced Volume","[m3]",{"$f":"Spar_Thickness_Calculator!AD36*Spar_Thickness_Calculator!AD34*Spar_Thickness_Calculator!AI41","v":1.9423604517189941},{"$f":"Spar_Thickness_Calculator!AE36*Spar_Thickness_Calculator!AE34*Spar_Thickness_Calculator!AI41","v":0.86327131187510864},null,"Moment Ratio Blade A/Blade B","[-]",{"$f":"Global_Var!$E$14","v":0.66666666666666663}]
[null,null,null,null,null,null,null,null,null,null,null,null,null,null,null,null,null,null,null,null,null,null,null,null,null,null,"Mw","Mass of disp. Seawater","[kg]",{"$f":"Spar_Thickness_Calculator!AI40*Spar_Thickness_Calculator!AD45","v":1998.688904818845},{"$f":"Spar_Thickness_Calculator!AI40*Spar_Thickness_Calculator!AE45","v":888.30617991948679}]
[]
[null,null,null,null,null,null,null,null,null,null,null,null,null,null,null,null,null,null,null,null,null,"Input/Output",null,null,null,null,"Intermediate Calculations",null,null,null,null,"Constants"]
[null,null,null,null,null,null,null,null,null,null,null,null,null,null,null,null,null,null,null,null,null,4,null,null,"Blade A","Blade B","b","Spar Cap Width","[m]",{"$f":"Spar_Thickness_Calculator!Y50*Spar_Thickness_Calculator!AI57","v":2.0487148499999996},{"$f":"Spar_Thickness_Calculator!Z50*Spar_Thickness_Calculator!AI57","v":1.3658098999999997},"EUD","Modulus of Sparcap","[Pa]",{"$f":"Global_Var!$E$3","v":39800000000}]
[null,null,null,null,null,null,null,null,null,null,null,null,null,null,null,null,null,null,null,null,null,"C","Chord","[m]",{"$f":"L10","v":3.4145247499999996},{"$f":"Y50*Spar_Thickness_Calculator!AI59","v":2.2763498333333327},"t","Airfoil thickness","[m]",{"$f":"Spar_Thickness_Calculator!Y51*Spar_Thickness_Calculator!Y50/100","v":0.81948593999999986},{"$f":"Spar_Thickness_Calculator!Z51*Spar_Thickness_Calculator!Z50/100","v":0.54632395999999983},"ρs","Density of sparcap","[kg/m3]",{"$f":"Global_Var!$E$4","v":1920}]
[null,null,null,null,null,null,null,null,null,null,null,null,null,null,null,null,null,null,null,null,null,"AF%","% thickness of foil","[%]",{"$f":"N10","v":24},{"$f":"Y51","v":24},"ho","Section height outer","[m]",{"$f":"AD50*Spar_Thickness_Calculator!AI58","v":0.69656304899999988},{"$f":"AE50*Spar_Thickness_Calculator!AI58","v":0.46437536599999985},"ϵUD(max)","Max allow design strain Sparcap","[-]",{"$f":"Global_Var!$E$5","v":2.8999999999999998E-3}]
[null,null,null,null,null,null,null,null,null,null,null,null,null,null,null,null,null,null,null,null,null,"M","Moment","[n-m]",{"$f":"M10","v":9618492.1341599971},{"$f":"Y52*Spar_Thickness_Calculator!AI60","v":6412328.0894399974},"hc","height of core","[m]",{"$f":"Spar_Thickness_Calculator!AD51-2*Spar_Thickness_Calculator!Y53","v":0.55179119354276596},{"$f":"Spar_Thickness_Calculator!AE51-2*Spar_Thickness_Calculator!Z53","v":-0.23633159578180218},"σs(allow)","Allowable stress in Sparcap","[Pa]",{"$f":"Global_Var!$E$6","v":115419999.99999999}]
[null,null,null,null,null,null,null,null,null,null,null,null,null,null,null,null,null,null,null,null,null,"t","Spar Cap Thickness","[m]",7.2385927728616975E-2,0.35035348089090101,"c","distance from neutral axis","[m]",{"$f":"Spar_Thickness_Calculator!AD51/2","v":0.34828152449999994},{"$f":"Spar_Thickness_Calculator!AE51/2","v":0.23218768299999992},"EC","Modulus of Core","[Pa]",{"$f":"Global_Var!$E$7","v":3790000}]
[null,null,null,null,null,null,null,null,null,null,null,null,null,null,null,null,null,null,null,null,null,"σs(max)","Max Stress in Sparcap","[Pa]",{"$f":"(Y52*(Spar_Thickness_Calculator!AD51/2)*Spar_Thickness_Calculator!AI49)/(Spar_Thickness_Calculator!AI49*Spar_Thickness_Calculator!AD54+Spar_Thickness_Calculator!AI53*Spar_Thickness_Calculator!AD55)","v":115433694.24427494},{"$f":"(Z52*(Spar_Thickness_Calculator!AE51/2)*Spar_Thickness_Calculator!AI49)/(Spar_Thickness_Calculator!AI49*Spar_Thickness_Calculator!AE54+Spar_Thickness_Calculator!AI53*Spar_Thickness_Calculator!AE55)","v":115416677.38937052},"Is","Moment of inertia Spar","[m4]",{"$f":"(Spar_Thickness_Calculator!AD49/12)*(Spar_Thickness_Calculator!AD51^3-Spar_Thickness_Calculator!AD52^3)","v":2.9017764991020892E-2},{"$f":"(Spar_Thickness_Calculator!AE49/12)*(Spar_Thickness_Calculator!AE51^3-Spar_Thickness_Calculator!AE52^3)","v":1.2900043107956732E-2},"ρc","Density of core","[kg/m3]",{"$f":"Global_Var!$E$8","v":673}]
[null,null,null,null,null,null,null,null,null,null,null,null,null,null,null,null,null,null,null,null,null,"Ww","Wet Weight","[kg]",{"$f":"Spar_Thickness_Calculator!AD59+Spar_Thickness_Calculator!AD58-Spar_Thickness_Calculator!AD61","v":-102.48164754668608},{"$f":"Spar_Thickness_Calculator!AE59+Spar_Thickness_Calculator!AE58-Spar_Thickness_Calculator!AE61","v":717.65674961428113},"Ic","Moment of inertia Core","[m4]",{"$f":"(Spar_Thickness_Calculator!AD49/12)*Spar_Thickness_Calculator!AD52^3","v":2.8682999427535581E-2},{"$f":"(Spar_Thickness_Calculator!AE49/12)*Spar_Thickness_Calculator!AE52^3","v":-1.5023612475011392E-3},"ρw","Density of Seawater","[kg/m3]",{"$f":"Global_Var!$E$9","v":1029}]
[null,null,null,null,null,null,null,null,null,null,null,null,null,null,null,null,null,null,null,null,null,"Ww(rotor)","Wet Weight segment of rotor (+ floats)","[kg]",{"$f":"Y55*2","v":-204.96329509337215},{"$f":"Z55*3","v":2152.9702488428434},"Vs","Volume of Spar","[m3]",{"$f":"Spar_Thickness_Calculator!AD49*Spar_Thickness_Calculator!Y53*Spar_Thickness_Calculator!AI56*2","v":0.21997555218515571},{"$f":"Spar_Thickness_Calculator!AE49*Spar_Thickness_Calculator!Z53*Spar_Thickness_Calculator!AI56*2","v":0.70979910817204228},"L","Section Length","[m]",{"$f":"Global_Var!$E$10","v":0.74166666666666647}]
[null,null,null,null,null,null,null,null,null,null,null,null,null,null,null,null,null,null,null,null,null,null,null,null,null,null,"Vc","Volume of Core","[m3]",{"$f":"Spar_Thickness_Calculator!AD52*Spar_Thickness_Calculator!AD49*Spar_Thickness_Calculator!AI56","v":0.83842658579679707},{"$f":"Spar_Thickness_Calculator!AE52*Spar_Thickness_Calculator!AE49*Spar_Thickness_Calculator!AI56","v":-0.23939815795784111},null,"Beam width in terms of chord","[-]",{"$f":"Global_Var!$E$11","v":0.6}]
[null,null,null,null,null,null,null,null,null,null,null,null,null,null,null,null,null,null,null,null,null,null,"Spar Strain Limit (Goal Seek to 1)",null,{"$f":"(Y54/$AI$7)","v":1.000118647065283},{"$f":"(Z54/$AI$7)","v":0.99997121286926471},"Ms","Mass of Spar","[kg]",{"$f":"Spar_Thickness_Calculator!AI50*AD56","v":422.35306019549898},{"$f":"Spar_Thickness_Calculator!AI50*AE56","v":1362.8142876903212},null,"Beam height in terms of thickness","[-]",0.85]
[null,null,null,null,null,null,null,null,null,null,null,null,null,null,null,null,null,null,null,null,null,null,null,null,null,null,"Mc","Mass of Core","[kg]",{"$f":"AD57*Spar_Thickness_Calculator!AI54","v":564.26109224124446},{"$f":"AE57*Spar_Thickness_Calculator!AI54","v":-161.11496030562708},null,"Chord Ratio Blade A/Blade B","[-]",{"$f":"Global_Var!$E$13","v":0.66666666666666663}]
[null,null,null,null,null,null,null,null,null,null,null,null,null,null,null,null,null,null,null,null,null,null,null,null,null,null,"Vd","Displaced Volume","[m3]",{"$f":"Spar_Thickness_Calculator!AD51*Spar_Thickness_Calculator!AD49*Spar_Thickness_Calculator!AI56","v":1.0584021379819528},{"$f":"Spar_Thickness_Calculator!AE51*Spar_Thickness_Calculator!AE49*Spar_Thickness_Calculator!AI56","v":0.47040095021420109},null,"Moment Ratio Blade A/Blade B","[-]",{"$f":"Global_Var!$E$14","v":0.66666666666666663}]
[null,null,null,null,null,null,null,null,null,null,null,null,null,null,null,null,null,null,null,null,null,null,null,null,null,null,"Mw","Mass of disp. Seawater","[kg]",{"$f":"Spar_Thickness_Calculator!AI55*Spar_Thickness_Calculator!AD60","v":1089.0957999834295},{"$f":"Spar_Thickness_Calculator!AI55*Spar_Thickness_Calculator!AE60","v":484.04257777041289}]
[]
[null,null,null,null,null,null,null,null,null,null,null,null,null,null,null,null,null,null,null,null,null,"Input/Output",null,null,null,null,"Intermediate Calculations",null,null,null,null,"Constants"]
[null,null,null,null,null,null,null,null,null,null,null,null,null,null,null,null,null,null,null,null,null,5,null,null,"Blade A","Blade B","b","Spar Cap Width","[m]",{"$f":"Spar_Thickness_Calculator!Y65*Spar_Thickness_Calculator!AI72","v":1.6181255999999999},{"$f":"Spar_Thickness_Calculator!Z65*Spar_Thickness_Calculator!AI72","v":1.0787503999999999},"EUD","Modulus of Sparcap","[Pa]",{"$f":"Global_Var!$E$3","v":39800000000}]
[null,null,null,null,null,null,null,null,null,null,null,null,null,null,null,null,null,null,null,null,null,"C","Chord","[m]",{"$f":"L11","v":2.6968760000000001},{"$f":"Y65*Spar_Thickness_Calculator!AI74","v":1.7979173333333334},"t","Airfoil thickness","[m]",{"$f":"Spar_Thickness_Calculator!Y66*Spar_Thickness_Calculator!Y65/100","v":0.62702367000000003},{"$f":"Spar_Thickness_Calculator!Z66*Spar_Thickness_Calculator!Z65/100","v":0.41801578},"ρs","Density of sparcap","[kg/m3]",{"$f":"Global_Var!$E$4","v":1920}]
[null,null,null,null,null,null,null,null,null,null,null,null,null,null,null,null,null,null,null,null,null,"AF%","% thickness of foil","[%]",{"$f":"N11","v":23.25},{"$f":"Y66","v":23.25},"ho","Section height outer","[m]",{"$f":"AD65*Spar_Thickness_Calculator!AI73","v":0.53297011950000006},{"$f":"AE65*Spar_Thickness_Calculator!AI73","v":0.35531341299999997},"ϵUD(max)","Max allow design strain Sparcap","[-]",{"$f":"Global_Var!$E$5","v":2.8999999999999998E-3}]
[null,null,null,null,null,null,null,null,null,null,null,null,null,null,null,null,null,null,null,null,null,"M","Moment","[n-m]",{"$f":"M11","v":7424471.6116593722},{"$f":"Y67*Spar_Thickness_Calculator!AI75","v":4949647.7411062475},"hc","height of core","[m]",{"$f":"Spar_Thickness_Calculator!AD66-2*Spar_Thickness_Calculator!Y68","v":0.28993455228193638},{"$f":"Spar_Thickness_Calculator!AE66-2*Spar_Thickness_Calculator!Z68","v":-0.34162598332556238},"σs(allow)","Allowable stress in Sparcap","[Pa]",{"$f":"Global_Var!$E$6","v":115419999.99999999}]
[null,null,null,null,null,null,null,null,null,null,null,null,null,null,null,null,null,null,null,null,null,"t","Spar Cap Thickness","[m]",0.12151778360903184,0.34846969816278117,"c","distance from neutral axis","[m]",{"$f":"Spar_Thickness_Calculator!AD66/2","v":0.26648505975000003},{"$f":"Spar_Thickness_Calculator!AE66/2","v":0.17765670649999998},"EC","Modulus of Core","[Pa]",{"$f":"Global_Var!$E$7","v":3790000}]
[null,null,null,null,null,null,null,null,null,null,null,null,null,null,null,null,null,null,null,null,null,"σs(max)","Max Stress in Sparcap","[Pa]",{"$f":"(Y67*(Spar_Thickness_Calculator!AD66/2)*Spar_Thickness_Calculator!AI64)/(Spar_Thickness_Calculator!AI64*Spar_Thickness_Calculator!AD69+Spar_Thickness_Calculator!AI68*Spar_Thickness_Calculator!AD70)","v":115510729.5144657},{"$f":"(Z67*(Spar_Thickness_Calculator!AE66/2)*Spar_Thickness_Calculator!AI64)/(Spar_Thickness_Calculator!AI64*Spar_Thickness_Calculator!AE69+Spar_Thickness_Calculator!AI68*Spar_Thickness_Calculator!AE70)","v":115453830.58652239},"Is","Moment of inertia Spar","[m4]",{"$f":"(Spar_Thickness_Calculator!AD64/12)*(Spar_Thickness_Calculator!AD66^3-Spar_Thickness_Calculator!AD67^3)","v":1.7128059179199129E-2},{"$f":"(Spar_Thickness_Calculator!AE64/12)*(Spar_Thickness_Calculator!AE66^3-Spar_Thickness_Calculator!AE67^3)","v":7.6167028591194097E-3},"ρc","Density of core","[kg/m3]",{"$f":"Global_Var!$E$8","v":673}]
[null,null,null,null,null,null,null,null,null,null,null,null,null,null,null,null,null,null,null,null,null,"Ww","Wet Weight","[kg]",{"$f":"Spar_Thickness_Calculator!AD74+Spar_Thickness_Calculator!AD73-Spar_Thickness_Calculator!AD76","v":136.00603341454803},{"$f":"Spar_Thickness_Calculator!AE74+Spar_Thickness_Calculator!AE73-Spar_Thickness_Calculator!AE76","v":594.12784937678578},"Ic","Moment of inertia Core","[m4]",{"$f":"(Spar_Thickness_Calculator!AD64/12)*Spar_Thickness_Calculator!AD67^3","v":3.2864793379109168E-3},{"$f":"(Spar_Thickness_Calculator!AE64/12)*Spar_Thickness_Calculator!AE67^3","v":-3.5842014236408841E-3},"ρw","Density of Seawater","[kg/m3]",{"$f":"Global_Var!$E$9","v":1029}]
[null,null,null,null,null,null,null,null,null,null,null,null,null,null,null,null,null,null,null,null,null,"Ww(rotor)","Wet Weight segment of rotor (+ floats)","[kg]",{"$f":"Y70*2","v":272.01206682909606},{"$f":"Z70*3","v":1782.3835481303572},"Vs","Volume of Spar","[m3]",{"$f":"Spar_Thickness_Calculator!AD64*Spar_Thickness_Calculator!Y68*Spar_Thickness_Calculator!AI71*2","v":0.29166937082766825},{"$f":"Spar_Thickness_Calculator!AE64*Spar_Thickness_Calculator!Z68*Spar_Thickness_Calculator!AI71*2","v":0.55760254231678597},"L","Section Length","[m]",{"$f":"Global_Var!$E$10","v":0.74166666666666647}]
[null,null,null,null,null,null,null,null,null,null,null,null,null,null,null,null,null,null,null,null,null,null,null,null,null,null,"Vc","Volume of Core","[m3]",{"$f":"Spar_Thickness_Calculator!AD67*Spar_Thickness_Calculator!AD64*Spar_Thickness_Calculator!AI71","v":0.34795330335085511},{"$f":"Spar_Thickness_Calculator!AE67*Spar_Thickness_Calculator!AE64*Spar_Thickness_Calculator!AI71","v":-0.27332579823744235},null,"Beam width in terms of chord","[-]",{"$f":"Global_Var!$E$11","v":0.6}]
[null,null,null,null,null,null,null,null,null,null,null,null,null,null,null,null,null,null,null,null,null,null,"Spar Strain Limit (Goal Seek to 1)",null,{"$f":"(Y69/$AI$7)","v":1.0007860813937421},{"$f":"(Z69/$AI$7)","v":1.0002931085299116},"Ms","Mass of Spar","[kg]",{"$f":"Spar_Thickness_Calculator!AI65*AD71","v":560.00519198912309},{"$f":"Spar_Thickness_Calculator!AI65*AE71","v":1070.596881248229},null,"Beam height in terms of thickness","[-]",0.85]
[null,null,null,null,null,null,null,null,null,null,null,null,null,null,null,null,null,null,null,null,null,null,null,null,null,null,"Mc","Mass of Core","[kg]",{"$f":"AD72*Spar_Thickness_Calculator!AI69","v":234.17257315512549},{"$f":"AE72*Spar_Thickness_Calculator!AI69","v":-183.9482622137987},null,"Chord Ratio Blade A/Blade B","[-]",{"$f":"Global_Var!$E$13","v":0.66666666666666663}]
[null,null,null,null,null,null,null,null,null,null,null,null,null,null,null,null,null,null,null,null,null,null,null,null,null,null,"Vd","Displaced Volume","[m3]",{"$f":"Spar_Thickness_Calculator!AD66*Spar_Thickness_Calculator!AD64*Spar_Thickness_Calculator!AI71","v":0.63962267417852336},{"$f":"Spar_Thickness_Calculator!AE66*Spar_Thickness_Calculator!AE64*Spar_Thickness_Calculator!AI71","v":0.28427674407934361},null,"Moment Ratio Blade A/Blade B","[-]",{"$f":"Global_Var!$E$14","v":0.66666666666666663}]
[null,null,null,null,null,null,null,null,null,null,null,null,null,null,null,null,null,null,null,null,null,null,null,null,null,null,"Mw","Mass of disp. Seawater","[kg]",{"$f":"Spar_Thickness_Calculator!AI70*Spar_Thickness_Calculator!AD75","v":658.17173172970058},{"$f":"Spar_Thickness_Calculator!AI70*Spar_Thickness_Calculator!AE75","v":292.52076965764456}]
[]
[null,null,null,null,null,null,null,null,null,null,null,null,null,null,null,null,null,null,null,null,null,"Input/Output",null,null,null,null,"Intermediate Calculations",null,null,null,null,"Constants"]
[null,null,null,null,null,null,null,null,null,null,null,null,null,null,null,null,null,null,null,null,null,6,null,null,"Blade A","Blade B","b","Spar Cap Width","[m]",{"$f":"Spar_Thickness_Calculator!Y80*Spar_Thickness_Calculator!AI87","v":1.3383278999999999},{"$f":"Spar_Thickness_Calculator!Z80*Spar_Thickness_Calculator!AI87","v":0.89221859999999997},"EUD","Modulus of Sparcap","[Pa]",{"$f":"Global_Var!$E$3","v":39800000000}]
[null,null,null,null,null,null,null,null,null,null,null,null,null,null,null,null,null,null,null,null,null,"C","Chord","[m]",{"$f":"L12","v":2.2305465},{"$f":"Y80*Spar_Thickness_Calculator!AI89","v":1.487031},"t","Airfoil thickness","[m]",{"$f":"Spar_Thickness_Calculator!Y81*Spar_Thickness_Calculator!Y80/100","v":0.50187296249999991},{"$f":"Spar_Thickness_Calculator!Z81*Spar_Thickness_Calculator!Z80/100","v":0.33458197499999998},"ρs","Density of sparcap","[kg/m3]",{"$f":"Global_Var!$E$4","v":1920}]
[null,null,null,null,null,null,null,null,null,null,null,null,null,null,null,null,null,null,null,null,null,"AF%","% thickness of foil","[%]",{"$f":"N12","v":22.499999999999996},{"$f":"Y81","v":22.499999999999996},"ho","Section height outer","[m]",{"$f":"AD80*Spar_Thickness_Calculator!AI88","v":0.42659201812499992},{"$f":"AE80*Spar_Thickness_Calculator!AI88","v":0.28439467874999996},"ϵUD(max)","Max allow design strain Sparcap","[-]",{"$f":"Global_Var!$E$5","v":2.8999999999999998E-3}]
[null,null,null,null,null,null,null,null,null,null,null,null,null,null,null,null,null,null,null,null,null,"M","Moment","[n-m]",{"$f":"M12","v":5426667.2000449989},{"$f":"Y82*Spar_Thickness_Calculator!AI90","v":3617778.1333633326},"hc","height of core","[m]",{"$f":"Spar_Thickness_Calculator!AD81-2*Spar_Thickness_Calculator!Y83","v":-0.2307856588760262},{"$f":"Spar_Thickness_Calculator!AE81-2*Spar_Thickness_Calculator!Z83","v":-0.33291679491290144},"σs(allow)","Allowable stress in Sparcap","[Pa]",{"$f":"Global_Var!$E$6","v":115419999.99999999}]
[null,null,null,null,null,null,null,null,null,null,null,null,null,null,null,null,null,null,null,null,null,"t","Spar Cap Thickness","[m]",0.32868883850051306,0.3086557368314507,"c","distance from neutral axis","[m]",{"$f":"Spar_Thickness_Calculator!AD81/2","v":0.21329600906249996},{"$f":"Spar_Thickness_Calculator!AE81/2","v":0.14219733937499998},"EC","Modulus of Core","[Pa]",{"$f":"Global_Var!$E$7","v":3790000}]
[null,null,null,null,null,null,null,null,null,null,null,null,null,null,null,null,null,null,null,null,null,"σs(max)","Max Stress in Sparcap","[Pa]",{"$f":"(Y82*(Spar_Thickness_Calculator!AD81/2)*Spar_Thickness_Calculator!AI79)/(Spar_Thickness_Calculator!AI79*Spar_Thickness_Calculator!AD84+Spar_Thickness_Calculator!AI83*Spar_Thickness_Calculator!AD85)","v":115416095.75943497},{"$f":"(Z82*(Spar_Thickness_Calculator!AE81/2)*Spar_Thickness_Calculator!AI79)/(Spar_Thickness_Calculator!AI79*Spar_Thickness_Calculator!AE84+Spar_Thickness_Calculator!AI83*Spar_Thickness_Calculator!AE85)","v":115515389.40890315},"Is","Moment of inertia Spar","[m4]",{"$f":"(Spar_Thickness_Calculator!AD79/12)*(Spar_Thickness_Calculator!AD81^3-Spar_Thickness_Calculator!AD82^3)","v":1.0028943673618288E-2},{"$f":"(Spar_Thickness_Calculator!AE79/12)*(Spar_Thickness_Calculator!AE81^3-Spar_Thickness_Calculator!AE82^3)","v":4.4536802051355594E-3},"ρc","Density of core","[kg/m3]",{"$f":"Global_Var!$E$8","v":673}]
[null,null,null,null,null,null,null,null,null,null,null,null,null,null,null,null,null,null,null,null,null,"Ww","Wet Weight","[kg]",{"$f":"Spar_Thickness_Calculator!AD89+Spar_Thickness_Calculator!AD88-Spar_Thickness_Calculator!AD91","v":662.93632243758111},{"$f":"Spar_Thickness_Calculator!AE89+Spar_Thickness_Calculator!AE88-Spar_Thickness_Calculator!AE91","v":442.39408896124314},"Ic","Moment of inertia Core","[m4]",{"$f":"(Spar_Thickness_Calculator!AD79/12)*Spar_Thickness_Calculator!AD82^3","v":-1.3709061979731076E-3},{"$f":"(Spar_Thickness_Calculator!AE79/12)*Spar_Thickness_Calculator!AE82^3","v":-2.7434505803167579E-3},"ρw","Density of Seawater","[kg/m3]",{"$f":"Global_Var!$E$9","v":1029}]
[null,null,null,null,null,null,null,null,null,null,null,null,null,null,null,null,null,null,null,null,null,"Ww(rotor)","Wet Weight segment of rotor (+ floats)","[kg]",{"$f":"Y85*2","v":1325.8726448751622},{"$f":"Z85*3","v":1327.1822668837294},"Vs","Volume of Spar","[m3]",{"$f":"Spar_Thickness_Calculator!AD79*Spar_Thickness_Calculator!Y83*Spar_Thickness_Calculator!AI86*2","v":0.6525086070926821},{"$f":"Spar_Thickness_Calculator!AE79*Spar_Thickness_Calculator!Z83*Spar_Thickness_Calculator!AI86*2","v":0.40849277760662583},"L","Section Length","[m]",{"$f":"Global_Var!$E$10","v":0.74166666666666647}]
[null,null,null,null,null,null,null,null,null,null,null,null,null,null,null,null,null,null,null,null,null,null,null,null,null,null,"Vc","Volume of Core","[m3]",{"$f":"Spar_Thickness_Calculator!AD82*Spar_Thickness_Calculator!AD79*Spar_Thickness_Calculator!AI86","v":-0.22907627392697072},{"$f":"Spar_Thickness_Calculator!AE82*Spar_Thickness_Calculator!AE79*Spar_Thickness_Calculator!AI86","v":-0.22030062953297633},null,"Beam width in terms of chord","[-]",{"$f":"Global_Var!$E$11","v":0.6}]
[null,null,null,null,null,null,null,null,null,null,null,null,null,null,null,null,null,null,null,null,null,null,"Spar Strain Limit (Goal Seek to 1)",null,{"$f":"(Y84/$AI$7)","v":0.99996617362185913},{"$f":"(Z84/$AI$7)","v":1.0008264547643664},"Ms","Mass of Spar","[kg]",{"$f":"Spar_Thickness_Calculator!AI80*AD86","v":1252.8165256179495},{"$f":"Spar_Thickness_Calculator!AI80*AE86","v":784.30613300472157},null,"Beam height in terms of thickness","[-]",0.85]
[null,null,null,null,null,null,null,null,null,null,null,null,null,null,null,null,null,null,null,null,null,null,null,null,null,null,"Mc","Mass of Core","[kg]",{"$f":"AD87*Spar_Thickness_Calculator!AI84","v":-154.16833235285128},{"$f":"AE87*Spar_Thickness_Calculator!AI84","v":-148.26232367569307},null,"Chord Ratio Blade A/Blade B","[-]",{"$f":"Global_Var!$E$13","v":0.66666666666666663}]
[null,null,null,null,null,null,null,null,null,null,null,null,null,null,null,null,null,null,null,null,null,null,null,null,null,null,"Vd","Displaced Volume","[m3]",{"$f":"Spar_Thickness_Calculator!AD81*Spar_Thickness_Calculator!AD79*Spar_Thickness_Calculator!AI86","v":0.42343233316571138},{"$f":"Spar_Thickness_Calculator!AE81*Spar_Thickness_Calculator!AE79*Spar_Thickness_Calculator!AI86","v":0.18819214807364953},null,"Moment Ratio Blade A/Blade B","[-]",{"$f":"Global_Var!$E$14","v":0.66666666666666663}]
[null,null,null,null,null,null,null,null,null,null,null,null,null,null,null,null,null,null,null,null,null,null,null,null,null,null,"Mw","Mass of disp. Seawater","[kg]",{"$f":"Spar_Thickness_Calculator!AI85*Spar_Thickness_Calculator!AD90","v":435.71187082751703},{"$f":"Spar_Thickness_Calculator!AI85*Spar_Thickness_Calculator!AE90","v":193.64972036778536}]
[]
[null,null,null,null,null,null,null,null,null,null,null,null,null,null,null,null,null,null,null,null,null,"Input/Output",null,null,null,null,"Intermediate Calculations",null,null,null,null,"Constants"]
[null,null,null,null,null,null,null,null,null,null,null,null,null,null,null,null,null,null,null,null,null,7,null,null,"Blade A","Blade B","b","Spar Cap Width","[m]",{"$f":"Spar_Thickness_Calculator!Y95*Spar_Thickness_Calculator!AI102","v":1.1468183999999997},{"$f":"Spar_Thickness_Calculator!Z95*Spar_Thickness_Calculator!AI102","v":0.76454559999999983},"EUD","Modulus of Sparcap","[Pa]",{"$f":"Global_Var!$E$3","v":39800000000}]
[null,null,null,null,null,null,null,null,null,null,null,null,null,null,null,null,null,null,null,null,null,"C","Chord","[m]",{"$f":"L13","v":1.9113639999999996},{"$f":"Y95*Spar_Thickness_Calculator!AI104","v":1.2742426666666664},"t","Airfoil thickness","[m]",{"$f":"Spar_Thickness_Calculator!Y96*Spar_Thickness_Calculator!Y95/100","v":0.41572166999999988},{"$f":"Spar_Thickness_Calculator!Z96*Spar_Thickness_Calculator!Z95/100","v":0.2771477799999999},"ρs","Density of sparcap","[kg/m3]",{"$f":"Global_Var!$E$4","v":1920}]
[null,null,null,null,null,null,null,null,null,null,null,null,null,null,null,null,null,null,null,null,null,"AF%","% thickness of foil","[%]",{"$f":"N13","v":21.749999999999996},{"$f":"Y96","v":21.749999999999996},"ho","Section height outer","[m]",{"$f":"AD95*Spar_Thickness_Calculator!AI103","v":0.35336341949999989},{"$f":"AE95*Spar_Thickness_Calculator!AI103","v":0.23557561299999991},"ϵUD(max)","Max allow design strain Sparcap","[-]",{"$f":"Global_Var!$E$5","v":2.8999999999999998E-3}]
[null,null,null,null,null,null,null,null,null,null,null,null,null,null,null,null,null,null,null,null,null,"M","Moment","[n-m]",{"$f":"M13","v":3663270.9075462483},{"$f":"Y97*Spar_Thickness_Calculator!AI105","v":2442180.6050308319},"hc","height of core","[m]",{"$f":"Spar_Thickness_Calculator!AD96-2*Spar_Thickness_Calculator!Y98","v":-0.24417554708358374},{"$f":"Spar_Thickness_Calculator!AE96-2*Spar_Thickness_Calculator!Z98","v":-0.29642996227612178},"σs(allow)","Allowable stress in Sparcap","[Pa]",{"$f":"Global_Var!$E$6","v":115419999.99999999}]
[null,null,null,null,null,null,null,null,null,null,null,null,null,null,null,null,null,null,null,null,null,"t","Spar Cap Thickness","[m]",0.29876948329179182,0.26600278763806084,"c","distance from neutral axis","[m]",{"$f":"Spar_Thickness_Calculator!AD96/2","v":0.17668170974999994},{"$f":"Spar_Thickness_Calculator!AE96/2","v":0.11778780649999995},"EC","Modulus of Core","[Pa]",{"$f":"Global_Var!$E$7","v":3790000}]
[null,null,null,null,null,null,null,null,null,null,null,null,null,null,null,null,null,null,null,null,null,"σs(max)","Max Stress in Sparcap","[Pa]",{"$f":"(Y97*(Spar_Thickness_Calculator!AD96/2)*Spar_Thickness_Calculator!AI94)/(Spar_Thickness_Calculator!AI94*Spar_Thickness_Calculator!AD99+Spar_Thickness_Calculator!AI98*Spar_Thickness_Calculator!AD100)","v":115414131.8346123},{"$f":"(Z97*(Spar_Thickness_Calculator!AE96/2)*Spar_Thickness_Calculator!AI94)/(Spar_Thickness_Calculator!AI94*Spar_Thickness_Calculator!AE99+Spar_Thickness_Calculator!AI98*Spar_Thickness_Calculator!AE100)","v":115418036.66740531},"Is","Moment of inertia Spar","[m4]",{"$f":"(Spar_Thickness_Calculator!AD94/12)*(Spar_Thickness_Calculator!AD96^3-Spar_Thickness_Calculator!AD97^3)","v":5.6080503132874167E-3},{"$f":"(Spar_Thickness_Calculator!AE94/12)*(Spar_Thickness_Calculator!AE96^3-Spar_Thickness_Calculator!AE97^3)","v":2.4924816308950796E-3},"ρc","Density of core","[kg/m3]",{"$f":"Global_Var!$E$8","v":673}]
[null,null,null,null,null,null,null,null,null,null,null,null,null,null,null,null,null,null,null,null,null,"Ww","Wet Weight","[kg]",{"$f":"Spar_Thickness_Calculator!AD104+Spar_Thickness_Calculator!AD103-Spar_Thickness_Calculator!AD106","v":526.77861338158596},{"$f":"Spar_Thickness_Calculator!AE104+Spar_Thickness_Calculator!AE103-Spar_Thickness_Calculator!AE106","v":328.6246163801473},"Ic","Moment of inertia Core","[m4]",{"$f":"(Spar_Thickness_Calculator!AD94/12)*Spar_Thickness_Calculator!AD97^3","v":-1.3912972111922155E-3},{"$f":"(Spar_Thickness_Calculator!AE94/12)*Spar_Thickness_Calculator!AE97^3","v":-1.6595427465305958E-3},"ρw","Density of Seawater","[kg/m3]",{"$f":"Global_Var!$E$9","v":1029}]
[null,null,null,null,null,null,null,null,null,null,null,null,null,null,null,null,null,null,null,null,null,"Ww(rotor)","Wet Weight segment of rotor (+ floats)","[kg]",{"$f":"Y100*2","v":1053.5572267631719},{"$f":"Z100*3","v":985.87384914044196},"Vs","Volume of Spar","[m3]",{"$f":"Spar_Thickness_Calculator!AD94*Spar_Thickness_Calculator!Y98*Spar_Thickness_Calculator!AI101*2","v":0.50824093884965349},{"$f":"Spar_Thickness_Calculator!AE94*Spar_Thickness_Calculator!Z98*Spar_Thickness_Calculator!AI101*2","v":0.30166737030001367},"L","Section Length","[m]",{"$f":"Global_Var!$E$10","v":0.74166666666666647}]
[null,null,null,null,null,null,null,null,null,null,null,null,null,null,null,null,null,null,null,null,null,null,null,null,null,null,"Vc","Volume of Core","[m3]",{"$f":"Spar_Thickness_Calculator!AD97*Spar_Thickness_Calculator!AD94*Spar_Thickness_Calculator!AI101","v":-0.20768521591726069},{"$f":"Spar_Thickness_Calculator!AE97*Spar_Thickness_Calculator!AE94*Spar_Thickness_Calculator!AI101","v":-0.16808704899672797},null,"Beam width in terms of chord","[-]",{"$f":"Global_Var!$E$11","v":0.6}]
[null,null,null,null,null,null,null,null,null,null,null,null,null,null,null,null,null,null,null,null,null,null,"Spar Strain Limit (Goal Seek to 1)",null,{"$f":"(Y99/$AI$7)","v":0.99994915815813823},{"$f":"(Z99/$AI$7)","v":0.99998298966734811},"Ms","Mass of Spar","[kg]",{"$f":"Spar_Thickness_Calculator!AI95*AD101","v":975.82260259133466},{"$f":"Spar_Thickness_Calculator!AI95*AE101","v":579.20135097602622},null,"Beam height in terms of thickness","[-]",0.85]
[null,null,null,null,null,null,null,null,null,null,null,null,null,null,null,null,null,null,null,null,null,null,null,null,null,null,"Mc","Mass of Core","[kg]",{"$f":"AD102*Spar_Thickness_Calculator!AI99","v":-139.77215031231646},{"$f":"AE102*Spar_Thickness_Calculator!AI99","v":-113.12258397479792},null,"Chord Ratio Blade A/Blade B","[-]",{"$f":"Global_Var!$E$13","v":0.66666666666666663}]
[null,null,null,null,null,null,null,null,null,null,null,null,null,null,null,null,null,null,null,null,null,null,null,null,null,null,"Vd","Displaced Volume","[m3]",{"$f":"Spar_Thickness_Calculator!AD96*Spar_Thickness_Calculator!AD94*Spar_Thickness_Calculator!AI101","v":0.30055572293239285},{"$f":"Spar_Thickness_Calculator!AE96*Spar_Thickness_Calculator!AE94*Spar_Thickness_Calculator!AI101","v":0.1335803213032857},null,"Moment Ratio Blade A/Blade B","[-]",{"$f":"Global_Var!$E$14","v":0.66666666666666663}]
[null,null,null,null,null,null,null,null,null,null,null,null,null,null,null,null,null,null,null,null,null,null,null,null,null,null,"Mw","Mass of disp. Seawater","[kg]",{"$f":"Spar_Thickness_Calculator!AI100*Spar_Thickness_Calculator!AD105","v":309.27183889743225},{"$f":"Spar_Thickness_Calculator!AI100*Spar_Thickness_Calculator!AE105","v":137.454150621081}]
[]
[null,null,null,null,null,null,null,null,null,null,null,null,null,null,null,null,null,null,null,null,null,"Input/Output",null,null,null,null,"Intermediate Calculations",null,null,null,null,"Constants"]
[null,null,null,null,null,null,null,null,null,null,null,null,null,null,null,null,null,null,null,null,null,8,null,null,"Blade A","Blade B","b","Spar Cap Width","[m]",{"$f":"Spar_Thickness_Calculator!Y110*Spar_Thickness_Calculator!AI117","v":1.0059230999999997},{"$f":"Spar_Thickness_Calculator!Z110*Spar_Thickness_Calculator!AI117","v":0.67061539999999986},"EUD","Modulus of Sparcap","[Pa]",{"$f":"Global_Var!$E$3","v":39800000000}]
[null,null,null,null,null,null,null,null,null,null,null,null,null,null,null,null,null,null,null,null,null,"C","Chord","[m]",{"$f":"L14","v":1.6765384999999997},{"$f":"Y110*Spar_Thickness_Calculator!AI119","v":1.1176923333333331},"t","Airfoil thickness","[m]",{"$f":"Spar_Thickness_Calculator!Y111*Spar_Thickness_Calculator!Y110/100","v":0.35207308499999995},{"$f":"Spar_Thickness_Calculator!Z111*Spar_Thickness_Calculator!Z110/100","v":0.23471538999999994},"ρs","Density of sparcap","[kg/m3]",{"$f":"Global_Var!$E$4","v":1920}]
[null,null,null,null,null,null,null,null,null,null,null,null,null,null,null,null,null,null,null,null,null,"AF%","% thickness of foil","[%]",{"$f":"N14","v":21},{"$f":"Y111","v":21},"ho","Section height outer","[m]",{"$f":"AD110*Spar_Thickness_Calculator!AI118","v":0.29926212224999993},{"$f":"AE110*Spar_Thickness_Calculator!AI118","v":0.19950808149999993},"ϵUD(max)","Max allow design strain Sparcap","[-]",{"$f":"Global_Var!$E$5","v":2.8999999999999998E-3}]
[null,null,null,null,null,null,null,null,null,null,null,null,null,null,null,null,null,null,null,null,null,"M","Moment","[n-m]",{"$f":"M14","v":2189716.612492498},{"$f":"Y112*Spar_Thickness_Calculator!AI120","v":1459811.0749949985},"hc","height of core","[m]",{"$f":"Spar_Thickness_Calculator!AD111-2*Spar_Thickness_Calculator!Y113","v":-0.19189491268339876},{"$f":"Spar_Thickness_Calculator!AE111-2*Spar_Thickness_Calculator!Z113","v":-0.24448916540990967},"σs(allow)","Allowable stress in Sparcap","[Pa]",{"$f":"Global_Var!$E$6","v":115419999.99999999}]
[null,null,null,null,null,null,null,null,null,null,null,null,null,null,null,null,null,null,null,null,null,"t","Spar Cap Thickness","[m]",0.24557851746669934,0.2219986234549548,"c","distance from neutral axis","[m]",{"$f":"Spar_Thickness_Calculator!AD111/2","v":0.14963106112499996},{"$f":"Spar_Thickness_Calculator!AE111/2","v":9.9754040749999967E-2},"EC","Modulus of Core","[Pa]",{"$f":"Global_Var!$E$7","v":3790000}]
[null,null,null,null,null,null,null,null,null,null,null,null,null,null,null,null,null,null,null,null,null,"σs(max)","Max Stress in Sparcap","[Pa]",{"$f":"(Y112*(Spar_Thickness_Calculator!AD111/2)*Spar_Thickness_Calculator!AI109)/(Spar_Thickness_Calculator!AI109*Spar_Thickness_Calculator!AD114+Spar_Thickness_Calculator!AI113*Spar_Thickness_Calculator!AD115)","v":115412054.46945164},{"$f":"(Z112*(Spar_Thickness_Calculator!AE111/2)*Spar_Thickness_Calculator!AI109)/(Spar_Thickness_Calculator!AI109*Spar_Thickness_Calculator!AE114+Spar_Thickness_Calculator!AI113*Spar_Thickness_Calculator!AE115)","v":115534133.21239048},"Is","Moment of inertia Spar","[m4]",{"$f":"(Spar_Thickness_Calculator!AD109/12)*(Spar_Thickness_Calculator!AD111^3-Spar_Thickness_Calculator!AD112^3)","v":2.8390113303166961E-3},{"$f":"(Spar_Thickness_Calculator!AE109/12)*(Spar_Thickness_Calculator!AE111^3-Spar_Thickness_Calculator!AE112^3)","v":1.2605022846193536E-3},"ρc","Density of core","[kg/m3]",{"$f":"Global_Var!$E$8","v":673}]
[null,null,null,null,null,null,null,null,null,null,null,null,null,null,null,null,null,null,null,null,null,"Ww","Wet Weight","[kg]",{"$f":"Spar_Thickness_Calculator!AD119+Spar_Thickness_Calculator!AD118-Spar_Thickness_Calculator!AD121","v":377.45805845167075},{"$f":"Spar_Thickness_Calculator!AE119+Spar_Thickness_Calculator!AE118-Spar_Thickness_Calculator!AE121","v":240.05199310917942},"Ic","Moment of inertia Core","[m4]",{"$f":"(Spar_Thickness_Calculator!AD109/12)*Spar_Thickness_Calculator!AD112^3","v":-5.9234389851577302E-4},{"$f":"(Spar_Thickness_Calculator!AE109/12)*Spar_Thickness_Calculator!AE112^3","v":-8.1671612525127018E-4},"ρw","Density of Seawater","[kg/m3]",{"$f":"Global_Var!$E$9","v":1029}]
[null,null,null,null,null,null,null,null,null,null,null,null,null,null,null,null,null,null,null,null,null,"Ww(rotor)","Wet Weight segment of rotor (+ floats)","[kg]",{"$f":"Y115*2","v":754.9161169033415},{"$f":"Z115*3","v":720.15597932753826},"Vs","Volume of Spar","[m3]",{"$f":"Spar_Thickness_Calculator!AD109*Spar_Thickness_Calculator!Y113*Spar_Thickness_Calculator!AI116*2","v":0.3664324369822009},{"$f":"Spar_Thickness_Calculator!AE109*Spar_Thickness_Calculator!Z113*Spar_Thickness_Calculator!AI116*2","v":0.22083228190707918},"L","Section Length","[m]",{"$f":"Global_Var!$E$10","v":0.74166666666666647}]
[null,null,null,null,null,null,null,null,null,null,null,null,null,null,null,null,null,null,null,null,null,null,null,null,null,null,"Vc","Volume of Core","[m3]",{"$f":"Spar_Thickness_Calculator!AD112*Spar_Thickness_Calculator!AD109*Spar_Thickness_Calculator!AI116","v":-0.143165048035196},{"$f":"Spar_Thickness_Calculator!AE112*Spar_Thickness_Calculator!AE109*Spar_Thickness_Calculator!AI116","v":-0.1216023312639659},null,"Beam width in terms of chord","[-]",{"$f":"Global_Var!$E$11","v":0.6}]
[null,null,null,null,null,null,null,null,null,null,null,null,null,null,null,null,null,null,null,null,null,null,"Spar Strain Limit (Goal Seek to 1)",null,{"$f":"(Y114/$AI$7)","v":0.99993115984622816},{"$f":"(Z114/$AI$7)","v":1.0009888512596647},"Ms","Mass of Spar","[kg]",{"$f":"Spar_Thickness_Calculator!AI110*AD116","v":703.5502790058257},{"$f":"Spar_Thickness_Calculator!AI110*AE116","v":423.99798126159203},null,"Beam height in terms of thickness","[-]",0.85]
[null,null,null,null,null,null,null,null,null,null,null,null,null,null,null,null,null,null,null,null,null,null,null,null,null,null,"Mc","Mass of Core","[kg]",{"$f":"AD117*Spar_Thickness_Calculator!AI114","v":-96.350077327686904},{"$f":"AE117*Spar_Thickness_Calculator!AI114","v":-81.838368940649048},null,"Chord Ratio Blade A/Blade B","[-]",{"$f":"Global_Var!$E$13","v":0.66666666666666663}]
[null,null,null,null,null,null,null,null,null,null,null,null,null,null,null,null,null,null,null,null,null,null,null,null,null,null,"Vd","Displaced Volume","[m3]",{"$f":"Spar_Thickness_Calculator!AD111*Spar_Thickness_Calculator!AD109*Spar_Thickness_Calculator!AI116","v":0.2232673889470049},{"$f":"Spar_Thickness_Calculator!AE111*Spar_Thickness_Calculator!AE109*Spar_Thickness_Calculator!AI116","v":9.9229950643113296E-2},null,"Moment Ratio Blade A/Blade B","[-]",{"$f":"Global_Var!$E$14","v":0.66666666666666663}]
[null,null,null,null,null,null,null,null,null,null,null,null,null,null,null,null,null,null,null,null,null,null,null,null,null,null,"Mw","Mass of disp. Seawater","[kg]",{"$f":"Spar_Thickness_Calculator!AI115*Spar_Thickness_Calculator!AD120","v":229.74214322646804},{"$f":"Spar_Thickness_Calculator!AI115*Spar_Thickness_Calculator!AE120","v":102.10761921176358}]
[]
[null,null,null,null,null,null,null,null,null,null,null,null,null,null,null,null,null,null,null,null,null,"Input/Output",null,null,null,null,"Intermediate Calculations",null,null,null,null,"Constants"]
[null,null,null,null,null,null,null,null,null,null,null,null,null,null,null,null,null,null,null,null,null,9,null,null,"Blade A","Blade B","b","Spar Cap Width","[m]",{"$f":"Spar_Thickness_Calculator!Y125*Spar_Thickness_Calculator!AI132","v":0.85259264999999973},{"$f":"Spar_Thickness_Calculator!Z125*Spar_Thickness_Calculator!AI132","v":0.56839509999999982},"EUD","Modulus of Sparcap","[Pa]",{"$f":"Global_Var!$E$3","v":39800000000}]
[null,null,null,null,null,null,null,null,null,null,null,null,null,null,null,null,null,null,null,null,null,"C","Chord","[m]",{"$f":"L15","v":1.4209877499999997},{"$f":"Y125*Spar_Thickness_Calculator!AI134","v":0.94732516666666644},"t","Airfoil thickness","[m]",{"$f":"Spar_Thickness_Calculator!Y126*Spar_Thickness_Calculator!Y125/100","v":0.27472429833333328},{"$f":"Spar_Thickness_Calculator!Z126*Spar_Thickness_Calculator!Z125/100","v":0.18314953222222219},"ρs","Density of sparcap","[kg/m3]",{"$f":"Global_Var!$E$4","v":1920}]
[null,null,null,null,null,null,null,null,null,null,null,null,null,null,null,null,null,null,null,null,null,"AF%","% thickness of foil","[%]",{"$f":"N15","v":19.333333333333332},{"$f":"Y126","v":19.333333333333332},"ho","Section height outer","[m]",{"$f":"AD125*Spar_Thickness_Calculator!AI133","v":0.23351565358333329},{"$f":"AE125*Spar_Thickness_Calculator!AI133","v":0.15567710238888885},"ϵUD(max)","Max allow design strain Sparcap","[-]",{"$f":"Global_Var!$E$5","v":2.8999999999999998E-3}]
[null,null,null,null,null,null,null,null,null,null,null,null,null,null,null,null,null,null,null,null,null,"M","Moment","[n-m]",{"$f":"M15","v":1062400.1038218741},{"$f":"Y127*Spar_Thickness_Calculator!AI135","v":708266.73588124942},"hc","height of core","[m]",{"$f":"Spar_Thickness_Calculator!AD126-2*Spar_Thickness_Calculator!Y128","v":-0.13377040728547132},{"$f":"Spar_Thickness_Calculator!AE126-2*Spar_Thickness_Calculator!Z128","v":-0.18472186208089816},"σs(allow)","Allowable stress in Sparcap","[Pa]",{"$f":"Global_Var!$E$6","v":115419999.99999999}]
[null,null,null,null,null,null,null,null,null,null,null,null,null,null,null,null,null,null,null,null,null,"t","Spar Cap Thickness","[m]",0.1836430304344023,0.17019948223489351,"c","distance from neutral axis","[m]",{"$f":"Spar_Thickness_Calculator!AD126/2","v":0.11675782679166664},{"$f":"Spar_Thickness_Calculator!AE126/2","v":7.7838551194444425E-2},"EC","Modulus of Core","[Pa]",{"$f":"Global_Var!$E$7","v":3790000}]
[null,null,null,null,null,null,null,null,null,null,null,null,null,null,null,null,null,null,null,null,null,"σs(max)","Max Stress in Sparcap","[Pa]",{"$f":"(Y127*(Spar_Thickness_Calculator!AD126/2)*Spar_Thickness_Calculator!AI124)/(Spar_Thickness_Calculator!AI124*Spar_Thickness_Calculator!AD129+Spar_Thickness_Calculator!AI128*Spar_Thickness_Calculator!AD130)","v":115414385.45554608},{"$f":"(Z127*(Spar_Thickness_Calculator!AE126/2)*Spar_Thickness_Calculator!AI124)/(Spar_Thickness_Calculator!AI124*Spar_Thickness_Calculator!AE129+Spar_Thickness_Calculator!AI128*Spar_Thickness_Calculator!AE130)","v":115520800.58426428},"Is","Moment of inertia Spar","[m4]",{"$f":"(Spar_Thickness_Calculator!AD124/12)*(Spar_Thickness_Calculator!AD126^3-Spar_Thickness_Calculator!AD127^3)","v":1.0747828012885323E-3},{"$f":"(Spar_Thickness_Calculator!AE124/12)*(Spar_Thickness_Calculator!AE126^3-Spar_Thickness_Calculator!AE127^3)","v":4.7726245474678531E-4},"ρc","Density of core","[kg/m3]",{"$f":"Global_Var!$E$8","v":673}]
[null,null,null,null,null,null,null,null,null,null,null,null,null,null,null,null,null,null,null,null,null,"Ww","Wet Weight","[kg]",{"$f":"Spar_Thickness_Calculator!AD134+Spar_Thickness_Calculator!AD133-Spar_Thickness_Calculator!AD136","v":237.04774783134633},{"$f":"Spar_Thickness_Calculator!AE134+Spar_Thickness_Calculator!AE133-Spar_Thickness_Calculator!AE136","v":155.57933035571403},"Ic","Moment of inertia Core","[m4]",{"$f":"(Spar_Thickness_Calculator!AD124/12)*Spar_Thickness_Calculator!AD127^3","v":-1.7007500264274469E-4},{"$f":"(Spar_Thickness_Calculator!AE124/12)*Spar_Thickness_Calculator!AE127^3","v":-2.9855474143403719E-4},"ρw","Density of Seawater","[kg/m3]",{"$f":"Global_Var!$E$9","v":1029}]
[null,null,null,null,null,null,null,null,null,null,null,null,null,null,null,null,null,null,null,null,null,"Ww(rotor)","Wet Weight segment of rotor (+ floats)","[kg]",{"$f":"Y130*2","v":474.09549566269266},{"$f":"Z130*3","v":466.7379910671421},"Vs","Volume of Spar","[m3]",{"$f":"Spar_Thickness_Calculator!AD124*Spar_Thickness_Calculator!Y128*Spar_Thickness_Calculator!AI131*2","v":0.2322495019919448},{"$f":"Spar_Thickness_Calculator!AE124*Spar_Thickness_Calculator!Z128*Spar_Thickness_Calculator!AI131*2","v":0.14349848505852819},"L","Section Length","[m]",{"$f":"Global_Var!$E$10","v":0.74166666666666647}]
[null,null,null,null,null,null,null,null,null,null,null,null,null,null,null,null,null,null,null,null,null,null,null,null,null,null,"Vc","Volume of Core","[m3]",{"$f":"Spar_Thickness_Calculator!AD127*Spar_Thickness_Calculator!AD124*Spar_Thickness_Calculator!AI131","v":-8.45883189789986E-2},{"$f":"Spar_Thickness_Calculator!AE127*Spar_Thickness_Calculator!AE124*Spar_Thickness_Calculator!AI131","v":-7.7871292608329881E-2},null,"Beam width in terms of chord","[-]",{"$f":"Global_Var!$E$11","v":0.6}]
[null,null,null,null,null,null,null,null,null,null,null,null,null,null,null,null,null,null,null,null,null,null,"Spar Strain Limit (Goal Seek to 1)",null,{"$f":"(Y129/$AI$7)","v":0.99995135553236958},{"$f":"(Z129/$AI$7)","v":1.0008733372402034},"Ms","Mass of Spar","[kg]",{"$f":"Spar_Thickness_Calculator!AI125*AD131","v":445.91904382453401},{"$f":"Spar_Thickness_Calculator!AI125*AE131","v":275.51709131237413},null,"Beam height in terms of thickness","[-]",0.85]
[null,null,null,null,null,null,null,null,null,null,null,null,null,null,null,null,null,null,null,null,null,null,null,null,null,null,"Mc","Mass of Core","[kg]",{"$f":"AD132*Spar_Thickness_Calculator!AI129","v":-56.927938672866055},{"$f":"AE132*Spar_Thickness_Calculator!AI129","v":-52.407379925406012},null,"Chord Ratio Blade A/Blade B","[-]",{"$f":"Global_Var!$E$13","v":0.66666666666666663}]
[null,null,null,null,null,null,null,null,null,null,null,null,null,null,null,null,null,null,null,null,null,null,null,null,null,null,"Vd","Displaced Volume","[m3]",{"$f":"Spar_Thickness_Calculator!AD126*Spar_Thickness_Calculator!AD124*Spar_Thickness_Calculator!AI131","v":0.1476611830129462},{"$f":"Spar_Thickness_Calculator!AE126*Spar_Thickness_Calculator!AE124*Spar_Thickness_Calculator!AI131","v":6.562719245019831E-2},null,"Moment Ratio Blade A/Blade B","[-]",{"$f":"Global_Var!$E$14","v":0.66666666666666663}]
[null,null,null,null,null,null,null,null,null,null,null,null,null,null,null,null,null,null,null,null,null,null,null,null,null,null,"Mw","Mass of disp. Seawater","[kg]",{"$f":"Spar_Thickness_Calculator!AI130*Spar_Thickness_Calculator!AD135","v":151.94335732032164},{"$f":"Spar_Thickness_Calculator!AI130*Spar_Thickness_Calculator!AE135","v":67.530381031254066}]
[]
[null,null,null,null,null,null,null,null,null,null,null,null,null,null,null,null,null,null,null,null,null,"Input/Output",null,null,null,null,"Intermediate Calculations",null,null,null,null,"Constants"]
[null,null,null,null,null,null,null,null,null,null,null,null,null,null,null,null,null,null,null,null,null,10,null,null,"Blade A","Blade B","b","Spar Cap Width","[m]",{"$f":"Spar_Thickness_Calculator!Y140*Spar_Thickness_Calculator!AI147","v":0.69085380000000018},{"$f":"Spar_Thickness_Calculator!Z140*Spar_Thickness_Calculator!AI147","v":0.46056920000000012},"EUD","Modulus of Sparcap","[Pa]",{"$f":"Global_Var!$E$3","v":39800000000}]
[null,null,null,null,null,null,null,null,null,null,null,null,null,null,null,null,null,null,null,null,null,"C","Chord","[m]",{"$f":"L16","v":1.1514230000000003},{"$f":"Y140*Spar_Thickness_Calculator!AI149","v":0.76761533333333354},"t","Airfoil thickness","[m]",{"$f":"Spar_Thickness_Calculator!Y141*Spar_Thickness_Calculator!Y140/100","v":0.20341806333333343},{"$f":"Spar_Thickness_Calculator!Z141*Spar_Thickness_Calculator!Z140/100","v":0.13561204222222226},"ρs","Density of sparcap","[kg/m3]",{"$f":"Global_Var!$E$4","v":1920}]
[null,null,null,null,null,null,null,null,null,null,null,null,null,null,null,null,null,null,null,null,null,"AF%","% thickness of foil","[%]",{"$f":"N16","v":17.666666666666668},{"$f":"Y141","v":17.666666666666668},"ho","Section height outer","[m]",{"$f":"AD140*Spar_Thickness_Calculator!AI148","v":0.17290535383333341},{"$f":"AE140*Spar_Thickness_Calculator!AI148","v":0.11527023588888892},"ϵUD(max)","Max allow design strain Sparcap","[-]",{"$f":"Global_Var!$E$5","v":2.8999999999999998E-3}]
[null,null,null,null,null,null,null,null,null,null,null,null,null,null,null,null,null,null,null,null,null,"M","Moment","[n-m]",{"$f":"M16","v":324240.04999749974},{"$f":"Y142*Spar_Thickness_Calculator!AI150","v":216160.03333166649},"hc","height of core","[m]",{"$f":"Spar_Thickness_Calculator!AD141-2*Spar_Thickness_Calculator!Y143","v":9.833900590219484E-2},{"$f":"Spar_Thickness_Calculator!AE141-2*Spar_Thickness_Calculator!Z143","v":-0.10858159148860862},"σs(allow)","Allowable stress in Sparcap","[Pa]",{"$f":"Global_Var!$E$6","v":115419999.99999999}]
[null,null,null,null,null,null,null,null,null,null,null,null,null,null,null,null,null,null,null,null,null,"t","Spar Cap Thickness","[m]",3.7283173965569287E-2,0.11192591368874877,"c","distance from neutral axis","[m]",{"$f":"Spar_Thickness_Calculator!AD141/2","v":8.6452676916666707E-2},{"$f":"Spar_Thickness_Calculator!AE141/2","v":5.763511794444446E-2},"EC","Modulus of Core","[Pa]",{"$f":"Global_Var!$E$7","v":3790000}]
[null,null,null,null,null,null,null,null,null,null,null,null,null,null,null,null,null,null,null,null,null,"σs(max)","Max Stress in Sparcap","[Pa]",{"$f":"(Y142*(Spar_Thickness_Calculator!AD141/2)*Spar_Thickness_Calculator!AI139)/(Spar_Thickness_Calculator!AI139*Spar_Thickness_Calculator!AD144+Spar_Thickness_Calculator!AI143*Spar_Thickness_Calculator!AD145)","v":115425184.84331894},{"$f":"(Z142*(Spar_Thickness_Calculator!AE141/2)*Spar_Thickness_Calculator!AI139)/(Spar_Thickness_Calculator!AI139*Spar_Thickness_Calculator!AE144+Spar_Thickness_Calculator!AI143*Spar_Thickness_Calculator!AE145)","v":115447402.6342967},"Is","Moment of inertia Spar","[m4]",{"$f":"(Spar_Thickness_Calculator!AD139/12)*(Spar_Thickness_Calculator!AD141^3-Spar_Thickness_Calculator!AD142^3)","v":2.4284837440034177E-4},{"$f":"(Spar_Thickness_Calculator!AE139/12)*(Spar_Thickness_Calculator!AE141^3-Spar_Thickness_Calculator!AE142^3)","v":1.0791883482717693E-4},"ρc","Density of core","[kg/m3]",{"$f":"Global_Var!$E$8","v":673}]
[null,null,null,null,null,null,null,null,null,null,null,null,null,null,null,null,null,null,null,null,null,"Ww","Wet Weight","[kg]",{"$f":"Spar_Thickness_Calculator!AD149+Spar_Thickness_Calculator!AD148-Spar_Thickness_Calculator!AD151","v":16.104169160784437},{"$f":"Spar_Thickness_Calculator!AE149+Spar_Thickness_Calculator!AE148-Spar_Thickness_Calculator!AE151","v":81.334698416294799},"Ic","Moment of inertia Core","[m4]",{"$f":"(Spar_Thickness_Calculator!AD139/12)*Spar_Thickness_Calculator!AD142^3","v":5.4749775906278145E-5},{"$f":"(Spar_Thickness_Calculator!AE139/12)*Spar_Thickness_Calculator!AE142^3","v":-4.9134015013523662E-5},"ρw","Density of Seawater","[kg/m3]",{"$f":"Global_Var!$E$9","v":1029}]
[null,null,null,null,null,null,null,null,null,null,null,null,null,null,null,null,null,null,null,null,null,"Ww(rotor)","Wet Weight segment of rotor (+ floats)","[kg]",{"$f":"Y145*2","v":32.208338321568874},{"$f":"Z145*3","v":244.0040952488844},"Vs","Volume of Spar","[m3]",{"$f":"Spar_Thickness_Calculator!AD139*Spar_Thickness_Calculator!Y143*Spar_Thickness_Calculator!AI146*2","v":3.8206546575092343E-2},{"$f":"Spar_Thickness_Calculator!AE139*Spar_Thickness_Calculator!Z143*Spar_Thickness_Calculator!AI146*2","v":7.6465282314895841E-2},"L","Section Length","[m]",{"$f":"Global_Var!$E$10","v":0.74166666666666647}]
[null,null,null,null,null,null,null,null,null,null,null,null,null,null,null,null,null,null,null,null,null,null,null,null,null,null,"Vc","Volume of Core","[m3]",{"$f":"Spar_Thickness_Calculator!AD142*Spar_Thickness_Calculator!AD139*Spar_Thickness_Calculator!AI146","v":5.0387257970850682E-2},{"$f":"Spar_Thickness_Calculator!AE142*Spar_Thickness_Calculator!AE139*Spar_Thickness_Calculator!AI146","v":-3.7090258072254502E-2},null,"Beam width in terms of chord","[-]",{"$f":"Global_Var!$E$11","v":0.6}]
[null,null,null,null,null,null,null,null,null,null,null,null,null,null,null,null,null,null,null,null,null,null,"Spar Strain Limit (Goal Seek to 1)",null,{"$f":"(Y144/$AI$7)","v":1.0000449215328275},{"$f":"(Z144/$AI$7)","v":1.0002374166894534},"Ms","Mass of Spar","[kg]",{"$f":"Spar_Thickness_Calculator!AI140*AD146","v":73.356569424177295},{"$f":"Spar_Thickness_Calculator!AI140*AE146","v":146.81334204460001},null,"Beam height in terms of thickness","[-]",0.85]
[null,null,null,null,null,null,null,null,null,null,null,null,null,null,null,null,null,null,null,null,null,null,null,null,null,null,"Mc","Mass of Core","[kg]",{"$f":"AD147*Spar_Thickness_Calculator!AI144","v":33.910624614382506},{"$f":"AE147*Spar_Thickness_Calculator!AI144","v":-24.961743682627279},null,"Chord Ratio Blade A/Blade B","[-]",{"$f":"Global_Var!$E$13","v":0.66666666666666663}]
[null,null,null,null,null,null,null,null,null,null,null,null,null,null,null,null,null,null,null,null,null,null,null,null,null,null,"Vd","Displaced Volume","[m3]",{"$f":"Spar_Thickness_Calculator!AD141*Spar_Thickness_Calculator!AD139*Spar_Thickness_Calculator!AI146","v":8.8593804545943025E-2},{"$f":"Spar_Thickness_Calculator!AE141*Spar_Thickness_Calculator!AE139*Spar_Thickness_Calculator!AI146","v":3.9375024242641332E-2},null,"Moment Ratio Blade A/Blade B","[-]",{"$f":"Global_Var!$E$14","v":0.66666666666666663}]
[null,null,null,null,null,null,null,null,null,null,null,null,null,null,null,null,null,null,null,null,null,null,null,null,null,null,"Mw","Mass of disp. Seawater","[kg]",{"$f":"Spar_Thickness_Calculator!AI145*Spar_Thickness_Calculator!AD150","v":91.163024877775371},{"$f":"Spar_Thickness_Calculator!AI145*Spar_Thickness_Calculator!AE150","v":40.516899945677928}]
[]
[null,null,null,null,null,null,null,null,null,null,null,null,null,null,null,null,null,null,null,null,null,"Input/Output",null,null,null,null,"Intermediate Calculations",null,null,null,null,"Constants"]
[null,null,null,null,null,null,null,null,null,null,null,null,null,null,null,null,null,null,null,null,null,11,null,null,"Blade A","Blade B","b","Spar Cap Width","[m]",{"$f":"Spar_Thickness_Calculator!Y155*Spar_Thickness_Calculator!AI162","v":0.43266405000000002},{"$f":"Spar_Thickness_Calculator!Z155*Spar_Thickness_Calculator!AI162","v":0.2884427},"EUD","Modulus of Sparcap","[Pa]",{"$f":"Global_Var!$E$3","v":39800000000}]
[null,null,null,null,null,null,null,null,null,null,null,null,null,null,null,null,null,null,null,null,null,"C","Chord","[m]",{"$f":"L17","v":0.72110675000000002},{"$f":"Y155*Spar_Thickness_Calculator!AI164","v":0.48073783333333331},"t","Airfoil thickness","[m]",{"$f":"Spar_Thickness_Calculator!Y156*Spar_Thickness_Calculator!Y155/100","v":0.11537708000000001},{"$f":"Spar_Thickness_Calculator!Z156*Spar_Thickness_Calculator!Z155/100","v":7.6918053333333333E-2},"ρs","Density of sparcap","[kg/m3]",{"$f":"Global_Var!$E$4","v":1920}]
[null,null,null,null,null,null,null,null,null,null,null,null,null,null,null,null,null,null,null,null,null,"AF%","% thickness of foil","[%]",{"$f":"N17","v":16},{"$f":"Y156","v":16},"ho","Section height outer","[m]",{"$f":"AD155*Spar_Thickness_Calculator!AI163","v":9.8070518000000009E-2},{"$f":"AE155*Spar_Thickness_Calculator!AI163","v":6.5380345333333326E-2},"ϵUD(max)","Max allow design strain Sparcap","[-]",{"$f":"Global_Var!$E$5","v":2.8999999999999998E-3}]
[null,null,null,null,null,null,null,null,null,null,null,null,null,null,null,null,null,null,null,null,null,"M","Moment","[n-m]",{"$f":"M17","v":0},{"$f":"Y157*Spar_Thickness_Calculator!AI165","v":0},"hc","height of core","[m]",{"$f":"Spar_Thickness_Calculator!AD156-2*Spar_Thickness_Calculator!Y158","v":6.9695795132092101E+70},{"$f":"Spar_Thickness_Calculator!AE156-2*Spar_Thickness_Calculator!Z158","v":3.987161047429769E+71},"σs(allow)","Allowable stress in Sparcap","[Pa]",{"$f":"Global_Var!$E$6","v":115419999.99999999}]
[null,null,null,null,null,null,null,null,null,null,null,null,null,null,null,null,null,null,null,null,null,"t","Spar Cap Thickness","[m]",-3.484789756604605E+70,-1.9935805237148845E+71,"c","distance from neutral axis","[m]",{"$f":"Spar_Thickness_Calculator!AD156/2","v":4.9035259000000005E-2},{"$f":"Spar_Thickness_Calculator!AE156/2","v":3.2690172666666663E-2},"EC","Modulus of Core","[Pa]",{"$f":"Global_Var!$E$7","v":3790000}]
[null,null,null,null,null,null,null,null,null,null,null,null,null,null,null,null,null,null,null,null,null,"σs(max)","Max Stress in Sparcap","[Pa]",{"$f":"(Y157*(Spar_Thickness_Calculator!AD156/2)*Spar_Thickness_Calculator!AI154)/(Spar_Thickness_Calculator!AI154*Spar_Thickness_Calculator!AD159+Spar_Thickness_Calculator!AI158*Spar_Thickness_Calculator!AD160)","v":0},{"$f":"(Z157*(Spar_Thickness_Calculator!AE156/2)*Spar_Thickness_Calculator!AI154)/(Spar_Thickness_Calculator!AI154*Spar_Thickness_Calculator!AE159+Spar_Thickness_Calculator!AI158*Spar_Thickness_Calculator!AE160)","v":0},"Is","Moment of inertia Spar","[m4]",{"$f":"(Spar_Thickness_Calculator!AD154/12)*(Spar_Thickness_Calculator!AD156^3-Spar_Thickness_Calculator!AD157^3)","v":-1.2206447754877663E+211},{"$f":"(Spar_Thickness_Calculator!AE154/12)*(Spar_Thickness_Calculator!AE156^3-Spar_Thickness_Calculator!AE157^3)","v":-1.5235953537385094E+213},"ρc","Density of core","[kg/m3]",{"$f":"Global_Var!$E$8","v":673}]
[null,null,null,null,null,null,null,null,null,null,null,null,null,null,null,null,null,null,null,null,null,"Ww","Wet Weight","[kg]",{"$f":"Spar_Thickness_Calculator!AD164+Spar_Thickness_Calculator!AD163-Spar_Thickness_Calculator!AD166","v":-2.7888978176377764E+73},{"$f":"Spar_Thickness_Calculator!AE164+Spar_Thickness_Calculator!AE163-Spar_Thickness_Calculator!AE166","v":-1.063649509287447E+74},"Ic","Moment of inertia Core","[m4]",{"$f":"(Spar_Thickness_Calculator!AD154/12)*Spar_Thickness_Calculator!AD157^3","v":1.2206447754877663E+211},{"$f":"(Spar_Thickness_Calculator!AE154/12)*Spar_Thickness_Calculator!AE157^3","v":1.5235953537385094E+213},"ρw","Density of Seawater","[kg/m3]",{"$f":"Global_Var!$E$9","v":1029}]
[null,null,null,null,null,null,null,null,null,null,null,null,null,null,null,null,null,null,null,null,null,"Ww(rotor)","Wet Weight segment of rotor (+ floats)","[kg]",{"$f":"Y160*2","v":-5.5777956352755527E+73},{"$f":"Z160*3","v":-3.1909485278623413E+74},"Vs","Volume of Spar","[m3]",{"$f":"Spar_Thickness_Calculator!AD154*Spar_Thickness_Calculator!Y158*Spar_Thickness_Calculator!AI161*2","v":-2.2364858200784092E+70},{"$f":"Spar_Thickness_Calculator!AE154*Spar_Thickness_Calculator!Z158*Spar_Thickness_Calculator!AI161*2","v":-8.5296672757614046E+70},"L","Section Length","[m]",{"$f":"Global_Var!$E$10","v":0.74166666666666647}]
[null,null,null,null,null,null,null,null,null,null,null,null,null,null,null,null,null,null,null,null,null,null,null,null,null,null,"Vc","Volume of Core","[m3]",{"$f":"Spar_Thickness_Calculator!AD157*Spar_Thickness_Calculator!AD154*Spar_Thickness_Calculator!AI161","v":2.2364858200784092E+70},{"$f":"Spar_Thickness_Calculator!AE157*Spar_Thickness_Calculator!AE154*Spar_Thickness_Calculator!AI161","v":8.5296672757614046E+70},null,"Beam width in terms of chord","[-]",{"$f":"Global_Var!$E$11","v":0.6}]
[null,null,null,null,null,null,null,null,null,null,null,null,null,null,null,null,null,null,null,null,null,null,"Spar Strain Limit (Goal Seek to 1)",null,{"$f":"(Y159/$AI$7)","v":0},{"$f":"(Z159/$AI$7)","v":0},"Ms","Mass of Spar","[kg]",{"$f":"Spar_Thickness_Calculator!AI155*AD161","v":-4.2940527745505456E+73},{"$f":"Spar_Thickness_Calculator!AI155*AE161","v":-1.6376961169461896E+74},null,"Beam height in terms of thickness","[-]",0.85]
[null,null,null,null,null,null,null,null,null,null,null,null,null,null,null,null,null,null,null,null,null,null,null,null,null,null,"Mc","Mass of Core","[kg]",{"$f":"AD162*Spar_Thickness_Calculator!AI159","v":1.5051549569127693E+73},{"$f":"AE162*Spar_Thickness_Calculator!AI159","v":5.7404660765874256E+73},null,"Chord Ratio Blade A/Blade B","[-]",{"$f":"Global_Var!$E$13","v":0.66666666666666663}]
[null,null,null,null,null,null,null,null,null,null,null,null,null,null,null,null,null,null,null,null,null,null,null,null,null,null,"Vd","Displaced Volume","[m3]",{"$f":"Spar_Thickness_Calculator!AD156*Spar_Thickness_Calculator!AD154*Spar_Thickness_Calculator!AI161","v":3.1470094065079439E-2},{"$f":"Spar_Thickness_Calculator!AE156*Spar_Thickness_Calculator!AE154*Spar_Thickness_Calculator!AI161","v":1.3986708473368636E-2},null,"Moment Ratio Blade A/Blade B","[-]",{"$f":"Global_Var!$E$14","v":0.66666666666666663}]
[null,null,null,null,null,null,null,null,null,null,null,null,null,null,null,null,null,null,null,null,null,null,null,null,null,null,"Mw","Mass of disp. Seawater","[kg]",{"$f":"Spar_Thickness_Calculator!AI160*Spar_Thickness_Calculator!AD165","v":32.382726792966743},{"$f":"Spar_Thickness_Calculator!AI160*Spar_Thickness_Calculator!AE165","v":14.392323019096327}]
[]
[null,null,null,null,null,null,null,null,null,null,null,null,null,null,null,null,null,null,null,null,null,"Input/Output",null,null,null,null,"Intermediate Calculations",null,null,null,null,"Constants"]
[null,null,null,null,null,null,null,null,null,null,null,null,null,null,null,null,null,null,null,null,null,12,null,null,"Blade A","Blade B","b","Spar Cap Width","[m]",{"$f":"Spar_Thickness_Calculator!Y170*Spar_Thickness_Calculator!AI177","v":0},{"$f":"Spar_Thickness_Calculator!Z170*Spar_Thickness_Calculator!AI177","v":0},"EUD","Modulus of Sparcap","[Pa]",{"$f":"Global_Var!$E$3","v":39800000000}]
[null,null,null,null,null,null,null,null,null,null,null,null,null,null,null,null,null,null,null,null,null,"C","Chord","[m]",{"$f":"L18","v":0},{"$f":"Y170*Spar_Thickness_Calculator!AI179","v":0},"t","Airfoil thickness","[m]",{"$f":"Spar_Thickness_Calculator!Y171*Spar_Thickness_Calculator!Y170/100","v":0},{"$f":"Spar_Thickness_Calculator!Z171*Spar_Thickness_Calculator!Z170/100","v":0},"ρs","Density of sparcap","[kg/m3]",{"$f":"Global_Var!$E$4","v":1920}]
[null,null,null,null,null,null,null,null,null,null,null,null,null,null,null,null,null,null,null,null,null,"AF%","% thickness of foil","[%]",{"$f":"N18","v":0},{"$f":"Y171","v":0},"ho","Section height outer","[m]",{"$f":"AD170*Spar_Thickness_Calculator!AI178","v":0},{"$f":"AE170*Spar_Thickness_Calculator!AI178","v":0},"ϵUD(max)","Max allow design strain Sparcap","[-]",{"$f":"Global_Var!$E$5","v":2.8999999999999998E-3}]
[null,null,null,null,null,null,null,null,null,null,null,null,null,null,null,null,null,null,null,null,null,"M","Moment","[n-m]",{"$f":"M18","v":0},{"$f":"Y172*Spar_Thickness_Calculator!AI180","v":0},"hc","height of core","[m]",{"$f":"Spar_Thickness_Calculator!AD171-2*Spar_Thickness_Calculator!Y173","v":-0.10068593951766303},{"$f":"Spar_Thickness_Calculator!AE171-2*Spar_Thickness_Calculator!Z173","v":-0.57499897790586052},"σs(allow)","Allowable stress in Sparcap","[Pa]",{"$f":"Global_Var!$E$6","v":115419999.99999999}]
[null,null,null,null,null,null,null,null,null,null,null,null,null,null,null,null,null,null,null,null,null,"t","Spar Cap Thickness","[m]",5.0342969758831513E-2,0.28749948895293026,"c","distance from neutral axis","[m]",{"$f":"Spar_Thickness_Calculator!AD171/2","v":0},{"$f":"Spar_Thickness_Calculator!AE171/2","v":0},"EC","Modulus of Core","[Pa]",{"$f":"Global_Var!$E$7","v":3790000}]
[null,null,null,null,null,null,null,null,null,null,null,null,null,null,null,null,null,null,null,null,null,"σs(max)","Max Stress in Sparcap","[Pa]",{"$f":"(Y172*(Spar_Thickness_Calculator!AD171/2)*Spar_Thickness_Calculator!AI169)/(Spar_Thickness_Calculator!AI169*Spar_Thickness_Calculator!AD174+Spar_Thickness_Calculator!AI173*Spar_Thickness_Calculator!AD175)","v":{"$error":"#DIV/0!"}},{"$f":"(Z172*(Spar_Thickness_Calculator!AE171/2)*Spar_Thickness_Calculator!AI169)/(Spar_Thickness_Calculator!AI169*Spar_Thickness_Calculator!AE174+Spar_Thickness_Calculator!AI173*Spar_Thickness_Calculator!AE175)","v":{"$error":"#DIV/0!"}},"Is","Moment of inertia Spar","[m4]",{"$f":"(Spar_Thickness_Calculator!AD169/12)*(Spar_Thickness_Calculator!AD171^3-Spar_Thickness_Calculator!AD172^3)","v":0},{"$f":"(Spar_Thickness_Calculator!AE169/12)*(Spar_Thickness_Calculator!AE171^3-Spar_Thickness_Calculator!AE172^3)","v":0},"ρc","Density of core","[kg/m3]",{"$f":"Global_Var!$E$8","v":673}]
[null,null,null,null,null,null,null,null,null,null,null,null,null,null,null,null,null,null,null,null,null,"Ww","Wet Weight","[kg]",{"$f":"Spar_Thickness_Calculator!AD179+Spar_Thickness_Calculator!AD178-Spar_Thickness_Calculator!AD181","v":0},{"$f":"Spar_Thickness_Calculator!AE179+Spar_Thickness_Calculator!AE178-Spar_Thickness_Calculator!AE181","v":0},"Ic","Moment of inertia Core","[m4]",{"$f":"(Spar_Thickness_Calculator!AD169/12)*Spar_Thickness_Calculator!AD172^3","v":0},{"$f":"(Spar_Thickness_Calculator!AE169/12)*Spar_Thickness_Calculator!AE172^3","v":0},"ρw","Density of Seawater","[kg/m3]",{"$f":"Global_Var!$E$9","v":1029}]
[null,null,null,null,null,null,null,null,null,null,null,null,null,null,null,null,null,null,null,null,null,"Ww(rotor)","Wet Weight segment of rotor (+ floats)","[kg]",{"$f":"Y175*2","v":0},{"$f":"Z175*3","v":0},"Vs","Volume of Spar","[m3]",{"$f":"Spar_Thickness_Calculator!AD169*Spar_Thickness_Calculator!Y173*Spar_Thickness_Calculator!AI176*2","v":0},{"$f":"Spar_Thickness_Calculator!AE169*Spar_Thickness_Calculator!Z173*Spar_Thickness_Calculator!AI176*2","v":0},"L","Section Length","[m]",{"$f":"Global_Var!$E$10","v":0.74166666666666647}]
[null,null,null,null,null,null,null,null,null,null,null,null,null,null,null,null,null,null,null,null,null,null,null,null,null,null,"Vc","Volume of Core","[m3]",{"$f":"Spar_Thickness_Calculator!AD172*Spar_Thickness_Calculator!AD169*Spar_Thickness_Calculator!AI176","v":0},{"$f":"Spar_Thickness_Calculator!AE172*Spar_Thickness_Calculator!AE169*Spar_Thickness_Calculator!AI176","v":0},null,"Beam width in terms of chord","[-]",{"$f":"Global_Var!$E$11","v":0.6}]
[null,null,null,null,null,null,null,null,null,null,null,null,null,null,null,null,null,null,null,null,null,null,"Spar Strain Limit (Goal Seek to 1)",null,{"$f":"(Y174/$AI$7)","v":{"$error":"#DIV/0!"}},{"$f":"(Z174/$AI$7)","v":{"$error":"#DIV/0!"}},"Ms","Mass of Spar","[kg]",{"$f":"Spar_Thickness_Calculator!AI170*AD176","v":0},{"$f":"Spar_Thickness_Calculator!AI170*AE176","v":0},null,"Beam height in terms of thickness","[-]",0.85]
[null,null,null,null,null,null,null,null,null,null,null,null,null,null,null,null,null,null,null,null,null,null,null,null,null,null,"Mc","Mass of Core","[kg]",{"$f":"AD177*Spar_Thickness_Calculator!AI174","v":0},{"$f":"AE177*Spar_Thickness_Calculator!AI174","v":0},null,"Chord Ratio Blade A/Blade B","[-]",{"$f":"Global_Var!$E$13","v":0.66666666666666663}]
[null,null,null,null,null,null,null,null,null,null,null,null,null,null,null,null,null,null,null,null,null,null,null,null,null,null,"Vd","Displaced Volume","[m3]",{"$f":"Spar_Thickness_Calculator!AD171*Spar_Thickness_Calculator!AD169*Spar_Thickness_Calculator!AI176","v":0},{"$f":"Spar_Thickness_Calculator!AE171*Spar_Thickness_Calculator!AE169*Spar_Thickness_Calculator!AI176","v":0},null,"Moment Ratio Blade A/Blade B","[-]",{"$f":"Global_Var!$E$14","v":0.66666666666666663}]
[null,null,null,null,null,null,null,null,null,null,null,null,null,null,null,null,null,null,null,null,null,null,null,null,null,null,"Mw","Mass of disp. Seawater","[kg]",{"$f":"Spar_Thickness_Calculator!AI175*Spar_Thickness_Calculator!AD180","v":0},{"$f":"Spar_Thickness_Calculator!AI175*Spar_Thickness_Calculator!AE180","v":0}]
[]
[null,null,null,null,null,null,null,null,null,null,null,null,null,null,null,null,null,null,null,null,null,"Input/Output",null,null,null,null,"Intermediate Calculations",null,null,null,null,"Constants"]
[null,null,null,null,null,null,null,null,null,null,null,null,null,null,null,null,null,null,null,null,null,13,null,null,"Blade A","Blade B","b","Spar Cap Width","[m]",{"$f":"Spar_Thickness_Calculator!Y185*Spar_Thickness_Calculator!AI192","v":0},{"$f":"Spar_Thickness_Calculator!Z185*Spar_Thickness_Calculator!AI192","v":0},"EUD","Modulus of Sparcap","[Pa]",{"$f":"Global_Var!$E$3","v":39800000000}]
[null,null,null,null,null,null,null,null,null,null,null,null,null,null,null,null,null,null,null,null,null,"C","Chord","[m]",{"$f":"L19","v":0},{"$f":"Y185*Spar_Thickness_Calculator!AI194","v":0},"t","Airfoil thickness","[m]",{"$f":"Spar_Thickness_Calculator!Y186*Spar_Thickness_Calculator!Y185/100","v":0},{"$f":"Spar_Thickness_Calculator!Z186*Spar_Thickness_Calculator!Z185/100","v":0},"ρs","Density of sparcap","[kg/m3]",{"$f":"Global_Var!$E$4","v":1920}]
[null,null,null,null,null,null,null,null,null,null,null,null,null,null,null,null,null,null,null,null,null,"AF%","% thickness of foil","[%]",{"$f":"N19","v":0},{"$f":"Y186","v":0},"ho","Section height outer","[m]",{"$f":"AD185*Spar_Thickness_Calculator!AI193","v":0},{"$f":"AE185*Spar_Thickness_Calculator!AI193","v":0},"ϵUD(max)","Max allow design strain Sparcap","[-]",{"$f":"Global_Var!$E$5","v":2.8999999999999998E-3}]
[null,null,null,null,null,null,null,null,null,null,null,null,null,null,null,null,null,null,null,null,null,"M","Moment","[n-m]",{"$f":"M19","v":0},{"$f":"Y187*Spar_Thickness_Calculator!AI195","v":0},"hc","height of core","[m]",{"$f":"Spar_Thickness_Calculator!AD186-2*Spar_Thickness_Calculator!Y188","v":-9.8769351979979991E-2},{"$f":"Spar_Thickness_Calculator!AE186-2*Spar_Thickness_Calculator!Z188","v":-0.56152625653265986},"σs(allow)","Allowable stress in Sparcap","[Pa]",{"$f":"Global_Var!$E$6","v":115419999.99999999}]
[null,null,null,null,null,null,null,null,null,null,null,null,null,null,null,null,null,null,null,null,null,"t","Spar Cap Thickness","[m]",4.9384675989989996E-2,0.28076312826632993,"c","distance from neutral axis","[m]",{"$f":"Spar_Thickness_Calculator!AD186/2","v":0},{"$f":"Spar_Thickness_Calculator!AE186/2","v":0},"EC","Modulus of Core","[Pa]",{"$f":"Global_Var!$E$7","v":3790000}]
[null,null,null,null,null,null,null,null,null,null,null,null,null,null,null,null,null,null,null,null,null,"σs(max)","Max Stress in Sparcap","[Pa]",{"$f":"(Y187*(Spar_Thickness_Calculator!AD186/2)*Spar_Thickness_Calculator!AI184)/(Spar_Thickness_Calculator!AI184*Spar_Thickness_Calculator!AD189+Spar_Thickness_Calculator!AI188*Spar_Thickness_Calculator!AD190)","v":{"$error":"#DIV/0!"}},{"$f":"(Z187*(Spar_Thickness_Calculator!AE186/2)*Spar_Thickness_Calculator!AI184)/(Spar_Thickness_Calculator!AI184*Spar_Thickness_Calculator!AE189+Spar_Thickness_Calculator!AI188*Spar_Thickness_Calculator!AE190)","v":{"$error":"#DIV/0!"}},"Is","Moment of inertia Spar","[m4]",{"$f":"(Spar_Thickness_Calculator!AD184/12)*(Spar_Thickness_Calculator!AD186^3-Spar_Thickness_Calculator!AD187^3)","v":0},{"$f":"(Spar_Thickness_Calculator!AE184/12)*(Spar_Thickness_Calculator!AE186^3-Spar_Thickness_Calculator!AE187^3)","v":0},"ρc","Density of core","[kg/m3]",{"$f":"Global_Var!$E$8","v":673}]
[null,null,null,null,null,null,null,null,null,null,null,null,null,null,null,null,null,null,null,null,null,"Ww","Wet Weight","[kg]",{"$f":"Spar_Thickness_Calculator!AD194+Spar_Thickness_Calculator!AD193-Spar_Thickness_Calculator!AD196","v":0},{"$f":"Spar_Thickness_Calculator!AE194+Spar_Thickness_Calculator!AE193-Spar_Thickness_Calculator!AE196","v":0},"Ic","Moment of inertia Core","[m4]",{"$f":"(Spar_Thickness_Calculator!AD184/12)*Spar_Thickness_Calculator!AD187^3","v":0},{"$f":"(Spar_Thickness_Calculator!AE184/12)*Spar_Thickness_Calculator!AE187^3","v":0},"ρw","Density of Seawater","[kg/m3]",{"$f":"Global_Var!$E$9","v":1029}]
[null,null,null,null,null,null,null,null,null,null,null,null,null,null,null,null,null,null,null,null,null,"Ww(rotor)","Wet Weight segment of rotor (+ floats)","[kg]",{"$f":"Y190*2","v":0},{"$f":"Z190*3","v":0},"Vs","Volume of Spar","[m3]",{"$f":"Spar_Thickness_Calculator!AD184*Spar_Thickness_Calculator!Y188*Spar_Thickness_Calculator!AI191*2","v":0},{"$f":"Spar_Thickness_Calculator!AE184*Spar_Thickness_Calculator!Z188*Spar_Thickness_Calculator!AI191*2","v":0},"L","Section Length","[m]",{"$f":"Global_Var!$E$10","v":0.74166666666666647}]
[null,null,null,null,null,null,null,null,null,null,null,null,null,null,null,null,null,null,null,null,null,null,null,null,null,null,"Vc","Volume of Core","[m3]",{"$f":"Spar_Thickness_Calculator!AD187*Spar_Thickness_Calculator!AD184*Spar_Thickness_Calculator!AI191","v":0},{"$f":"Spar_Thickness_Calculator!AE187*Spar_Thickness_Calculator!AE184*Spar_Thickness_Calculator!AI191","v":0},null,"Beam width in terms of chord","[-]",{"$f":"Global_Var!$E$11","v":0.6}]
[null,null,null,null,null,null,null,null,null,null,null,null,null,null,null,null,null,null,null,null,null,null,"Spar Strain Limit (Goal Seek to 1)",null,{"$f":"(Y189/$AI$7)","v":{"$error":"#DIV/0!"}},{"$f":"(Z189/$AI$7)","v":{"$error":"#DIV/0!"}},"Ms","Mass of Spar","[kg]",{"$f":"Spar_Thickness_Calculator!AI185*AD191","v":0},{"$f":"Spar_Thickness_Calculator!AI185*AE191","v":0},null,"Beam height in terms of thickness","[-]",0.85]
[null,null,null,null,null,null,null,null,null,null,null,null,null,null,null,null,null,null,null,null,null,null,null,null,null,null,"Mc","Mass of Core","[kg]",{"$f":"AD192*Spar_Thickness_Calculator!AI189","v":0},{"$f":"AE192*Spar_Thickness_Calculator!AI189","v":0},null,"Chord Ratio Blade A/Blade B","[-]",{"$f":"Global_Var!$E$13","v":0.66666666666666663}]
[null,null,null,null,null,null,null,null,null,null,null,null,null,null,null,null,null,null,null,null,null,null,null,null,null,null,"Vd","Displaced Volume","[m3]",{"$f":"Spar_Thickness_Calculator!AD186*Spar_Thickness_Calculator!AD184*Spar_Thickness_Calculator!AI191","v":0},{"$f":"Spar_Thickness_Calculator!AE186*Spar_Thickness_Calculator!AE184*Spar_Thickness_Calculator!AI191","v":0},null,"Moment Ratio Blade A/Blade B","[-]",{"$f":"Global_Var!$E$14","v":0.66666666666666663}]
[null,null,null,null,null,null,null,null,null,null,null,null,null,null,null,null,null,null,null,null,null,null,null,null,null,null,"Mw","Mass of disp. Seawater","[kg]",{"$f":"Spar_Thickness_Calculator!AI190*Spar_Thickness_Calculator!AD195","v":0},{"$f":"Spar_Thickness_Calculator!AI190*Spar_Thickness_Calculator!AE195","v":0}]
[]
[null,null,null,null,null,null,null,null,null,null,null,null,null,null,null,null,null,null,null,null,null,"Input/Output",null,null,null,null,"Intermediate Calculations",null,null,null,null,"Constants"]
[null,null,null,null,null,null,null,null,null,null,null,null,null,null,null,null,null,null,null,null,null,14,null,null,"Blade A","Blade B","b","Spar Cap Width","[m]",{"$f":"Spar_Thickness_Calculator!Y200*Spar_Thickness_Calculator!AI207","v":0},{"$f":"Spar_Thickness_Calculator!Z200*Spar_Thickness_Calculator!AI207","v":0},"EUD","Modulus of Sparcap","[Pa]",{"$f":"Global_Var!$E$3","v":39800000000}]
[null,null,null,null,null,null,null,null,null,null,null,null,null,null,null,null,null,null,null,null,null,"C","Chord","[m]",{"$f":"L20","v":0},{"$f":"Y200*Spar_Thickness_Calculator!AI209","v":0},"t","Airfoil thickness","[m]",{"$f":"Spar_Thickness_Calculator!Y201*Spar_Thickness_Calculator!Y200/100","v":0},{"$f":"Spar_Thickness_Calculator!Z201*Spar_Thickness_Calculator!Z200/100","v":0},"ρs","Density of sparcap","[kg/m3]",{"$f":"Global_Var!$E$4","v":1920}]
[null,null,null,null,null,null,null,null,null,null,null,null,null,null,null,null,null,null,null,null,null,"AF%","% thickness of foil","[%]",{"$f":"N20","v":0},{"$f":"Y201","v":0},"ho","Section height outer","[m]",{"$f":"AD200*Spar_Thickness_Calculator!AI208","v":0},{"$f":"AE200*Spar_Thickness_Calculator!AI208","v":0},"ϵUD(max)","Max allow design strain Sparcap","[-]",{"$f":"Global_Var!$E$5","v":2.8999999999999998E-3}]
[null,null,null,null,null,null,null,null,null,null,null,null,null,null,null,null,null,null,null,null,null,"M","Moment","[n-m]",{"$f":"M20","v":0},{"$f":"Y202*Spar_Thickness_Calculator!AI210","v":0},"hc","height of core","[m]",{"$f":"Spar_Thickness_Calculator!AD201-2*Spar_Thickness_Calculator!Y203","v":-9.5958930290090449E-2},{"$f":"Spar_Thickness_Calculator!AE201-2*Spar_Thickness_Calculator!Z203","v":-0.54411457294897714},"σs(allow)","Allowable stress in Sparcap","[Pa]",{"$f":"Global_Var!$E$6","v":115419999.99999999}]
[null,null,null,null,null,null,null,null,null,null,null,null,null,null,null,null,null,null,null,null,null,"t","Spar Cap Thickness","[m]",4.7979465145045225E-2,0.27205728647448857,"c","distance from neutral axis","[m]",{"$f":"Spar_Thickness_Calculator!AD201/2","v":0},{"$f":"Spar_Thickness_Calculator!AE201/2","v":0},"EC","Modulus of Core","[Pa]",{"$f":"Global_Var!$E$7","v":3790000}]
[null,null,null,null,null,null,null,null,null,null,null,null,null,null,null,null,null,null,null,null,null,"σs(max)","Max Stress in Sparcap","[Pa]",{"$f":"(Y202*(Spar_Thickness_Calculator!AD201/2)*Spar_Thickness_Calculator!AI199)/(Spar_Thickness_Calculator!AI199*Spar_Thickness_Calculator!AD204+Spar_Thickness_Calculator!AI203*Spar_Thickness_Calculator!AD205)","v":{"$error":"#DIV/0!"}},{"$f":"(Z202*(Spar_Thickness_Calculator!AE201/2)*Spar_Thickness_Calculator!AI199)/(Spar_Thickness_Calculator!AI199*Spar_Thickness_Calculator!AE204+Spar_Thickness_Calculator!AI203*Spar_Thickness_Calculator!AE205)","v":{"$error":"#DIV/0!"}},"Is","Moment of inertia Spar","[m4]",{"$f":"(Spar_Thickness_Calculator!AD199/12)*(Spar_Thickness_Calculator!AD201^3-Spar_Thickness_Calculator!AD202^3)","v":0},{"$f":"(Spar_Thickness_Calculator!AE199/12)*(Spar_Thickness_Calculator!AE201^3-Spar_Thickness_Calculator!AE202^3)","v":0},"ρc","Density of core","[kg/m3]",{"$f":"Global_Var!$E$8","v":673}]
[null,null,null,null,null,null,null,null,null,null,null,null,null,null,null,null,null,null,null,null,null,"Ww","Wet Weight","[kg]",{"$f":"Spar_Thickness_Calculator!AD209+Spar_Thickness_Calculator!AD208-Spar_Thickness_Calculator!AD211","v":0},{"$f":"Spar_Thickness_Calculator!AE209+Spar_Thickness_Calculator!AE208-Spar_Thickness_Calculator!AE211","v":0},"Ic","Moment of inertia Core","[m4]",{"$f":"(Spar_Thickness_Calculator!AD199/12)*Spar_Thickness_Calculator!AD202^3","v":0},{"$f":"(Spar_Thickness_Calculator!AE199/12)*Spar_Thickness_Calculator!AE202^3","v":0},"ρw","Density of Seawater","[kg/m3]",{"$f":"Global_Var!$E$9","v":1029}]
[null,null,null,null,null,null,null,null,null,null,null,null,null,null,null,null,null,null,null,null,null,"Ww(rotor)","Wet Weight segment of rotor (+ floats)","[kg]",{"$f":"Y205*2","v":0},{"$f":"Z205*3","v":0},"Vs","Volume of Spar","[m3]",{"$f":"Spar_Thickness_Calculator!AD199*Spar_Thickness_Calculator!Y203*Spar_Thickness_Calculator!AI206*2","v":0},{"$f":"Spar_Thickness_Calculator!AE199*Spar_Thickness_Calculator!Z203*Spar_Thickness_Calculator!AI206*2","v":0},"L","Section Length","[m]",{"$f":"Global_Var!$E$10","v":0.74166666666666647}]
[null,null,null,null,null,null,null,null,null,null,null,null,null,null,null,null,null,null,null,null,null,null,null,null,null,null,"Vc","Volume of Core","[m3]",{"$f":"Spar_Thickness_Calculator!AD202*Spar_Thickness_Calculator!AD199*Spar_Thickness_Calculator!AI206","v":0},{"$f":"Spar_Thickness_Calculator!AE202*Spar_Thickness_Calculator!AE199*Spar_Thickness_Calculator!AI206","v":0},null,"Beam width in terms of chord","[-]",{"$f":"Global_Var!$E$11","v":0.6}]
[null,null,null,null,null,null,null,null,null,null,null,null,null,null,null,null,null,null,null,null,null,null,"Spar Strain Limit (Goal Seek to 1)",null,{"$f":"(Y204/$AI$7)","v":{"$error":"#DIV/0!"}},{"$f":"(Z204/$AI$7)","v":{"$error":"#DIV/0!"}},"Ms","Mass of Spar","[kg]",{"$f":"Spar_Thickness_Calculator!AI200*AD206","v":0},{"$f":"Spar_Thickness_Calculator!AI200*AE206","v":0},null,"Beam height in terms of thickness","[-]",0.85]
[null,null,null,null,null,null,null,null,null,null,null,null,null,null,null,null,null,null,null,null,null,null,null,null,null,null,"Mc","Mass of Core","[kg]",{"$f":"AD207*Spar_Thickness_Calculator!AI204","v":0},{"$f":"AE207*Spar_Thickness_Calculator!AI204","v":0},null,"Chord Ratio Blade A/Blade B","[-]",{"$f":"Global_Var!$E$13","v":0.66666666666666663}]
[null,null,null,null,null,null,null,null,null,null,null,null,null,null,null,null,null,null,null,null,null,null,null,null,null,null,"Vd","Displaced Volume","[m3]",{"$f":"Spar_Thickness_Calculator!AD201*Spar_Thickness_Calculator!AD199*Spar_Thickness_Calculator!AI206","v":0},{"$f":"Spar_Thickness_Calculator!AE201*Spar_Thickness_Calculator!AE199*Spar_Thickness_Calculator!AI206","v":0},null,"Moment Ratio Blade A/Blade B","[-]",{"$f":"Global_Var!$E$14","v":0.66666666666666663}]
[null,null,null,null,null,null,null,null,null,null,null,null,null,null,null,null,null,null,null,null,null,null,null,null,null,null,"Mw","Mass of disp. Seawater","[kg]",{"$f":"Spar_Thickness_Calculator!AI205*Spar_Thickness_Calculator!AD210","v":0},{"$f":"Spar_Thickness_Calculator!AI205*Spar_Thickness_Calculator!AE210","v":0}]
[]
[null,null,null,null,null,null,null,null,null,null,null,null,null,null,null,null,null,null,null,null,null,"Input/Output",null,null,null,null,"Intermediate Calculations",null,null,null,null,"Constants"]
[null,null,null,null,null,null,null,null,null,null,null,null,null,null,null,null,null,null,null,null,null,15,null,null,"Blade A","Blade B","b","Spar Cap Width","[m]",{"$f":"Spar_Thickness_Calculator!Y215*Spar_Thickness_Calculator!AI222","v":0},{"$f":"Spar_Thickness_Calculator!Z215*Spar_Thickness_Calculator!AI222","v":0},"EUD","Modulus of Sparcap","[Pa]",{"$f":"Global_Var!$E$3","v":39800000000}]
[null,null,null,null,null,null,null,null,null,null,null,null,null,null,null,null,null,null,null,null,null,"C","Chord","[m]",{"$f":"L21","v":0},{"$f":"Y215*Spar_Thickness_Calculator!AI224","v":0},"t","Airfoil thickness","[m]",{"$f":"Spar_Thickness_Calculator!Y216*Spar_Thickness_Calculator!Y215/100","v":0},{"$f":"Spar_Thickness_Calculator!Z216*Spar_Thickness_Calculator!Z215/100","v":0},"ρs","Density of sparcap","[kg/m3]",{"$f":"Global_Var!$E$4","v":1920}]
[null,null,null,null,null,null,null,null,null,null,null,null,null,null,null,null,null,null,null,null,null,"AF%","% thickness of foil","[%]",{"$f":"N21","v":0},{"$f":"Y216","v":0},"ho","Section height outer","[m]",{"$f":"AD215*Spar_Thickness_Calculator!AI223","v":0},{"$f":"AE215*Spar_Thickness_Calculator!AI223","v":0},"ϵUD(max)","Max allow design strain Sparcap","[-]",{"$f":"Global_Var!$E$5","v":2.8999999999999998E-3}]
[null,null,null,null,null,null,null,null,null,null,null,null,null,null,null,null,null,null,null,null,null,"M","Moment","[n-m]",{"$f":"M21","v":0},{"$f":"Y217*Spar_Thickness_Calculator!AI225","v":0},"hc","height of core","[m]",{"$f":"Spar_Thickness_Calculator!AD216-2*Spar_Thickness_Calculator!Y218","v":-9.2116924896099989E-2},{"$f":"Spar_Thickness_Calculator!AE216-2*Spar_Thickness_Calculator!Z218","v":-0.52314763449495105},"σs(allow)","Allowable stress in Sparcap","[Pa]",{"$f":"Global_Var!$E$6","v":115419999.99999999}]
[null,null,null,null,null,null,null,null,null,null,null,null,null,null,null,null,null,null,null,null,null,"t","Spar Cap Thickness","[m]",4.6058462448049994E-2,0.26157381724747553,"c","distance from neutral axis","[m]",{"$f":"Spar_Thickness_Calculator!AD216/2","v":0},{"$f":"Spar_Thickness_Calculator!AE216/2","v":0},"EC","Modulus of Core","[Pa]",{"$f":"Global_Var!$E$7","v":3790000}]
[null,null,null,null,null,null,null,null,null,null,null,null,null,null,null,null,null,null,null,null,null,"σs(max)","Max Stress in Sparcap","[Pa]",{"$f":"(Y217*(Spar_Thickness_Calculator!AD216/2)*Spar_Thickness_Calculator!AI214)/(Spar_Thickness_Calculator!AI214*Spar_Thickness_Calculator!AD219+Spar_Thickness_Calculator!AI218*Spar_Thickness_Calculator!AD220)","v":{"$error":"#DIV/0!"}},{"$f":"(Z217*(Spar_Thickness_Calculator!AE216/2)*Spar_Thickness_Calculator!AI214)/(Spar_Thickness_Calculator!AI214*Spar_Thickness_Calculator!AE219+Spar_Thickness_Calculator!AI218*Spar_Thickness_Calculator!AE220)","v":{"$error":"#DIV/0!"}},"Is","Moment of inertia Spar","[m4]",{"$f":"(Spar_Thickness_Calculator!AD214/12)*(Spar_Thickness_Calculator!AD216^3-Spar_Thickness_Calculator!AD217^3)","v":0},{"$f":"(Spar_Thickness_Calculator!AE214/12)*(Spar_Thickness_Calculator!AE216^3-Spar_Thickness_Calculator!AE217^3)","v":0},"ρc","Density of core","[kg/m3]",{"$f":"Global_Var!$E$8","v":673}]
[null,null,null,null,null,null,null,null,null,null,null,null,null,null,null,null,null,null,null,null,null,"Ww","Wet Weight","[kg]",{"$f":"Spar_Thickness_Calculator!AD224+Spar_Thickness_Calculator!AD223-Spar_Thickness_Calculator!AD226","v":0},{"$f":"Spar_Thickness_Calculator!AE224+Spar_Thickness_Calculator!AE223-Spar_Thickness_Calculator!AE226","v":0},"Ic","Moment of inertia Core","[m4]",{"$f":"(Spar_Thickness_Calculator!AD214/12)*Spar_Thickness_Calculator!AD217^3","v":0},{"$f":"(Spar_Thickness_Calculator!AE214/12)*Spar_Thickness_Calculator!AE217^3","v":0},"ρw","Density of Seawater","[kg/m3]",{"$f":"Global_Var!$E$9","v":1029}]
[null,null,null,null,null,null,null,null,null,null,null,null,null,null,null,null,null,null,null,null,null,"Ww(rotor)","Wet Weight segment of rotor (+ floats)","[kg]",{"$f":"Y220*2","v":0},{"$f":"Z220*3","v":0},"Vs","Volume of Spar","[m3]",{"$f":"Spar_Thickness_Calculator!AD214*Spar_Thickness_Calculator!Y218*Spar_Thickness_Calculator!AI221*2","v":0},{"$f":"Spar_Thickness_Calculator!AE214*Spar_Thickness_Calculator!Z218*Spar_Thickness_Calculator!AI221*2","v":0},"L","Section Length","[m]",{"$f":"Global_Var!$E$10","v":0.74166666666666647}]
[null,null,null,null,null,null,null,null,null,null,null,null,null,null,null,null,null,null,null,null,null,null,null,null,null,null,"Vc","Volume of Core","[m3]",{"$f":"Spar_Thickness_Calculator!AD217*Spar_Thickness_Calculator!AD214*Spar_Thickness_Calculator!AI221","v":0},{"$f":"Spar_Thickness_Calculator!AE217*Spar_Thickness_Calculator!AE214*Spar_Thickness_Calculator!AI221","v":0},null,"Beam width in terms of chord","[-]",{"$f":"Global_Var!$E$11","v":0.6}]
[null,null,null,null,null,null,null,null,null,null,null,null,null,null,null,null,null,null,null,null,null,null,"Spar Strain Limit (Goal Seek to 1)",null,{"$f":"(Y219/$AI$7)","v":{"$error":"#DIV/0!"}},{"$f":"(Z219/$AI$7)","v":{"$error":"#DIV/0!"}},"Ms","Mass of Spar","[kg]",{"$f":"Spar_Thickness_Calculator!AI215*AD221","v":0},{"$f":"Spar_Thickness_Calculator!AI215*AE221","v":0},null,"Beam height in terms of thickness","[-]",0.85]
[null,null,null,null,null,null,null,null,null,null,null,null,null,null,null,null,null,null,null,null,null,null,null,null,null,null,"Mc","Mass of Core","[kg]",{"$f":"AD222*Spar_Thickness_Calculator!AI219","v":0},{"$f":"AE222*Spar_Thickness_Calculator!AI219","v":0},null,"Chord Ratio Blade A/Blade B","[-]",{"$f":"Global_Var!$E$13","v":0.66666666666666663}]
[null,null,null,null,null,null,null,null,null,null,null,null,null,null,null,null,null,null,null,null,null,null,null,null,null,null,"Vd","Displaced Volume","[m3]",{"$f":"Spar_Thickness_Calculator!AD216*Spar_Thickness_Calculator!AD214*Spar_Thickness_Calculator!AI221","v":0},{"$f":"Spar_Thickness_Calculator!AE216*Spar_Thickness_Calculator!AE214*Spar_Thickness_Calculator!AI221","v":0},null,"Moment Ratio Blade A/Blade B","[-]",{"$f":"Global_Var!$E$14","v":0.66666666666666663}]
[null,null,null,null,null,null,null,null,null,null,null,null,null,null,null,null,null,null,null,null,null,null,null,null,null,null,"Mw","Mass of disp. Seawater","[kg]",{"$f":"Spar_Thickness_Calculator!AI220*Spar_Thickness_Calculator!AD225","v":0},{"$f":"Spar_Thickness_Calculator!AI220*Spar_Thickness_Calculator!AE225","v":0}]
[]
[null,null,null,null,null,null,null,null,null,null,null,null,null,null,null,null,null,null,null,null,null,"Input/Output",null,null,null,null,"Intermediate Calculations",null,null,null,null,"Constants"]
[null,null,null,null,null,null,null,null,null,null,null,null,null,null,null,null,null,null,null,null,null,16,null,null,"Blade A","Blade B","b","Spar Cap Width","[m]",{"$f":"Spar_Thickness_Calculator!Y230*Spar_Thickness_Calculator!AI237","v":0},{"$f":"Spar_Thickness_Calculator!Z230*Spar_Thickness_Calculator!AI237","v":0},"EUD","Modulus of Sparcap","[Pa]",{"$f":"Global_Var!$E$3","v":39800000000}]
[null,null,null,null,null,null,null,null,null,null,null,null,null,null,null,null,null,null,null,null,null,"C","Chord","[m]",{"$f":"L22","v":0},{"$f":"Y230*Spar_Thickness_Calculator!AI239","v":0},"t","Airfoil thickness","[m]",{"$f":"Spar_Thickness_Calculator!Y231*Spar_Thickness_Calculator!Y230/100","v":0},{"$f":"Spar_Thickness_Calculator!Z231*Spar_Thickness_Calculator!Z230/100","v":0},"ρs","Density of sparcap","[kg/m3]",{"$f":"Global_Var!$E$4","v":1920}]
[null,null,null,null,null,null,null,null,null,null,null,null,null,null,null,null,null,null,null,null,null,"AF%","% thickness of foil","[%]",{"$f":"N22","v":0},{"$f":"Y231","v":0},"ho","Section height outer","[m]",{"$f":"AD230*Spar_Thickness_Calculator!AI238","v":0},{"$f":"AE230*Spar_Thickness_Calculator!AI238","v":0},"ϵUD(max)","Max allow design strain Sparcap","[-]",{"$f":"Global_Var!$E$5","v":2.8999999999999998E-3}]
[null,null,null,null,null,null,null,null,null,null,null,null,null,null,null,null,null,null,null,null,null,"M","Moment","[n-m]",{"$f":"M22","v":0},{"$f":"Y232*Spar_Thickness_Calculator!AI240","v":0},"hc","height of core","[m]",{"$f":"Spar_Thickness_Calculator!AD231-2*Spar_Thickness_Calculator!Y233","v":-8.8468503461021544E-2},{"$f":"Spar_Thickness_Calculator!AE231-2*Spar_Thickness_Calculator!Z233","v":-0.50163282683581245},"σs(allow)","Allowable stress in Sparcap","[Pa]",{"$f":"Global_Var!$E$6","v":115419999.99999999}]
[null,null,null,null,null,null,null,null,null,null,null,null,null,null,null,null,null,null,null,null,null,"t","Spar Cap Thickness","[m]",4.4234251730510772E-2,0.25081641341790623,"c","distance from neutral axis","[m]",{"$f":"Spar_Thickness_Calculator!AD231/2","v":0},{"$f":"Spar_Thickness_Calculator!AE231/2","v":0},"EC","Modulus of Core","[Pa]",{"$f":"Global_Var!$E$7","v":3790000}]
[null,null,null,null,null,null,null,null,null,null,null,null,null,null,null,null,null,null,null,null,null,"σs(max)","Max Stress in Sparcap","[Pa]",{"$f":"(Y232*(Spar_Thickness_Calculator!AD231/2)*Spar_Thickness_Calculator!AI229)/(Spar_Thickness_Calculator!AI229*Spar_Thickness_Calculator!AD234+Spar_Thickness_Calculator!AI233*Spar_Thickness_Calculator!AD235)","v":{"$error":"#DIV/0!"}},{"$f":"(Z232*(Spar_Thickness_Calculator!AE231/2)*Spar_Thickness_Calculator!AI229)/(Spar_Thickness_Calculator!AI229*Spar_Thickness_Calculator!AE234+Spar_Thickness_Calculator!AI233*Spar_Thickness_Calculator!AE235)","v":{"$error":"#DIV/0!"}},"Is","Moment of inertia Spar","[m4]",{"$f":"(Spar_Thickness_Calculator!AD229/12)*(Spar_Thickness_Calculator!AD231^3-Spar_Thickness_Calculator!AD232^3)","v":0},{"$f":"(Spar_Thickness_Calculator!AE229/12)*(Spar_Thickness_Calculator!AE231^3-Spar_Thickness_Calculator!AE232^3)","v":0},"ρc","Density of core","[kg/m3]",{"$f":"Global_Var!$E$8","v":673}]
[null,null,null,null,null,null,null,null,null,null,null,null,null,null,null,null,null,null,null,null,null,"Ww","Wet Weight","[kg]",{"$f":"Spar_Thickness_Calculator!AD239+Spar_Thickness_Calculator!AD238-Spar_Thickness_Calculator!AD241","v":0},{"$f":"Spar_Thickness_Calculator!AE239+Spar_Thickness_Calculator!AE238-Spar_Thickness_Calculator!AE241","v":0},"Ic","Moment of inertia Core","[m4]",{"$f":"(Spar_Thickness_Calculator!AD229/12)*Spar_Thickness_Calculator!AD232^3","v":0},{"$f":"(Spar_Thickness_Calculator!AE229/12)*Spar_Thickness_Calculator!AE232^3","v":0},"ρw","Density of Seawater","[kg/m3]",{"$f":"Global_Var!$E$9","v":1029}]
[null,null,null,null,null,null,null,null,null,null,null,null,null,null,null,null,null,null,null,null,null,"Ww(rotor)","Wet Weight segment of rotor (+ floats)","[kg]",{"$f":"Y235*2","v":0},{"$f":"Z235*3","v":0},"Vs","Volume of Spar","[m3]",{"$f":"Spar_Thickness_Calculator!AD229*Spar_Thickness_Calculator!Y233*Spar_Thickness_Calculator!AI236*2","v":0},{"$f":"Spar_Thickness_Calculator!AE229*Spar_Thickness_Calculator!Z233*Spar_Thickness_Calculator!AI236*2","v":0},"L","Section Length","[m]",{"$f":"Global_Var!$E$10","v":0.74166666666666647}]
[null,null,null,null,null,null,null,null,null,null,null,null,null,null,null,null,null,null,null,null,null,null,null,null,null,null,"Vc","Volume of Core","[m3]",{"$f":"Spar_Thickness_Calculator!AD232*Spar_Thickness_Calculator!AD229*Spar_Thickness_Calculator!AI236","v":0},{"$f":"Spar_Thickness_Calculator!AE232*Spar_Thickness_Calculator!AE229*Spar_Thickness_Calculator!AI236","v":0},null,"Beam width in terms of chord","[-]",{"$f":"Global_Var!$E$11","v":0.6}]
[null,null,null,null,null,null,null,null,null,null,null,null,null,null,null,null,null,null,null,null,null,null,"Spar Strain Limit (Goal Seek to 1)",null,{"$f":"(Y234/$AI$7)","v":{"$error":"#DIV/0!"}},{"$f":"(Z234/$AI$7)","v":{"$error":"#DIV/0!"}},"Ms","Mass of Spar","[kg]",{"$f":"Spar_Thickness_Calculator!AI230*AD236","v":0},{"$f":"Spar_Thickness_Calculator!AI230*AE236","v":0},null,"Beam height in terms of thickness","[-]",0.85]
[null,null,null,null,null,null,null,null,null,null,null,null,null,null,null,null,null,null,null,null,null,null,null,null,null,null,"Mc","Mass of Core","[kg]",{"$f":"AD237*Spar_Thickness_Calculator!AI234","v":0},{"$f":"AE237*Spar_Thickness_Calculator!AI234","v":0},null,"Chord Ratio Blade A/Blade B","[-]",{"$f":"Global_Var!$E$13","v":0.66666666666666663}]
[null,null,null,null,null,null,null,null,null,null,null,null,null,null,null,null,null,null,null,null,null,null,null,null,null,null,"Vd","Displaced Volume","[m3]",{"$f":"Spar_Thickness_Calculator!AD231*Spar_Thickness_Calculator!AD229*Spar_Thickness_Calculator!AI236","v":0},{"$f":"Spar_Thickness_Calculator!AE231*Spar_Thickness_Calculator!AE229*Spar_Thickness_Calculator!AI236","v":0},null,"Moment Ratio Blade A/Blade B","[-]",{"$f":"Global_Var!$E$14","v":0.66666666666666663}]
[null,null,null,null,null,null,null,null,null,null,null,null,null,null,null,null,null,null,null,null,null,null,null,null,null,null,"Mw","Mass of disp. Seawater","[kg]",{"$f":"Spar_Thickness_Calculator!AI235*Spar_Thickness_Calculator!AD240","v":0},{"$f":"Spar_Thickness_Calculator!AI235*Spar_Thickness_Calculator!AE240","v":0}]
[]
[null,null,null,null,null,null,null,null,null,null,null,null,null,null,null,null,null,null,null,null,null,"Input/Output",null,null,null,null,"Intermediate Calculations",null,null,null,null,"Constants"]
[null,null,null,null,null,null,null,null,null,null,null,null,null,null,null,null,null,null,null,null,null,17,null,null,"Blade A","Blade B","b","Spar Cap Width","[m]",{"$f":"Spar_Thickness_Calculator!Y245*Spar_Thickness_Calculator!AI252","v":0},{"$f":"Spar_Thickness_Calculator!Z245*Spar_Thickness_Calculator!AI252","v":0},"EUD","Modulus of Sparcap","[Pa]",{"$f":"Global_Var!$E$3","v":39800000000}]
[null,null,null,null,null,null,null,null,null,null,null,null,null,null,null,null,null,null,null,null,null,"C","Chord","[m]",{"$f":"L23","v":0},{"$f":"Y245*Spar_Thickness_Calculator!AI254","v":0},"t","Airfoil thickness","[m]",{"$f":"Spar_Thickness_Calculator!Y246*Spar_Thickness_Calculator!Y245/100","v":0},{"$f":"Spar_Thickness_Calculator!Z246*Spar_Thickness_Calculator!Z245/100","v":0},"ρs","Density of sparcap","[kg/m3]",{"$f":"Global_Var!$E$4","v":1920}]
[null,null,null,null,null,null,null,null,null,null,null,null,null,null,null,null,null,null,null,null,null,"AF%","% thickness of foil","[%]",{"$f":"N23","v":0},{"$f":"Y246","v":0},"ho","Section height outer","[m]",{"$f":"AD245*Spar_Thickness_Calculator!AI253","v":0},{"$f":"AE245*Spar_Thickness_Calculator!AI253","v":0},"ϵUD(max)","Max allow design strain Sparcap","[-]",{"$f":"Global_Var!$E$5","v":2.8999999999999998E-3}]
[null,null,null,null,null,null,null,null,null,null,null,null,null,null,null,null,null,null,null,null,null,"M","Moment","[n-m]",{"$f":"M23","v":0},{"$f":"Y247*Spar_Thickness_Calculator!AI255","v":0},"hc","height of core","[m]",{"$f":"Spar_Thickness_Calculator!AD246-2*Spar_Thickness_Calculator!Y248","v":-8.2916407890651897E-2},{"$f":"Spar_Thickness_Calculator!AE246-2*Spar_Thickness_Calculator!Z248","v":-0.47297123191579576},"σs(allow)","Allowable stress in Sparcap","[Pa]",{"$f":"Global_Var!$E$6","v":115419999.99999999}]
[null,null,null,null,null,null,null,null,null,null,null,null,null,null,null,null,null,null,null,null,null,"t","Spar Cap Thickness","[m]",4.1458203945325948E-2,0.23648561595789788,"c","distance from neutral axis","[m]",{"$f":"Spar_Thickness_Calculator!AD246/2","v":0},{"$f":"Spar_Thickness_Calculator!AE246/2","v":0},"EC","Modulus of Core","[Pa]",{"$f":"Global_Var!$E$7","v":3790000}]
[null,null,null,null,null,null,null,null,null,null,null,null,null,null,null,null,null,null,null,null,null,"σs(max)","Max Stress in Sparcap","[Pa]",{"$f":"(Y247*(Spar_Thickness_Calculator!AD246/2)*Spar_Thickness_Calculator!AI244)/(Spar_Thickness_Calculator!AI244*Spar_Thickness_Calculator!AD249+Spar_Thickness_Calculator!AI248*Spar_Thickness_Calculator!AD250)","v":{"$error":"#DIV/0!"}},{"$f":"(Z247*(Spar_Thickness_Calculator!AE246/2)*Spar_Thickness_Calculator!AI244)/(Spar_Thickness_Calculator!AI244*Spar_Thickness_Calculator!AE249+Spar_Thickness_Calculator!AI248*Spar_Thickness_Calculator!AE250)","v":{"$error":"#DIV/0!"}},"Is","Moment of inertia Spar","[m4]",{"$f":"(Spar_Thickness_Calculator!AD244/12)*(Spar_Thickness_Calculator!AD246^3-Spar_Thickness_Calculator!AD247^3)","v":0},{"$f":"(Spar_Thickness_Calculator!AE244/12)*(Spar_Thickness_Calculator!AE246^3-Spar_Thickness_Calculator!AE247^3)","v":0},"ρc","Density of core","[kg/m3]",{"$f":"Global_Var!$E$8","v":673}]
[null,null,null,null,null,null,null,null,null,null,null,null,null,null,null,null,null,null,null,null,null,"Ww","Wet Weight","[kg]",{"$f":"Spar_Thickness_Calculator!AD254+Spar_Thickness_Calculator!AD253-Spar_Thickness_Calculator!AD256","v":0},{"$f":"Spar_Thickness_Calculator!AE254+Spar_Thickness_Calculator!AE253-Spar_Thickness_Calculator!AE256","v":0},"Ic","Moment of inertia Core","[m4]",{"$f":"(Spar_Thickness_Calculator!AD244/12)*Spar_Thickness_Calculator!AD247^3","v":0},{"$f":"(Spar_Thickness_Calculator!AE244/12)*Spar_Thickness_Calculator!AE247^3","v":0},"ρw","Density of Seawater","[kg/m3]",{"$f":"Global_Var!$E$9","v":1029}]
[null,null,null,null,null,null,null,null,null,null,null,null,null,null,null,null,null,null,null,null,null,"Ww(rotor)","Wet Weight segment of rotor (+ floats)","[kg]",{"$f":"Y250*2","v":0},{"$f":"Z250*3","v":0},"Vs","Volume of Spar","[m3]",{"$f":"Spar_Thickness_Calculator!AD244*Spar_Thickness_Calculator!Y248*Spar_Thickness_Calculator!AI251*2","v":0},{"$f":"Spar_Thickness_Calculator!AE244*Spar_Thickness_Calculator!Z248*Spar_Thickness_Calculator!AI251*2","v":0},"L","Section Length","[m]",{"$f":"Global_Var!$E$10","v":0.74166666666666647}]
[null,null,null,null,null,null,null,null,null,null,null,null,null,null,null,null,null,null,null,null,null,null,null,null,null,null,"Vc","Volume of Core","[m3]",{"$f":"Spar_Thickness_Calculator!AD247*Spar_Thickness_Calculator!AD244*Spar_Thickness_Calculator!AI251","v":0},{"$f":"Spar_Thickness_Calculator!AE247*Spar_Thickness_Calculator!AE244*Spar_Thickness_Calculator!AI251","v":0},null,"Beam width in terms of chord","[-]",{"$f":"Global_Var!$E$11","v":0.6}]
[null,null,null,null,null,null,null,null,null,null,null,null,null,null,null,null,null,null,null,null,null,null,"Spar Strain Limit (Goal Seek to 1)",null,{"$f":"(Y249/$AI$7)","v":{"$error":"#DIV/0!"}},{"$f":"(Z249/$AI$7)","v":{"$error":"#DIV/0!"}},"Ms","Mass of Spar","[kg]",{"$f":"Spar_Thickness_Calculator!AI245*AD251","v":0},{"$f":"Spar_Thickness_Calculator!AI245*AE251","v":0},null,"Beam height in terms of thickness","[-]",0.85]
[null,null,null,null,null,null,null,null,null,null,null,null,null,null,null,null,null,null,null,null,null,null,null,null,null,null,"Mc","Mass of Core","[kg]",{"$f":"AD252*Spar_Thickness_Calculator!AI249","v":0},{"$f":"AE252*Spar_Thickness_Calculator!AI249","v":0},null,"Chord Ratio Blade A/Blade B","[-]",{"$f":"Global_Var!$E$13","v":0.66666666666666663}]
[null,null,null,null,null,null,null,null,null,null,null,null,null,null,null,null,null,null,null,null,null,null,null,null,null,null,"Vd","Displaced Volume","[m3]",{"$f":"Spar_Thickness_Calculator!AD246*Spar_Thickness_Calculator!AD244*Spar_Thickness_Calculator!AI251","v":0},{"$f":"Spar_Thickness_Calculator!AE246*Spar_Thickness_Calculator!AE244*Spar_Thickness_Calculator!AI251","v":0},null,"Moment Ratio Blade A/Blade B","[-]",{"$f":"Global_Var!$E$14","v":0.66666666666666663}]
[null,null,null,null,null,null,null,null,null,null,null,null,null,null,null,null,null,null,null,null,null,null,null,null,null,null,"Mw","Mass of disp. Seawater","[kg]",{"$f":"Spar_Thickness_Calculator!AI250*Spar_Thickness_Calculator!AD255","v":0},{"$f":"Spar_Thickness_Calculator!AI250*Spar_Thickness_Calculator!AE255","v":0}]
[]
[null,null,null,null,null,null,null,null,null,null,null,null,null,null,null,null,null,null,null,null,null,"Input/Output",null,null,null,null,"Intermediate Calculations",null,null,null,null,"Constants"]
[null,null,null,null,null,null,null,null,null,null,null,null,null,null,null,null,null,null,null,null,null,18,null,null,"Blade A","Blade B","b","Spar Cap Width","[m]",{"$f":"Spar_Thickness_Calculator!Y260*Spar_Thickness_Calculator!AI267","v":0},{"$f":"Spar_Thickness_Calculator!Z260*Spar_Thickness_Calculator!AI267","v":0},"EUD","Modulus of Sparcap","[Pa]",{"$f":"Global_Var!$E$3","v":39800000000}]
[null,null,null,null,null,null,null,null,null,null,null,null,null,null,null,null,null,null,null,null,null,"C","Chord","[m]",{"$f":"L24","v":0},{"$f":"Y260*Spar_Thickness_Calculator!AI269","v":0},"t","Airfoil thickness","[m]",{"$f":"Spar_Thickness_Calculator!Y261*Spar_Thickness_Calculator!Y260/100","v":0},{"$f":"Spar_Thickness_Calculator!Z261*Spar_Thickness_Calculator!Z260/100","v":0},"ρs","Density of sparcap","[kg/m3]",{"$f":"Global_Var!$E$4","v":1920}]
[null,null,null,null,null,null,null,null,null,null,null,null,null,null,null,null,null,null,null,null,null,"AF%","% thickness of foil","[%]",{"$f":"N24","v":0},{"$f":"Y261","v":0},"ho","Section height outer","[m]",{"$f":"AD260*Spar_Thickness_Calculator!AI268","v":0},{"$f":"AE260*Spar_Thickness_Calculator!AI268","v":0},"ϵUD(max)","Max allow design strain Sparcap","[-]",{"$f":"Global_Var!$E$5","v":2.8999999999999998E-3}]
[null,null,null,null,null,null,null,null,null,null,null,null,null,null,null,null,null,null,null,null,null,"M","Moment","[n-m]",{"$f":"M24","v":0},{"$f":"Y262*Spar_Thickness_Calculator!AI270","v":0},"hc","height of core","[m]",{"$f":"Spar_Thickness_Calculator!AD261-2*Spar_Thickness_Calculator!Y263","v":-7.6597313667032402E-2},{"$f":"Spar_Thickness_Calculator!AE261-2*Spar_Thickness_Calculator!Z263","v":-0.43727188442760895},"σs(allow)","Allowable stress in Sparcap","[Pa]",{"$f":"Global_Var!$E$6","v":115419999.99999999}]
[null,null,null,null,null,null,null,null,null,null,null,null,null,null,null,null,null,null,null,null,null,"t","Spar Cap Thickness","[m]",3.8298656833516201E-2,0.21863594221380447,"c","distance from neutral axis","[m]",{"$f":"Spar_Thickness_Calculator!AD261/2","v":0},{"$f":"Spar_Thickness_Calculator!AE261/2","v":0},"EC","Modulus of Core","[Pa]",{"$f":"Global_Var!$E$7","v":3790000}]
[null,null,null,null,null,null,null,null,null,null,null,null,null,null,null,null,null,null,null,null,null,"σs(max)","Max Stress in Sparcap","[Pa]",{"$f":"(Y262*(Spar_Thickness_Calculator!AD261/2)*Spar_Thickness_Calculator!AI259)/(Spar_Thickness_Calculator!AI259*Spar_Thickness_Calculator!AD264+Spar_Thickness_Calculator!AI263*Spar_Thickness_Calculator!AD265)","v":{"$error":"#DIV/0!"}},{"$f":"(Z262*(Spar_Thickness_Calculator!AE261/2)*Spar_Thickness_Calculator!AI259)/(Spar_Thickness_Calculator!AI259*Spar_Thickness_Calculator!AE264+Spar_Thickness_Calculator!AI263*Spar_Thickness_Calculator!AE265)","v":{"$error":"#DIV/0!"}},"Is","Moment of inertia Spar","[m4]",{"$f":"(Spar_Thickness_Calculator!AD259/12)*(Spar_Thickness_Calculator!AD261^3-Spar_Thickness_Calculator!AD262^3)","v":0},{"$f":"(Spar_Thickness_Calculator!AE259/12)*(Spar_Thickness_Calculator!AE261^3-Spar_Thickness_Calculator!AE262^3)","v":0},"ρc","Density of core","[kg/m3]",{"$f":"Global_Var!$E$8","v":673}]
[null,null,null,null,null,null,null,null,null,null,null,null,null,null,null,null,null,null,null,null,null,"Ww","Wet Weight","[kg]",{"$f":"Spar_Thickness_Calculator!AD269+Spar_Thickness_Calculator!AD268-Spar_Thickness_Calculator!AD271","v":0},{"$f":"Spar_Thickness_Calculator!AE269+Spar_Thickness_Calculator!AE268-Spar_Thickness_Calculator!AE271","v":0},"Ic","Moment of inertia Core","[m4]",{"$f":"(Spar_Thickness_Calculator!AD259/12)*Spar_Thickness_Calculator!AD262^3","v":0},{"$f":"(Spar_Thickness_Calculator!AE259/12)*Spar_Thickness_Calculator!AE262^3","v":0},"ρw","Density of Seawater","[kg/m3]",{"$f":"Global_Var!$E$9","v":1029}]
[null,null,null,null,null,null,null,null,null,null,null,null,null,null,null,null,null,null,null,null,null,"Ww(rotor)","Wet Weight segment of rotor (+ floats)","[kg]",{"$f":"Y265*2","v":0},{"$f":"Z265*3","v":0},"Vs","Volume of Spar","[m3]",{"$f":"Spar_Thickness_Calculator!AD259*Spar_Thickness_Calculator!Y263*Spar_Thickness_Calculator!AI266*2","v":0},{"$f":"Spar_Thickness_Calculator!AE259*Spar_Thickness_Calculator!Z263*Spar_Thickness_Calculator!AI266*2","v":0},"L","Section Length","[m]",{"$f":"Global_Var!$E$10","v":0.74166666666666647}]
[null,null,null,null,null,null,null,null,null,null,null,null,null,null,null,null,null,null,null,null,null,null,null,null,null,null,"Vc","Volume of Core","[m3]",{"$f":"Spar_Thickness_Calculator!AD262*Spar_Thickness_Calculator!AD259*Spar_Thickness_Calculator!AI266","v":0},{"$f":"Spar_Thickness_Calculator!AE262*Spar_Thickness_Calculator!AE259*Spar_Thickness_Calculator!AI266","v":0},null,"Beam width in terms of chord","[-]",{"$f":"Global_Var!$E$11","v":0.6}]
[null,null,null,null,null,null,null,null,null,null,null,null,null,null,null,null,null,null,null,null,null,null,"Spar Strain Limit (Goal Seek to 1)",null,{"$f":"(Y264/$AI$7)","v":{"$error":"#DIV/0!"}},{"$f":"(Z264/$AI$7)","v":{"$error":"#DIV/0!"}},"Ms","Mass of Spar","[kg]",{"$f":"Spar_Thickness_Calculator!AI260*AD266","v":0},{"$f":"Spar_Thickness_Calculator!AI260*AE266","v":0},null,"Beam height in terms of thickness","[-]",0.85]
[null,null,null,null,null,null,null,null,null,null,null,null,null,null,null,null,null,null,null,null,null,null,null,null,null,null,"Mc","Mass of Core","[kg]",{"$f":"AD267*Spar_Thickness_Calculator!AI264","v":0},{"$f":"AE267*Spar_Thickness_Calculator!AI264","v":0},null,"Chord Ratio Blade A/Blade B","[-]",{"$f":"Global_Var!$E$13","v":0.66666666666666663}]
[null,null,null,null,null,null,null,null,null,null,null,null,null,null,null,null,null,null,null,null,null,null,null,null,null,null,"Vd","Displaced Volume","[m3]",{"$f":"Spar_Thickness_Calculator!AD261*Spar_Thickness_Calculator!AD259*Spar_Thickness_Calculator!AI266","v":0},{"$f":"Spar_Thickness_Calculator!AE261*Spar_Thickness_Calculator!AE259*Spar_Thickness_Calculator!AI266","v":0},null,"Moment Ratio Blade A/Blade B","[-]",{"$f":"Global_Var!$E$14","v":0.66666666666666663}]
[null,null,null,null,null,null,null,null,null,null,null,null,null,null,null,null,null,null,null,null,null,null,null,null,null,null,"Mw","Mass of disp. Seawater","[kg]",{"$f":"Spar_Thickness_Calculator!AI265*Spar_Thickness_Calculator!AD270","v":0},{"$f":"Spar_Thickness_Calculator!AI265*Spar_Thickness_Calculator!AE270","v":0}]
[]
[null,null,null,null,null,null,null,null,null,null,null,null,null,null,null,null,null,null,null,null,null,"Input/Output",null,null,null,null,"Intermediate Calculations",null,null,null,null,"Constants"]
[null,null,null,null,null,null,null,null,null,null,null,null,null,null,null,null,null,null,null,null,null,19,null,null,"Blade A","Blade B","b","Spar Cap Width","[m]",{"$f":"Spar_Thickness_Calculator!Y275*Spar_Thickness_Calculator!AI282","v":0},{"$f":"Spar_Thickness_Calculator!Z275*Spar_Thickness_Calculator!AI282","v":0},"EUD","Modulus of Sparcap","[Pa]",{"$f":"Global_Var!$E$3","v":39800000000}]
[null,null,null,null,null,null,null,null,null,null,null,null,null,null,null,null,null,null,null,null,null,"C","Chord","[m]",{"$f":"L25","v":0},{"$f":"Y275*Spar_Thickness_Calculator!AI284","v":0},"t","Airfoil thickness","[m]",{"$f":"Spar_Thickness_Calculator!Y276*Spar_Thickness_Calculator!Y275/100","v":0},{"$f":"Spar_Thickness_Calculator!Z276*Spar_Thickness_Calculator!Z275/100","v":0},"ρs","Density of sparcap","[kg/m3]",{"$f":"Global_Var!$E$4","v":1920}]
[null,null,null,null,null,null,null,null,null,null,null,null,null,null,null,null,null,null,null,null,null,"AF%","% thickness of foil","[%]",{"$f":"N25","v":0},{"$f":"Y276","v":0},"ho","Section height outer","[m]",{"$f":"AD275*Spar_Thickness_Calculator!AI283","v":0},{"$f":"AE275*Spar_Thickness_Calculator!AI283","v":0},"ϵUD(max)","Max allow design strain Sparcap","[-]",{"$f":"Global_Var!$E$5","v":2.8999999999999998E-3}]
[null,null,null,null,null,null,null,null,null,null,null,null,null,null,null,null,null,null,null,null,null,"M","Moment","[n-m]",{"$f":"M25","v":0},{"$f":"Y277*Spar_Thickness_Calculator!AI285","v":0},"hc","height of core","[m]",{"$f":"Spar_Thickness_Calculator!AD276-2*Spar_Thickness_Calculator!Y278","v":-6.9456700902931948E-2},{"$f":"Spar_Thickness_Calculator!AE276-2*Spar_Thickness_Calculator!Z278","v":-0.38435879665410416},"σs(allow)","Allowable stress in Sparcap","[Pa]",{"$f":"Global_Var!$E$6","v":115419999.99999999}]
[null,null,null,null,null,null,null,null,null,null,null,null,null,null,null,null,null,null,null,null,null,"t","Spar Cap Thickness","[m]",3.4728350451465974E-2,0.19217939832705208,"c","distance from neutral axis","[m]",{"$f":"Spar_Thickness_Calculator!AD276/2","v":0},{"$f":"Spar_Thickness_Calculator!AE276/2","v":0},"EC","Modulus of Core","[Pa]",{"$f":"Global_Var!$E$7","v":3790000}]
[null,null,null,null,null,null,null,null,null,null,null,null,null,null,null,null,null,null,null,null,null,"σs(max)","Max Stress in Sparcap","[Pa]",{"$f":"(Y277*(Spar_Thickness_Calculator!AD276/2)*Spar_Thickness_Calculator!AI274)/(Spar_Thickness_Calculator!AI274*Spar_Thickness_Calculator!AD279+Spar_Thickness_Calculator!AI278*Spar_Thickness_Calculator!AD280)","v":{"$error":"#DIV/0!"}},{"$f":"(Z277*(Spar_Thickness_Calculator!AE276/2)*Spar_Thickness_Calculator!AI274)/(Spar_Thickness_Calculator!AI274*Spar_Thickness_Calculator!AE279+Spar_Thickness_Calculator!AI278*Spar_Thickness_Calculator!AE280)","v":{"$error":"#DIV/0!"}},"Is","Moment of inertia Spar","[m4]",{"$f":"(Spar_Thickness_Calculator!AD274/12)*(Spar_Thickness_Calculator!AD276^3-Spar_Thickness_Calculator!AD277^3)","v":0},{"$f":"(Spar_Thickness_Calculator!AE274/12)*(Spar_Thickness_Calculator!AE276^3-Spar_Thickness_Calculator!AE277^3)","v":0},"ρc","Density of core","[kg/m3]",{"$f":"Global_Var!$E$8","v":673}]
[null,null,null,null,null,null,null,null,null,null,null,null,null,null,null,null,null,null,null,null,null,"Ww","Wet Weight","[kg]",{"$f":"Spar_Thickness_Calculator!AD284+Spar_Thickness_Calculator!AD283-Spar_Thickness_Calculator!AD286","v":0},{"$f":"Spar_Thickness_Calculator!AE284+Spar_Thickness_Calculator!AE283-Spar_Thickness_Calculator!AE286","v":0},"Ic","Moment of inertia Core","[m4]",{"$f":"(Spar_Thickness_Calculator!AD274/12)*Spar_Thickness_Calculator!AD277^3","v":0},{"$f":"(Spar_Thickness_Calculator!AE274/12)*Spar_Thickness_Calculator!AE277^3","v":0},"ρw","Density of Seawater","[kg/m3]",{"$f":"Global_Var!$E$9","v":1029}]
[null,null,null,null,null,null,null,null,null,null,null,null,null,null,null,null,null,null,null,null,null,"Ww(rotor)","Wet Weight segment of rotor (+ floats)","[kg]",{"$f":"Y280*2","v":0},{"$f":"Z280*3","v":0},"Vs","Volume of Spar","[m3]",{"$f":"Spar_Thickness_Calculator!AD274*Spar_Thickness_Calculator!Y278*Spar_Thickness_Calculator!AI281*2","v":0},{"$f":"Spar_Thickness_Calculator!AE274*Spar_Thickness_Calculator!Z278*Spar_Thickness_Calculator!AI281*2","v":0},"L","Section Length","[m]",{"$f":"Global_Var!$E$10","v":0.74166666666666647}]
[null,null,null,null,null,null,null,null,null,null,null,null,null,null,null,null,null,null,null,null,null,null,null,null,null,null,"Vc","Volume of Core","[m3]",{"$f":"Spar_Thickness_Calculator!AD277*Spar_Thickness_Calculator!AD274*Spar_Thickness_Calculator!AI281","v":0},{"$f":"Spar_Thickness_Calculator!AE277*Spar_Thickness_Calculator!AE274*Spar_Thickness_Calculator!AI281","v":0},null,"Beam width in terms of chord","[-]",{"$f":"Global_Var!$E$11","v":0.6}]
[null,null,null,null,null,null,null,null,null,null,null,null,null,null,null,null,null,null,null,null,null,null,"Spar Strain Limit (Goal Seek to 1)",null,{"$f":"(Y279/$AI$7)","v":{"$error":"#DIV/0!"}},{"$f":"(Z279/$AI$7)","v":{"$error":"#DIV/0!"}},"Ms","Mass of Spar","[kg]",{"$f":"Spar_Thickness_Calculator!AI275*AD281","v":0},{"$f":"Spar_Thickness_Calculator!AI275*AE281","v":0},null,"Beam height in terms of thickness","[-]",0.85]
[null,null,null,null,null,null,null,null,null,null,null,null,null,null,null,null,null,null,null,null,null,null,null,null,null,null,"Mc","Mass of Core","[kg]",{"$f":"AD282*Spar_Thickness_Calculator!AI279","v":0},{"$f":"AE282*Spar_Thickness_Calculator!AI279","v":0},null,"Chord Ratio Blade A/Blade B","[-]",{"$f":"Global_Var!$E$13","v":0.66666666666666663}]
[null,null,null,null,null,null,null,null,null,null,null,null,null,null,null,null,null,null,null,null,null,null,null,null,null,null,"Vd","Displaced Volume","[m3]",{"$f":"Spar_Thickness_Calculator!AD276*Spar_Thickness_Calculator!AD274*Spar_Thickness_Calculator!AI281","v":0},{"$f":"Spar_Thickness_Calculator!AE276*Spar_Thickness_Calculator!AE274*Spar_Thickness_Calculator!AI281","v":0},null,"Moment Ratio Blade A/Blade B","[-]",{"$f":"Global_Var!$E$14","v":0.66666666666666663}]
[null,null,null,null,null,null,null,null,null,null,null,null,null,null,null,null,null,null,null,null,null,null,null,null,null,null,"Mw","Mass of disp. Seawater","[kg]",{"$f":"Spar_Thickness_Calculator!AI280*Spar_Thickness_Calculator!AD285","v":0},{"$f":"Spar_Thickness_Calculator!AI280*Spar_Thickness_Calculator!AE285","v":0}]
[]
[null,null,null,null,null,null,null,null,null,null,null,null,null,null,null,null,null,null,null,null,null,"Input/Output",null,null,null,null,"Intermediate Calculations",null,null,null,null,"Constants"]
[null,null,null,null,null,null,null,null,null,null,null,null,null,null,null,null,null,null,null,null,null,20,null,null,"Blade A","Blade B","b","Spar Cap Width","[m]",{"$f":"Spar_Thickness_Calculator!Y290*Spar_Thickness_Calculator!AI297","v":0},{"$f":"Spar_Thickness_Calculator!Z290*Spar_Thickness_Calculator!AI297","v":0},"EUD","Modulus of Sparcap","[Pa]",{"$f":"Global_Var!$E$3","v":39800000000}]
[null,null,null,null,null,null,null,null,null,null,null,null,null,null,null,null,null,null,null,null,null,"C","Chord","[m]",{"$f":"L26","v":0},{"$f":"Y290*Spar_Thickness_Calculator!AI299","v":0},"t","Airfoil thickness","[m]",{"$f":"Spar_Thickness_Calculator!Y291*Spar_Thickness_Calculator!Y290/100","v":0},{"$f":"Spar_Thickness_Calculator!Z291*Spar_Thickness_Calculator!Z290/100","v":0},"ρs","Density of sparcap","[kg/m3]",{"$f":"Global_Var!$E$4","v":1920}]
[null,null,null,null,null,null,null,null,null,null,null,null,null,null,null,null,null,null,null,null,null,"AF%","% thickness of foil","[%]",{"$f":"N26","v":0},{"$f":"Y291","v":0},"ho","Section height outer","[m]",{"$f":"AD290*Spar_Thickness_Calculator!AI298","v":0},{"$f":"AE290*Spar_Thickness_Calculator!AI298","v":0},"ϵUD(max)","Max allow design strain Sparcap","[-]",{"$f":"Global_Var!$E$5","v":2.8999999999999998E-3}]
[null,null,null,null,null,null,null,null,null,null,null,null,null,null,null,null,null,null,null,null,null,"M","Moment","[n-m]",{"$f":"M26","v":0},{"$f":"Y292*Spar_Thickness_Calculator!AI300","v":0},"hc","height of core","[m]",{"$f":"Spar_Thickness_Calculator!AD291-2*Spar_Thickness_Calculator!Y293","v":-6.1706302817626096E-2},{"$f":"Spar_Thickness_Calculator!AE291-2*Spar_Thickness_Calculator!Z293","v":-0.19405852613476782},"σs(allow)","Allowable stress in Sparcap","[Pa]",{"$f":"Global_Var!$E$6","v":115419999.99999999}]
[null,null,null,null,null,null,null,null,null,null,null,null,null,null,null,null,null,null,null,null,null,"t","Spar Cap Thickness","[m]",3.0853151408813048E-2,9.7029263067383908E-2,"c","distance from neutral axis","[m]",{"$f":"Spar_Thickness_Calculator!AD291/2","v":0},{"$f":"Spar_Thickness_Calculator!AE291/2","v":0},"EC","Modulus of Core","[Pa]",{"$f":"Global_Var!$E$7","v":3790000}]
[null,null,null,null,null,null,null,null,null,null,null,null,null,null,null,null,null,null,null,null,null,"σs(max)","Max Stress in Sparcap","[Pa]",{"$f":"(Y292*(Spar_Thickness_Calculator!AD291/2)*Spar_Thickness_Calculator!AI289)/(Spar_Thickness_Calculator!AI289*Spar_Thickness_Calculator!AD294+Spar_Thickness_Calculator!AI293*Spar_Thickness_Calculator!AD295)","v":{"$error":"#DIV/0!"}},{"$f":"(Z292*(Spar_Thickness_Calculator!AE291/2)*Spar_Thickness_Calculator!AI289)/(Spar_Thickness_Calculator!AI289*Spar_Thickness_Calculator!AE294+Spar_Thickness_Calculator!AI293*Spar_Thickness_Calculator!AE295)","v":{"$error":"#DIV/0!"}},"Is","Moment of inertia Spar","[m4]",{"$f":"(Spar_Thickness_Calculator!AD289/12)*(Spar_Thickness_Calculator!AD291^3-Spar_Thickness_Calculator!AD292^3)","v":0},{"$f":"(Spar_Thickness_Calculator!AE289/12)*(Spar_Thickness_Calculator!AE291^3-Spar_Thickness_Calculator!AE292^3)","v":0},"ρc","Density of core","[kg/m3]",{"$f":"Global_Var!$E$8","v":673}]
[null,null,null,null,null,null,null,null,null,null,null,null,null,null,null,null,null,null,null,null,null,"Ww","Wet Weight","[kg]",{"$f":"Spar_Thickness_Calculator!AD299+Spar_Thickness_Calculator!AD298-Spar_Thickness_Calculator!AD301","v":0},{"$f":"Spar_Thickness_Calculator!AE299+Spar_Thickness_Calculator!AE298-Spar_Thickness_Calculator!AE301","v":0},"Ic","Moment of inertia Core","[m4]",{"$f":"(Spar_Thickness_Calculator!AD289/12)*Spar_Thickness_Calculator!AD292^3","v":0},{"$f":"(Spar_Thickness_Calculator!AE289/12)*Spar_Thickness_Calculator!AE292^3","v":0},"ρw","Density of Seawater","[kg/m3]",{"$f":"Global_Var!$E$9","v":1029}]
[null,null,null,null,null,null,null,null,null,null,null,null,null,null,null,null,null,null,null,null,null,"Ww(rotor)","Wet Weight segment of rotor (+ floats)","[kg]",{"$f":"Y295*2","v":0},{"$f":"Z295*3","v":0},"Vs","Volume of Spar","[m3]",{"$f":"Spar_Thickness_Calculator!AD289*Spar_Thickness_Calculator!Y293*Spar_Thickness_Calculator!AI296*2","v":0},{"$f":"Spar_Thickness_Calculator!AE289*Spar_Thickness_Calculator!Z293*Spar_Thickness_Calculator!AI296*2","v":0},"L","Section Length","[m]",{"$f":"Global_Var!$E$10","v":0.74166666666666647}]
[null,null,null,null,null,null,null,null,null,null,null,null,null,null,null,null,null,null,null,null,null,null,null,null,null,null,"Vc","Volume of Core","[m3]",{"$f":"Spar_Thickness_Calculator!AD292*Spar_Thickness_Calculator!AD289*Spar_Thickness_Calculator!AI296","v":0},{"$f":"Spar_Thickness_Calculator!AE292*Spar_Thickness_Calculator!AE289*Spar_Thickness_Calculator!AI296","v":0},null,"Beam width in terms of chord","[-]",{"$f":"Global_Var!$E$11","v":0.6}]
[null,null,null,null,null,null,null,null,null,null,null,null,null,null,null,null,null,null,null,null,null,null,"Spar Strain Limit (Goal Seek to 1)",null,{"$f":"(Y294/$AI$7)","v":{"$error":"#DIV/0!"}},{"$f":"(Z294/$AI$7)","v":{"$error":"#DIV/0!"}},"Ms","Mass of Spar","[kg]",{"$f":"Spar_Thickness_Calculator!AI290*AD296","v":0},{"$f":"Spar_Thickness_Calculator!AI290*AE296","v":0},null,"Beam height in terms of thickness","[-]",0.85]
[null,null,null,null,null,null,null,null,null,null,null,null,null,null,null,null,null,null,null,null,null,null,null,null,null,null,"Mc","Mass of Core","[kg]",{"$f":"AD297*Spar_Thickness_Calculator!AI294","v":0},{"$f":"AE297*Spar_Thickness_Calculator!AI294","v":0},null,"Chord Ratio Blade A/Blade B","[-]",{"$f":"Global_Var!$E$13","v":0.66666666666666663}]
[null,null,null,null,null,null,null,null,null,null,null,null,null,null,null,null,null,null,null,null,null,null,null,null,null,null,"Vd","Displaced Volume","[m3]",{"$f":"Spar_Thickness_Calculator!AD291*Spar_Thickness_Calculator!AD289*Spar_Thickness_Calculator!AI296","v":0},{"$f":"Spar_Thickness_Calculator!AE291*Spar_Thickness_Calculator!AE289*Spar_Thickness_Calculator!AI296","v":0},null,"Moment Ratio Blade A/Blade B","[-]",{"$f":"Global_Var!$E$14","v":0.66666666666666663}]
[null,null,null,null,null,null,null,null,null,null,null,null,null,null,null,null,null,null,null,null,null,null,null,null,null,null,"Mw","Mass of disp. Seawater","[kg]",{"$f":"Spar_Thickness_Calculator!AI295*Spar_Thickness_Calculator!AD300","v":0},{"$f":"Spar_Thickness_Calculator!AI295*Spar_Thickness_Calculator!AE300","v":0}]
[]
[null,null,null,null,null,null,null,null,null,null,null,null,null,null,null,null,null,null,null,null,null,"Input/Output",null,null,null,null,"Intermediate Calculations",null,null,null,null,"Constants"]
[null,null,null,null,null,null,null,null,null,null,null,null,null,null,null,null,null,null,null,null,null,21,null,null,"Blade A","Blade B","b","Spar Cap Width","[m]",{"$f":"Spar_Thickness_Calculator!Y305*Spar_Thickness_Calculator!AI312","v":0},{"$f":"Spar_Thickness_Calculator!Z305*Spar_Thickness_Calculator!AI312","v":0},"EUD","Modulus of Sparcap","[Pa]",{"$f":"Global_Var!$E$3","v":39800000000}]
[null,null,null,null,null,null,null,null,null,null,null,null,null,null,null,null,null,null,null,null,null,"C","Chord","[m]",{"$f":"L27","v":0},{"$f":"Y305*Spar_Thickness_Calculator!AI314","v":0},"t","Airfoil thickness","[m]",{"$f":"Spar_Thickness_Calculator!Y306*Spar_Thickness_Calculator!Y305/100","v":0},{"$f":"Spar_Thickness_Calculator!Z306*Spar_Thickness_Calculator!Z305/100","v":0},"ρs","Density of sparcap","[kg/m3]",{"$f":"Global_Var!$E$4","v":1920}]
[null,null,null,null,null,null,null,null,null,null,null,null,null,null,null,null,null,null,null,null,null,"AF%","% thickness of foil","[%]",{"$f":"N27","v":0},{"$f":"Y306","v":0},"ho","Section height outer","[m]",{"$f":"AD305*Spar_Thickness_Calculator!AI313","v":0},{"$f":"AE305*Spar_Thickness_Calculator!AI313","v":0},"ϵUD(max)","Max allow design strain Sparcap","[-]",{"$f":"Global_Var!$E$5","v":2.8999999999999998E-3}]
[null,null,null,null,null,null,null,null,null,null,null,null,null,null,null,null,null,null,null,null,null,"M","Moment","[n-m]",{"$f":"M27","v":0},{"$f":"Y307*Spar_Thickness_Calculator!AI315","v":0},"hc","height of core","[m]",{"$f":"Spar_Thickness_Calculator!AD306-2*Spar_Thickness_Calculator!Y308","v":-5.4447162272208603E-2},{"$f":"Spar_Thickness_Calculator!AE306-2*Spar_Thickness_Calculator!Z308","v":-0.1526728670256744},"σs(allow)","Allowable stress in Sparcap","[Pa]",{"$f":"Global_Var!$E$6","v":115419999.99999999}]
[null,null,null,null,null,null,null,null,null,null,null,null,null,null,null,null,null,null,null,null,null,"t","Spar Cap Thickness","[m]",2.7223581136104302E-2,7.6336433512837198E-2,"c","distance from neutral axis","[m]",{"$f":"Spar_Thickness_Calculator!AD306/2","v":0},{"$f":"Spar_Thickness_Calculator!AE306/2","v":0},"EC","Modulus of Core","[Pa]",{"$f":"Global_Var!$E$7","v":3790000}]
[null,null,null,null,null,null,null,null,null,null,null,null,null,null,null,null,null,null,null,null,null,"σs(max)","Max Stress in Sparcap","[Pa]",{"$f":"(Y307*(Spar_Thickness_Calculator!AD306/2)*Spar_Thickness_Calculator!AI304)/(Spar_Thickness_Calculator!AI304*Spar_Thickness_Calculator!AD309+Spar_Thickness_Calculator!AI308*Spar_Thickness_Calculator!AD310)","v":{"$error":"#DIV/0!"}},{"$f":"(Z307*(Spar_Thickness_Calculator!AE306/2)*Spar_Thickness_Calculator!AI304)/(Spar_Thickness_Calculator!AI304*Spar_Thickness_Calculator!AE309+Spar_Thickness_Calculator!AI308*Spar_Thickness_Calculator!AE310)","v":{"$error":"#DIV/0!"}},"Is","Moment of inertia Spar","[m4]",{"$f":"(Spar_Thickness_Calculator!AD304/12)*(Spar_Thickness_Calculator!AD306^3-Spar_Thickness_Calculator!AD307^3)","v":0},{"$f":"(Spar_Thickness_Calculator!AE304/12)*(Spar_Thickness_Calculator!AE306^3-Spar_Thickness_Calculator!AE307^3)","v":0},"ρc","Density of core","[kg/m3]",{"$f":"Global_Var!$E$8","v":673}]
[null,null,null,null,null,null,null,null,null,null,null,null,null,null,null,null,null,null,null,null,null,"Ww","Wet Weight","[kg]",{"$f":"Spar_Thickness_Calculator!AD314+Spar_Thickness_Calculator!AD313-Spar_Thickness_Calculator!AD316","v":0},{"$f":"Spar_Thickness_Calculator!AE314+Spar_Thickness_Calculator!AE313-Spar_Thickness_Calculator!AE316","v":0},"Ic","Moment of inertia Core","[m4]",{"$f":"(Spar_Thickness_Calculator!AD304/12)*Spar_Thickness_Calculator!AD307^3","v":0},{"$f":"(Spar_Thickness_Calculator!AE304/12)*Spar_Thickness_Calculator!AE307^3","v":0},"ρw","Density of Seawater","[kg/m3]",{"$f":"Global_Var!$E$9","v":1029}]
[null,null,null,null,null,null,null,null,null,null,null,null,null,null,null,null,null,null,null,null,null,"Ww(rotor)","Wet Weight segment of rotor (+ floats)","[kg]",{"$f":"Y310*2","v":0},{"$f":"Z310*3","v":0},"Vs","Volume of Spar","[m3]",{"$f":"Spar_Thickness_Calculator!AD304*Spar_Thickness_Calculator!Y308*Spar_Thickness_Calculator!AI311*2","v":0},{"$f":"Spar_Thickness_Calculator!AE304*Spar_Thickness_Calculator!Z308*Spar_Thickness_Calculator!AI311*2","v":0},"L","Section Length","[m]",{"$f":"Global_Var!$E$10","v":0.74166666666666647}]
[null,null,null,null,null,null,null,null,null,null,null,null,null,null,null,null,null,null,null,null,null,null,null,null,null,null,"Vc","Volume of Core","[m3]",{"$f":"Spar_Thickness_Calculator!AD307*Spar_Thickness_Calculator!AD304*Spar_Thickness_Calculator!AI311","v":0},{"$f":"Spar_Thickness_Calculator!AE307*Spar_Thickness_Calculator!AE304*Spar_Thickness_Calculator!AI311","v":0},null,"Beam width in terms of chord","[-]",{"$f":"Global_Var!$E$11","v":0.6}]
[null,null,null,null,null,null,null,null,null,null,null,null,null,null,null,null,null,null,null,null,null,null,"Spar Strain Limit (Goal Seek to 1)",null,{"$f":"(Y309/$AI$7)","v":{"$error":"#DIV/0!"}},{"$f":"(Z309/$AI$7)","v":{"$error":"#DIV/0!"}},"Ms","Mass of Spar","[kg]",{"$f":"Spar_Thickness_Calculator!AI305*AD311","v":0},{"$f":"Spar_Thickness_Calculator!AI305*AE311","v":0},null,"Beam height in terms of thickness","[-]",0.85]
[null,null,null,null,null,null,null,null,null,null,null,null,null,null,null,null,null,null,null,null,null,null,null,null,null,null,"Mc","Mass of Core","[kg]",{"$f":"AD312*Spar_Thickness_Calculator!AI309","v":0},{"$f":"AE312*Spar_Thickness_Calculator!AI309","v":0},null,"Chord Ratio Blade A/Blade B","[-]",{"$f":"Global_Var!$E$13","v":0.66666666666666663}]
[null,null,null,null,null,null,null,null,null,null,null,null,null,null,null,null,null,null,null,null,null,null,null,null,null,null,"Vd","Displaced Volume","[m3]",{"$f":"Spar_Thickness_Calculator!AD306*Spar_Thickness_Calculator!AD304*Spar_Thickness_Calculator!AI311","v":0},{"$f":"Spar_Thickness_Calculator!AE306*Spar_Thickness_Calculator!AE304*Spar_Thickness_Calculator!AI311","v":0},null,"Moment Ratio Blade A/Blade B","[-]",{"$f":"Global_Var!$E$14","v":0.66666666666666663}]
[null,null,null,null,null,null,null,null,null,null,null,null,null,null,null,null,null,null,null,null,null,null,null,null,null,null,"Mw","Mass of disp. Seawater","[kg]",{"$f":"Spar_Thickness_Calculator!AI310*Spar_Thickness_Calculator!AD315","v":0},{"$f":"Spar_Thickness_Calculator!AI310*Spar_Thickness_Calculator!AE315","v":0}]
[]
[null,null,null,null,null,null,null,null,null,null,null,null,null,null,null,null,null,null,null,null,null,"Input/Output",null,null,null,null,"Intermediate Calculations",null,null,null,null,"Constants"]
[null,null,null,null,null,null,null,null,null,null,null,null,null,null,null,null,null,null,null,null,null,22,null,null,"Blade A","Blade B","b","Spar Cap Width","[m]",{"$f":"Spar_Thickness_Calculator!Y320*Spar_Thickness_Calculator!AI327","v":0},{"$f":"Spar_Thickness_Calculator!Z320*Spar_Thickness_Calculator!AI327","v":0},"EUD","Modulus of Sparcap","[Pa]",{"$f":"Global_Var!$E$3","v":39800000000}]
[null,null,null,null,null,null,null,null,null,null,null,null,null,null,null,null,null,null,null,null,null,"C","Chord","[m]",{"$f":"L28","v":0},{"$f":"Y320*Spar_Thickness_Calculator!AI329","v":0},"t","Airfoil thickness","[m]",{"$f":"Spar_Thickness_Calculator!Y321*Spar_Thickness_Calculator!Y320/100","v":0},{"$f":"Spar_Thickness_Calculator!Z321*Spar_Thickness_Calculator!Z320/100","v":0},"ρs","Density of sparcap","[kg/m3]",{"$f":"Global_Var!$E$4","v":1920}]
[null,null,null,null,null,null,null,null,null,null,null,null,null,null,null,null,null,null,null,null,null,"AF%","% thickness of foil","[%]",{"$f":"N28","v":0},{"$f":"Y321","v":0},"ho","Section height outer","[m]",{"$f":"AD320*Spar_Thickness_Calculator!AI328","v":0},{"$f":"AE320*Spar_Thickness_Calculator!AI328","v":0},"ϵUD(max)","Max allow design strain Sparcap","[-]",{"$f":"Global_Var!$E$5","v":2.8999999999999998E-3}]
[null,null,null,null,null,null,null,null,null,null,null,null,null,null,null,null,null,null,null,null,null,"M","Moment","[n-m]",{"$f":"M28","v":0},{"$f":"Y322*Spar_Thickness_Calculator!AI330","v":0},"hc","height of core","[m]",{"$f":"Spar_Thickness_Calculator!AD321-2*Spar_Thickness_Calculator!Y323","v":-4.7128236803893581E-2},{"$f":"Spar_Thickness_Calculator!AE321-2*Spar_Thickness_Calculator!Z323","v":-0.12283535896616969},"σs(allow)","Allowable stress in Sparcap","[Pa]",{"$f":"Global_Var!$E$6","v":115419999.99999999}]
[null,null,null,null,null,null,null,null,null,null,null,null,null,null,null,null,null,null,null,null,null,"t","Spar Cap Thickness","[m]",2.356411840194679E-2,6.1417679483084846E-2,"c","distance from neutral axis","[m]",{"$f":"Spar_Thickness_Calculator!AD321/2","v":0},{"$f":"Spar_Thickness_Calculator!AE321/2","v":0},"EC","Modulus of Core","[Pa]",{"$f":"Global_Var!$E$7","v":3790000}]
[null,null,null,null,null,null,null,null,null,null,null,null,null,null,null,null,null,null,null,null,null,"σs(max)","Max Stress in Sparcap","[Pa]",{"$f":"(Y322*(Spar_Thickness_Calculator!AD321/2)*Spar_Thickness_Calculator!AI319)/(Spar_Thickness_Calculator!AI319*Spar_Thickness_Calculator!AD324+Spar_Thickness_Calculator!AI323*Spar_Thickness_Calculator!AD325)","v":{"$error":"#DIV/0!"}},{"$f":"(Z322*(Spar_Thickness_Calculator!AE321/2)*Spar_Thickness_Calculator!AI319)/(Spar_Thickness_Calculator!AI319*Spar_Thickness_Calculator!AE324+Spar_Thickness_Calculator!AI323*Spar_Thickness_Calculator!AE325)","v":{"$error":"#DIV/0!"}},"Is","Moment of inertia Spar","[m4]",{"$f":"(Spar_Thickness_Calculator!AD319/12)*(Spar_Thickness_Calculator!AD321^3-Spar_Thickness_Calculator!AD322^3)","v":0},{"$f":"(Spar_Thickness_Calculator!AE319/12)*(Spar_Thickness_Calculator!AE321^3-Spar_Thickness_Calculator!AE322^3)","v":0},"ρc","Density of core","[kg/m3]",{"$f":"Global_Var!$E$8","v":673}]
[null,null,null,null,null,null,null,null,null,null,null,null,null,null,null,null,null,null,null,null,null,"Ww","Wet Weight","[kg]",{"$f":"Spar_Thickness_Calculator!AD329+Spar_Thickness_Calculator!AD328-Spar_Thickness_Calculator!AD331","v":0},{"$f":"Spar_Thickness_Calculator!AE329+Spar_Thickness_Calculator!AE328-Spar_Thickness_Calculator!AE331","v":0},"Ic","Moment of inertia Core","[m4]",{"$f":"(Spar_Thickness_Calculator!AD319/12)*Spar_Thickness_Calculator!AD322^3","v":0},{"$f":"(Spar_Thickness_Calculator!AE319/12)*Spar_Thickness_Calculator!AE322^3","v":0},"ρw","Density of Seawater","[kg/m3]",{"$f":"Global_Var!$E$9","v":1029}]
[null,null,null,null,null,null,null,null,null,null,null,null,null,null,null,null,null,null,null,null,null,"Ww(rotor)","Wet Weight segment of rotor (+ floats)","[kg]",{"$f":"Y325*2","v":0},{"$f":"Z325*3","v":0},"Vs","Volume of Spar","[m3]",{"$f":"Spar_Thickness_Calculator!AD319*Spar_Thickness_Calculator!Y323*Spar_Thickness_Calculator!AI326*2","v":0},{"$f":"Spar_Thickness_Calculator!AE319*Spar_Thickness_Calculator!Z323*Spar_Thickness_Calculator!AI326*2","v":0},"L","Section Length","[m]",{"$f":"Global_Var!$E$10","v":0.74166666666666647}]
[null,null,null,null,null,null,null,null,null,null,null,null,null,null,null,null,null,null,null,null,null,null,null,null,null,null,"Vc","Volume of Core","[m3]",{"$f":"Spar_Thickness_Calculator!AD322*Spar_Thickness_Calculator!AD319*Spar_Thickness_Calculator!AI326","v":0},{"$f":"Spar_Thickness_Calculator!AE322*Spar_Thickness_Calculator!AE319*Spar_Thickness_Calculator!AI326","v":0},null,"Beam width in terms of chord","[-]",{"$f":"Global_Var!$E$11","v":0.6}]
[null,null,null,null,null,null,null,null,null,null,null,null,null,null,null,null,null,null,null,null,null,null,"Spar Strain Limit (Goal Seek to 1)",null,{"$f":"(Y324/$AI$7)","v":{"$error":"#DIV/0!"}},{"$f":"(Z324/$AI$7)","v":{"$error":"#DIV/0!"}},"Ms","Mass of Spar","[kg]",{"$f":"Spar_Thickness_Calculator!AI320*AD326","v":0},{"$f":"Spar_Thickness_Calculator!AI320*AE326","v":0},null,"Beam height in terms of thickness","[-]",0.85]
[null,null,null,null,null,null,null,null,null,null,null,null,null,null,null,null,null,null,null,null,null,null,null,null,null,null,"Mc","Mass of Core","[kg]",{"$f":"AD327*Spar_Thickness_Calculator!AI324","v":0},{"$f":"AE327*Spar_Thickness_Calculator!AI324","v":0},null,"Chord Ratio Blade A/Blade B","[-]",{"$f":"Global_Var!$E$13","v":0.66666666666666663}]
[null,null,null,null,null,null,null,null,null,null,null,null,null,null,null,null,null,null,null,null,null,null,null,null,null,null,"Vd","Displaced Volume","[m3]",{"$f":"Spar_Thickness_Calculator!AD321*Spar_Thickness_Calculator!AD319*Spar_Thickness_Calculator!AI326","v":0},{"$f":"Spar_Thickness_Calculator!AE321*Spar_Thickness_Calculator!AE319*Spar_Thickness_Calculator!AI326","v":0},null,"Moment Ratio Blade A/Blade B","[-]",{"$f":"Global_Var!$E$14","v":0.66666666666666663}]
[null,null,null,null,null,null,null,null,null,null,null,null,null,null,null,null,null,null,null,null,null,null,null,null,null,null,"Mw","Mass of disp. Seawater","[kg]",{"$f":"Spar_Thickness_Calculator!AI325*Spar_Thickness_Calculator!AD330","v":0},{"$f":"Spar_Thickness_Calculator!AI325*Spar_Thickness_Calculator!AE330","v":0}]
[]
[null,null,null,null,null,null,null,null,null,null,null,null,null,null,null,null,null,null,null,null,null,"Input/Output",null,null,null,null,"Intermediate Calculations",null,null,null,null,"Constants"]
[null,null,null,null,null,null,null,null,null,null,null,null,null,null,null,null,null,null,null,null,null,23,null,null,"Blade A","Blade B","b","Spar Cap Width","[m]",{"$f":"Spar_Thickness_Calculator!Y335*Spar_Thickness_Calculator!AI342","v":0},{"$f":"Spar_Thickness_Calculator!Z335*Spar_Thickness_Calculator!AI342","v":0},"EUD","Modulus of Sparcap","[Pa]",{"$f":"Global_Var!$E$3","v":39800000000}]
[null,null,null,null,null,null,null,null,null,null,null,null,null,null,null,null,null,null,null,null,null,"C","Chord","[m]",{"$f":"L29","v":0},{"$f":"Y335*Spar_Thickness_Calculator!AI344","v":0},"t","Airfoil thickness","[m]",{"$f":"Spar_Thickness_Calculator!Y336*Spar_Thickness_Calculator!Y335/100","v":0},{"$f":"Spar_Thickness_Calculator!Z336*Spar_Thickness_Calculator!Z335/100","v":0},"ρs","Density of sparcap","[kg/m3]",{"$f":"Global_Var!$E$4","v":1920}]
[null,null,null,null,null,null,null,null,null,null,null,null,null,null,null,null,null,null,null,null,null,"AF%","% thickness of foil","[%]",{"$f":"N29","v":0},{"$f":"Y336","v":0},"ho","Section height outer","[m]",{"$f":"AD335*Spar_Thickness_Calculator!AI343","v":0},{"$f":"AE335*Spar_Thickness_Calculator!AI343","v":0},"ϵUD(max)","Max allow design strain Sparcap","[-]",{"$f":"Global_Var!$E$5","v":2.8999999999999998E-3}]
[null,null,null,null,null,null,null,null,null,null,null,null,null,null,null,null,null,null,null,null,null,"M","Moment","[n-m]",{"$f":"M29","v":0},{"$f":"Y337*Spar_Thickness_Calculator!AI345","v":0},"hc","height of core","[m]",{"$f":"Spar_Thickness_Calculator!AD336-2*Spar_Thickness_Calculator!Y338","v":-3.9656697592994457E-2},{"$f":"Spar_Thickness_Calculator!AE336-2*Spar_Thickness_Calculator!Z338","v":-9.8097895114948014E-2},"σs(allow)","Allowable stress in Sparcap","[Pa]",{"$f":"Global_Var!$E$6","v":115419999.99999999}]
[null,null,null,null,null,null,null,null,null,null,null,null,null,null,null,null,null,null,null,null,null,"t","Spar Cap Thickness","[m]",1.9828348796497228E-2,4.9048947557474007E-2,"c","distance from neutral axis","[m]",{"$f":"Spar_Thickness_Calculator!AD336/2","v":0},{"$f":"Spar_Thickness_Calculator!AE336/2","v":0},"EC","Modulus of Core","[Pa]",{"$f":"Global_Var!$E$7","v":3790000}]
[null,null,null,null,null,null,null,null,null,null,null,null,null,null,null,null,null,null,null,null,null,"σs(max)","Max Stress in Sparcap","[Pa]",{"$f":"(Y337*(Spar_Thickness_Calculator!AD336/2)*Spar_Thickness_Calculator!AI334)/(Spar_Thickness_Calculator!AI334*Spar_Thickness_Calculator!AD339+Spar_Thickness_Calculator!AI338*Spar_Thickness_Calculator!AD340)","v":{"$error":"#DIV/0!"}},{"$f":"(Z337*(Spar_Thickness_Calculator!AE336/2)*Spar_Thickness_Calculator!AI334)/(Spar_Thickness_Calculator!AI334*Spar_Thickness_Calculator!AE339+Spar_Thickness_Calculator!AI338*Spar_Thickness_Calculator!AE340)","v":{"$error":"#DIV/0!"}},"Is","Moment of inertia Spar","[m4]",{"$f":"(Spar_Thickness_Calculator!AD334/12)*(Spar_Thickness_Calculator!AD336^3-Spar_Thickness_Calculator!AD337^3)","v":0},{"$f":"(Spar_Thickness_Calculator!AE334/12)*(Spar_Thickness_Calculator!AE336^3-Spar_Thickness_Calculator!AE337^3)","v":0},"ρc","Density of core","[kg/m3]",{"$f":"Global_Var!$E$8","v":673}]
[null,null,null,null,null,null,null,null,null,null,null,null,null,null,null,null,null,null,null,null,null,"Ww","Wet Weight","[kg]",{"$f":"Spar_Thickness_Calculator!AD344+Spar_Thickness_Calculator!AD343-Spar_Thickness_Calculator!AD346","v":0},{"$f":"Spar_Thickness_Calculator!AE344+Spar_Thickness_Calculator!AE343-Spar_Thickness_Calculator!AE346","v":0},"Ic","Moment of inertia Core","[m4]",{"$f":"(Spar_Thickness_Calculator!AD334/12)*Spar_Thickness_Calculator!AD337^3","v":0},{"$f":"(Spar_Thickness_Calculator!AE334/12)*Spar_Thickness_Calculator!AE337^3","v":0},"ρw","Density of Seawater","[kg/m3]",{"$f":"Global_Var!$E$9","v":1029}]
[null,null,null,null,null,null,null,null,null,null,null,null,null,null,null,null,null,null,null,null,null,"Ww(rotor)","Wet Weight segment of rotor (+ floats)","[kg]",{"$f":"Y340*2","v":0},{"$f":"Z340*3","v":0},"Vs","Volume of Spar","[m3]",{"$f":"Spar_Thickness_Calculator!AD334*Spar_Thickness_Calculator!Y338*Spar_Thickness_Calculator!AI341*2","v":0},{"$f":"Spar_Thickness_Calculator!AE334*Spar_Thickness_Calculator!Z338*Spar_Thickness_Calculator!AI341*2","v":0},"L","Section Length","[m]",{"$f":"Global_Var!$E$10","v":0.74166666666666647}]
[null,null,null,null,null,null,null,null,null,null,null,null,null,null,null,null,null,null,null,null,null,null,null,null,null,null,"Vc","Volume of Core","[m3]",{"$f":"Spar_Thickness_Calculator!AD337*Spar_Thickness_Calculator!AD334*Spar_Thickness_Calculator!AI341","v":0},{"$f":"Spar_Thickness_Calculator!AE337*Spar_Thickness_Calculator!AE334*Spar_Thickness_Calculator!AI341","v":0},null,"Beam width in terms of chord","[-]",{"$f":"Global_Var!$E$11","v":0.6}]
[null,null,null,null,null,null,null,null,null,null,null,null,null,null,null,null,null,null,null,null,null,null,"Spar Strain Limit (Goal Seek to 1)",null,{"$f":"(Y339/$AI$7)","v":{"$error":"#DIV/0!"}},{"$f":"(Z339/$AI$7)","v":{"$error":"#DIV/0!"}},"Ms","Mass of Spar","[kg]",{"$f":"Spar_Thickness_Calculator!AI335*AD341","v":0},{"$f":"Spar_Thickness_Calculator!AI335*AE341","v":0},null,"Beam height in terms of thickness","[-]",0.85]
[null,null,null,null,null,null,null,null,null,null,null,null,null,null,null,null,null,null,null,null,null,null,null,null,null,null,"Mc","Mass of Core","[kg]",{"$f":"AD342*Spar_Thickness_Calculator!AI339","v":0},{"$f":"AE342*Spar_Thickness_Calculator!AI339","v":0},null,"Chord Ratio Blade A/Blade B","[-]",{"$f":"Global_Var!$E$13","v":0.66666666666666663}]
[null,null,null,null,null,null,null,null,null,null,null,null,null,null,null,null,null,null,null,null,null,null,null,null,null,null,"Vd","Displaced Volume","[m3]",{"$f":"Spar_Thickness_Calculator!AD336*Spar_Thickness_Calculator!AD334*Spar_Thickness_Calculator!AI341","v":0},{"$f":"Spar_Thickness_Calculator!AE336*Spar_Thickness_Calculator!AE334*Spar_Thickness_Calculator!AI341","v":0},null,"Moment Ratio Blade A/Blade B","[-]",{"$f":"Global_Var!$E$14","v":0.66666666666666663}]
[null,null,null,null,null,null,null,null,null,null,null,null,null,null,null,null,null,null,null,null,null,null,null,null,null,null,"Mw","Mass of disp. Seawater","[kg]",{"$f":"Spar_Thickness_Calculator!AI340*Spar_Thickness_Calculator!AD345","v":0},{"$f":"Spar_Thickness_Calculator!AI340*Spar_Thickness_Calculator!AE345","v":0}]
[]
[null,null,null,null,null,null,null,null,null,null,null,null,null,null,null,null,null,null,null,null,null,"Input/Output",null,null,null,null,"Intermediate Calculations",null,null,null,null,"Constants"]
[null,null,null,null,null,null,null,null,null,null,null,null,null,null,null,null,null,null,null,null,null,24,null,null,"Blade A","Blade B","b","Spar Cap Width","[m]",{"$f":"Spar_Thickness_Calculator!Y350*Spar_Thickness_Calculator!AI357","v":0},{"$f":"Spar_Thickness_Calculator!Z350*Spar_Thickness_Calculator!AI357","v":0},"EUD","Modulus of Sparcap","[Pa]",{"$f":"Global_Var!$E$3","v":39800000000}]
[null,null,null,null,null,null,null,null,null,null,null,null,null,null,null,null,null,null,null,null,null,"C","Chord","[m]",{"$f":"L30","v":0},{"$f":"Y350*Spar_Thickness_Calculator!AI359","v":0},"t","Airfoil thickness","[m]",{"$f":"Spar_Thickness_Calculator!Y351*Spar_Thickness_Calculator!Y350/100","v":0},{"$f":"Spar_Thickness_Calculator!Z351*Spar_Thickness_Calculator!Z350/100","v":0},"ρs","Density of sparcap","[kg/m3]",{"$f":"Global_Var!$E$4","v":1920}]
[null,null,null,null,null,null,null,null,null,null,null,null,null,null,null,null,null,null,null,null,null,"AF%","% thickness of foil","[%]",{"$f":"N30","v":0},{"$f":"Y351","v":0},"ho","Section height outer","[m]",{"$f":"AD350*Spar_Thickness_Calculator!AI358","v":0},{"$f":"AE350*Spar_Thickness_Calculator!AI358","v":0},"ϵUD(max)","Max allow design strain Sparcap","[-]",{"$f":"Global_Var!$E$5","v":2.8999999999999998E-3}]
[null,null,null,null,null,null,null,null,null,null,null,null,null,null,null,null,null,null,null,null,null,"M","Moment","[n-m]",{"$f":"M30","v":0},{"$f":"Y352*Spar_Thickness_Calculator!AI360","v":0},"hc","height of core","[m]",{"$f":"Spar_Thickness_Calculator!AD351-2*Spar_Thickness_Calculator!Y353","v":-3.1457353875792078E-2},{"$f":"Spar_Thickness_Calculator!AE351-2*Spar_Thickness_Calculator!Z353","v":-7.4608148085761938E-2},"σs(allow)","Allowable stress in Sparcap","[Pa]",{"$f":"Global_Var!$E$6","v":115419999.99999999}]
[null,null,null,null,null,null,null,null,null,null,null,null,null,null,null,null,null,null,null,null,null,"t","Spar Cap Thickness","[m]",1.5728676937896039E-2,3.7304074042880969E-2,"c","distance from neutral axis","[m]",{"$f":"Spar_Thickness_Calculator!AD351/2","v":0},{"$f":"Spar_Thickness_Calculator!AE351/2","v":0},"EC","Modulus of Core","[Pa]",{"$f":"Global_Var!$E$7","v":3790000}]
[null,null,null,null,null,null,null,null,null,null,null,null,null,null,null,null,null,null,null,null,null,"σs(max)","Max Stress in Sparcap","[Pa]",{"$f":"(Y352*(Spar_Thickness_Calculator!AD351/2)*Spar_Thickness_Calculator!AI349)/(Spar_Thickness_Calculator!AI349*Spar_Thickness_Calculator!AD354+Spar_Thickness_Calculator!AI353*Spar_Thickness_Calculator!AD355)","v":{"$error":"#DIV/0!"}},{"$f":"(Z352*(Spar_Thickness_Calculator!AE351/2)*Spar_Thickness_Calculator!AI349)/(Spar_Thickness_Calculator!AI349*Spar_Thickness_Calculator!AE354+Spar_Thickness_Calculator!AI353*Spar_Thickness_Calculator!AE355)","v":{"$error":"#DIV/0!"}},"Is","Moment of inertia Spar","[m4]",{"$f":"(Spar_Thickness_Calculator!AD349/12)*(Spar_Thickness_Calculator!AD351^3-Spar_Thickness_Calculator!AD352^3)","v":0},{"$f":"(Spar_Thickness_Calculator!AE349/12)*(Spar_Thickness_Calculator!AE351^3-Spar_Thickness_Calculator!AE352^3)","v":0},"ρc","Density of core","[kg/m3]",{"$f":"Global_Var!$E$8","v":673}]
[null,null,null,null,null,null,null,null,null,null,null,null,null,null,null,null,null,null,null,null,null,"Ww","Wet Weight","[kg]",{"$f":"Spar_Thickness_Calculator!AD359+Spar_Thickness_Calculator!AD358-Spar_Thickness_Calculator!AD361","v":0},{"$f":"Spar_Thickness_Calculator!AE359+Spar_Thickness_Calculator!AE358-Spar_Thickness_Calculator!AE361","v":0},"Ic","Moment of inertia Core","[m4]",{"$f":"(Spar_Thickness_Calculator!AD349/12)*Spar_Thickness_Calculator!AD352^3","v":0},{"$f":"(Spar_Thickness_Calculator!AE349/12)*Spar_Thickness_Calculator!AE352^3","v":0},"ρw","Density of Seawater","[kg/m3]",{"$f":"Global_Var!$E$9","v":1029}]
[null,null,null,null,null,null,null,null,null,null,null,null,null,null,null,null,null,null,null,null,null,"Ww(rotor)","Wet Weight segment of rotor (+ floats)","[kg]",{"$f":"Y355*2","v":0},{"$f":"Z355*3","v":0},"Vs","Volume of Spar","[m3]",{"$f":"Spar_Thickness_Calculator!AD349*Spar_Thickness_Calculator!Y353*Spar_Thickness_Calculator!AI356*2","v":0},{"$f":"Spar_Thickness_Calculator!AE349*Spar_Thickness_Calculator!Z353*Spar_Thickness_Calculator!AI356*2","v":0},"L","Section Length","[m]",{"$f":"Global_Var!$E$10","v":0.74166666666666647}]
[null,null,null,null,null,null,null,null,null,null,null,null,null,null,null,null,null,null,null,null,null,null,null,null,null,null,"Vc","Volume of Core","[m3]",{"$f":"Spar_Thickness_Calculator!AD352*Spar_Thickness_Calculator!AD349*Spar_Thickness_Calculator!AI356","v":0},{"$f":"Spar_Thickness_Calculator!AE352*Spar_Thickness_Calculator!AE349*Spar_Thickness_Calculator!AI356","v":0},null,"Beam width in terms of chord","[-]",{"$f":"Global_Var!$E$11","v":0.6}]
[null,null,null,null,null,null,null,null,null,null,null,null,null,null,null,null,null,null,null,null,null,null,"Spar Strain Limit (Goal Seek to 1)",null,{"$f":"(Y354/$AI$7)","v":{"$error":"#DIV/0!"}},{"$f":"(Z354/$AI$7)","v":{"$error":"#DIV/0!"}},"Ms","Mass of Spar","[kg]",{"$f":"Spar_Thickness_Calculator!AI350*AD356","v":0},{"$f":"Spar_Thickness_Calculator!AI350*AE356","v":0},null,"Beam height in terms of thickness","[-]",0.85]
[null,null,null,null,null,null,null,null,null,null,null,null,null,null,null,null,null,null,null,null,null,null,null,null,null,null,"Mc","Mass of Core","[kg]",{"$f":"AD357*Spar_Thickness_Calculator!AI354","v":0},{"$f":"AE357*Spar_Thickness_Calculator!AI354","v":0},null,"Chord Ratio Blade A/Blade B","[-]",{"$f":"Global_Var!$E$13","v":0.66666666666666663}]
[null,null,null,null,null,null,null,null,null,null,null,null,null,null,null,null,null,null,null,null,null,null,null,null,null,null,"Vd","Displaced Volume","[m3]",{"$f":"Spar_Thickness_Calculator!AD351*Spar_Thickness_Calculator!AD349*Spar_Thickness_Calculator!AI356","v":0},{"$f":"Spar_Thickness_Calculator!AE351*Spar_Thickness_Calculator!AE349*Spar_Thickness_Calculator!AI356","v":0},null,"Moment Ratio Blade A/Blade B","[-]",{"$f":"Global_Var!$E$14","v":0.66666666666666663}]
[null,null,null,null,null,null,null,null,null,null,null,null,null,null,null,null,null,null,null,null,null,null,null,null,null,null,"Mw","Mass of disp. Seawater","[kg]",{"$f":"Spar_Thickness_Calculator!AI355*Spar_Thickness_Calculator!AD360","v":0},{"$f":"Spar_Thickness_Calculator!AI355*Spar_Thickness_Calculator!AE360","v":0}]
[]
[null,null,null,null,null,null,null,null,null,null,null,null,null,null,null,null,null,null,null,null,null,"Input/Output",null,null,null,null,"Intermediate Calculations",null,null,null,null,"Constants"]
[null,null,null,null,null,null,null,null,null,null,null,null,null,null,null,null,null,null,null,null,null,25,null,null,"Blade A","Blade B","b","Spar Cap Width","[m]",{"$f":"Spar_Thickness_Calculator!Y365*Spar_Thickness_Calculator!AI372","v":0},{"$f":"Spar_Thickness_Calculator!Z365*Spar_Thickness_Calculator!AI372","v":0},"EUD","Modulus of Sparcap","[Pa]",{"$f":"Global_Var!$E$3","v":39800000000}]
[null,null,null,null,null,null,null,null,null,null,null,null,null,null,null,null,null,null,null,null,null,"C","Chord","[m]",{"$f":"L31","v":0},{"$f":"Y365*Spar_Thickness_Calculator!AI374","v":0},"t","Airfoil thickness","[m]",{"$f":"Spar_Thickness_Calculator!Y366*Spar_Thickness_Calculator!Y365/100","v":0},{"$f":"Spar_Thickness_Calculator!Z366*Spar_Thickness_Calculator!Z365/100","v":0},"ρs","Density of sparcap","[kg/m3]",{"$f":"Global_Var!$E$4","v":1920}]
[null,null,null,null,null,null,null,null,null,null,null,null,null,null,null,null,null,null,null,null,null,"AF%","% thickness of foil","[%]",{"$f":"N31","v":0},{"$f":"Y366","v":0},"ho","Section height outer","[m]",{"$f":"AD365*Spar_Thickness_Calculator!AI373","v":0},{"$f":"AE365*Spar_Thickness_Calculator!AI373","v":0},"ϵUD(max)","Max allow design strain Sparcap","[-]",{"$f":"Global_Var!$E$5","v":2.8999999999999998E-3}]
[null,null,null,null,null,null,null,null,null,null,null,null,null,null,null,null,null,null,null,null,null,"M","Moment","[n-m]",{"$f":"M31","v":0},{"$f":"Y367*Spar_Thickness_Calculator!AI375","v":0},"hc","height of core","[m]",{"$f":"Spar_Thickness_Calculator!AD366-2*Spar_Thickness_Calculator!Y368","v":-2.3451245754026597E-2},{"$f":"Spar_Thickness_Calculator!AE366-2*Spar_Thickness_Calculator!Z368","v":-5.5067193647641829E-2},"σs(allow)","Allowable stress in Sparcap","[Pa]",{"$f":"Global_Var!$E$6","v":115419999.99999999}]
[null,null,null,null,null,null,null,null,null,null,null,null,null,null,null,null,null,null,null,null,null,"t","Spar Cap Thickness","[m]",1.1725622877013299E-2,2.7533596823820915E-2,"c","distance from neutral axis","[m]",{"$f":"Spar_Thickness_Calculator!AD366/2","v":0},{"$f":"Spar_Thickness_Calculator!AE366/2","v":0},"EC","Modulus of Core","[Pa]",{"$f":"Global_Var!$E$7","v":3790000}]
[null,null,null,null,null,null,null,null,null,null,null,null,null,null,null,null,null,null,null,null,null,"σs(max)","Max Stress in Sparcap","[Pa]",{"$f":"(Y367*(Spar_Thickness_Calculator!AD366/2)*Spar_Thickness_Calculator!AI364)/(Spar_Thickness_Calculator!AI364*Spar_Thickness_Calculator!AD369+Spar_Thickness_Calculator!AI368*Spar_Thickness_Calculator!AD370)","v":{"$error":"#DIV/0!"}},{"$f":"(Z367*(Spar_Thickness_Calculator!AE366/2)*Spar_Thickness_Calculator!AI364)/(Spar_Thickness_Calculator!AI364*Spar_Thickness_Calculator!AE369+Spar_Thickness_Calculator!AI368*Spar_Thickness_Calculator!AE370)","v":{"$error":"#DIV/0!"}},"Is","Moment of inertia Spar","[m4]",{"$f":"(Spar_Thickness_Calculator!AD364/12)*(Spar_Thickness_Calculator!AD366^3-Spar_Thickness_Calculator!AD367^3)","v":0},{"$f":"(Spar_Thickness_Calculator!AE364/12)*(Spar_Thickness_Calculator!AE366^3-Spar_Thickness_Calculator!AE367^3)","v":0},"ρc","Density of core","[kg/m3]",{"$f":"Global_Var!$E$8","v":673}]
[null,null,null,null,null,null,null,null,null,null,null,null,null,null,null,null,null,null,null,null,null,"Ww","Wet Weight","[kg]",{"$f":"Spar_Thickness_Calculator!AD374+Spar_Thickness_Calculator!AD373-Spar_Thickness_Calculator!AD376","v":0},{"$f":"Spar_Thickness_Calculator!AE374+Spar_Thickness_Calculator!AE373-Spar_Thickness_Calculator!AE376","v":0},"Ic","Moment of inertia Core","[m4]",{"$f":"(Spar_Thickness_Calculator!AD364/12)*Spar_Thickness_Calculator!AD367^3","v":0},{"$f":"(Spar_Thickness_Calculator!AE364/12)*Spar_Thickness_Calculator!AE367^3","v":0},"ρw","Density of Seawater","[kg/m3]",{"$f":"Global_Var!$E$9","v":1029}]
[null,null,null,null,null,null,null,null,null,null,null,null,null,null,null,null,null,null,null,null,null,"Ww(rotor)","Wet Weight segment of rotor (+ floats)","[kg]",{"$f":"Y370*2","v":0},{"$f":"Z370*3","v":0},"Vs","Volume of Spar","[m3]",{"$f":"Spar_Thickness_Calculator!AD364*Spar_Thickness_Calculator!Y368*Spar_Thickness_Calculator!AI371*2","v":0},{"$f":"Spar_Thickness_Calculator!AE364*Spar_Thickness_Calculator!Z368*Spar_Thickness_Calculator!AI371*2","v":0},"L","Section Length","[m]",{"$f":"Global_Var!$E$10","v":0.74166666666666647}]
[null,null,null,null,null,null,null,null,null,null,null,null,null,null,null,null,null,null,null,null,null,null,null,null,null,null,"Vc","Volume of Core","[m3]",{"$f":"Spar_Thickness_Calculator!AD367*Spar_Thickness_Calculator!AD364*Spar_Thickness_Calculator!AI371","v":0},{"$f":"Spar_Thickness_Calculator!AE367*Spar_Thickness_Calculator!AE364*Spar_Thickness_Calculator!AI371","v":0},null,"Beam width in terms of chord","[-]",{"$f":"Global_Var!$E$11","v":0.6}]
[null,null,null,null,null,null,null,null,null,null,null,null,null,null,null,null,null,null,null,null,null,null,"Spar Strain Limit (Goal Seek to 1)",null,{"$f":"(Y369/$AI$7)","v":{"$error":"#DIV/0!"}},{"$f":"(Z369/$AI$7)","v":{"$error":"#DIV/0!"}},"Ms","Mass of Spar","[kg]",{"$f":"Spar_Thickness_Calculator!AI365*AD371","v":0},{"$f":"Spar_Thickness_Calculator!AI365*AE371","v":0},null,"Beam height in terms of thickness","[-]",0.85]
[null,null,null,null,null,null,null,null,null,null,null,null,null,null,null,null,null,null,null,null,null,null,null,null,null,null,"Mc","Mass of Core","[kg]",{"$f":"AD372*Spar_Thickness_Calculator!AI369","v":0},{"$f":"AE372*Spar_Thickness_Calculator!AI369","v":0},null,"Chord Ratio Blade A/Blade B","[-]",{"$f":"Global_Var!$E$13","v":0.66666666666666663}]
[null,null,null,null,null,null,null,null,null,null,null,null,null,null,null,null,null,null,null,null,null,null,null,null,null,null,"Vd","Displaced Volume","[m3]",{"$f":"Spar_Thickness_Calculator!AD366*Spar_Thickness_Calculator!AD364*Spar_Thickness_Calculator!AI371","v":0},{"$f":"Spar_Thickness_Calculator!AE366*Spar_Thickness_Calculator!AE364*Spar_Thickness_Calculator!AI371","v":0},null,"Moment Ratio Blade A/Blade B","[-]",{"$f":"Global_Var!$E$14","v":0.66666666666666663}]
[null,null,null,null,null,null,null,null,null,null,null,null,null,null,null,null,null,null,null,null,null,null,null,null,null,null,"Mw","Mass of disp. Seawater","[kg]",{"$f":"Spar_Thickness_Calculator!AI370*Spar_Thickness_Calculator!AD375","v":0},{"$f":"Spar_Thickness_Calculator!AI370*Spar_Thickness_Calculator!AE375","v":0}]
[]
[null,null,null,null,null,null,null,null,null,null,null,null,null,null,null,null,null,null,null,null,null,"Input/Output",null,null,null,null,"Intermediate Calculations",null,null,null,null,"Constants"]
[null,null,null,null,null,null,null,null,null,null,null,null,null,null,null,null,null,null,null,null,null,26,null,null,"Blade A","Blade B","b","Spar Cap Width","[m]",{"$f":"Spar_Thickness_Calculator!Y380*Spar_Thickness_Calculator!AI387","v":0},{"$f":"Spar_Thickness_Calculator!Z380*Spar_Thickness_Calculator!AI387","v":0},"EUD","Modulus of Sparcap","[Pa]",{"$f":"Global_Var!$E$3","v":39800000000}]
[null,null,null,null,null,null,null,null,null,null,null,null,null,null,null,null,null,null,null,null,null,"C","Chord","[m]",{"$f":"L32","v":0},{"$f":"Y380*Spar_Thickness_Calculator!AI389","v":0},"t","Airfoil thickness","[m]",{"$f":"Spar_Thickness_Calculator!Y381*Spar_Thickness_Calculator!Y380/100","v":0},{"$f":"Spar_Thickness_Calculator!Z381*Spar_Thickness_Calculator!Z380/100","v":0},"ρs","Density of sparcap","[kg/m3]",{"$f":"Global_Var!$E$4","v":1920}]
[null,null,null,null,null,null,null,null,null,null,null,null,null,null,null,null,null,null,null,null,null,"AF%","% thickness of foil","[%]",{"$f":"N32","v":0},{"$f":"Y381","v":0},"ho","Section height outer","[m]",{"$f":"AD380*Spar_Thickness_Calculator!AI388","v":0},{"$f":"AE380*Spar_Thickness_Calculator!AI388","v":0},"ϵUD(max)","Max allow design strain Sparcap","[-]",{"$f":"Global_Var!$E$5","v":2.8999999999999998E-3}]
[null,null,null,null,null,null,null,null,null,null,null,null,null,null,null,null,null,null,null,null,null,"M","Moment","[n-m]",{"$f":"M32","v":0},{"$f":"Y382*Spar_Thickness_Calculator!AI390","v":0},"hc","height of core","[m]",{"$f":"Spar_Thickness_Calculator!AD381-2*Spar_Thickness_Calculator!Y383","v":-1.5761922374514889E-2},{"$f":"Spar_Thickness_Calculator!AE381-2*Spar_Thickness_Calculator!Z383","v":-3.8054844646181106E-2},"σs(allow)","Allowable stress in Sparcap","[Pa]",{"$f":"Global_Var!$E$6","v":115419999.99999999}]
[null,null,null,null,null,null,null,null,null,null,null,null,null,null,null,null,null,null,null,null,null,"t","Spar Cap Thickness","[m]",7.8809611872574445E-3,1.9027422323090553E-2,"c","distance from neutral axis","[m]",{"$f":"Spar_Thickness_Calculator!AD381/2","v":0},{"$f":"Spar_Thickness_Calculator!AE381/2","v":0},"EC","Modulus of Core","[Pa]",{"$f":"Global_Var!$E$7","v":3790000}]
[null,null,null,null,null,null,null,null,null,null,null,null,null,null,null,null,null,null,null,null,null,"σs(max)","Max Stress in Sparcap","[Pa]",{"$f":"(Y382*(Spar_Thickness_Calculator!AD381/2)*Spar_Thickness_Calculator!AI379)/(Spar_Thickness_Calculator!AI379*Spar_Thickness_Calculator!AD384+Spar_Thickness_Calculator!AI383*Spar_Thickness_Calculator!AD385)","v":{"$error":"#DIV/0!"}},{"$f":"(Z382*(Spar_Thickness_Calculator!AE381/2)*Spar_Thickness_Calculator!AI379)/(Spar_Thickness_Calculator!AI379*Spar_Thickness_Calculator!AE384+Spar_Thickness_Calculator!AI383*Spar_Thickness_Calculator!AE385)","v":{"$error":"#DIV/0!"}},"Is","Moment of inertia Spar","[m4]",{"$f":"(Spar_Thickness_Calculator!AD379/12)*(Spar_Thickness_Calculator!AD381^3-Spar_Thickness_Calculator!AD382^3)","v":0},{"$f":"(Spar_Thickness_Calculator!AE379/12)*(Spar_Thickness_Calculator!AE381^3-Spar_Thickness_Calculator!AE382^3)","v":0},"ρc","Density of core","[kg/m3]",{"$f":"Global_Var!$E$8","v":673}]
[null,null,null,null,null,null,null,null,null,null,null,null,null,null,null,null,null,null,null,null,null,"Ww","Wet Weight","[kg]",{"$f":"Spar_Thickness_Calculator!AD389+Spar_Thickness_Calculator!AD388-Spar_Thickness_Calculator!AD391","v":0},{"$f":"Spar_Thickness_Calculator!AE389+Spar_Thickness_Calculator!AE388-Spar_Thickness_Calculator!AE391","v":0},"Ic","Moment of inertia Core","[m4]",{"$f":"(Spar_Thickness_Calculator!AD379/12)*Spar_Thickness_Calculator!AD382^3","v":0},{"$f":"(Spar_Thickness_Calculator!AE379/12)*Spar_Thickness_Calculator!AE382^3","v":0},"ρw","Density of Seawater","[kg/m3]",{"$f":"Global_Var!$E$9","v":1029}]
[null,null,null,null,null,null,null,null,null,null,null,null,null,null,null,null,null,null,null,null,null,"Ww(rotor)","Wet Weight segment of rotor (+ floats)","[kg]",{"$f":"Y385*2","v":0},{"$f":"Z385*3","v":0},"Vs","Volume of Spar","[m3]",{"$f":"Spar_Thickness_Calculator!AD379*Spar_Thickness_Calculator!Y383*Spar_Thickness_Calculator!AI386*2","v":0},{"$f":"Spar_Thickness_Calculator!AE379*Spar_Thickness_Calculator!Z383*Spar_Thickness_Calculator!AI386*2","v":0},"L","Section Length","[m]",{"$f":"Global_Var!$E$10","v":0.74166666666666647}]
[null,null,null,null,null,null,null,null,null,null,null,null,null,null,null,null,null,null,null,null,null,null,null,null,null,null,"Vc","Volume of Core","[m3]",{"$f":"Spar_Thickness_Calculator!AD382*Spar_Thickness_Calculator!AD379*Spar_Thickness_Calculator!AI386","v":0},{"$f":"Spar_Thickness_Calculator!AE382*Spar_Thickness_Calculator!AE379*Spar_Thickness_Calculator!AI386","v":0},null,"Beam width in terms of chord","[-]",{"$f":"Global_Var!$E$11","v":0.6}]
[null,null,null,null,null,null,null,null,null,null,null,null,null,null,null,null,null,null,null,null,null,null,"Spar Strain Limit (Goal Seek to 1)",null,{"$f":"(Y384/$AI$7)","v":{"$error":"#DIV/0!"}},{"$f":"(Z384/$AI$7)","v":{"$error":"#DIV/0!"}},"Ms","Mass of Spar","[kg]",{"$f":"Spar_Thickness_Calculator!AI380*AD386","v":0},{"$f":"Spar_Thickness_Calculator!AI380*AE386","v":0},null,"Beam height in terms of thickness","[-]",0.85]
[null,null,null,null,null,null,null,null,null,null,null,null,null,null,null,null,null,null,null,null,null,null,null,null,null,null,"Mc","Mass of Core","[kg]",{"$f":"AD387*Spar_Thickness_Calculator!AI384","v":0},{"$f":"AE387*Spar_Thickness_Calculator!AI384","v":0},null,"Chord Ratio Blade A/Blade B","[-]",{"$f":"Global_Var!$E$13","v":0.66666666666666663}]
[null,null,null,null,null,null,null,null,null,null,null,null,null,null,null,null,null,null,null,null,null,null,null,null,null,null,"Vd","Displaced Volume","[m3]",{"$f":"Spar_Thickness_Calculator!AD381*Spar_Thickness_Calculator!AD379*Spar_Thickness_Calculator!AI386","v":0},{"$f":"Spar_Thickness_Calculator!AE381*Spar_Thickness_Calculator!AE379*Spar_Thickness_Calculator!AI386","v":0},null,"Moment Ratio Blade A/Blade B","[-]",{"$f":"Global_Var!$E$14","v":0.66666666666666663}]
[null,null,null,null,null,null,null,null,null,null,null,null,null,null,null,null,null,null,null,null,null,null,null,null,null,null,"Mw","Mass of disp. Seawater","[kg]",{"$f":"Spar_Thickness_Calculator!AI385*Spar_Thickness_Calculator!AD390","v":0},{"$f":"Spar_Thickness_Calculator!AI385*Spar_Thickness_Calculator!AE390","v":0}]
[]
[null,null,null,null,null,null,null,null,null,null,null,null,null,null,null,null,null,null,null,null,null,"Input/Output",null,null,null,null,"Intermediate Calculations",null,null,null,null,"Constants"]
[null,null,null,null,null,null,null,null,null,null,null,null,null,null,null,null,null,null,null,null,null,27,null,null,"Blade A","Blade B","b","Spar Cap Width","[m]",{"$f":"Spar_Thickness_Calculator!Y395*Spar_Thickness_Calculator!AI402","v":0},{"$f":"Spar_Thickness_Calculator!Z395*Spar_Thickness_Calculator!AI402","v":0},"EUD","Modulus of Sparcap","[Pa]",{"$f":"Global_Var!$E$3","v":39800000000}]
[null,null,null,null,null,null,null,null,null,null,null,null,null,null,null,null,null,null,null,null,null,"C","Chord","[m]",{"$f":"L33","v":0},{"$f":"Y395*Spar_Thickness_Calculator!AI404","v":0},"t","Airfoil thickness","[m]",{"$f":"Spar_Thickness_Calculator!Y396*Spar_Thickness_Calculator!Y395/100","v":0},{"$f":"Spar_Thickness_Calculator!Z396*Spar_Thickness_Calculator!Z395/100","v":0},"ρs","Density of sparcap","[kg/m3]",{"$f":"Global_Var!$E$4","v":1920}]
[null,null,null,null,null,null,null,null,null,null,null,null,null,null,null,null,null,null,null,null,null,"AF%","% thickness of foil","[%]",{"$f":"N33","v":0},{"$f":"Y396","v":0},"ho","Section height outer","[m]",{"$f":"AD395*Spar_Thickness_Calculator!AI403","v":0},{"$f":"AE395*Spar_Thickness_Calculator!AI403","v":0},"ϵUD(max)","Max allow design strain Sparcap","[-]",{"$f":"Global_Var!$E$5","v":2.8999999999999998E-3}]
[null,null,null,null,null,null,null,null,null,null,null,null,null,null,null,null,null,null,null,null,null,"M","Moment","[n-m]",{"$f":"M33","v":0},{"$f":"Y397*Spar_Thickness_Calculator!AI405","v":0},"hc","height of core","[m]",{"$f":"Spar_Thickness_Calculator!AD396-2*Spar_Thickness_Calculator!Y398","v":-8.3822868011111228E-3},{"$f":"Spar_Thickness_Calculator!AE396-2*Spar_Thickness_Calculator!Z398","v":-2.3454792961076072E-2},"σs(allow)","Allowable stress in Sparcap","[Pa]",{"$f":"Global_Var!$E$6","v":115419999.99999999}]
[null,null,null,null,null,null,null,null,null,null,null,null,null,null,null,null,null,null,null,null,null,"t","Spar Cap Thickness","[m]",4.1911434005555614E-3,1.1727396480538036E-2,"c","distance from neutral axis","[m]",{"$f":"Spar_Thickness_Calculator!AD396/2","v":0},{"$f":"Spar_Thickness_Calculator!AE396/2","v":0},"EC","Modulus of Core","[Pa]",{"$f":"Global_Var!$E$7","v":3790000}]
[null,null,null,null,null,null,null,null,null,null,null,null,null,null,null,null,null,null,null,null,null,"σs(max)","Max Stress in Sparcap","[Pa]",{"$f":"(Y397*(Spar_Thickness_Calculator!AD396/2)*Spar_Thickness_Calculator!AI394)/(Spar_Thickness_Calculator!AI394*Spar_Thickness_Calculator!AD399+Spar_Thickness_Calculator!AI398*Spar_Thickness_Calculator!AD400)","v":{"$error":"#DIV/0!"}},{"$f":"(Z397*(Spar_Thickness_Calculator!AE396/2)*Spar_Thickness_Calculator!AI394)/(Spar_Thickness_Calculator!AI394*Spar_Thickness_Calculator!AE399+Spar_Thickness_Calculator!AI398*Spar_Thickness_Calculator!AE400)","v":{"$error":"#DIV/0!"}},"Is","Moment of inertia Spar","[m4]",{"$f":"(Spar_Thickness_Calculator!AD394/12)*(Spar_Thickness_Calculator!AD396^3-Spar_Thickness_Calculator!AD397^3)","v":0},{"$f":"(Spar_Thickness_Calculator!AE394/12)*(Spar_Thickness_Calculator!AE396^3-Spar_Thickness_Calculator!AE397^3)","v":0},"ρc","Density of core","[kg/m3]",{"$f":"Global_Var!$E$8","v":673}]
[null,null,null,null,null,null,null,null,null,null,null,null,null,null,null,null,null,null,null,null,null,"Ww","Wet Weight","[kg]",{"$f":"Spar_Thickness_Calculator!AD404+Spar_Thickness_Calculator!AD403-Spar_Thickness_Calculator!AD406","v":0},{"$f":"Spar_Thickness_Calculator!AE404+Spar_Thickness_Calculator!AE403-Spar_Thickness_Calculator!AE406","v":0},"Ic","Moment of inertia Core","[m4]",{"$f":"(Spar_Thickness_Calculator!AD394/12)*Spar_Thickness_Calculator!AD397^3","v":0},{"$f":"(Spar_Thickness_Calculator!AE394/12)*Spar_Thickness_Calculator!AE397^3","v":0},"ρw","Density of Seawater","[kg/m3]",{"$f":"Global_Var!$E$9","v":1029}]
[null,null,null,null,null,null,null,null,null,null,null,null,null,null,null,null,null,null,null,null,null,"Ww(rotor)","Wet Weight segment of rotor (+ floats)","[kg]",{"$f":"Y400*2","v":0},{"$f":"Z400*3","v":0},"Vs","Volume of Spar","[m3]",{"$f":"Spar_Thickness_Calculator!AD394*Spar_Thickness_Calculator!Y398*Spar_Thickness_Calculator!AI401*2","v":0},{"$f":"Spar_Thickness_Calculator!AE394*Spar_Thickness_Calculator!Z398*Spar_Thickness_Calculator!AI401*2","v":0},"L","Section Length","[m]",{"$f":"Global_Var!$E$10","v":0.74166666666666647}]
[null,null,null,null,null,null,null,null,null,null,null,null,null,null,null,null,null,null,null,null,null,null,null,null,null,null,"Vc","Volume of Core","[m3]",{"$f":"Spar_Thickness_Calculator!AD397*Spar_Thickness_Calculator!AD394*Spar_Thickness_Calculator!AI401","v":0},{"$f":"Spar_Thickness_Calculator!AE397*Spar_Thickness_Calculator!AE394*Spar_Thickness_Calculator!AI401","v":0},null,"Beam width in terms of chord","[-]",{"$f":"Global_Var!$E$11","v":0.6}]
[null,null,null,null,null,null,null,null,null,null,null,null,null,null,null,null,null,null,null,null,null,null,"Spar Strain Limit (Goal Seek to 1)",null,{"$f":"(Y399/$AI$7)","v":{"$error":"#DIV/0!"}},{"$f":"(Z399/$AI$7)","v":{"$error":"#DIV/0!"}},"Ms","Mass of Spar","[kg]",{"$f":"Spar_Thickness_Calculator!AI395*AD401","v":0},{"$f":"Spar_Thickness_Calculator!AI395*AE401","v":0},null,"Beam height in terms of thickness","[-]",0.85]
[null,null,null,null,null,null,null,null,null,null,null,null,null,null,null,null,null,null,null,null,null,null,null,null,null,null,"Mc","Mass of Core","[kg]",{"$f":"AD402*Spar_Thickness_Calculator!AI399","v":0},{"$f":"AE402*Spar_Thickness_Calculator!AI399","v":0},null,"Chord Ratio Blade A/Blade B","[-]",{"$f":"Global_Var!$E$13","v":0.66666666666666663}]
[null,null,null,null,null,null,null,null,null,null,null,null,null,null,null,null,null,null,null,null,null,null,null,null,null,null,"Vd","Displaced Volume","[m3]",{"$f":"Spar_Thickness_Calculator!AD396*Spar_Thickness_Calculator!AD394*Spar_Thickness_Calculator!AI401","v":0},{"$f":"Spar_Thickness_Calculator!AE396*Spar_Thickness_Calculator!AE394*Spar_Thickness_Calculator!AI401","v":0},null,"Moment Ratio Blade A/Blade B","[-]",{"$f":"Global_Var!$E$14","v":0.66666666666666663}]
[null,null,null,null,null,null,null,null,null,null,null,null,null,null,null,null,null,null,null,null,null,null,null,null,null,null,"Mw","Mass of disp. Seawater","[kg]",{"$f":"Spar_Thickness_Calculator!AI400*Spar_Thickness_Calculator!AD405","v":0},{"$f":"Spar_Thickness_Calculator!AI400*Spar_Thickness_Calculator!AE405","v":0}]
[]
[null,null,null,null,null,null,null,null,null,null,null,null,null,null,null,null,null,null,null,null,null,"Input/Output",null,null,null,null,"Intermediate Calculations",null,null,null,null,"Constants"]
[null,null,null,null,null,null,null,null,null,null,null,null,null,null,null,null,null,null,null,null,null,28,null,null,"Blade A","Blade B","b","Spar Cap Width","[m]",{"$f":"Spar_Thickness_Calculator!Y410*Spar_Thickness_Calculator!AI417","v":0},{"$f":"Spar_Thickness_Calculator!Z410*Spar_Thickness_Calculator!AI417","v":0},"EUD","Modulus of Sparcap","[Pa]",{"$f":"Global_Var!$E$3","v":39800000000}]
[null,null,null,null,null,null,null,null,null,null,null,null,null,null,null,null,null,null,null,null,null,"C","Chord","[m]",{"$f":"L34","v":0},{"$f":"Y410*Spar_Thickness_Calculator!AI419","v":0},"t","Airfoil thickness","[m]",{"$f":"Spar_Thickness_Calculator!Y411*Spar_Thickness_Calculator!Y410/100","v":0},{"$f":"Spar_Thickness_Calculator!Z411*Spar_Thickness_Calculator!Z410/100","v":0},"ρs","Density of sparcap","[kg/m3]",{"$f":"Global_Var!$E$4","v":1920}]
[null,null,null,null,null,null,null,null,null,null,null,null,null,null,null,null,null,null,null,null,null,"AF%","% thickness of foil","[%]",{"$f":"N34","v":0},{"$f":"Y411","v":0},"ho","Section height outer","[m]",{"$f":"AD410*Spar_Thickness_Calculator!AI418","v":0},{"$f":"AE410*Spar_Thickness_Calculator!AI418","v":0},"ϵUD(max)","Max allow design strain Sparcap","[-]",{"$f":"Global_Var!$E$5","v":2.8999999999999998E-3}]
[null,null,null,null,null,null,null,null,null,null,null,null,null,null,null,null,null,null,null,null,null,"M","Moment","[n-m]",{"$f":"M34","v":0},{"$f":"Y412*Spar_Thickness_Calculator!AI420","v":0},"hc","height of core","[m]",{"$f":"Spar_Thickness_Calculator!AD411-2*Spar_Thickness_Calculator!Y413","v":-2.1339566964823655E-3},{"$f":"Spar_Thickness_Calculator!AE411-2*Spar_Thickness_Calculator!Z413","v":-1.1984014655123608E-2},"σs(allow)","Allowable stress in Sparcap","[Pa]",{"$f":"Global_Var!$E$6","v":115419999.99999999}]
[null,null,null,null,null,null,null,null,null,null,null,null,null,null,null,null,null,null,null,null,null,"t","Spar Cap Thickness","[m]",1.0669783482411827E-3,5.9920073275618038E-3,"c","distance from neutral axis","[m]",{"$f":"Spar_Thickness_Calculator!AD411/2","v":0},{"$f":"Spar_Thickness_Calculator!AE411/2","v":0},"EC","Modulus of Core","[Pa]",{"$f":"Global_Var!$E$7","v":3790000}]
[null,null,null,null,null,null,null,null,null,null,null,null,null,null,null,null,null,null,null,null,null,"σs(max)","Max Stress in Sparcap","[Pa]",{"$f":"(Y412*(Spar_Thickness_Calculator!AD411/2)*Spar_Thickness_Calculator!AI409)/(Spar_Thickness_Calculator!AI409*Spar_Thickness_Calculator!AD414+Spar_Thickness_Calculator!AI413*Spar_Thickness_Calculator!AD415)","v":{"$error":"#DIV/0!"}},{"$f":"(Z412*(Spar_Thickness_Calculator!AE411/2)*Spar_Thickness_Calculator!AI409)/(Spar_Thickness_Calculator!AI409*Spar_Thickness_Calculator!AE414+Spar_Thickness_Calculator!AI413*Spar_Thickness_Calculator!AE415)","v":{"$error":"#DIV/0!"}},"Is","Moment of inertia Spar","[m4]",{"$f":"(Spar_Thickness_Calculator!AD409/12)*(Spar_Thickness_Calculator!AD411^3-Spar_Thickness_Calculator!AD412^3)","v":0},{"$f":"(Spar_Thickness_Calculator!AE409/12)*(Spar_Thickness_Calculator!AE411^3-Spar_Thickness_Calculator!AE412^3)","v":0},"ρc","Density of core","[kg/m3]",{"$f":"Global_Var!$E$8","v":673}]
[null,null,null,null,null,null,null,null,null,null,null,null,null,null,null,null,null,null,null,null,null,"Ww","Wet Weight","[kg]",{"$f":"Spar_Thickness_Calculator!AD419+Spar_Thickness_Calculator!AD418-Spar_Thickness_Calculator!AD421","v":0},{"$f":"Spar_Thickness_Calculator!AE419+Spar_Thickness_Calculator!AE418-Spar_Thickness_Calculator!AE421","v":0},"Ic","Moment of inertia Core","[m4]",{"$f":"(Spar_Thickness_Calculator!AD409/12)*Spar_Thickness_Calculator!AD412^3","v":0},{"$f":"(Spar_Thickness_Calculator!AE409/12)*Spar_Thickness_Calculator!AE412^3","v":0},"ρw","Density of Seawater","[kg/m3]",{"$f":"Global_Var!$E$9","v":1029}]
[null,null,null,null,null,null,null,null,null,null,null,null,null,null,null,null,null,null,null,null,null,"Ww(rotor)","Wet Weight segment of rotor (+ floats)","[kg]",{"$f":"Y415*2","v":0},{"$f":"Z415*3","v":0},"Vs","Volume of Spar","[m3]",{"$f":"Spar_Thickness_Calculator!AD409*Spar_Thickness_Calculator!Y413*Spar_Thickness_Calculator!AI416*2","v":0},{"$f":"Spar_Thickness_Calculator!AE409*Spar_Thickness_Calculator!Z413*Spar_Thickness_Calculator!AI416*2","v":0},"L","Section Length","[m]",{"$f":"Global_Var!$E$10","v":0.74166666666666647}]
[null,null,null,null,null,null,null,null,null,null,null,null,null,null,null,null,null,null,null,null,null,null,null,null,null,null,"Vc","Volume of Core","[m3]",{"$f":"Spar_Thickness_Calculator!AD412*Spar_Thickness_Calculator!AD409*Spar_Thickness_Calculator!AI416","v":0},{"$f":"Spar_Thickness_Calculator!AE412*Spar_Thickness_Calculator!AE409*Spar_Thickness_Calculator!AI416","v":0},null,"Beam width in terms of chord","[-]",{"$f":"Global_Var!$E$11","v":0.6}]
[null,null,null,null,null,null,null,null,null,null,null,null,null,null,null,null,null,null,null,null,null,null,"Spar Strain Limit (Goal Seek to 1)",null,{"$f":"(Y414/$AI$7)","v":{"$error":"#DIV/0!"}},{"$f":"(Z414/$AI$7)","v":{"$error":"#DIV/0!"}},"Ms","Mass of Spar","[kg]",{"$f":"Spar_Thickness_Calculator!AI410*AD416","v":0},{"$f":"Spar_Thickness_Calculator!AI410*AE416","v":0},null,"Beam height in terms of thickness","[-]",0.85]
[null,null,null,null,null,null,null,null,null,null,null,null,null,null,null,null,null,null,null,null,null,null,null,null,null,null,"Mc","Mass of Core","[kg]",{"$f":"AD417*Spar_Thickness_Calculator!AI414","v":0},{"$f":"AE417*Spar_Thickness_Calculator!AI414","v":0},null,"Chord Ratio Blade A/Blade B","[-]",{"$f":"Global_Var!$E$13","v":0.66666666666666663}]
[null,null,null,null,null,null,null,null,null,null,null,null,null,null,null,null,null,null,null,null,null,null,null,null,null,null,"Vd","Displaced Volume","[m3]",{"$f":"Spar_Thickness_Calculator!AD411*Spar_Thickness_Calculator!AD409*Spar_Thickness_Calculator!AI416","v":0},{"$f":"Spar_Thickness_Calculator!AE411*Spar_Thickness_Calculator!AE409*Spar_Thickness_Calculator!AI416","v":0},null,"Moment Ratio Blade A/Blade B","[-]",{"$f":"Global_Var!$E$14","v":0.66666666666666663}]
[null,null,null,null,null,null,null,null,null,null,null,null,null,null,null,null,null,null,null,null,null,null,null,null,null,null,"Mw","Mass of disp. Seawater","[kg]",{"$f":"Spar_Thickness_Calculator!AI415*Spar_Thickness_Calculator!AD420","v":0},{"$f":"Spar_Thickness_Calculator!AI415*Spar_Thickness_Calculator!AE420","v":0}]
[]
[null,null,null,null,null,null,null,null,null,null,null,null,null,null,null,null,null,null,null,null,null,"Input/Output",null,null,null,null,"Intermediate Calculations",null,null,null,null,"Constants"]
[null,null,null,null,null,null,null,null,null,null,null,null,null,null,null,null,null,null,null,null,null,29,null,null,"Blade A","Blade B","b","Spar Cap Width","[m]",{"$f":"Spar_Thickness_Calculator!Y425*Spar_Thickness_Calculator!AI432","v":0},{"$f":"Spar_Thickness_Calculator!Z425*Spar_Thickness_Calculator!AI432","v":0},"EUD","Modulus of Sparcap","[Pa]",{"$f":"Global_Var!$E$3","v":39800000000}]
[null,null,null,null,null,null,null,null,null,null,null,null,null,null,null,null,null,null,null,null,null,"C","Chord","[m]",{"$f":"L35","v":0},{"$f":"Y425*Spar_Thickness_Calculator!AI434","v":0},"t","Airfoil thickness","[m]",{"$f":"Spar_Thickness_Calculator!Y426*Spar_Thickness_Calculator!Y425/100","v":0},{"$f":"Spar_Thickness_Calculator!Z426*Spar_Thickness_Calculator!Z425/100","v":0},"ρs","Density of sparcap","[kg/m3]",{"$f":"Global_Var!$E$4","v":1920}]
[null,null,null,null,null,null,null,null,null,null,null,null,null,null,null,null,null,null,null,null,null,"AF%","% thickness of foil","[%]",{"$f":"N35","v":0},{"$f":"Y426","v":0},"ho","Section height outer","[m]",{"$f":"AD425*Spar_Thickness_Calculator!AI433","v":0},{"$f":"AE425*Spar_Thickness_Calculator!AI433","v":0},"ϵUD(max)","Max allow design strain Sparcap","[-]",{"$f":"Global_Var!$E$5","v":2.8999999999999998E-3}]
[null,null,null,null,null,null,null,null,null,null,null,null,null,null,null,null,null,null,null,null,null,"M","Moment","[n-m]",{"$f":"M35","v":0},{"$f":"Y427*Spar_Thickness_Calculator!AI435","v":0},"hc","height of core","[m]",{"$f":"Spar_Thickness_Calculator!AD426-2*Spar_Thickness_Calculator!Y428","v":2.9457019283908735E-3},{"$f":"Spar_Thickness_Calculator!AE426-2*Spar_Thickness_Calculator!Z428","v":-3.2002822668730875E-3},"σs(allow)","Allowable stress in Sparcap","[Pa]",{"$f":"Global_Var!$E$6","v":115419999.99999999}]
[null,null,null,null,null,null,null,null,null,null,null,null,null,null,null,null,null,null,null,null,null,"t","Spar Cap Thickness","[m]",-1.4728509641954368E-3,1.6001411334365437E-3,"c","distance from neutral axis","[m]",{"$f":"Spar_Thickness_Calculator!AD426/2","v":0},{"$f":"Spar_Thickness_Calculator!AE426/2","v":0},"EC","Modulus of Core","[Pa]",{"$f":"Global_Var!$E$7","v":3790000}]
[null,null,null,null,null,null,null,null,null,null,null,null,null,null,null,null,null,null,null,null,null,"σs(max)","Max Stress in Sparcap","[Pa]",{"$f":"(Y427*(Spar_Thickness_Calculator!AD426/2)*Spar_Thickness_Calculator!AI424)/(Spar_Thickness_Calculator!AI424*Spar_Thickness_Calculator!AD429+Spar_Thickness_Calculator!AI428*Spar_Thickness_Calculator!AD430)","v":{"$error":"#DIV/0!"}},{"$f":"(Z427*(Spar_Thickness_Calculator!AE426/2)*Spar_Thickness_Calculator!AI424)/(Spar_Thickness_Calculator!AI424*Spar_Thickness_Calculator!AE429+Spar_Thickness_Calculator!AI428*Spar_Thickness_Calculator!AE430)","v":{"$error":"#DIV/0!"}},"Is","Moment of inertia Spar","[m4]",{"$f":"(Spar_Thickness_Calculator!AD424/12)*(Spar_Thickness_Calculator!AD426^3-Spar_Thickness_Calculator!AD427^3)","v":0},{"$f":"(Spar_Thickness_Calculator!AE424/12)*(Spar_Thickness_Calculator!AE426^3-Spar_Thickness_Calculator!AE427^3)","v":0},"ρc","Density of core","[kg/m3]",{"$f":"Global_Var!$E$8","v":673}]
[null,null,null,null,null,null,null,null,null,null,null,null,null,null,null,null,null,null,null,null,null,"Ww","Wet Weight","[kg]",{"$f":"Spar_Thickness_Calculator!AD434+Spar_Thickness_Calculator!AD433-Spar_Thickness_Calculator!AD436","v":0},{"$f":"Spar_Thickness_Calculator!AE434+Spar_Thickness_Calculator!AE433-Spar_Thickness_Calculator!AE436","v":0},"Ic","Moment of inertia Core","[m4]",{"$f":"(Spar_Thickness_Calculator!AD424/12)*Spar_Thickness_Calculator!AD427^3","v":0},{"$f":"(Spar_Thickness_Calculator!AE424/12)*Spar_Thickness_Calculator!AE427^3","v":0},"ρw","Density of Seawater","[kg/m3]",{"$f":"Global_Var!$E$9","v":1029}]
[null,null,null,null,null,null,null,null,null,null,null,null,null,null,null,null,null,null,null,null,null,"Ww(rotor)","Wet Weight segment of rotor (+ floats)","[kg]",{"$f":"Y430*2","v":0},{"$f":"Z430*3","v":0},"Vs","Volume of Spar","[m3]",{"$f":"Spar_Thickness_Calculator!AD424*Spar_Thickness_Calculator!Y428*Spar_Thickness_Calculator!AI431*2","v":0},{"$f":"Spar_Thickness_Calculator!AE424*Spar_Thickness_Calculator!Z428*Spar_Thickness_Calculator!AI431*2","v":0},"L","Section Length","[m]",{"$f":"Global_Var!$E$10","v":0.74166666666666647}]
[null,null,null,null,null,null,null,null,null,null,null,null,null,null,null,null,null,null,null,null,null,null,null,null,null,null,"Vc","Volume of Core","[m3]",{"$f":"Spar_Thickness_Calculator!AD427*Spar_Thickness_Calculator!AD424*Spar_Thickness_Calculator!AI431","v":0},{"$f":"Spar_Thickness_Calculator!AE427*Spar_Thickness_Calculator!AE424*Spar_Thickness_Calculator!AI431","v":0},null,"Beam width in terms of chord","[-]",{"$f":"Global_Var!$E$11","v":0.6}]
[null,null,null,null,null,null,null,null,null,null,null,null,null,null,null,null,null,null,null,null,null,null,"Spar Strain Limit (Goal Seek to 1)",null,{"$f":"(Y429/$AI$7)","v":{"$error":"#DIV/0!"}},{"$f":"(Z429/$AI$7)","v":{"$error":"#DIV/0!"}},"Ms","Mass of Spar","[kg]",{"$f":"Spar_Thickness_Calculator!AI425*AD431","v":0},{"$f":"Spar_Thickness_Calculator!AI425*AE431","v":0},null,"Beam height in terms of thickness","[-]",0.85]
[null,null,null,null,null,null,null,null,null,null,null,null,null,null,null,null,null,null,null,null,null,null,null,null,null,null,"Mc","Mass of Core","[kg]",{"$f":"AD432*Spar_Thickness_Calculator!AI429","v":0},{"$f":"AE432*Spar_Thickness_Calculator!AI429","v":0},null,"Chord Ratio Blade A/Blade B","[-]",{"$f":"Global_Var!$E$13","v":0.66666666666666663}]
[null,null,null,null,null,null,null,null,null,null,null,null,null,null,null,null,null,null,null,null,null,null,null,null,null,null,"Vd","Displaced Volume","[m3]",{"$f":"Spar_Thickness_Calculator!AD426*Spar_Thickness_Calculator!AD424*Spar_Thickness_Calculator!AI431","v":0},{"$f":"Spar_Thickness_Calculator!AE426*Spar_Thickness_Calculator!AE424*Spar_Thickness_Calculator!AI431","v":0},null,"Moment Ratio Blade A/Blade B","[-]",{"$f":"Global_Var!$E$14","v":0.66666666666666663}]
[null,null,null,null,null,null,null,null,null,null,null,null,null,null,null,null,null,null,null,null,null,null,null,null,null,null,"Mw","Mass of disp. Seawater","[kg]",{"$f":"Spar_Thickness_Calculator!AI430*Spar_Thickness_Calculator!AD435","v":0},{"$f":"Spar_Thickness_Calculator!AI430*Spar_Thickness_Calculator!AE435","v":0}]
[]
[null,null,null,null,null,null,null,null,null,null,null,null,null,null,null,null,null,null,null,null,null,"Input/Output",null,null,null,null,"Intermediate Calculations",null,null,null,null,"Constants"]
[null,null,null,null,null,null,null,null,null,null,null,null,null,null,null,null,null,null,null,null,null,30,null,null,"Blade A","Blade B","b","Spar Cap Width","[m]",{"$f":"Spar_Thickness_Calculator!Y440*Spar_Thickness_Calculator!AI447","v":0},{"$f":"Spar_Thickness_Calculator!Z440*Spar_Thickness_Calculator!AI447","v":0},"EUD","Modulus of Sparcap","[Pa]",{"$f":"Global_Var!$E$3","v":39800000000}]
[null,null,null,null,null,null,null,null,null,null,null,null,null,null,null,null,null,null,null,null,null,"C","Chord","[m]",{"$f":"L36","v":0},{"$f":"Y440*Spar_Thickness_Calculator!AI449","v":0},"t","Airfoil thickness","[m]",{"$f":"Spar_Thickness_Calculator!Y441*Spar_Thickness_Calculator!Y440/100","v":0},{"$f":"Spar_Thickness_Calculator!Z441*Spar_Thickness_Calculator!Z440/100","v":0},"ρs","Density of sparcap","[kg/m3]",{"$f":"Global_Var!$E$4","v":1920}]
[null,null,null,null,null,null,null,null,null,null,null,null,null,null,null,null,null,null,null,null,null,"AF%","% thickness of foil","[%]",{"$f":"N36","v":0},{"$f":"Y441","v":0},"ho","Section height outer","[m]",{"$f":"AD440*Spar_Thickness_Calculator!AI448","v":0},{"$f":"AE440*Spar_Thickness_Calculator!AI448","v":0},"ϵUD(max)","Max allow design strain Sparcap","[-]",{"$f":"Global_Var!$E$5","v":2.8999999999999998E-3}]
[null,null,null,null,null,null,null,null,null,null,null,null,null,null,null,null,null,null,null,null,null,"M","Moment","[n-m]",{"$f":"M36","v":0},{"$f":"Y442*Spar_Thickness_Calculator!AI450","v":0},"hc","height of core","[m]",{"$f":"Spar_Thickness_Calculator!AD441-2*Spar_Thickness_Calculator!Y443","v":6.3144637712690835E-3},{"$f":"Spar_Thickness_Calculator!AE441-2*Spar_Thickness_Calculator!Z443","v":2.5160178828921636E-3},"σs(allow)","Allowable stress in Sparcap","[Pa]",{"$f":"Global_Var!$E$6","v":115419999.99999999}]
[null,null,null,null,null,null,null,null,null,null,null,null,null,null,null,null,null,null,null,null,null,"t","Spar Cap Thickness","[m]",-3.1572318856345418E-3,-1.2580089414460818E-3,"c","distance from neutral axis","[m]",{"$f":"Spar_Thickness_Calculator!AD441/2","v":0},{"$f":"Spar_Thickness_Calculator!AE441/2","v":0},"EC","Modulus of Core","[Pa]",{"$f":"Global_Var!$E$7","v":3790000}]
[null,null,null,null,null,null,null,null,null,null,null,null,null,null,null,null,null,null,null,null,null,"σs(max)","Max Stress in Sparcap","[Pa]",{"$f":"(Y442*(Spar_Thickness_Calculator!AD441/2)*Spar_Thickness_Calculator!AI439)/(Spar_Thickness_Calculator!AI439*Spar_Thickness_Calculator!AD444+Spar_Thickness_Calculator!AI443*Spar_Thickness_Calculator!AD445)","v":{"$error":"#DIV/0!"}},{"$f":"(Z442*(Spar_Thickness_Calculator!AE441/2)*Spar_Thickness_Calculator!AI439)/(Spar_Thickness_Calculator!AI439*Spar_Thickness_Calculator!AE444+Spar_Thickness_Calculator!AI443*Spar_Thickness_Calculator!AE445)","v":{"$error":"#DIV/0!"}},"Is","Moment of inertia Spar","[m4]",{"$f":"(Spar_Thickness_Calculator!AD439/12)*(Spar_Thickness_Calculator!AD441^3-Spar_Thickness_Calculator!AD442^3)","v":0},{"$f":"(Spar_Thickness_Calculator!AE439/12)*(Spar_Thickness_Calculator!AE441^3-Spar_Thickness_Calculator!AE442^3)","v":0},"ρc","Density of core","[kg/m3]",{"$f":"Global_Var!$E$8","v":673}]
[null,null,null,null,null,null,null,null,null,null,null,null,null,null,null,null,null,null,null,null,null,"Ww","Wet Weight","[kg]",{"$f":"Spar_Thickness_Calculator!AD449+Spar_Thickness_Calculator!AD448-Spar_Thickness_Calculator!AD451","v":0},{"$f":"Spar_Thickness_Calculator!AE449+Spar_Thickness_Calculator!AE448-Spar_Thickness_Calculator!AE451","v":0},"Ic","Moment of inertia Core","[m4]",{"$f":"(Spar_Thickness_Calculator!AD439/12)*Spar_Thickness_Calculator!AD442^3","v":0},{"$f":"(Spar_Thickness_Calculator!AE439/12)*Spar_Thickness_Calculator!AE442^3","v":0},"ρw","Density of Seawater","[kg/m3]",{"$f":"Global_Var!$E$9","v":1029}]
[null,null,null,null,null,null,null,null,null,null,null,null,null,null,null,null,null,null,null,null,null,"Ww(rotor)","Wet Weight segment of rotor (+ floats)","[kg]",{"$f":"Y445*2","v":0},{"$f":"Z445*3","v":0},"Vs","Volume of Spar","[m3]",{"$f":"Spar_Thickness_Calculator!AD439*Spar_Thickness_Calculator!Y443*Spar_Thickness_Calculator!AI446*2","v":0},{"$f":"Spar_Thickness_Calculator!AE439*Spar_Thickness_Calculator!Z443*Spar_Thickness_Calculator!AI446*2","v":0},"L","Section Length","[m]",{"$f":"Global_Var!$E$10","v":0.74166666666666647}]
[null,null,null,null,null,null,null,null,null,null,null,null,null,null,null,null,null,null,null,null,null,null,null,null,null,null,"Vc","Volume of Core","[m3]",{"$f":"Spar_Thickness_Calculator!AD442*Spar_Thickness_Calculator!AD439*Spar_Thickness_Calculator!AI446","v":0},{"$f":"Spar_Thickness_Calculator!AE442*Spar_Thickness_Calculator!AE439*Spar_Thickness_Calculator!AI446","v":0},null,"Beam width in terms of chord","[-]",{"$f":"Global_Var!$E$11","v":0.6}]
[null,null,null,null,null,null,null,null,null,null,null,null,null,null,null,null,null,null,null,null,null,null,"Spar Strain Limit (Goal Seek to 1)",null,{"$f":"(Y444/$AI$7)","v":{"$error":"#DIV/0!"}},{"$f":"(Z444/$AI$7)","v":{"$error":"#DIV/0!"}},"Ms","Mass of Spar","[kg]",{"$f":"Spar_Thickness_Calculator!AI440*AD446","v":0},{"$f":"Spar_Thickness_Calculator!AI440*AE446","v":0},null,"Beam height in terms of thickness","[-]",0.85]
[null,null,null,null,null,null,null,null,null,null,null,null,null,null,null,null,null,null,null,null,null,null,null,null,null,null,"Mc","Mass of Core","[kg]",{"$f":"AD447*Spar_Thickness_Calculator!AI444","v":0},{"$f":"AE447*Spar_Thickness_Calculator!AI444","v":0},null,"Chord Ratio Blade A/Blade B","[-]",{"$f":"Global_Var!$E$13","v":0.66666666666666663}]
[null,null,null,null,null,null,null,null,null,null,null,null,null,null,null,null,null,null,null,null,null,null,null,null,null,null,"Vd","Displaced Volume","[m3]",{"$f":"Spar_Thickness_Calculator!AD441*Spar_Thickness_Calculator!AD439*Spar_Thickness_Calculator!AI446","v":0},{"$f":"Spar_Thickness_Calculator!AE441*Spar_Thickness_Calculator!AE439*Spar_Thickness_Calculator!AI446","v":0},null,"Moment Ratio Blade A/Blade B","[-]",{"$f":"Global_Var!$E$14","v":0.66666666666666663}]
[null,null,null,null,null,null,null,null,null,null,null,null,null,null,null,null,null,null,null,null,null,null,null,null,null,null,"Mw","Mass of disp. Seawater","[kg]",{"$f":"Spar_Thickness_Calculator!AI445*Spar_Thickness_Calculator!AD450","v":0},{"$f":"Spar_Thickness_Calculator!AI445*Spar_Thickness_Calculator!AE450","v":0}]
[]
[null,null,null,null,null,null,null,null,null,null,null,null,null,null,null,null,null,null,null,null,null,"Input/Output",null,null,null,null,"Intermediate Calculations",null,null,null,null,"Constants"]
[null,null,null,null,null,null,null,null,null,null,null,null,null,null,null,null,null,null,null,null,null,31,null,null,"Blade A","Blade B","b","Spar Cap Width","[m]",{"$f":"Spar_Thickness_Calculator!Y455*Spar_Thickness_Calculator!AI462","v":0},{"$f":"Spar_Thickness_Calculator!Z455*Spar_Thickness_Calculator!AI462","v":0},"EUD","Modulus of Sparcap","[Pa]",{"$f":"Global_Var!$E$3","v":39800000000}]
[null,null,null,null,null,null,null,null,null,null,null,null,null,null,null,null,null,null,null,null,null,"C","Chord","[m]",{"$f":"L37","v":0},{"$f":"Y455*Spar_Thickness_Calculator!AI464","v":0},"t","Airfoil thickness","[m]",{"$f":"Spar_Thickness_Calculator!Y456*Spar_Thickness_Calculator!Y455/100","v":0},{"$f":"Spar_Thickness_Calculator!Z456*Spar_Thickness_Calculator!Z455/100","v":0},"ρs","Density of sparcap","[kg/m3]",{"$f":"Global_Var!$E$4","v":1920}]
[null,null,null,null,null,null,null,null,null,null,null,null,null,null,null,null,null,null,null,null,null,"AF%","% thickness of foil","[%]",{"$f":"N37","v":0},{"$f":"Y456","v":0},"ho","Section height outer","[m]",{"$f":"AD455*Spar_Thickness_Calculator!AI463","v":0},{"$f":"AE455*Spar_Thickness_Calculator!AI463","v":0},"ϵUD(max)","Max allow design strain Sparcap","[-]",{"$f":"Global_Var!$E$5","v":2.8999999999999998E-3}]
[null,null,null,null,null,null,null,null,null,null,null,null,null,null,null,null,null,null,null,null,null,"M","Moment","[n-m]",{"$f":"M37","v":0},{"$f":"Y457*Spar_Thickness_Calculator!AI465","v":0},"hc","height of core","[m]",{"$f":"Spar_Thickness_Calculator!AD456-2*Spar_Thickness_Calculator!Y458","v":-11760069752.959009},{"$f":"Spar_Thickness_Calculator!AE456-2*Spar_Thickness_Calculator!Z458","v":-27817381204.746754},"σs(allow)","Allowable stress in Sparcap","[Pa]",{"$f":"Global_Var!$E$6","v":115419999.99999999}]
[null,null,null,null,null,null,null,null,null,null,null,null,null,null,null,null,null,null,null,null,null,"t","Spar Cap Thickness","[m]",5880034876.4795046,13908690602.373377,"c","distance from neutral axis","[m]",{"$f":"Spar_Thickness_Calculator!AD456/2","v":0},{"$f":"Spar_Thickness_Calculator!AE456/2","v":0},"EC","Modulus of Core","[Pa]",{"$f":"Global_Var!$E$7","v":3790000}]
[null,null,null,null,null,null,null,null,null,null,null,null,null,null,null,null,null,null,null,null,null,"σs(max)","Max Stress in Sparcap","[Pa]",{"$f":"(Y457*(Spar_Thickness_Calculator!AD456/2)*Spar_Thickness_Calculator!AI454)/(Spar_Thickness_Calculator!AI454*Spar_Thickness_Calculator!AD459+Spar_Thickness_Calculator!AI458*Spar_Thickness_Calculator!AD460)","v":{"$error":"#DIV/0!"}},{"$f":"(Z457*(Spar_Thickness_Calculator!AE456/2)*Spar_Thickness_Calculator!AI454)/(Spar_Thickness_Calculator!AI454*Spar_Thickness_Calculator!AE459+Spar_Thickness_Calculator!AI458*Spar_Thickness_Calculator!AE460)","v":{"$error":"#DIV/0!"}},"Is","Moment of inertia Spar","[m4]",{"$f":"(Spar_Thickness_Calculator!AD454/12)*(Spar_Thickness_Calculator!AD456^3-Spar_Thickness_Calculator!AD457^3)","v":0},{"$f":"(Spar_Thickness_Calculator!AE454/12)*(Spar_Thickness_Calculator!AE456^3-Spar_Thickness_Calculator!AE457^3)","v":0},"ρc","Density of core","[kg/m3]",{"$f":"Global_Var!$E$8","v":673}]
[null,null,null,null,null,null,null,null,null,null,null,null,null,null,null,null,null,null,null,null,null,"Ww","Wet Weight","[kg]",{"$f":"Spar_Thickness_Calculator!AD464+Spar_Thickness_Calculator!AD463-Spar_Thickness_Calculator!AD466","v":0},{"$f":"Spar_Thickness_Calculator!AE464+Spar_Thickness_Calculator!AE463-Spar_Thickness_Calculator!AE466","v":0},"Ic","Moment of inertia Core","[m4]",{"$f":"(Spar_Thickness_Calculator!AD454/12)*Spar_Thickness_Calculator!AD457^3","v":0},{"$f":"(Spar_Thickness_Calculator!AE454/12)*Spar_Thickness_Calculator!AE457^3","v":0},"ρw","Density of Seawater","[kg/m3]",{"$f":"Global_Var!$E$9","v":1029}]
[null,null,null,null,null,null,null,null,null,null,null,null,null,null,null,null,null,null,null,null,null,"Ww(rotor)","Wet Weight segment of rotor (+ floats)","[kg]",{"$f":"Y460*2","v":0},{"$f":"Z460*3","v":0},"Vs","Volume of Spar","[m3]",{"$f":"Spar_Thickness_Calculator!AD454*Spar_Thickness_Calculator!Y458*Spar_Thickness_Calculator!AI461*2","v":0},{"$f":"Spar_Thickness_Calculator!AE454*Spar_Thickness_Calculator!Z458*Spar_Thickness_Calculator!AI461*2","v":0},"L","Section Length","[m]",{"$f":"Global_Var!$E$10","v":0.74166666666666647}]
[null,null,null,null,null,null,null,null,null,null,null,null,null,null,null,null,null,null,null,null,null,null,null,null,null,null,"Vc","Volume of Core","[m3]",{"$f":"Spar_Thickness_Calculator!AD457*Spar_Thickness_Calculator!AD454*Spar_Thickness_Calculator!AI461","v":0},{"$f":"Spar_Thickness_Calculator!AE457*Spar_Thickness_Calculator!AE454*Spar_Thickness_Calculator!AI461","v":0},null,"Beam width in terms of chord","[-]",{"$f":"Global_Var!$E$11","v":0.6}]
[null,null,null,null,null,null,null,null,null,null,null,null,null,null,null,null,null,null,null,null,null,null,"Spar Strain Limit (Goal Seek to 1)",null,{"$f":"(Y459/$AI$7)","v":{"$error":"#DIV/0!"}},{"$f":"(Z459/$AI$7)","v":{"$error":"#DIV/0!"}},"Ms","Mass of Spar","[kg]",{"$f":"Spar_Thickness_Calculator!AI455*AD461","v":0},{"$f":"Spar_Thickness_Calculator!AI455*AE461","v":0},null,"Beam height in terms of thickness","[-]",0.85]
[null,null,null,null,null,null,null,null,null,null,null,null,null,null,null,null,null,null,null,null,null,null,null,null,null,null,"Mc","Mass of Core","[kg]",{"$f":"AD462*Spar_Thickness_Calculator!AI459","v":0},{"$f":"AE462*Spar_Thickness_Calculator!AI459","v":0},null,"Chord Ratio Blade A/Blade B","[-]",{"$f":"Global_Var!$E$13","v":0.66666666666666663}]
[null,null,null,null,null,null,null,null,null,null,null,null,null,null,null,null,null,null,null,null,null,null,null,null,null,null,"Vd","Displaced Volume","[m3]",{"$f":"Spar_Thickness_Calculator!AD456*Spar_Thickness_Calculator!AD454*Spar_Thickness_Calculator!AI461","v":0},{"$f":"Spar_Thickness_Calculator!AE456*Spar_Thickness_Calculator!AE454*Spar_Thickness_Calculator!AI461","v":0},null,"Moment Ratio Blade A/Blade B","[-]",{"$f":"Global_Var!$E$14","v":0.66666666666666663}]
[null,null,null,null,null,null,null,null,null,null,null,null,null,null,null,null,null,null,null,null,null,null,null,null,null,null,"Mw","Mass of disp. Seawater","[kg]",{"$f":"Spar_Thickness_Calculator!AI460*Spar_Thickness_Calculator!AD465","v":0},{"$f":"Spar_Thickness_Calculator!AI460*Spar_Thickness_Calculator!AE465","v":0}]

{"sheet":"Beam_Thickness_Calculator","index":3,"n_rows":466,"n_cols":38,"rows_kept":466,"cut":false,"hidden":false,"merged":[[0,2,0,5],[2,24,2,28],[2,29,2,33],[2,34,2,37],[3,2,3,4],[3,19,3,22],[3,15,3,18],[17,24,17,28],[17,29,17,33],[17,34,17,37],[32,24,32,28],[32,29,32,33],[32,34,32,37],[47,24,47,28],[47,29,47,33],[47,34,47,37],[62,24,62,28],[62,29,62,33],[62,34,62,37],[77,24,77,28],[77,29,77,33],[77,34,77,37],[92,24,92,28],[92,29,92,33],[92,34,92,37],[107,24,107,28],[107,29,107,33],[107,34,107,37],[122,24,122,28],[122,29,122,33],[122,34,122,37],[137,24,137,28],[137,29,137,33],[137,34,137,37],[152,24,152,28],[152,29,152,33],[152,34,152,37],[167,24,167,28],[167,29,167,33],[167,34,167,37],[182,24,182,28],[182,29,182,33],[182,34,182,37],[197,24,197,28],[197,29,197,33],[197,34,197,37],[212,24,212,28],[212,29,212,33],[212,34,212,37],[227,24,227,28],[227,29,227,33],[227,34,227,37],[242,24,242,28],[242,29,242,33],[242,34,242,37],[257,24,257,28],[257,29,257,33],[257,34,257,37],[272,24,272,28],[272,29,272,33],[272,34,272,37],[287,24,287,28],[287,29,287,33],[287,34,287,37],[302,24,302,28],[302,29,302,33],[302,34,302,37],[317,24,317,28],[317,29,317,33],[317,34,317,37],[332,24,332,28],[332,29,332,33],[332,34,332,37],[392,24,392,28],[392,29,392,33],[392,34,392,37],[347,24,347,28],[347,29,347,33],[347,34,347,37],[362,24,362,28],[362,29,362,33],[362,34,362,37],[377,24,377,28],[377,29,377,33],[377,34,377,37],[437,24,437,28],[437,29,437,33],[437,34,437,37],[452,24,452,28],[452,29,452,33],[452,34,452,37],[407,24,407,28],[407,29,407,33],[407,34,407,37],[422,24,422,28],[422,29,422,33],[422,34,422,37]]}
[]
[]
[null,null,null,null,null,null,null,null,null,null,null,null,null,null,null,null,null,null,{"$f":"SUM(S7:S15)","v":-1846.5433775040835},null,null,null,null,null,"Input/Output",null,null,null,null,"Intermediate Calculations",null,null,null,null,"Constants"]
[null,null,null,null,null,null,null,null,null,null,null,null,null,null,null,"Blade A",null,null,null,"Blade B",null,null,null,null,1,null,null,"Blade A","Blade B","b","Spar Cap Width","[m]",{"$f":"Beam_Thickness_Calculator!AB5*Beam_Thickness_Calculator!AL12","v":1.38},{"$f":"Beam_Thickness_Calculator!AC5*Beam_Thickness_Calculator!AL12","v":0.91999999999999993},"EUD","Modulus of Sparcap","[Pa]",{"$f":"Global_Var!$E$3","v":39800000000}]
[null,null,null,null,null,null,null,null,null,"Spar Allowable","Z","Chord","Element Thrust","Moment My","T/C orig","T/C","Spar Thickness","Height of Core","Wet Weight","T/C","Spar Thickness","Height of Core","Wet Weight",null,"C","Chord","[m]",{"$f":"L7","v":2.2999999999999998},{"$f":"AB5*Beam_Thickness_Calculator!AL14","v":1.5333333333333332},"t","Airfoil thickness","[m]",{"$f":"Beam_Thickness_Calculator!AB6*Beam_Thickness_Calculator!AB5/100","v":2.3006695723100274},{"$f":"Beam_Thickness_Calculator!AC6*Beam_Thickness_Calculator!AC5/100","v":1.5333333333333332},"ρs","Density of sparcap","[kg/m3]",{"$f":"Global_Var!$E$4","v":1920}]
[null,null,null,null,null,null,null,null,null,"[m]","[m]","[m]","[kN]","[N-m]","[%]","[%]","[m]","[m]","[kg]","[%]","[m]","[m]","[kg]",null,"AF%","% thickness of foil","[%]",{"$f":"P7","v":100.02911183956643},{"$f":"T7","v":100},"ho","Section height outer","[m]",{"$f":"AG5*Beam_Thickness_Calculator!AL13","v":1.9555691364635233},{"$f":"AH5*Beam_Thickness_Calculator!AL13","v":1.3033333333333332},"ϵUD(max)","Max allow design strain Sparcap","[-]",{"$f":"Global_Var!$E$5","v":2.8999999999999998E-3}]
[null,null,null,null,null,null,null,null,null,{"$f":"Blade_Definition!H4/2","v":1.1499999999999999},{"$f":"Spar_Thickness_Calculator!K7","v":0},{"$f":"Spar_Thickness_Calculator!L7","v":2.2999999999999998},{"$f":"Spar_Thickness_Calculator!#REF!","v":{"$error":"#REF!"}},{"$f":"Spar_Thickness_Calculator!M7","v":15501225.096772185},{"$f":"Spar_Thickness_Calculator!N7","v":100},100.02911183956643,5.251011806724043E-2,{"$f":"AG7","v":1.8505489003290423},{"$f":"AB11","v":-1157.0102080143351},100,{"$f":"Spar_Thickness_Calculator!S7","v":8.5334943414558287E-2},{"$f":"AH7","v":1.1326634465042167},{"$f":"AC11","v":-514.12721751768197},null,"M","Moment","[n-m]",{"$f":"N7","v":15501225.096772185},{"$f":"AB7*Beam_Thickness_Calculator!AL15","v":10334150.06451479},"hc","height of core","[m]",{"$f":"Beam_Thickness_Calculator!AG6-2*Beam_Thickness_Calculator!AB8","v":1.8505489003290423},{"$f":"Beam_Thickness_Calculator!AH6-2*Beam_Thickness_Calculator!AC8","v":1.1326634465042167},"σs(allow)","Allowable stress in Sparcap","[Pa]",{"$f":"Global_Var!$E$6","v":115419999.99999999}]
[null,null,null,null,null,null,null,null,null,{"$f":"Blade_Definition!H5/2","v":1.1499999999999999},{"$f":"Spar_Thickness_Calculator!K8","v":1.1375},{"$f":"Spar_Thickness_Calculator!L8","v":2.2999999999999998},{"$f":"Spar_Thickness_Calculator!#REF!","v":{"$error":"#REF!"}},{"$f":"Spar_Thickness_Calculator!M8","v":14315791.052460622},{"$f":"Spar_Thickness_Calculator!N8","v":100},100.03964231503518,4.8291893706683374E-2,{"$f":"AG22","v":1.8591912198455711},{"$f":"AB26","v":-1178.6951875843733},100,{"$f":"Spar_Thickness_Calculator!S8","v":7.7861644352650264E-2},{"$f":"AH22","v":1.1476100446280326},{"$f":"AC26","v":-552.28003840791825},null,"t","Spar Cap Thickness","[m]",{"$f":"Q7","v":5.251011806724043E-2},{"$f":"U7","v":8.5334943414558287E-2},"c","distance from neutral axis","[m]",{"$f":"Beam_Thickness_Calculator!AG6/2","v":0.97778456823176163},{"$f":"Beam_Thickness_Calculator!AH6/2","v":0.65166666666666662},"EC","Modulus of Core","[Pa]",{"$f":"Global_Var!$E$7","v":3790000}]
[null,null,null,null,null,null,null,null,null,{"$f":"Blade_Definition!H6/2","v":0.89860901693749984},{"$f":"Spar_Thickness_Calculator!K9","v":3.4124999999999996},{"$f":"Spar_Thickness_Calculator!L9","v":2.8572623749999995},{"$f":"Spar_Thickness_Calculator!#REF!","v":{"$error":"#REF!"}},{"$f":"Spar_Thickness_Calculator!M9","v":11950574.839498749},{"$f":"Spar_Thickness_Calculator!N9","v":62.9},62.91276295400759,4.1747522278577497E-2,{"$f":"AG37","v":1.4444502546569724},{"$f":"AB41","v":-1118.4721659949605},80.5903955558923,0.05,{"$f":"AH37","v":1.2048514617132364},{"$f":"AC41","v":-864.1679680834161},null,"σs(max)","Max Stress in Sparcap","[Pa]",{"$f":"(AB7*(Beam_Thickness_Calculator!AG6/2)*Beam_Thickness_Calculator!AL4)/(Beam_Thickness_Calculator!AL4*Beam_Thickness_Calculator!AG9+Beam_Thickness_Calculator!AL8*Beam_Thickness_Calculator!AG10)","v":115417809.68861382},{"$f":"(AC7*(Beam_Thickness_Calculator!AH6/2)*Beam_Thickness_Calculator!AL4)/(Beam_Thickness_Calculator!AL4*Beam_Thickness_Calculator!AH9+Beam_Thickness_Calculator!AL8*Beam_Thickness_Calculator!AH10)","v":115433830.82573275},"Is","Moment of inertia Spar","[m4]",{"$f":"(Beam_Thickness_Calculator!AG4/12)*(Beam_Thickness_Calculator!AG6^3-Beam_Thickness_Calculator!AG7^3)","v":0.1312522634347609},{"$f":"(Beam_Thickness_Calculator!AH4/12)*(Beam_Thickness_Calculator!AH6^3-Beam_Thickness_Calculator!AH7^3)","v":5.832949028277943E-2},"ρc","Density of core","[kg/m3]",{"$f":"Global_Var!$E$8","v":673}]
[null,null,null,null,null,null,null,null,null,{"$f":"Blade_Definition!H7/2","v":0.40974296999999993},{"$f":"Spar_Thickness_Calculator!K10","v":5.6875},{"$f":"Spar_Thickness_Calculator!L10","v":3.4145247499999996},{"$f":"Spar_Thickness_Calculator!#REF!","v":{"$error":"#REF!"}},{"$f":"Spar_Thickness_Calculator!M10","v":9618492.1341599971},{"$f":"Spar_Thickness_Calculator!N10","v":24},24.002632640848411,7.2385927728616975E-2,{"$f":"AG52","v":0.5518676018901113},{"$f":"AB56","v":-205.04595807687951},46.997376726503575,0.05,{"$f":"AH52","v":0.80935100076708233},{"$f":"AC56","v":-604.8344744733821},null,"Ww","Wet Weight","[kg]",{"$f":"Beam_Thickness_Calculator!AG14+Beam_Thickness_Calculator!AG13-Beam_Thickness_Calculator!AG16","v":-578.50510400716757},{"$f":"Beam_Thickness_Calculator!AH14+Beam_Thickness_Calculator!AH13-Beam_Thickness_Calculator!AH16","v":-171.37573917256066},"Ic","Moment of inertia Core","[m4]",{"$f":"(Beam_Thickness_Calculator!AG4/12)*Beam_Thickness_Calculator!AG7^3","v":0.72878518824313465},{"$f":"(Beam_Thickness_Calculator!AH4/12)*Beam_Thickness_Calculator!AH7^3","v":0.11140616811228225},"ρw","Density of Seawater","[kg/m3]",{"$f":"Global_Var!$E$9","v":1029}]
[null,null,null,null,null,null,null,null,null,{"$f":"Blade_Definition!H8/2","v":0.31351183499999996},{"$f":"Spar_Thickness_Calculator!K11","v":7.9625000000000004},{"$f":"Spar_Thickness_Calculator!L11","v":2.6968760000000001},{"$f":"Spar_Thickness_Calculator!#REF!","v":{"$error":"#REF!"}},{"$f":"Spar_Thickness_Calculator!M11","v":7424471.6116593722},{"$f":"Spar_Thickness_Calculator!N11","v":23.25},23.260617920652724,0.12151778360903184,{"$f":"AG67","v":0.2901779516126512},{"$f":"AB71","v":271.80408740909184},58.294351336300451,0.05,{"$f":"AH67","v":0.79087160997514083},{"$f":"AC71","v":-461.92297334514785},null,"Ww(rotor)","Wet Weight segment of rotor","[kg]",{"$f":"AB10*2","v":-1157.0102080143351},{"$f":"AC10*3","v":-514.12721751768197},"Vs","Volume of Spar","[m3]",{"$f":"Beam_Thickness_Calculator!AG4*Beam_Thickness_Calculator!AB8*Beam_Thickness_Calculator!AL11*2","v":0.10748821168364112},{"$f":"Beam_Thickness_Calculator!AH4*Beam_Thickness_Calculator!AC8*Beam_Thickness_Calculator!AL11*2","v":0.11645375277973384},"L","Section Length","[m]",{"$f":"Global_Var!$E$10","v":0.74166666666666647}]
[null,null,null,null,null,null,null,null,{"$f":"J12*0.75","v":0.18820236093749998},{"$f":"Blade_Definition!H9/2","v":0.25093648124999995},{"$f":"Spar_Thickness_Calculator!K12","v":10.237500000000001},{"$f":"Spar_Thickness_Calculator!L12","v":2.2305465},{"$f":"Spar_Thickness_Calculator!#REF!","v":{"$error":"#REF!"}},{"$f":"Spar_Thickness_Calculator!M12","v":5426667.2000449989},{"$f":"Spar_Thickness_Calculator!N12","v":22.499999999999996},24.289215011614502,0.18820236093749998,{"$f":"AG82","v":8.4110178146185655E-2},{"$f":"AB86","v":606.34219498584093},63.151480766941646,0.05,{"$f":"AH82","v":0.69821978156894093},{"$f":"AC86","v":-316.57021295906736},null,null,null,null,null,null,"Vc","Volume of Core","[m3]",{"$f":"Beam_Thickness_Calculator!AG7*Beam_Thickness_Calculator!AG4*Beam_Thickness_Calculator!AL11","v":1.8940367994867742},{"$f":"Beam_Thickness_Calculator!AH7*Beam_Thickness_Calculator!AH4*Beam_Thickness_Calculator!AL11","v":0.77285402499804357},null,"Beam width in terms of chord","[-]",{"$f":"Global_Var!$E$11","v":0.6}]
[null,null,null,null,null,null,null,null,{"$f":"J13*0.75","v":0.15589562624999995},{"$f":"Blade_Definition!H10/2","v":0.20786083499999994},{"$f":"Spar_Thickness_Calculator!K13","v":12.512500000000001},{"$f":"Spar_Thickness_Calculator!L13","v":1.9113639999999996},{"$f":"Spar_Thickness_Calculator!#REF!","v":{"$error":"#REF!"}},{"$f":"Spar_Thickness_Calculator!M13","v":3663270.9075462483},{"$f":"Spar_Thickness_Calculator!N13","v":21.749999999999996},25.257239297113234,0.15589562624999995,{"$f":"AG97","v":9.8552859921044123E-2},{"$f":"AB101","v":412.89640103194631},59.853556199630837,0.05,{"$f":"AH97","v":0.54827761802105668},{"$f":"AC101","v":-180.46579091373553},null,null,"Spar Strain Limit (Goal Seek to 1)",null,{"$f":"(AB9/$AL$7)","v":0.9999810231208961},{"$f":"(AC9/$AL$7)","v":1.0001198304083587},"Ms","Mass of Spar","[kg]",{"$f":"Beam_Thickness_Calculator!AL5*AG11","v":206.37736643259095},{"$f":"Beam_Thickness_Calculator!AL5*AH11","v":223.59120533708898},null,"Beam height in terms of thickness","[-]",0.85]
[null,null,null,null,null,null,null,null,0.13202740687499998,{"$f":"Blade_Definition!H11/2","v":0.17603654249999998},{"$f":"Spar_Thickness_Calculator!K14","v":14.787500000000001},{"$f":"Spar_Thickness_Calculator!L14","v":1.6765384999999997},{"$f":"Spar_Thickness_Calculator!#REF!","v":{"$error":"#REF!"}},{"$f":"Spar_Thickness_Calculator!M14","v":2189716.612492498},{"$f":"Spar_Thickness_Calculator!N14","v":21},23.728633816292689,0.13202740687499998,{"$f":"AG112","v":7.4091915486041271E-2},{"$f":"AB116","v":311.69792076563351},49.467204496049582,0.05,{"$f":"AH112","v":0.36995747934166778},{"$f":"AC116","v":-63.571536336229002},null,null,null,null,null,null,"Mc","Mass of Core","[kg]",{"$f":"AG12*Beam_Thickness_Calculator!AL9","v":1274.686766054599},{"$f":"AH12*Beam_Thickness_Calculator!AL9","v":520.13075882368332},null,"Chord Ratio Blade A/Blade B","[-]",{"$f":"Global_Var!$E$13","v":0.66666666666666663}]
[null,null,null,null,null,null,null,null,0.10302161187499997,{"$f":"Blade_Definition!H12/2","v":0.13736214916666664},{"$f":"Spar_Thickness_Calculator!K15","v":17.0625},{"$f":"Spar_Thickness_Calculator!L15","v":1.4209877499999997},{"$f":"Spar_Thickness_Calculator!#REF!","v":{"$error":"#REF!"}},{"$f":"Spar_Thickness_Calculator!M15","v":1062400.1038218741},{"$f":"Spar_Thickness_Calculator!N15","v":19.333333333333332},21.147815292291188,0.10302161187499997,{"$f":"AG127","v":4.9388461241671733E-2},{"$f":"AB131","v":209.93953797395193},37.850529400313775,0.05,{"$f":"AH127","v":0.20478245211687732},{"$f":"AC131","v":20.484572712434669},null,null,null,null,null,null,"Vd","Displaced Volume","[m3]",{"$f":"Beam_Thickness_Calculator!AG6*Beam_Thickness_Calculator!AG4*Beam_Thickness_Calculator!AL11","v":2.0015250111704153},{"$f":"Beam_Thickness_Calculator!AH6*Beam_Thickness_Calculator!AH4*Beam_Thickness_Calculator!AL11","v":0.88930777777777748},null,"Moment Ratio Blade A/Blade B","[-]",{"$f":"Global_Var!$E$14","v":0.66666666666666663}]
[null,null,null,null,null,null,null,null,7.6281773750000031E-2,{"$f":"Blade_Definition!H13/2","v":0.1017090316666667},{"$f":"Spar_Thickness_Calculator!K16","v":19.337499999999999},{"$f":"Spar_Thickness_Calculator!L16","v":1.1514230000000003},{"$f":"Spar_Thickness_Calculator!#REF!","v":{"$error":"#REF!"}},{"$f":"Spar_Thickness_Calculator!M16","v":324240.04999749974},{"$f":"Spar_Thickness_Calculator!N16","v":17.666666666666668},15.960489614861928,7.6281773750000031E-2,{"$f":"AG142","v":3.6432885874118914E-3},{"$f":"AB146","v":137.9715960331977},24.609609954065753,0.05,{"$f":"AH142","v":6.0571068558794794E-2},{"$f":"AC146","v":69.209345237439834},null,null,null,null,null,null,"Mw","Mass of disp. Seawater","[kg]",{"$f":"Beam_Thickness_Calculator!AL10*Beam_Thickness_Calculator!AG15","v":2059.5692364943575},{"$f":"Beam_Thickness_Calculator!AL10*Beam_Thickness_Calculator!AH15","v":915.09770333333302}]
[null,null,null,null,null,null,null,null,null,{"$f":"Blade_Definition!H14/2","v":5.7688540000000003E-2},{"$f":"Spar_Thickness_Calculator!K17","v":21.612499999999997},{"$f":"Spar_Thickness_Calculator!L17","v":0.72110675000000002},{"$f":"Spar_Thickness_Calculator!#REF!","v":{"$error":"#REF!"}},{"$f":"Spar_Thickness_Calculator!M17","v":0},{"$f":"Spar_Thickness_Calculator!N17","v":16},2.8947159602605559E+56,5740398089.0891371,{"$f":"AG157","v":1.774289335535126E+54},40,2.8947159602605559E+56,{"$f":"Spar_Thickness_Calculator!S17","v":-1.9935805237148845E+71},{"$f":"AH157","v":3.987161047429769E+71},{"$f":"AC161","v":-3.1909485278623413E+74}]
[null,null,null,null,null,null,null,null,null,null,null,null,null,null,null,24.653875268834554,0.04,{"$f":"AG172","v":-0.08},{"$f":"AB176","v":0},22.967952388844765,{"$f":"Spar_Thickness_Calculator!S18","v":0.28749948895293026},{"$f":"AH172","v":-0.57499897790586052},{"$f":"AC176","v":0},null,"Input/Output",null,null,null,null,"Intermediate Calculations",null,null,null,null,"Constants"]
[null,null,null,null,null,null,null,null,null,null,null,null,null,null,null,24.299694327003216,0.04,{"$f":"AG187","v":-0.08},{"$f":"AB191","v":0},24.73467368600928,{"$f":"Spar_Thickness_Calculator!S19","v":0.28076312826632993},{"$f":"AH187","v":-0.56152625653265986},{"$f":"AC191","v":0},null,2,null,null,"Blade A","Blade B","b","Spar Cap Width","[m]",{"$f":"Beam_Thickness_Calculator!AB20*Beam_Thickness_Calculator!AL27","v":1.38},{"$f":"Beam_Thickness_Calculator!AC20*Beam_Thickness_Calculator!AL27","v":0.91999999999999993},"EUD","Modulus of Sparcap","[Pa]",{"$f":"Global_Var!$E$3","v":39800000000}]
[null,null,null,null,null,null,null,null,null,null,null,null,null,null,null,23.826574762774325,0.04,{"$f":"AG202","v":-0.08},{"$f":"AB206","v":0},24.479202867647345,{"$f":"Spar_Thickness_Calculator!S20","v":0.27205728647448857},{"$f":"AH202","v":-0.54411457294897714},{"$f":"AC206","v":0},null,"C","Chord","[m]",{"$f":"L8","v":2.2999999999999998},{"$f":"AB20*Beam_Thickness_Calculator!AL29","v":1.5333333333333332},"t","Airfoil thickness","[m]",{"$f":"Beam_Thickness_Calculator!AB21*Beam_Thickness_Calculator!AB20/100","v":2.3009117732458093},{"$f":"Beam_Thickness_Calculator!AC21*Beam_Thickness_Calculator!AC20/100","v":1.5333333333333332},"ρs","Density of sparcap","[kg/m3]",{"$f":"Global_Var!$E$4","v":1920}]
[null,null,null,null,null,null,null,null,null,null,null,null,null,null,null,23.266124148267384,0.04,{"$f":"AG217","v":-0.08},{"$f":"AB221","v":0},24.139263049324821,{"$f":"Spar_Thickness_Calculator!S21","v":0.26157381724747553},{"$f":"AH217","v":-0.52314763449495105},{"$f":"AC221","v":0},null,"AF%","% thickness of foil","[%]",{"$f":"P8","v":100.03964231503518},{"$f":"T8","v":100},"ho","Section height outer","[m]",{"$f":"AG20*Beam_Thickness_Calculator!AL28","v":1.9557750072589379},{"$f":"AH20*Beam_Thickness_Calculator!AL28","v":1.3033333333333332},"ϵUD(max)","Max allow design strain Sparcap","[-]",{"$f":"Global_Var!$E$5","v":2.8999999999999998E-3}]
[null,null,null,null,null,null,null,null,null,null,null,null,null,null,null,22.586271474328424,0.04,{"$f":"AG232","v":-0.08},{"$f":"AB236","v":0},23.71285198105759,{"$f":"Spar_Thickness_Calculator!S22","v":0.25081641341790623},{"$f":"AH232","v":-0.50163282683581245},{"$f":"AC236","v":0},null,"M","Moment","[n-m]",{"$f":"N8","v":14315791.052460622},{"$f":"AB22*Beam_Thickness_Calculator!AL30","v":9543860.7016404141},"hc","height of core","[m]",{"$f":"Beam_Thickness_Calculator!AG21-2*Beam_Thickness_Calculator!AB23","v":1.8591912198455711},{"$f":"Beam_Thickness_Calculator!AH21-2*Beam_Thickness_Calculator!AC23","v":1.1476100446280326},"σs(allow)","Allowable stress in Sparcap","[Pa]",{"$f":"Global_Var!$E$6","v":115419999.99999999}]
[null,null,null,null,null,null,null,null,null,null,null,null,null,null,null,21.776144775340548,0.04,{"$f":"AG247","v":-0.08},{"$f":"AB251","v":0},23.19242770244076,{"$f":"Spar_Thickness_Calculator!S23","v":0.23648561595789788},{"$f":"AH247","v":-0.47297123191579576},{"$f":"AC251","v":0},null,"t","Spar Cap Thickness","[m]",{"$f":"Q8","v":4.8291893706683374E-2},{"$f":"U8","v":7.7861644352650264E-2},"c","distance from neutral axis","[m]",{"$f":"Beam_Thickness_Calculator!AG21/2","v":0.97788750362946897},{"$f":"Beam_Thickness_Calculator!AH21/2","v":0.65166666666666662},"EC","Modulus of Core","[Pa]",{"$f":"Global_Var!$E$7","v":3790000}]
[null,null,null,null,null,null,null,null,null,null,null,null,null,null,null,21.3,{"$f":"Spar_Thickness_Calculator!P24","v":3.8298656833516201E-2},{"$f":"AG262","v":-7.6597313667032402E-2},{"$f":"AB266","v":0},22.576391548868354,{"$f":"Spar_Thickness_Calculator!S24","v":0.21863594221380447},{"$f":"AH262","v":-0.43727188442760895},{"$f":"AC266","v":0},null,"σs(max)","Max Stress in Sparcap","[Pa]",{"$f":"(AB22*(Beam_Thickness_Calculator!AG21/2)*Beam_Thickness_Calculator!AL19)/(Beam_Thickness_Calculator!AL19*Beam_Thickness_Calculator!AG24+Beam_Thickness_Calculator!AL23*Beam_Thickness_Calculator!AG25)","v":115375811.8480486},{"$f":"(AC22*(Beam_Thickness_Calculator!AH21/2)*Beam_Thickness_Calculator!AL19)/(Beam_Thickness_Calculator!AL19*Beam_Thickness_Calculator!AH24+Beam_Thickness_Calculator!AL23*Beam_Thickness_Calculator!AH25)","v":115448599.4300725},"Is","Moment of inertia Spar","[m4]",{"$f":"(Beam_Thickness_Calculator!AG19/12)*(Beam_Thickness_Calculator!AG21^3-Beam_Thickness_Calculator!AG22^3)","v":0.12126556886595935},{"$f":"(Beam_Thickness_Calculator!AH19/12)*(Beam_Thickness_Calculator!AH21^3-Beam_Thickness_Calculator!AH22^3)","v":5.3860696656224838E-2},"ρc","Density of core","[kg/m3]",{"$f":"Global_Var!$E$8","v":673}]
[null,null,null,null,null,null,null,null,null,null,null,null,null,null,null,21.2,{"$f":"Spar_Thickness_Calculator!P25","v":3.4728350451465974E-2},{"$f":"AG277","v":-6.9456700902931948E-2},{"$f":"AB281","v":0},21.857487900873188,{"$f":"Spar_Thickness_Calculator!S25","v":0.19217939832705208},{"$f":"AH277","v":-0.38435879665410416},{"$f":"AC281","v":0},null,"Ww","Wet Weight","[kg]",{"$f":"Beam_Thickness_Calculator!AG29+Beam_Thickness_Calculator!AG28-Beam_Thickness_Calculator!AG31","v":-589.34759379218667},{"$f":"Beam_Thickness_Calculator!AH29+Beam_Thickness_Calculator!AH28-Beam_Thickness_Calculator!AH31","v":-184.09334613597275},"Ic","Moment of inertia Core","[m4]",{"$f":"(Beam_Thickness_Calculator!AG19/12)*Beam_Thickness_Calculator!AG22^3","v":0.73904353043270909},{"$f":"(Beam_Thickness_Calculator!AH19/12)*Beam_Thickness_Calculator!AH22^3","v":0.11587496173883685},"ρw","Density of Seawater","[kg/m3]",{"$f":"Global_Var!$E$9","v":1029}]
[null,null,null,null,null,null,null,null,null,null,null,null,null,null,null,21.1,{"$f":"Spar_Thickness_Calculator!P26","v":3.0853151408813048E-2},{"$f":"AG292","v":-6.1706302817626096E-2},{"$f":"AB296","v":0},21.027899761624855,{"$f":"Spar_Thickness_Calculator!S26","v":9.7029263067383908E-2},{"$f":"AH292","v":-0.19405852613476782},{"$f":"AC296","v":0},null,"Ww(rotor)","Wet Weight segment of rotor (+ floats)","[kg]",{"$f":"AB25*2","v":-1178.6951875843733},{"$f":"AC25*3","v":-552.28003840791825},"Vs","Volume of Spar","[m3]",{"$f":"Beam_Thickness_Calculator!AG19*Beam_Thickness_Calculator!AB23*Beam_Thickness_Calculator!AL26*2","v":9.8853506417580839E-2},{"$f":"Beam_Thickness_Calculator!AH19*Beam_Thickness_Calculator!AC23*Beam_Thickness_Calculator!AL26*2","v":0.10625519065991669},"L","Section Length","[m]",{"$f":"Global_Var!$E$10","v":0.74166666666666647}]
[null,null,null,null,null,null,null,null,null,null,null,null,null,null,null,20.8,{"$f":"Spar_Thickness_Calculator!P27","v":2.7223581136104302E-2},{"$f":"AG307","v":-5.4447162272208603E-2},{"$f":"AB311","v":0},20.8,{"$f":"Spar_Thickness_Calculator!S27","v":7.6336433512837198E-2},{"$f":"AH307","v":-0.1526728670256744},{"$f":"AC311","v":0},null,null,null,null,null,null,"Vc","Volume of Core","[m3]",{"$f":"Beam_Thickness_Calculator!AG22*Beam_Thickness_Calculator!AG19*Beam_Thickness_Calculator!AL26","v":1.9028822135119414},{"$f":"Beam_Thickness_Calculator!AH22*Beam_Thickness_Calculator!AH19*Beam_Thickness_Calculator!AL26","v":0.78305258711786063},null,"Beam width in terms of chord","[-]",{"$f":"Global_Var!$E$11","v":0.6}]
[null,null,null,null,null,null,null,null,null,null,null,null,null,null,null,20.399999999999999,{"$f":"Spar_Thickness_Calculator!P28","v":2.356411840194679E-2},{"$f":"AG322","v":-4.7128236803893581E-2},{"$f":"AB326","v":0},20.399999999999999,{"$f":"Spar_Thickness_Calculator!S28","v":6.1417679483084846E-2},{"$f":"AH322","v":-0.12283535896616969},{"$f":"AC326","v":0},null,null,"Spar Strain Limit (Goal Seek to 1)",null,{"$f":"(AB24/$AL$7)","v":0.99961715342270496},{"$f":"(AC24/$AL$7)","v":1.0002477857396683},"Ms","Mass of Spar","[kg]",{"$f":"Beam_Thickness_Calculator!AL20*AG26","v":189.79873232175521},{"$f":"Beam_Thickness_Calculator!AL20*AH26","v":204.00996606704004},null,"Beam height in terms of thickness","[-]",0.85]
[null,null,null,null,null,null,null,null,null,null,null,null,null,null,null,19.899999999999999,{"$f":"Spar_Thickness_Calculator!P29","v":1.9828348796497228E-2},{"$f":"AG337","v":-3.9656697592994457E-2},{"$f":"AB341","v":0},19.899999999999999,{"$f":"Spar_Thickness_Calculator!S29","v":4.9048947557474007E-2},{"$f":"AH337","v":-9.8097895114948014E-2},{"$f":"AC341","v":0},null,null,null,null,null,null,"Mc","Mass of Core","[kg]",{"$f":"AG27*Beam_Thickness_Calculator!AL24","v":1280.6397296935365},{"$f":"AH27*Beam_Thickness_Calculator!AL24","v":526.9943911303202},null,"Chord Ratio Blade A/Blade B","[-]",{"$f":"Global_Var!$E$13","v":0.66666666666666663}]
[null,null,null,null,null,null,null,null,null,null,null,null,null,null,null,19.5,{"$f":"Spar_Thickness_Calculator!P30","v":1.5728676937896039E-2},{"$f":"AG352","v":-3.1457353875792078E-2},{"$f":"AB356","v":0},19.5,{"$f":"Spar_Thickness_Calculator!S30","v":3.7304074042880969E-2},{"$f":"AH352","v":-7.4608148085761938E-2},{"$f":"AC356","v":0},null,null,null,null,null,null,"Vd","Displaced Volume","[m3]",{"$f":"Beam_Thickness_Calculator!AG21*Beam_Thickness_Calculator!AG19*Beam_Thickness_Calculator!AL26","v":2.0017357199295223},{"$f":"Beam_Thickness_Calculator!AH21*Beam_Thickness_Calculator!AH19*Beam_Thickness_Calculator!AL26","v":0.88930777777777748},null,"Moment Ratio Blade A/Blade B","[-]",{"$f":"Global_Var!$E$14","v":0.66666666666666663}]
[null,null,null,null,null,null,null,null,null,null,null,null,null,null,null,19,{"$f":"Spar_Thickness_Calculator!P31","v":1.1725622877013299E-2},{"$f":"AG367","v":-2.3451245754026597E-2},{"$f":"AB371","v":0},19,{"$f":"Spar_Thickness_Calculator!S31","v":2.7533596823820915E-2},{"$f":"AH367","v":-5.5067193647641829E-2},{"$f":"AC371","v":0},null,null,null,null,null,null,"Mw","Mass of disp. Seawater","[kg]",{"$f":"Beam_Thickness_Calculator!AL25*Beam_Thickness_Calculator!AG30","v":2059.7860558074785},{"$f":"Beam_Thickness_Calculator!AL25*Beam_Thickness_Calculator!AH30","v":915.09770333333302}]
[null,null,null,null,null,null,null,null,null,null,null,null,null,null,null,18.5,{"$f":"Spar_Thickness_Calculator!P32","v":7.8809611872574445E-3},{"$f":"AG382","v":-1.5761922374514889E-2},{"$f":"AB386","v":0},18.5,{"$f":"Spar_Thickness_Calculator!S32","v":1.9027422323090553E-2},{"$f":"AH382","v":-3.8054844646181106E-2},{"$f":"AC386","v":0}]
[null,null,null,null,null,null,null,null,null,null,null,null,null,null,null,18.100000000000001,{"$f":"Spar_Thickness_Calculator!P33","v":4.1911434005555614E-3},{"$f":"AG397","v":-8.3822868011111228E-3},{"$f":"AB401","v":0},18.100000000000001,{"$f":"Spar_Thickness_Calculator!S33","v":1.1727396480538036E-2},{"$f":"AH397","v":-2.3454792961076072E-2},{"$f":"AC401","v":0},null,"Input/Output",null,null,null,null,"Intermediate Calculations",null,null,null,null,"Constants"]
[null,null,null,null,null,null,null,null,null,null,null,null,null,null,null,17.600000000000001,{"$f":"Spar_Thickness_Calculator!P34","v":1.0669783482411827E-3},{"$f":"AG412","v":-2.1339566964823655E-3},{"$f":"AB416","v":0},17.600000000000001,{"$f":"Spar_Thickness_Calculator!S34","v":5.9920073275618038E-3},{"$f":"AH412","v":-1.1984014655123608E-2},{"$f":"AC416","v":0},null,3,null,null,"Blade A","Blade B","b","Spar Cap Width","[m]",{"$f":"Beam_Thickness_Calculator!AB35*Beam_Thickness_Calculator!AL42","v":1.7143574249999995},{"$f":"Beam_Thickness_Calculator!AC35*Beam_Thickness_Calculator!AL42","v":1.1429049499999997},"EUD","Modulus of Sparcap","[Pa]",{"$f":"Global_Var!$E$3","v":39800000000}]
[null,null,null,null,null,null,null,null,null,null,null,null,null,null,null,17.2,{"$f":"Spar_Thickness_Calculator!P35","v":-1.4728509641954368E-3},{"$f":"AG427","v":2.9457019283908735E-3},{"$f":"AB431","v":0},17.2,{"$f":"Spar_Thickness_Calculator!S35","v":1.6001411334365437E-3},{"$f":"AH427","v":-3.2002822668730875E-3},{"$f":"AC431","v":0},null,"C","Chord","[m]",{"$f":"L9","v":2.8572623749999995},{"$f":"AB35*Beam_Thickness_Calculator!AL44","v":1.904841583333333},"t","Airfoil thickness","[m]",{"$f":"Beam_Thickness_Calculator!AB36*Beam_Thickness_Calculator!AB35/100","v":1.797582704957797},{"$f":"Beam_Thickness_Calculator!AC36*Beam_Thickness_Calculator!AC35/100","v":1.5351193667214549},"ρs","Density of sparcap","[kg/m3]",{"$f":"Global_Var!$E$4","v":1920}]
[null,null,null,null,null,null,null,null,null,null,null,null,null,null,null,16.7,{"$f":"Spar_Thickness_Calculator!P36","v":-3.1572318856345418E-3},{"$f":"AG442","v":6.3144637712690835E-3},{"$f":"AB446","v":0},16.7,{"$f":"Spar_Thickness_Calculator!S36","v":-1.2580089414460818E-3},{"$f":"AH442","v":2.5160178828921636E-3},{"$f":"AC446","v":0},null,"AF%","% thickness of foil","[%]",{"$f":"P9","v":62.91276295400759},{"$f":"T9","v":80.5903955558923},"ho","Section height outer","[m]",{"$f":"AG35*Beam_Thickness_Calculator!AL43","v":1.5279452992141274},{"$f":"AH35*Beam_Thickness_Calculator!AL43","v":1.3048514617132365},"ϵUD(max)","Max allow design strain Sparcap","[-]",{"$f":"Global_Var!$E$5","v":2.8999999999999998E-3}]
[null,null,null,null,null,null,null,null,null,null,null,null,null,null,null,-7.7580968271922526E+39,{"$f":"Spar_Thickness_Calculator!P37","v":5880034876.4795046},{"$f":"AG457","v":-11760069752.959009},{"$f":"AB461","v":0},-7.7580968271922526E+39,{"$f":"Spar_Thickness_Calculator!S37","v":13908690602.373377},{"$f":"AH457","v":-27817381204.746754},{"$f":"AC461","v":0},null,"M","Moment","[n-m]",{"$f":"N9","v":11950574.839498749},{"$f":"AB37*Beam_Thickness_Calculator!AL45","v":7967049.8929991657},"hc","height of core","[m]",{"$f":"Beam_Thickness_Calculator!AG36-2*Beam_Thickness_Calculator!AB38","v":1.4444502546569724},{"$f":"Beam_Thickness_Calculator!AH36-2*Beam_Thickness_Calculator!AC38","v":1.2048514617132364},"σs(allow)","Allowable stress in Sparcap","[Pa]",{"$f":"Global_Var!$E$6","v":115419999.99999999}]
[null,null,null,null,null,null,null,null,null,null,null,null,null,null,null,null,null,null,null,null,null,null,null,null,"t","Spar Cap Thickness","[m]",{"$f":"Q9","v":4.1747522278577497E-2},{"$f":"U9","v":0.05},"c","distance from neutral axis","[m]",{"$f":"Beam_Thickness_Calculator!AG36/2","v":0.76397264960706368},{"$f":"Beam_Thickness_Calculator!AH36/2","v":0.65242573085661826},"EC","Modulus of Core","[Pa]",{"$f":"Global_Var!$E$7","v":3790000}]
[null,null,null,null,null,null,null,null,null,null,null,null,null,null,null,null,null,null,null,null,null,null,null,null,"σs(max)","Max Stress in Sparcap","[Pa]",{"$f":"(AB37*(Beam_Thickness_Calculator!AG36/2)*Beam_Thickness_Calculator!AL34)/(Beam_Thickness_Calculator!AL34*Beam_Thickness_Calculator!AG39+Beam_Thickness_Calculator!AL38*Beam_Thickness_Calculator!AG40)","v":115417573.60825519},{"$f":"(AC37*(Beam_Thickness_Calculator!AH36/2)*Beam_Thickness_Calculator!AL34)/(Beam_Thickness_Calculator!AL34*Beam_Thickness_Calculator!AH39+Beam_Thickness_Calculator!AL38*Beam_Thickness_Calculator!AH40)","v":115427971.86893314},"Is","Moment of inertia Spar","[m4]",{"$f":"(Beam_Thickness_Calculator!AG34/12)*(Beam_Thickness_Calculator!AG36^3-Beam_Thickness_Calculator!AG37^3)","v":7.9062311888330086E-2},{"$f":"(Beam_Thickness_Calculator!AH34/12)*(Beam_Thickness_Calculator!AH36^3-Beam_Thickness_Calculator!AH37^3)","v":4.5015755109314819E-2},"ρc","Density of core","[kg/m3]",{"$f":"Global_Var!$E$8","v":673}]
[null,null,null,null,null,null,null,null,null,null,null,null,null,null,null,null,null,null,null,null,null,null,null,null,"Ww","Wet Weight","[kg]",{"$f":"Beam_Thickness_Calculator!AG44+Beam_Thickness_Calculator!AG43-Beam_Thickness_Calculator!AG46","v":-559.23608299748025},{"$f":"Beam_Thickness_Calculator!AH44+Beam_Thickness_Calculator!AH43-Beam_Thickness_Calculator!AH46","v":-288.0559893611387},"Ic","Moment of inertia Core","[m4]",{"$f":"(Beam_Thickness_Calculator!AG34/12)*Beam_Thickness_Calculator!AG37^3","v":0.43055426542655151},{"$f":"(Beam_Thickness_Calculator!AH34/12)*Beam_Thickness_Calculator!AH37^3","v":0.16658250719056442},"ρw","Density of Seawater","[kg/m3]",{"$f":"Global_Var!$E$9","v":1029}]
[null,null,null,null,null,null,null,null,null,null,null,null,null,null,null,null,null,null,null,null,null,null,null,null,"Ww(rotor)","Wet Weight segment of rotor (+ floats)","[kg]",{"$f":"AB40*2","v":-1118.4721659949605},{"$f":"AC40*3","v":-864.1679680834161},"Vs","Volume of Spar","[m3]",{"$f":"Beam_Thickness_Calculator!AG34*Beam_Thickness_Calculator!AB38*Beam_Thickness_Calculator!AL41*2","v":0.10616242594388778},{"$f":"Beam_Thickness_Calculator!AH34*Beam_Thickness_Calculator!AC38*Beam_Thickness_Calculator!AL41*2","v":8.4765450458333294E-2},"L","Section Length","[m]",{"$f":"Global_Var!$E$10","v":0.74166666666666647}]
[null,null,null,null,null,null,null,null,null,null,null,null,null,null,null,null,null,null,null,null,null,null,null,null,null,null,null,null,null,"Vc","Volume of Core","[m3]",{"$f":"Beam_Thickness_Calculator!AG37*Beam_Thickness_Calculator!AG34*Beam_Thickness_Calculator!AL41","v":1.8365921475097873},{"$f":"Beam_Thickness_Calculator!AH37*Beam_Thickness_Calculator!AH34*Beam_Thickness_Calculator!AL41","v":1.0212977688750378},null,"Beam width in terms of chord","[-]",{"$f":"Global_Var!$E$11","v":0.6}]
[null,null,null,null,null,null,null,null,null,null,null,null,null,null,null,null,null,null,null,null,null,null,null,null,null,"Spar Strain Limit (Goal Seek to 1)",null,{"$f":"(AB39/$AL$7)","v":0.99997897771837818},{"$f":"(AC39/$AL$7)","v":1.0000690683497935},"Ms","Mass of Spar","[kg]",{"$f":"Beam_Thickness_Calculator!AL35*AG41","v":203.83185781226453},{"$f":"Beam_Thickness_Calculator!AL35*AH41","v":162.74966487999993},null,"Beam height in terms of thickness","[-]",0.85]
[null,null,null,null,null,null,null,null,null,null,null,null,null,null,null,null,null,null,null,null,null,null,null,null,null,null,null,null,null,"Mc","Mass of Core","[kg]",{"$f":"AG42*Beam_Thickness_Calculator!AL39","v":1236.0265152740869},{"$f":"AH42*Beam_Thickness_Calculator!AL39","v":687.33339845290038},null,"Chord Ratio Blade A/Blade B","[-]",{"$f":"Global_Var!$E$13","v":0.66666666666666663}]
[null,null,null,null,null,null,null,null,null,null,null,null,null,null,null,null,null,null,null,null,null,null,null,null,null,null,null,null,null,"Vd","Displaced Volume","[m3]",{"$f":"Beam_Thickness_Calculator!AG36*Beam_Thickness_Calculator!AG34*Beam_Thickness_Calculator!AL41","v":1.9427545734536753},{"$f":"Beam_Thickness_Calculator!AH36*Beam_Thickness_Calculator!AH34*Beam_Thickness_Calculator!AL41","v":1.1060632193333713},null,"Moment Ratio Blade A/Blade B","[-]",{"$f":"Global_Var!$E$14","v":0.66666666666666663}]
[null,null,null,null,null,null,null,null,null,null,null,null,null,null,null,null,null,null,null,null,null,null,null,null,null,null,null,null,null,"Mw","Mass of disp. Seawater","[kg]",{"$f":"Beam_Thickness_Calculator!AL40*Beam_Thickness_Calculator!AG45","v":1999.0944560838318},{"$f":"Beam_Thickness_Calculator!AL40*Beam_Thickness_Calculator!AH45","v":1138.139052694039}]
[]
[null,null,null,null,null,null,null,null,null,null,null,null,null,null,null,null,null,null,null,null,null,null,null,null,"Input/Output",null,null,null,null,"Intermediate Calculations",null,null,null,null,"Constants"]
[null,null,null,null,null,null,null,null,null,null,null,null,null,null,null,null,null,null,null,null,null,null,null,null,4,null,null,"Blade A","Blade B","b","Spar Cap Width","[m]",{"$f":"Beam_Thickness_Calculator!AB50*Beam_Thickness_Calculator!AL57","v":2.0487148499999996},{"$f":"Beam_Thickness_Calculator!AC50*Beam_Thickness_Calculator!AL57","v":1.3658098999999997},"EUD","Modulus of Sparcap","[Pa]",{"$f":"Global_Var!$E$3","v":39800000000}]
[null,null,null,null,null,null,null,null,null,null,null,null,null,null,null,null,null,null,null,null,null,null,null,null,"C","Chord","[m]",{"$f":"L10","v":3.4145247499999996},{"$f":"AB50*Beam_Thickness_Calculator!AL59","v":2.2763498333333327},"t","Airfoil thickness","[m]",{"$f":"Beam_Thickness_Calculator!AB51*Beam_Thickness_Calculator!AB50/100","v":0.8195758321733474},{"$f":"Beam_Thickness_Calculator!AC51*Beam_Thickness_Calculator!AC50/100","v":1.0698247067848028},"ρs","Density of sparcap","[kg/m3]",{"$f":"Global_Var!$E$4","v":1920}]
[null,null,null,null,null,null,null,null,null,null,null,null,null,null,null,null,null,null,null,null,null,null,null,null,"AF%","% thickness of foil","[%]",{"$f":"P10","v":24.002632640848411},{"$f":"T10","v":46.997376726503575},"ho","Section height outer","[m]",{"$f":"AG50*Beam_Thickness_Calculator!AL58","v":0.69663945734734523},{"$f":"AH50*Beam_Thickness_Calculator!AL58","v":0.90935100076708231},"ϵUD(max)","Max allow design strain Sparcap","[-]",{"$f":"Global_Var!$E$5","v":2.8999999999999998E-3}]
[null,null,null,null,null,null,null,null,null,null,null,null,null,null,null,null,null,null,null,null,null,null,null,null,"M","Moment","[n-m]",{"$f":"N10","v":9618492.1341599971},{"$f":"AB52*Beam_Thickness_Calculator!AL60","v":6412328.0894399974},"hc","height of core","[m]",{"$f":"Beam_Thickness_Calculator!AG51-2*Beam_Thickness_Calculator!AB53","v":0.5518676018901113},{"$f":"Beam_Thickness_Calculator!AH51-2*Beam_Thickness_Calculator!AC53","v":0.80935100076708233},"σs(allow)","Allowable stress in Sparcap","[Pa]",{"$f":"Global_Var!$E$6","v":115419999.99999999}]
[null,null,null,null,null,null,null,null,null,null,null,null,null,null,null,null,null,null,null,null,null,null,null,null,"t","Spar Cap Thickness","[m]",{"$f":"Q10","v":7.2385927728616975E-2},{"$f":"U10","v":0.05},"c","distance from neutral axis","[m]",{"$f":"Beam_Thickness_Calculator!AG51/2","v":0.34831972867367261},{"$f":"Beam_Thickness_Calculator!AH51/2","v":0.45467550038354115},"EC","Modulus of Core","[Pa]",{"$f":"Global_Var!$E$7","v":3790000}]
[null,null,null,null,null,null,null,null,null,null,null,null,null,null,null,null,null,null,null,null,null,null,null,null,"σs(max)","Max Stress in Sparcap","[Pa]",{"$f":"(AB52*(Beam_Thickness_Calculator!AG51/2)*Beam_Thickness_Calculator!AL49)/(Beam_Thickness_Calculator!AL49*Beam_Thickness_Calculator!AG54+Beam_Thickness_Calculator!AL53*Beam_Thickness_Calculator!AG55)","v":115418221.34848826},{"$f":"(AC52*(Beam_Thickness_Calculator!AH51/2)*Beam_Thickness_Calculator!AL49)/(Beam_Thickness_Calculator!AL49*Beam_Thickness_Calculator!AH54+Beam_Thickness_Calculator!AL53*Beam_Thickness_Calculator!AH55)","v":115466820.59799883},"Is","Moment of inertia Spar","[m4]",{"$f":"(Beam_Thickness_Calculator!AG49/12)*(Beam_Thickness_Calculator!AG51^3-Beam_Thickness_Calculator!AG52^3)","v":2.9024838108861896E-2},{"$f":"(Beam_Thickness_Calculator!AH49/12)*(Beam_Thickness_Calculator!AH51^3-Beam_Thickness_Calculator!AH52^3)","v":2.5244178194066363E-2},"ρc","Density of core","[kg/m3]",{"$f":"Global_Var!$E$8","v":673}]
[null,null,null,null,null,null,null,null,null,null,null,null,null,null,null,null,null,null,null,null,null,null,null,null,"Ww","Wet Weight","[kg]",{"$f":"Beam_Thickness_Calculator!AG59+Beam_Thickness_Calculator!AG58-Beam_Thickness_Calculator!AG61","v":-102.52297903843976},{"$f":"Beam_Thickness_Calculator!AH59+Beam_Thickness_Calculator!AH58-Beam_Thickness_Calculator!AH61","v":-201.61149149112737},"Ic","Moment of inertia Core","[m4]",{"$f":"(Beam_Thickness_Calculator!AG49/12)*Beam_Thickness_Calculator!AG52^3","v":2.8694916566321546E-2},{"$f":"(Beam_Thickness_Calculator!AH49/12)*Beam_Thickness_Calculator!AH52^3","v":6.034200472080211E-2},"ρw","Density of Seawater","[kg/m3]",{"$f":"Global_Var!$E$9","v":1029}]
[null,null,null,null,null,null,null,null,null,null,null,null,null,null,null,null,null,null,null,null,null,null,null,null,"Ww(rotor)","Wet Weight segment of rotor (+ floats)","[kg]",{"$f":"AB55*2","v":-205.04595807687951},{"$f":"AC55*3","v":-604.8344744733821},"Vs","Volume of Spar","[m3]",{"$f":"Beam_Thickness_Calculator!AG49*Beam_Thickness_Calculator!AB53*Beam_Thickness_Calculator!AL56*2","v":0.21997555218515571},{"$f":"Beam_Thickness_Calculator!AH49*Beam_Thickness_Calculator!AC53*Beam_Thickness_Calculator!AL56*2","v":0.10129756758333329},"L","Section Length","[m]",{"$f":"Global_Var!$E$10","v":0.74166666666666647}]
[null,null,null,null,null,null,null,null,null,null,null,null,null,null,null,null,null,null,null,null,null,null,null,null,null,null,null,null,null,"Vc","Volume of Core","[m3]",{"$f":"Beam_Thickness_Calculator!AG52*Beam_Thickness_Calculator!AG49*Beam_Thickness_Calculator!AL56","v":0.83854268549273425},{"$f":"Beam_Thickness_Calculator!AH52*Beam_Thickness_Calculator!AH49*Beam_Thickness_Calculator!AL56","v":0.81985287698841947},null,"Beam width in terms of chord","[-]",{"$f":"Global_Var!$E$11","v":0.6}]
[null,null,null,null,null,null,null,null,null,null,null,null,null,null,null,null,null,null,null,null,null,null,null,null,null,"Spar Strain Limit (Goal Seek to 1)",null,{"$f":"(AB54/$AL$7)","v":0.99998458974604287},{"$f":"(AC54/$AL$7)","v":1.0004056541153945},"Ms","Mass of Spar","[kg]",{"$f":"Beam_Thickness_Calculator!AL50*AG56","v":422.35306019549898},{"$f":"Beam_Thickness_Calculator!AL50*AH56","v":194.49132975999993},null,"Beam height in terms of thickness","[-]",0.85]
[null,null,null,null,null,null,null,null,null,null,null,null,null,null,null,null,null,null,null,null,null,null,null,null,null,null,null,null,null,"Mc","Mass of Core","[kg]",{"$f":"AG57*Beam_Thickness_Calculator!AL54","v":564.33922733661018},{"$f":"AH57*Beam_Thickness_Calculator!AL54","v":551.76098621320625},null,"Chord Ratio Blade A/Blade B","[-]",{"$f":"Global_Var!$E$13","v":0.66666666666666663}]
[null,null,null,null,null,null,null,null,null,null,null,null,null,null,null,null,null,null,null,null,null,null,null,null,null,null,null,null,null,"Vd","Displaced Volume","[m3]",{"$f":"Beam_Thickness_Calculator!AG51*Beam_Thickness_Calculator!AG49*Beam_Thickness_Calculator!AL56","v":1.0585182376778901},{"$f":"Beam_Thickness_Calculator!AH51*Beam_Thickness_Calculator!AH49*Beam_Thickness_Calculator!AL56","v":0.92115044457175266},null,"Moment Ratio Blade A/Blade B","[-]",{"$f":"Global_Var!$E$14","v":0.66666666666666663}]
[null,null,null,null,null,null,null,null,null,null,null,null,null,null,null,null,null,null,null,null,null,null,null,null,null,null,null,null,null,"Mw","Mass of disp. Seawater","[kg]",{"$f":"Beam_Thickness_Calculator!AL55*Beam_Thickness_Calculator!AG60","v":1089.2152665705489},{"$f":"Beam_Thickness_Calculator!AL55*Beam_Thickness_Calculator!AH60","v":947.86380746433349}]
[]
[null,null,null,null,null,null,null,null,null,null,null,null,null,null,null,null,null,null,null,null,null,null,null,null,"Input/Output",null,null,null,null,"Intermediate Calculations",null,null,null,null,"Constants"]
[null,null,null,null,null,null,null,null,null,null,null,null,null,null,null,null,null,null,null,null,null,null,null,null,5,null,null,"Blade A","Blade B","b","Spar Cap Width","[m]",{"$f":"Beam_Thickness_Calculator!AB65*Beam_Thickness_Calculator!AL72","v":1.6181255999999999},{"$f":"Beam_Thickness_Calculator!AC65*Beam_Thickness_Calculator!AL72","v":1.0787503999999999},"EUD","Modulus of Sparcap","[Pa]",{"$f":"Global_Var!$E$3","v":39800000000}]
[null,null,null,null,null,null,null,null,null,null,null,null,null,null,null,null,null,null,null,null,null,null,null,null,"C","Chord","[m]",{"$f":"L11","v":2.6968760000000001},{"$f":"AB65*Beam_Thickness_Calculator!AL74","v":1.7979173333333334},"t","Airfoil thickness","[m]",{"$f":"Beam_Thickness_Calculator!AB66*Beam_Thickness_Calculator!AB65/100","v":0.62731002215378229},{"$f":"Beam_Thickness_Calculator!AC66*Beam_Thickness_Calculator!AC65/100","v":1.0480842470295775},"ρs","Density of sparcap","[kg/m3]",{"$f":"Global_Var!$E$4","v":1920}]
[null,null,null,null,null,null,null,null,null,null,null,null,null,null,null,null,null,null,null,null,null,null,null,null,"AF%","% thickness of foil","[%]",{"$f":"P11","v":23.260617920652724},{"$f":"T11","v":58.294351336300451},"ho","Section height outer","[m]",{"$f":"AG65*Beam_Thickness_Calculator!AL73","v":0.53321351883071488},{"$f":"AH65*Beam_Thickness_Calculator!AL73","v":0.89087160997514081},"ϵUD(max)","Max allow design strain Sparcap","[-]",{"$f":"Global_Var!$E$5","v":2.8999999999999998E-3}]
[null,null,null,null,null,null,null,null,null,null,null,null,null,null,null,null,null,null,null,null,null,null,null,null,"M","Moment","[n-m]",{"$f":"N11","v":7424471.6116593722},{"$f":"AB67*Beam_Thickness_Calculator!AL75","v":4949647.7411062475},"hc","height of core","[m]",{"$f":"Beam_Thickness_Calculator!AG66-2*Beam_Thickness_Calculator!AB68","v":0.2901779516126512},{"$f":"Beam_Thickness_Calculator!AH66-2*Beam_Thickness_Calculator!AC68","v":0.79087160997514083},"σs(allow)","Allowable stress in Sparcap","[Pa]",{"$f":"Global_Var!$E$6","v":115419999.99999999}]
[null,null,null,null,null,null,null,null,null,null,null,null,null,null,null,null,null,null,null,null,null,null,null,null,"t","Spar Cap Thickness","[m]",{"$f":"Q11","v":0.12151778360903184},{"$f":"U11","v":0.05},"c","distance from neutral axis","[m]",{"$f":"Beam_Thickness_Calculator!AG66/2","v":0.26660675941535744},{"$f":"Beam_Thickness_Calculator!AH66/2","v":0.44543580498757041},"EC","Modulus of Core","[Pa]",{"$f":"Global_Var!$E$7","v":3790000}]
[null,null,null,null,null,null,null,null,null,null,null,null,null,null,null,null,null,null,null,null,null,null,null,null,"σs(max)","Max Stress in Sparcap","[Pa]",{"$f":"(AB67*(Beam_Thickness_Calculator!AG66/2)*Beam_Thickness_Calculator!AL64)/(Beam_Thickness_Calculator!AL64*Beam_Thickness_Calculator!AG69+Beam_Thickness_Calculator!AL68*Beam_Thickness_Calculator!AG70)","v":115430729.17230426},{"$f":"(AC67*(Beam_Thickness_Calculator!AH66/2)*Beam_Thickness_Calculator!AL64)/(Beam_Thickness_Calculator!AL64*Beam_Thickness_Calculator!AH69+Beam_Thickness_Calculator!AL68*Beam_Thickness_Calculator!AH70)","v":115459902.73846781},"Is","Moment of inertia Spar","[m4]",{"$f":"(Beam_Thickness_Calculator!AG64/12)*(Beam_Thickness_Calculator!AG66^3-Beam_Thickness_Calculator!AG67^3)","v":1.7147757056025583E-2},{"$f":"(Beam_Thickness_Calculator!AH64/12)*(Beam_Thickness_Calculator!AH66^3-Beam_Thickness_Calculator!AH67^3)","v":1.9091141994531872E-2},"ρc","Density of core","[kg/m3]",{"$f":"Global_Var!$E$8","v":673}]
[null,null,null,null,null,null,null,null,null,null,null,null,null,null,null,null,null,null,null,null,null,null,null,null,"Ww","Wet Weight","[kg]",{"$f":"Beam_Thickness_Calculator!AG74+Beam_Thickness_Calculator!AG73-Beam_Thickness_Calculator!AG76","v":135.90204370454592},{"$f":"Beam_Thickness_Calculator!AH74+Beam_Thickness_Calculator!AH73-Beam_Thickness_Calculator!AH76","v":-153.97432444838262},"Ic","Moment of inertia Core","[m4]",{"$f":"(Beam_Thickness_Calculator!AG64/12)*Beam_Thickness_Calculator!AG67^3","v":3.2947632618807693E-3},{"$f":"(Beam_Thickness_Calculator!AH64/12)*Beam_Thickness_Calculator!AH67^3","v":4.4469032567648246E-2},"ρw","Density of Seawater","[kg/m3]",{"$f":"Global_Var!$E$9","v":1029}]
[null,null,null,null,null,null,null,null,null,null,null,null,null,null,null,null,null,null,null,null,null,null,null,null,"Ww(rotor)","Wet Weight segment of rotor (+ floats)","[kg]",{"$f":"AB70*2","v":271.80408740909184},{"$f":"AC70*3","v":-461.92297334514785},"Vs","Volume of Spar","[m3]",{"$f":"Beam_Thickness_Calculator!AG64*Beam_Thickness_Calculator!AB68*Beam_Thickness_Calculator!AL71*2","v":0.29166937082766825},{"$f":"Beam_Thickness_Calculator!AH64*Beam_Thickness_Calculator!AC68*Beam_Thickness_Calculator!AL71*2","v":8.0007321333333312E-2},"L","Section Length","[m]",{"$f":"Global_Var!$E$10","v":0.74166666666666647}]
[null,null,null,null,null,null,null,null,null,null,null,null,null,null,null,null,null,null,null,null,null,null,null,null,null,null,null,null,null,"Vc","Volume of Core","[m3]",{"$f":"Beam_Thickness_Calculator!AG67*Beam_Thickness_Calculator!AG64*Beam_Thickness_Calculator!AL71","v":0.34824540927782743},{"$f":"Beam_Thickness_Calculator!AH67*Beam_Thickness_Calculator!AH64*Beam_Thickness_Calculator!AL71","v":0.6327551903269174},null,"Beam width in terms of chord","[-]",{"$f":"Global_Var!$E$11","v":0.6}]
[null,null,null,null,null,null,null,null,null,null,null,null,null,null,null,null,null,null,null,null,null,null,null,null,null,"Spar Strain Limit (Goal Seek to 1)",null,{"$f":"(AB69/$AL$7)","v":1.0000929576529567},{"$f":"(AC69/$AL$7)","v":1.0003457177132891},"Ms","Mass of Spar","[kg]",{"$f":"Beam_Thickness_Calculator!AL65*AG71","v":560.00519198912309},{"$f":"Beam_Thickness_Calculator!AL65*AH71","v":153.61405695999997},null,"Beam height in terms of thickness","[-]",0.85]
[null,null,null,null,null,null,null,null,null,null,null,null,null,null,null,null,null,null,null,null,null,null,null,null,null,null,null,null,null,"Mc","Mass of Core","[kg]",{"$f":"AG72*Beam_Thickness_Calculator!AL69","v":234.36916044397788},{"$f":"AH72*Beam_Thickness_Calculator!AL69","v":425.84424309001542},null,"Chord Ratio Blade A/Blade B","[-]",{"$f":"Global_Var!$E$13","v":0.66666666666666663}]
[null,null,null,null,null,null,null,null,null,null,null,null,null,null,null,null,null,null,null,null,null,null,null,null,null,null,null,null,null,"Vd","Displaced Volume","[m3]",{"$f":"Beam_Thickness_Calculator!AG66*Beam_Thickness_Calculator!AG64*Beam_Thickness_Calculator!AL71","v":0.63991478010549563},{"$f":"Beam_Thickness_Calculator!AH66*Beam_Thickness_Calculator!AH64*Beam_Thickness_Calculator!AL71","v":0.71276251166025073},null,"Moment Ratio Blade A/Blade B","[-]",{"$f":"Global_Var!$E$14","v":0.66666666666666663}]
[null,null,null,null,null,null,null,null,null,null,null,null,null,null,null,null,null,null,null,null,null,null,null,null,null,null,null,null,null,"Mw","Mass of disp. Seawater","[kg]",{"$f":"Beam_Thickness_Calculator!AL70*Beam_Thickness_Calculator!AG75","v":658.47230872855505},{"$f":"Beam_Thickness_Calculator!AL70*Beam_Thickness_Calculator!AH75","v":733.43262449839801}]
[]
[null,null,null,null,null,null,null,null,null,null,null,null,null,null,null,null,null,null,null,null,null,null,null,null,"Input/Output",null,null,null,null,"Intermediate Calculations",null,null,null,null,"Constants"]
[null,null,null,null,null,null,null,null,null,null,null,null,null,null,null,null,null,null,null,null,null,null,null,null,6,null,null,"Blade A","Blade B","b","Spar Cap Width","[m]",{"$f":"Beam_Thickness_Calculator!AB80*Beam_Thickness_Calculator!AL87","v":1.3383278999999999},{"$f":"Beam_Thickness_Calculator!AC80*Beam_Thickness_Calculator!AL87","v":0.89221859999999997},"EUD","Modulus of Sparcap","[Pa]",{"$f":"Global_Var!$E$3","v":39800000000}]
[null,null,null,null,null,null,null,null,null,null,null,null,null,null,null,null,null,null,null,null,null,null,null,null,"C","Chord","[m]",{"$f":"L12","v":2.2305465},{"$f":"AB80*Beam_Thickness_Calculator!AL89","v":1.487031},"t","Airfoil thickness","[m]",{"$f":"Beam_Thickness_Calculator!AB81*Beam_Thickness_Calculator!AB80/100","v":0.5417822353190419},{"$f":"Beam_Thickness_Calculator!AC81*Beam_Thickness_Calculator!AC80/100","v":0.93908209596345993},"ρs","Density of sparcap","[kg/m3]",{"$f":"Global_Var!$E$4","v":1920}]
[null,null,null,null,null,null,null,null,null,null,null,null,null,null,null,null,null,null,null,null,null,null,null,null,"AF%","% thickness of foil","[%]",{"$f":"P12","v":24.289215011614502},{"$f":"T12","v":63.151480766941646},"ho","Section height outer","[m]",{"$f":"AG80*Beam_Thickness_Calculator!AL88","v":0.46051490002118561},{"$f":"AH80*Beam_Thickness_Calculator!AL88","v":0.79821978156894091},"ϵUD(max)","Max allow design strain Sparcap","[-]",{"$f":"Global_Var!$E$5","v":2.8999999999999998E-3}]
[null,null,null,null,null,null,null,null,null,null,null,null,null,null,null,null,null,null,null,null,null,null,null,null,"M","Moment","[n-m]",{"$f":"N12","v":5426667.2000449989},{"$f":"AB82*Beam_Thickness_Calculator!AL90","v":3617778.1333633326},"hc","height of core","[m]",{"$f":"Beam_Thickness_Calculator!AG81-2*Beam_Thickness_Calculator!AB83","v":8.4110178146185655E-2},{"$f":"Beam_Thickness_Calculator!AH81-2*Beam_Thickness_Calculator!AC83","v":0.69821978156894093},"σs(allow)","Allowable stress in Sparcap","[Pa]",{"$f":"Global_Var!$E$6","v":115419999.99999999}]
[null,null,null,null,null,null,null,null,null,null,null,null,null,null,null,null,null,null,null,null,null,null,null,null,"t","Spar Cap Thickness","[m]",{"$f":"Q12","v":0.18820236093749998},{"$f":"U12","v":0.05},"c","distance from neutral axis","[m]",{"$f":"Beam_Thickness_Calculator!AG81/2","v":0.23025745001059281},{"$f":"Beam_Thickness_Calculator!AH81/2","v":0.39910989078447046},"EC","Modulus of Core","[Pa]",{"$f":"Global_Var!$E$7","v":3790000}]
[null,null,null,null,null,null,null,null,null,null,null,null,null,null,null,null,null,null,null,null,null,null,null,null,"σs(max)","Max Stress in Sparcap","[Pa]",{"$f":"(AB82*(Beam_Thickness_Calculator!AG81/2)*Beam_Thickness_Calculator!AL79)/(Beam_Thickness_Calculator!AL79*Beam_Thickness_Calculator!AG84+Beam_Thickness_Calculator!AL83*Beam_Thickness_Calculator!AG85)","v":115421956.0114284},{"$f":"(AC82*(Beam_Thickness_Calculator!AH81/2)*Beam_Thickness_Calculator!AL79)/(Beam_Thickness_Calculator!AL79*Beam_Thickness_Calculator!AH84+Beam_Thickness_Calculator!AL83*Beam_Thickness_Calculator!AH85)","v":115434359.51249355},"Is","Moment of inertia Spar","[m4]",{"$f":"(Beam_Thickness_Calculator!AG79/12)*(Beam_Thickness_Calculator!AG81^3-Beam_Thickness_Calculator!AG82^3)","v":1.0825755040965529E-2},{"$f":"(Beam_Thickness_Calculator!AH79/12)*(Beam_Thickness_Calculator!AH81^3-Beam_Thickness_Calculator!AH82^3)","v":1.2505919740121907E-2},"ρc","Density of core","[kg/m3]",{"$f":"Global_Var!$E$8","v":673}]
[null,null,null,null,null,null,null,null,null,null,null,null,null,null,null,null,null,null,null,null,null,null,null,null,"Ww","Wet Weight","[kg]",{"$f":"Beam_Thickness_Calculator!AG89+Beam_Thickness_Calculator!AG88-Beam_Thickness_Calculator!AG91","v":303.17109749292047},{"$f":"Beam_Thickness_Calculator!AH89+Beam_Thickness_Calculator!AH88-Beam_Thickness_Calculator!AH91","v":-105.52340431968912},"Ic","Moment of inertia Core","[m4]",{"$f":"(Beam_Thickness_Calculator!AG79/12)*Beam_Thickness_Calculator!AG82^3","v":6.6363142672554382E-5},{"$f":"(Beam_Thickness_Calculator!AH79/12)*Beam_Thickness_Calculator!AH82^3","v":2.5308503920850201E-2},"ρw","Density of Seawater","[kg/m3]",{"$f":"Global_Var!$E$9","v":1029}]
[null,null,null,null,null,null,null,null,null,null,null,null,null,null,null,null,null,null,null,null,null,null,null,null,"Ww(rotor)","Wet Weight segment of rotor (+ floats)","[kg]",{"$f":"AB85*2","v":606.34219498584093},{"$f":"AC85*3","v":-316.57021295906736},"Vs","Volume of Spar","[m3]",{"$f":"Beam_Thickness_Calculator!AG79*Beam_Thickness_Calculator!AB83*Beam_Thickness_Calculator!AL86*2","v":0.37361676455798065},{"$f":"Beam_Thickness_Calculator!AH79*Beam_Thickness_Calculator!AC83*Beam_Thickness_Calculator!AL86*2","v":6.617287949999999E-2},"L","Section Length","[m]",{"$f":"Global_Var!$E$10","v":0.74166666666666647}]
[null,null,null,null,null,null,null,null,null,null,null,null,null,null,null,null,null,null,null,null,null,null,null,null,null,null,null,null,null,"Vc","Volume of Core","[m3]",{"$f":"Beam_Thickness_Calculator!AG82*Beam_Thickness_Calculator!AG79*Beam_Thickness_Calculator!AL86","v":8.3487190247866119E-2},{"$f":"Beam_Thickness_Calculator!AH82*Beam_Thickness_Calculator!AH79*Beam_Thickness_Calculator!AL86","v":0.46203213470277837},null,"Beam width in terms of chord","[-]",{"$f":"Global_Var!$E$11","v":0.6}]
[null,null,null,null,null,null,null,null,null,null,null,null,null,null,null,null,null,null,null,null,null,null,null,null,null,"Spar Strain Limit (Goal Seek to 1)",null,{"$f":"(AB84/$AL$7)","v":1.0000169469019964},{"$f":"(AC84/$AL$7)","v":1.0001244109555845},"Ms","Mass of Spar","[kg]",{"$f":"Beam_Thickness_Calculator!AL80*AG86","v":717.34418795132285},{"$f":"Beam_Thickness_Calculator!AL80*AH86","v":127.05192863999999},null,"Beam height in terms of thickness","[-]",0.85]
[null,null,null,null,null,null,null,null,null,null,null,null,null,null,null,null,null,null,null,null,null,null,null,null,null,null,null,null,null,"Mc","Mass of Core","[kg]",{"$f":"AG87*Beam_Thickness_Calculator!AL84","v":56.186879036813899},{"$f":"AH87*Beam_Thickness_Calculator!AL84","v":310.94762665496984},null,"Chord Ratio Blade A/Blade B","[-]",{"$f":"Global_Var!$E$13","v":0.66666666666666663}]
[null,null,null,null,null,null,null,null,null,null,null,null,null,null,null,null,null,null,null,null,null,null,null,null,null,null,null,null,null,"Vd","Displaced Volume","[m3]",{"$f":"Beam_Thickness_Calculator!AG81*Beam_Thickness_Calculator!AG79*Beam_Thickness_Calculator!AL86","v":0.45710395480584676},{"$f":"Beam_Thickness_Calculator!AH81*Beam_Thickness_Calculator!AH79*Beam_Thickness_Calculator!AL86","v":0.52820501420277832},null,"Moment Ratio Blade A/Blade B","[-]",{"$f":"Global_Var!$E$14","v":0.66666666666666663}]
[null,null,null,null,null,null,null,null,null,null,null,null,null,null,null,null,null,null,null,null,null,null,null,null,null,null,null,null,null,"Mw","Mass of disp. Seawater","[kg]",{"$f":"Beam_Thickness_Calculator!AL85*Beam_Thickness_Calculator!AG90","v":470.35996949521632},{"$f":"Beam_Thickness_Calculator!AL85*Beam_Thickness_Calculator!AH90","v":543.52295961465893}]
[]
[null,null,null,null,null,null,null,null,null,null,null,null,null,null,null,null,null,null,null,null,null,null,null,null,"Input/Output",null,null,null,null,"Intermediate Calculations",null,null,null,null,"Constants"]
[null,null,null,null,null,null,null,null,null,null,null,null,null,null,null,null,null,null,null,null,null,null,null,null,7,null,null,"Blade A","Blade B","b","Spar Cap Width","[m]",{"$f":"Beam_Thickness_Calculator!AB95*Beam_Thickness_Calculator!AL102","v":1.1468183999999997},{"$f":"Beam_Thickness_Calculator!AC95*Beam_Thickness_Calculator!AL102","v":0.76454559999999983},"EUD","Modulus of Sparcap","[Pa]",{"$f":"Global_Var!$E$3","v":39800000000}]
[null,null,null,null,null,null,null,null,null,null,null,null,null,null,null,null,null,null,null,null,null,null,null,null,"C","Chord","[m]",{"$f":"L13","v":1.9113639999999996},{"$f":"AB95*Beam_Thickness_Calculator!AL104","v":1.2742426666666664},"t","Airfoil thickness","[m]",{"$f":"Beam_Thickness_Calculator!AB96*Beam_Thickness_Calculator!AB95/100","v":0.48275777931887531},{"$f":"Beam_Thickness_Calculator!AC96*Beam_Thickness_Calculator!AC95/100","v":0.76267955061300785},"ρs","Density of sparcap","[kg/m3]",{"$f":"Global_Var!$E$4","v":1920}]
[null,null,null,null,null,null,null,null,null,null,null,null,null,null,null,null,null,null,null,null,null,null,null,null,"AF%","% thickness of foil","[%]",{"$f":"P13","v":25.257239297113234},{"$f":"T13","v":59.853556199630837},"ho","Section height outer","[m]",{"$f":"AG95*Beam_Thickness_Calculator!AL103","v":0.41034411242104402},{"$f":"AH95*Beam_Thickness_Calculator!AL103","v":0.64827761802105666},"ϵUD(max)","Max allow design strain Sparcap","[-]",{"$f":"Global_Var!$E$5","v":2.8999999999999998E-3}]
[null,null,null,null,null,null,null,null,null,null,null,null,null,null,null,null,null,null,null,null,null,null,null,null,"M","Moment","[n-m]",{"$f":"N13","v":3663270.9075462483},{"$f":"AB97*Beam_Thickness_Calculator!AL105","v":2442180.6050308319},"hc","height of core","[m]",{"$f":"Beam_Thickness_Calculator!AG96-2*Beam_Thickness_Calculator!AB98","v":9.8552859921044123E-2},{"$f":"Beam_Thickness_Calculator!AH96-2*Beam_Thickness_Calculator!AC98","v":0.54827761802105668},"σs(allow)","Allowable stress in Sparcap","[Pa]",{"$f":"Global_Var!$E$6","v":115419999.99999999}]
[null,null,null,null,null,null,null,null,null,null,null,null,null,null,null,null,null,null,null,null,null,null,null,null,"t","Spar Cap Thickness","[m]",{"$f":"Q13","v":0.15589562624999995},{"$f":"U13","v":0.05},"c","distance from neutral axis","[m]",{"$f":"Beam_Thickness_Calculator!AG96/2","v":0.20517205621052201},{"$f":"Beam_Thickness_Calculator!AH96/2","v":0.32413880901052833},"EC","Modulus of Core","[Pa]",{"$f":"Global_Var!$E$7","v":3790000}]
[null,null,null,null,null,null,null,null,null,null,null,null,null,null,null,null,null,null,null,null,null,null,null,null,"σs(max)","Max Stress in Sparcap","[Pa]",{"$f":"(AB97*(Beam_Thickness_Calculator!AG96/2)*Beam_Thickness_Calculator!AL94)/(Beam_Thickness_Calculator!AL94*Beam_Thickness_Calculator!AG99+Beam_Thickness_Calculator!AL98*Beam_Thickness_Calculator!AG100)","v":115421643.31652936},{"$f":"(AC97*(Beam_Thickness_Calculator!AH96/2)*Beam_Thickness_Calculator!AL94)/(Beam_Thickness_Calculator!AL94*Beam_Thickness_Calculator!AH99+Beam_Thickness_Calculator!AL98*Beam_Thickness_Calculator!AH100)","v":115421479.96170466},"Is","Moment of inertia Spar","[m4]",{"$f":"(Beam_Thickness_Calculator!AG94/12)*(Beam_Thickness_Calculator!AG96^3-Beam_Thickness_Calculator!AG97^3)","v":6.5117754131864833E-3},{"$f":"(Beam_Thickness_Calculator!AH94/12)*(Beam_Thickness_Calculator!AH96^3-Beam_Thickness_Calculator!AH97^3)","v":6.8573899489460539E-3},"ρc","Density of core","[kg/m3]",{"$f":"Global_Var!$E$8","v":673}]
[null,null,null,null,null,null,null,null,null,null,null,null,null,null,null,null,null,null,null,null,null,null,null,null,"Ww","Wet Weight","[kg]",{"$f":"Beam_Thickness_Calculator!AG104+Beam_Thickness_Calculator!AG103-Beam_Thickness_Calculator!AG106","v":206.44820051597316},{"$f":"Beam_Thickness_Calculator!AH104+Beam_Thickness_Calculator!AH103-Beam_Thickness_Calculator!AH106","v":-60.155263637911844},"Ic","Moment of inertia Core","[m4]",{"$f":"(Beam_Thickness_Calculator!AG94/12)*Beam_Thickness_Calculator!AG97^3","v":9.1478935284557708E-5},{"$f":"(Beam_Thickness_Calculator!AH94/12)*Beam_Thickness_Calculator!AH97^3","v":1.0500831729648287E-2},"ρw","Density of Seawater","[kg/m3]",{"$f":"Global_Var!$E$9","v":1029}]
[null,null,null,null,null,null,null,null,null,null,null,null,null,null,null,null,null,null,null,null,null,null,null,null,"Ww(rotor)","Wet Weight segment of rotor (+ floats)","[kg]",{"$f":"AB100*2","v":412.89640103194631},{"$f":"AC100*3","v":-180.46579091373553},"Vs","Volume of Spar","[m3]",{"$f":"Beam_Thickness_Calculator!AG94*Beam_Thickness_Calculator!AB98*Beam_Thickness_Calculator!AL101*2","v":0.26519622611681726},{"$f":"Beam_Thickness_Calculator!AH94*Beam_Thickness_Calculator!AC98*Beam_Thickness_Calculator!AL101*2","v":5.6703798666666645E-2},"L","Section Length","[m]",{"$f":"Global_Var!$E$10","v":0.74166666666666647}]
[null,null,null,null,null,null,null,null,null,null,null,null,null,null,null,null,null,null,null,null,null,null,null,null,null,null,null,null,null,"Vc","Volume of Core","[m3]",{"$f":"Beam_Thickness_Calculator!AG97*Beam_Thickness_Calculator!AG94*Beam_Thickness_Calculator!AL101","v":8.3824822904806293E-2},{"$f":"Beam_Thickness_Calculator!AH97*Beam_Thickness_Calculator!AH94*Beam_Thickness_Calculator!AL101","v":0.31089423665705551},null,"Beam width in terms of chord","[-]",{"$f":"Global_Var!$E$11","v":0.6}]
[null,null,null,null,null,null,null,null,null,null,null,null,null,null,null,null,null,null,null,null,null,null,null,null,null,"Spar Strain Limit (Goal Seek to 1)",null,{"$f":"(AB99/$AL$7)","v":1.0000142377103567},{"$f":"(AC99/$AL$7)","v":1.0000128224025704},"Ms","Mass of Spar","[kg]",{"$f":"Beam_Thickness_Calculator!AL95*AG101","v":509.17675414428913},{"$f":"Beam_Thickness_Calculator!AL95*AH101","v":108.87129343999996},null,"Beam height in terms of thickness","[-]",0.85]
[null,null,null,null,null,null,null,null,null,null,null,null,null,null,null,null,null,null,null,null,null,null,null,null,null,null,null,null,null,"Mc","Mass of Core","[kg]",{"$f":"AG102*Beam_Thickness_Calculator!AL99","v":56.414105814934636},{"$f":"AH102*Beam_Thickness_Calculator!AL99","v":209.23182127019837},null,"Chord Ratio Blade A/Blade B","[-]",{"$f":"Global_Var!$E$13","v":0.66666666666666663}]
[null,null,null,null,null,null,null,null,null,null,null,null,null,null,null,null,null,null,null,null,null,null,null,null,null,null,null,null,null,"Vd","Displaced Volume","[m3]",{"$f":"Beam_Thickness_Calculator!AG96*Beam_Thickness_Calculator!AG94*Beam_Thickness_Calculator!AL101","v":0.34902104902162351},{"$f":"Beam_Thickness_Calculator!AH96*Beam_Thickness_Calculator!AH94*Beam_Thickness_Calculator!AL101","v":0.36759803532372221},null,"Moment Ratio Blade A/Blade B","[-]",{"$f":"Global_Var!$E$14","v":0.66666666666666663}]
[null,null,null,null,null,null,null,null,null,null,null,null,null,null,null,null,null,null,null,null,null,null,null,null,null,null,null,null,null,"Mw","Mass of disp. Seawater","[kg]",{"$f":"Beam_Thickness_Calculator!AL100*Beam_Thickness_Calculator!AG105","v":359.14265944325058},{"$f":"Beam_Thickness_Calculator!AL100*Beam_Thickness_Calculator!AH105","v":378.25837834811017}]
[]
[null,null,null,null,null,null,null,null,null,null,null,null,null,null,null,null,null,null,null,null,null,null,null,null,"Input/Output",null,null,null,null,"Intermediate Calculations",null,null,null,null,"Constants"]
[null,null,null,null,null,null,null,null,null,null,null,null,null,null,null,null,null,null,null,null,null,null,null,null,8,null,null,"Blade A","Blade B","b","Spar Cap Width","[m]",{"$f":"Beam_Thickness_Calculator!AB110*Beam_Thickness_Calculator!AL117","v":1.0059230999999997},{"$f":"Beam_Thickness_Calculator!AC110*Beam_Thickness_Calculator!AL117","v":0.67061539999999986},"EUD","Modulus of Sparcap","[Pa]",{"$f":"Global_Var!$E$3","v":39800000000}]
[null,null,null,null,null,null,null,null,null,null,null,null,null,null,null,null,null,null,null,null,null,null,null,null,"C","Chord","[m]",{"$f":"L14","v":1.6765384999999997},{"$f":"AB110*Beam_Thickness_Calculator!AL119","v":1.1176923333333331},"t","Airfoil thickness","[m]",{"$f":"Beam_Thickness_Calculator!AB111*Beam_Thickness_Calculator!AB110/100","v":0.39781968145416613},{"$f":"Beam_Thickness_Calculator!AC111*Beam_Thickness_Calculator!AC110/100","v":0.55289115216666795},"ρs","Density of sparcap","[kg/m3]",{"$f":"Global_Var!$E$4","v":1920}]
[null,null,null,null,null,null,null,null,null,null,null,null,null,null,null,null,null,null,null,null,null,null,null,null,"AF%","% thickness of foil","[%]",{"$f":"P14","v":23.728633816292689},{"$f":"T14","v":49.467204496049582},"ho","Section height outer","[m]",{"$f":"AG110*Beam_Thickness_Calculator!AL118","v":0.33814672923604122},{"$f":"AH110*Beam_Thickness_Calculator!AL118","v":0.46995747934166776},"ϵUD(max)","Max allow design strain Sparcap","[-]",{"$f":"Global_Var!$E$5","v":2.8999999999999998E-3}]
[null,null,null,null,null,null,null,null,null,null,null,null,null,null,null,null,null,null,null,null,null,null,null,null,"M","Moment","[n-m]",{"$f":"N14","v":2189716.612492498},{"$f":"AB112*Beam_Thickness_Calculator!AL120","v":1459811.0749949985},"hc","height of core","[m]",{"$f":"Beam_Thickness_Calculator!AG111-2*Beam_Thickness_Calculator!AB113","v":7.4091915486041271E-2},{"$f":"Beam_Thickness_Calculator!AH111-2*Beam_Thickness_Calculator!AC113","v":0.36995747934166778},"σs(allow)","Allowable stress in Sparcap","[Pa]",{"$f":"Global_Var!$E$6","v":115419999.99999999}]
[null,null,null,null,null,null,null,null,null,null,null,null,null,null,null,null,null,null,null,null,null,null,null,null,"t","Spar Cap Thickness","[m]",{"$f":"Q14","v":0.13202740687499998},{"$f":"U14","v":0.05},"c","distance from neutral axis","[m]",{"$f":"Beam_Thickness_Calculator!AG111/2","v":0.16907336461802061},{"$f":"Beam_Thickness_Calculator!AH111/2","v":0.23497873967083388},"EC","Modulus of Core","[Pa]",{"$f":"Global_Var!$E$7","v":3790000}]
[null,null,null,null,null,null,null,null,null,null,null,null,null,null,null,null,null,null,null,null,null,null,null,null,"σs(max)","Max Stress in Sparcap","[Pa]",{"$f":"(AB112*(Beam_Thickness_Calculator!AG111/2)*Beam_Thickness_Calculator!AL109)/(Beam_Thickness_Calculator!AL109*Beam_Thickness_Calculator!AG114+Beam_Thickness_Calculator!AL113*Beam_Thickness_Calculator!AG115)","v":115440005.75480407},{"$f":"(AC112*(Beam_Thickness_Calculator!AH111/2)*Beam_Thickness_Calculator!AL109)/(Beam_Thickness_Calculator!AL109*Beam_Thickness_Calculator!AH114+Beam_Thickness_Calculator!AL113*Beam_Thickness_Calculator!AH115)","v":115455445.98050743},"Is","Moment of inertia Spar","[m4]",{"$f":"(Beam_Thickness_Calculator!AG109/12)*(Beam_Thickness_Calculator!AG111^3-Beam_Thickness_Calculator!AG112^3)","v":3.2070544176232797E-3},{"$f":"(Beam_Thickness_Calculator!AH109/12)*(Beam_Thickness_Calculator!AH111^3-Beam_Thickness_Calculator!AH112^3)","v":2.9707862833043782E-3},"ρc","Density of core","[kg/m3]",{"$f":"Global_Var!$E$8","v":673}]
[null,null,null,null,null,null,null,null,null,null,null,null,null,null,null,null,null,null,null,null,null,null,null,null,"Ww","Wet Weight","[kg]",{"$f":"Beam_Thickness_Calculator!AG119+Beam_Thickness_Calculator!AG118-Beam_Thickness_Calculator!AG121","v":155.84896038281676},{"$f":"Beam_Thickness_Calculator!AH119+Beam_Thickness_Calculator!AH118-Beam_Thickness_Calculator!AH121","v":-21.190512112076334},"Ic","Moment of inertia Core","[m4]",{"$f":"(Beam_Thickness_Calculator!AG109/12)*Beam_Thickness_Calculator!AG112^3","v":3.4095416761190335E-5},{"$f":"(Beam_Thickness_Calculator!AH109/12)*Beam_Thickness_Calculator!AH112^3","v":2.8297476740075647E-3},"ρw","Density of Seawater","[kg/m3]",{"$f":"Global_Var!$E$9","v":1029}]
[null,null,null,null,null,null,null,null,null,null,null,null,null,null,null,null,null,null,null,null,null,null,null,null,"Ww(rotor)","Wet Weight segment of rotor (+ floats)","[kg]",{"$f":"AB115*2","v":311.69792076563351},{"$f":"AC115*3","v":-63.571536336229002},"Vs","Volume of Spar","[m3]",{"$f":"Beam_Thickness_Calculator!AG109*Beam_Thickness_Calculator!AB113*Beam_Thickness_Calculator!AL116*2","v":0.19700063730618081},{"$f":"Beam_Thickness_Calculator!AH109*Beam_Thickness_Calculator!AC113*Beam_Thickness_Calculator!AL116*2","v":4.9737308833333313E-2},"L","Section Length","[m]",{"$f":"Global_Var!$E$10","v":0.74166666666666647}]
[null,null,null,null,null,null,null,null,null,null,null,null,null,null,null,null,null,null,null,null,null,null,null,null,null,null,null,null,null,"Vc","Volume of Core","[m3]",{"$f":"Beam_Thickness_Calculator!AG112*Beam_Thickness_Calculator!AG109*Beam_Thickness_Calculator!AL116","v":5.5276987238736981E-2},{"$f":"Beam_Thickness_Calculator!AH112*Beam_Thickness_Calculator!AH109*Beam_Thickness_Calculator!AL116","v":0.18400689405218057},null,"Beam width in terms of chord","[-]",{"$f":"Global_Var!$E$11","v":0.6}]
[null,null,null,null,null,null,null,null,null,null,null,null,null,null,null,null,null,null,null,null,null,null,null,null,null,"Spar Strain Limit (Goal Seek to 1)",null,{"$f":"(AB114/$AL$7)","v":1.0001733300537523},{"$f":"(AC114/$AL$7)","v":1.0003071043190734},"Ms","Mass of Spar","[kg]",{"$f":"Beam_Thickness_Calculator!AL110*AG116","v":378.24122362786716},{"$f":"Beam_Thickness_Calculator!AL110*AH116","v":95.495632959999966},null,"Beam height in terms of thickness","[-]",0.85]
[null,null,null,null,null,null,null,null,null,null,null,null,null,null,null,null,null,null,null,null,null,null,null,null,null,null,null,null,null,"Mc","Mass of Core","[kg]",{"$f":"AG117*Beam_Thickness_Calculator!AL114","v":37.201412411669992},{"$f":"AH117*Beam_Thickness_Calculator!AL114","v":123.83663969711752},null,"Chord Ratio Blade A/Blade B","[-]",{"$f":"Global_Var!$E$13","v":0.66666666666666663}]
[null,null,null,null,null,null,null,null,null,null,null,null,null,null,null,null,null,null,null,null,null,null,null,null,null,null,null,null,null,"Vd","Displaced Volume","[m3]",{"$f":"Beam_Thickness_Calculator!AG111*Beam_Thickness_Calculator!AG109*Beam_Thickness_Calculator!AL116","v":0.25227762454491776},{"$f":"Beam_Thickness_Calculator!AH111*Beam_Thickness_Calculator!AH109*Beam_Thickness_Calculator!AL116","v":0.2337442028855139},null,"Moment Ratio Blade A/Blade B","[-]",{"$f":"Global_Var!$E$14","v":0.66666666666666663}]
[null,null,null,null,null,null,null,null,null,null,null,null,null,null,null,null,null,null,null,null,null,null,null,null,null,null,null,null,null,"Mw","Mass of disp. Seawater","[kg]",{"$f":"Beam_Thickness_Calculator!AL115*Beam_Thickness_Calculator!AG120","v":259.59367565672039},{"$f":"Beam_Thickness_Calculator!AL115*Beam_Thickness_Calculator!AH120","v":240.52278476919381}]
[]
[null,null,null,null,null,null,null,null,null,null,null,null,null,null,null,null,null,null,null,null,null,null,null,null,"Input/Output",null,null,null,null,"Intermediate Calculations",null,null,null,null,"Constants"]
[null,null,null,null,null,null,null,null,null,null,null,null,null,null,null,null,null,null,null,null,null,null,null,null,9,null,null,"Blade A","Blade B","b","Spar Cap Width","[m]",{"$f":"Beam_Thickness_Calculator!AB125*Beam_Thickness_Calculator!AL132","v":0.85259264999999973},{"$f":"Beam_Thickness_Calculator!AC125*Beam_Thickness_Calculator!AL132","v":0.56839509999999982},"EUD","Modulus of Sparcap","[Pa]",{"$f":"Global_Var!$E$3","v":39800000000}]
[null,null,null,null,null,null,null,null,null,null,null,null,null,null,null,null,null,null,null,null,null,null,null,null,"C","Chord","[m]",{"$f":"L15","v":1.4209877499999997},{"$f":"AB125*Beam_Thickness_Calculator!AL134","v":0.94732516666666644},"t","Airfoil thickness","[m]",{"$f":"Beam_Thickness_Calculator!AB126*Beam_Thickness_Calculator!AB125/100","v":0.30050786469608437},{"$f":"Beam_Thickness_Calculator!AC126*Beam_Thickness_Calculator!AC125/100","v":0.35856759072573802},"ρs","Density of sparcap","[kg/m3]",{"$f":"Global_Var!$E$4","v":1920}]
[null,null,null,null,null,null,null,null,null,null,null,null,null,null,null,null,null,null,null,null,null,null,null,null,"AF%","% thickness of foil","[%]",{"$f":"P15","v":21.147815292291188},{"$f":"T15","v":37.850529400313775},"ho","Section height outer","[m]",{"$f":"AG125*Beam_Thickness_Calculator!AL133","v":0.25543168499167168},{"$f":"AH125*Beam_Thickness_Calculator!AL133","v":0.30478245211687732},"ϵUD(max)","Max allow design strain Sparcap","[-]",{"$f":"Global_Var!$E$5","v":2.8999999999999998E-3}]
[null,null,null,null,null,null,null,null,null,null,null,null,null,null,null,null,null,null,null,null,null,null,null,null,"M","Moment","[n-m]",{"$f":"N15","v":1062400.1038218741},{"$f":"AB127*Beam_Thickness_Calculator!AL135","v":708266.73588124942},"hc","height of core","[m]",{"$f":"Beam_Thickness_Calculator!AG126-2*Beam_Thickness_Calculator!AB128","v":4.9388461241671733E-2},{"$f":"Beam_Thickness_Calculator!AH126-2*Beam_Thickness_Calculator!AC128","v":0.20478245211687732},"σs(allow)","Allowable stress in Sparcap","[Pa]",{"$f":"Global_Var!$E$6","v":115419999.99999999}]
[null,null,null,null,null,null,null,null,null,null,null,null,null,null,null,null,null,null,null,null,null,null,null,null,"t","Spar Cap Thickness","[m]",{"$f":"Q15","v":0.10302161187499997},{"$f":"U15","v":0.05},"c","distance from neutral axis","[m]",{"$f":"Beam_Thickness_Calculator!AG126/2","v":0.12771584249583584},{"$f":"Beam_Thickness_Calculator!AH126/2","v":0.15239122605843866},"EC","Modulus of Core","[Pa]",{"$f":"Global_Var!$E$7","v":3790000}]
[null,null,null,null,null,null,null,null,null,null,null,null,null,null,null,null,null,null,null,null,null,null,null,null,"σs(max)","Max Stress in Sparcap","[Pa]",{"$f":"(AB127*(Beam_Thickness_Calculator!AG126/2)*Beam_Thickness_Calculator!AL124)/(Beam_Thickness_Calculator!AL124*Beam_Thickness_Calculator!AG129+Beam_Thickness_Calculator!AL128*Beam_Thickness_Calculator!AG130)","v":115424675.09415947},{"$f":"(AC127*(Beam_Thickness_Calculator!AH126/2)*Beam_Thickness_Calculator!AL124)/(Beam_Thickness_Calculator!AL124*Beam_Thickness_Calculator!AH129+Beam_Thickness_Calculator!AL128*Beam_Thickness_Calculator!AH130)","v":115523324.74699382},"Is","Moment of inertia Spar","[m4]",{"$f":"(Beam_Thickness_Calculator!AG124/12)*(Beam_Thickness_Calculator!AG126^3-Beam_Thickness_Calculator!AG127^3)","v":1.1755305365842999E-3},{"$f":"(Beam_Thickness_Calculator!AH124/12)*(Beam_Thickness_Calculator!AH126^3-Beam_Thickness_Calculator!AH127^3)","v":9.3426294386038855E-4},"ρc","Density of core","[kg/m3]",{"$f":"Global_Var!$E$8","v":673}]
[null,null,null,null,null,null,null,null,null,null,null,null,null,null,null,null,null,null,null,null,null,null,null,null,"Ww","Wet Weight","[kg]",{"$f":"Beam_Thickness_Calculator!AG134+Beam_Thickness_Calculator!AG133-Beam_Thickness_Calculator!AG136","v":104.96976898697596},{"$f":"Beam_Thickness_Calculator!AH134+Beam_Thickness_Calculator!AH133-Beam_Thickness_Calculator!AH136","v":6.8281909041448898},"Ic","Moment of inertia Core","[m4]",{"$f":"(Beam_Thickness_Calculator!AG124/12)*Beam_Thickness_Calculator!AG127^3","v":8.5592719354919897E-6},{"$f":"(Beam_Thickness_Calculator!AH124/12)*Beam_Thickness_Calculator!AH127^3","v":4.0676848357053426E-4},"ρw","Density of Seawater","[kg/m3]",{"$f":"Global_Var!$E$9","v":1029}]
[null,null,null,null,null,null,null,null,null,null,null,null,null,null,null,null,null,null,null,null,null,null,null,null,"Ww(rotor)","Wet Weight segment of rotor (+ floats)","[kg]",{"$f":"AB130*2","v":209.93953797395193},{"$f":"AC130*3","v":20.484572712434669},"Vs","Volume of Spar","[m3]",{"$f":"Beam_Thickness_Calculator!AG124*Beam_Thickness_Calculator!AB128*Beam_Thickness_Calculator!AL131*2","v":0.13028927912907018},{"$f":"Beam_Thickness_Calculator!AH124*Beam_Thickness_Calculator!AC128*Beam_Thickness_Calculator!AL131*2","v":4.215596991666664E-2},"L","Section Length","[m]",{"$f":"Global_Var!$E$10","v":0.74166666666666647}]
[null,null,null,null,null,null,null,null,null,null,null,null,null,null,null,null,null,null,null,null,null,null,null,null,null,null,null,null,null,"Vc","Volume of Core","[m3]",{"$f":"Beam_Thickness_Calculator!AG127*Beam_Thickness_Calculator!AG124*Beam_Thickness_Calculator!AL131","v":3.1230277295015551E-2},{"$f":"Beam_Thickness_Calculator!AH127*Beam_Thickness_Calculator!AH124*Beam_Thickness_Calculator!AL131","v":8.6328028909003068E-2},null,"Beam width in terms of chord","[-]",{"$f":"Global_Var!$E$11","v":0.6}]
[null,null,null,null,null,null,null,null,null,null,null,null,null,null,null,null,null,null,null,null,null,null,null,null,null,"Spar Strain Limit (Goal Seek to 1)",null,{"$f":"(AB129/$AL$7)","v":1.0000405050611634},{"$f":"(AC129/$AL$7)","v":1.0008952066105861},"Ms","Mass of Spar","[kg]",{"$f":"Beam_Thickness_Calculator!AL125*AG131","v":250.15541592781474},{"$f":"Beam_Thickness_Calculator!AL125*AH131","v":80.939462239999955},null,"Beam height in terms of thickness","[-]",0.85]
[null,null,null,null,null,null,null,null,null,null,null,null,null,null,null,null,null,null,null,null,null,null,null,null,null,null,null,null,null,"Mc","Mass of Core","[kg]",{"$f":"AG132*Beam_Thickness_Calculator!AL129","v":21.017976619545465},{"$f":"AH132*Beam_Thickness_Calculator!AL129","v":58.098763455759062},null,"Chord Ratio Blade A/Blade B","[-]",{"$f":"Global_Var!$E$13","v":0.66666666666666663}]
[null,null,null,null,null,null,null,null,null,null,null,null,null,null,null,null,null,null,null,null,null,null,null,null,null,null,null,null,null,"Vd","Displaced Volume","[m3]",{"$f":"Beam_Thickness_Calculator!AG126*Beam_Thickness_Calculator!AG124*Beam_Thickness_Calculator!AL131","v":0.16151955642408575},{"$f":"Beam_Thickness_Calculator!AH126*Beam_Thickness_Calculator!AH124*Beam_Thickness_Calculator!AL131","v":0.12848399882566972},null,"Moment Ratio Blade A/Blade B","[-]",{"$f":"Global_Var!$E$14","v":0.66666666666666663}]
[null,null,null,null,null,null,null,null,null,null,null,null,null,null,null,null,null,null,null,null,null,null,null,null,null,null,null,null,null,"Mw","Mass of disp. Seawater","[kg]",{"$f":"Beam_Thickness_Calculator!AL130*Beam_Thickness_Calculator!AG135","v":166.20362356038424},{"$f":"Beam_Thickness_Calculator!AL130*Beam_Thickness_Calculator!AH135","v":132.21003479161413}]
[]
[null,null,null,null,null,null,null,null,null,null,null,null,null,null,null,null,null,null,null,null,null,null,null,null,"Input/Output",null,null,null,null,"Intermediate Calculations",null,null,null,null,"Constants"]
[null,null,null,null,null,null,null,null,null,null,null,null,null,null,null,null,null,null,null,null,null,null,null,null,10,null,null,"Blade A","Blade B","b","Spar Cap Width","[m]",{"$f":"Beam_Thickness_Calculator!AB140*Beam_Thickness_Calculator!AL147","v":0.69085380000000018},{"$f":"Beam_Thickness_Calculator!AC140*Beam_Thickness_Calculator!AL147","v":0.46056920000000012},"EUD","Modulus of Sparcap","[Pa]",{"$f":"Global_Var!$E$3","v":39800000000}]
[null,null,null,null,null,null,null,null,null,null,null,null,null,null,null,null,null,null,null,null,null,null,null,null,"C","Chord","[m]",{"$f":"L16","v":1.1514230000000003},{"$f":"AB140*Beam_Thickness_Calculator!AL149","v":0.76761533333333354},"t","Airfoil thickness","[m]",{"$f":"Beam_Thickness_Calculator!AB141*Beam_Thickness_Calculator!AB140/100","v":0.1837727483381317},{"$f":"Beam_Thickness_Calculator!AC141*Beam_Thickness_Calculator!AC140/100","v":0.18890713948093507},"ρs","Density of sparcap","[kg/m3]",{"$f":"Global_Var!$E$4","v":1920}]
[null,null,null,null,null,null,null,null,null,null,null,null,null,null,null,null,null,null,null,null,null,null,null,null,"AF%","% thickness of foil","[%]",{"$f":"P16","v":15.960489614861928},{"$f":"T16","v":24.609609954065753},"ho","Section height outer","[m]",{"$f":"AG140*Beam_Thickness_Calculator!AL148","v":0.15620683608741195},{"$f":"AH140*Beam_Thickness_Calculator!AL148","v":0.1605710685587948},"ϵUD(max)","Max allow design strain Sparcap","[-]",{"$f":"Global_Var!$E$5","v":2.8999999999999998E-3}]
[null,null,null,null,null,null,null,null,null,null,null,null,null,null,null,null,null,null,null,null,null,null,null,null,"M","Moment","[n-m]",{"$f":"N16","v":324240.04999749974},{"$f":"AB142*Beam_Thickness_Calculator!AL150","v":216160.03333166649},"hc","height of core","[m]",{"$f":"Beam_Thickness_Calculator!AG141-2*Beam_Thickness_Calculator!AB143","v":3.6432885874118914E-3},{"$f":"Beam_Thickness_Calculator!AH141-2*Beam_Thickness_Calculator!AC143","v":6.0571068558794794E-2},"σs(allow)","Allowable stress in Sparcap","[Pa]",{"$f":"Global_Var!$E$6","v":115419999.99999999}]
[null,null,null,null,null,null,null,null,null,null,null,null,null,null,null,null,null,null,null,null,null,null,null,null,"t","Spar Cap Thickness","[m]",{"$f":"Q16","v":7.6281773750000031E-2},{"$f":"U16","v":0.05},"c","distance from neutral axis","[m]",{"$f":"Beam_Thickness_Calculator!AG141/2","v":7.8103418043705977E-2},{"$f":"Beam_Thickness_Calculator!AH141/2","v":8.02855342793974E-2},"EC","Modulus of Core","[Pa]",{"$f":"Global_Var!$E$7","v":3790000}]
[null,null,null,null,null,null,null,null,null,null,null,null,null,null,null,null,null,null,null,null,null,null,null,null,"σs(max)","Max Stress in Sparcap","[Pa]",{"$f":"(AB142*(Beam_Thickness_Calculator!AG141/2)*Beam_Thickness_Calculator!AL139)/(Beam_Thickness_Calculator!AL139*Beam_Thickness_Calculator!AG144+Beam_Thickness_Calculator!AL143*Beam_Thickness_Calculator!AG145)","v":115408340.18557175},{"$f":"(AC142*(Beam_Thickness_Calculator!AH141/2)*Beam_Thickness_Calculator!AL139)/(Beam_Thickness_Calculator!AL139*Beam_Thickness_Calculator!AH144+Beam_Thickness_Calculator!AL143*Beam_Thickness_Calculator!AH145)","v":115413267.69121854},"Is","Moment of inertia Spar","[m4]",{"$f":"(Beam_Thickness_Calculator!AG139/12)*(Beam_Thickness_Calculator!AG141^3-Beam_Thickness_Calculator!AG142^3)","v":2.1943176810401661E-4},{"$f":"(Beam_Thickness_Calculator!AH139/12)*(Beam_Thickness_Calculator!AH141^3-Beam_Thickness_Calculator!AH142^3)","v":1.5036772092026206E-4},"ρc","Density of core","[kg/m3]",{"$f":"Global_Var!$E$8","v":673}]
[null,null,null,null,null,null,null,null,null,null,null,null,null,null,null,null,null,null,null,null,null,null,null,null,"Ww","Wet Weight","[kg]",{"$f":"Beam_Thickness_Calculator!AG149+Beam_Thickness_Calculator!AG148-Beam_Thickness_Calculator!AG151","v":68.985798016598849},{"$f":"Beam_Thickness_Calculator!AH149+Beam_Thickness_Calculator!AH148-Beam_Thickness_Calculator!AH151","v":23.06978174581328},"Ic","Moment of inertia Core","[m4]",{"$f":"(Beam_Thickness_Calculator!AG139/12)*Beam_Thickness_Calculator!AG142^3","v":2.7841050932072332E-9},{"$f":"(Beam_Thickness_Calculator!AH139/12)*Beam_Thickness_Calculator!AH142^3","v":8.5292206858097491E-6},"ρw","Density of Seawater","[kg/m3]",{"$f":"Global_Var!$E$9","v":1029}]
[null,null,null,null,null,null,null,null,null,null,null,null,null,null,null,null,null,null,null,null,null,null,null,null,"Ww(rotor)","Wet Weight segment of rotor (+ floats)","[kg]",{"$f":"AB145*2","v":137.9715960331977},{"$f":"AC145*3","v":69.209345237439834},"Vs","Volume of Spar","[m3]",{"$f":"Beam_Thickness_Calculator!AG139*Beam_Thickness_Calculator!AB143*Beam_Thickness_Calculator!AL146*2","v":7.8171004011126186E-2},{"$f":"Beam_Thickness_Calculator!AH139*Beam_Thickness_Calculator!AC143*Beam_Thickness_Calculator!AL146*2","v":3.4158882333333335E-2},"L","Section Length","[m]",{"$f":"Global_Var!$E$10","v":0.74166666666666647}]
[null,null,null,null,null,null,null,null,null,null,null,null,null,null,null,null,null,null,null,null,null,null,null,null,null,null,null,null,null,"Vc","Volume of Core","[m3]",{"$f":"Beam_Thickness_Calculator!AG142*Beam_Thickness_Calculator!AG139*Beam_Thickness_Calculator!AL146","v":1.8667599924566851E-3},{"$f":"Beam_Thickness_Calculator!AH142*Beam_Thickness_Calculator!AH139*Beam_Thickness_Calculator!AL146","v":2.0690400037041378E-2},null,"Beam width in terms of chord","[-]",{"$f":"Global_Var!$E$11","v":0.6}]
[null,null,null,null,null,null,null,null,null,null,null,null,null,null,null,null,null,null,null,null,null,null,null,null,null,"Spar Strain Limit (Goal Seek to 1)",null,{"$f":"(AB144/$AL$7)","v":0.99989897925465054},{"$f":"(AC144/$AL$7)","v":0.99994167121138933},"Ms","Mass of Spar","[kg]",{"$f":"Beam_Thickness_Calculator!AL140*AG146","v":150.08832770136229},{"$f":"Beam_Thickness_Calculator!AL140*AH146","v":65.585054080000006},null,"Beam height in terms of thickness","[-]",0.85]
[null,null,null,null,null,null,null,null,null,null,null,null,null,null,null,null,null,null,null,null,null,null,null,null,null,null,null,null,null,"Mc","Mass of Core","[kg]",{"$f":"AG147*Beam_Thickness_Calculator!AL144","v":1.2563294749233491},{"$f":"AH147*Beam_Thickness_Calculator!AL144","v":13.924639224928848},null,"Chord Ratio Blade A/Blade B","[-]",{"$f":"Global_Var!$E$13","v":0.66666666666666663}]
[null,null,null,null,null,null,null,null,null,null,null,null,null,null,null,null,null,null,null,null,null,null,null,null,null,null,null,null,null,"Vd","Displaced Volume","[m3]",{"$f":"Beam_Thickness_Calculator!AG141*Beam_Thickness_Calculator!AG139*Beam_Thickness_Calculator!AL146","v":8.0037764003582881E-2},{"$f":"Beam_Thickness_Calculator!AH141*Beam_Thickness_Calculator!AH139*Beam_Thickness_Calculator!AL146","v":5.4849282370374709E-2},null,"Moment Ratio Blade A/Blade B","[-]",{"$f":"Global_Var!$E$14","v":0.66666666666666663}]
[null,null,null,null,null,null,null,null,null,null,null,null,null,null,null,null,null,null,null,null,null,null,null,null,null,null,null,null,null,"Mw","Mass of disp. Seawater","[kg]",{"$f":"Beam_Thickness_Calculator!AL145*Beam_Thickness_Calculator!AG150","v":82.358859159686787},{"$f":"Beam_Thickness_Calculator!AL145*Beam_Thickness_Calculator!AH150","v":56.439911559115579}]
[]
[null,null,null,null,null,null,null,null,null,null,null,null,null,null,null,null,null,null,null,null,null,null,null,null,"Input/Output",null,null,null,null,"Intermediate Calculations",null,null,null,null,"Constants"]
[null,null,null,null,null,null,null,null,null,null,null,null,null,null,null,null,null,null,null,null,null,null,null,null,11,null,null,"Blade A","Blade B","b","Spar Cap Width","[m]",{"$f":"Beam_Thickness_Calculator!AB155*Beam_Thickness_Calculator!AL162","v":0.43266405000000002},{"$f":"Beam_Thickness_Calculator!AC155*Beam_Thickness_Calculator!AL162","v":0.2884427},"EUD","Modulus of Sparcap","[Pa]",{"$f":"Global_Var!$E$3","v":39800000000}]
[null,null,null,null,null,null,null,null,null,null,null,null,null,null,null,null,null,null,null,null,null,null,null,null,"C","Chord","[m]",{"$f":"L17","v":0.72110675000000002},{"$f":"AB155*Beam_Thickness_Calculator!AL164","v":0.48073783333333331},"t","Airfoil thickness","[m]",{"$f":"Beam_Thickness_Calculator!AB156*Beam_Thickness_Calculator!AB155/100","v":2.0873992182766188E+54},{"$f":"Beam_Thickness_Calculator!AC156*Beam_Thickness_Calculator!AC155/100","v":1.3915994788510791E+54},"ρs","Density of sparcap","[kg/m3]",{"$f":"Global_Var!$E$4","v":1920}]
[null,null,null,null,null,null,null,null,null,null,null,null,null,null,null,null,null,null,null,null,null,null,null,null,"AF%","% thickness of foil","[%]",{"$f":"P17","v":2.8947159602605559E+56},{"$f":"T17","v":2.8947159602605559E+56},"ho","Section height outer","[m]",{"$f":"AG155*Beam_Thickness_Calculator!AL163","v":1.774289335535126E+54},{"$f":"AH155*Beam_Thickness_Calculator!AL163","v":1.1828595570234172E+54},"ϵUD(max)","Max allow design strain Sparcap","[-]",{"$f":"Global_Var!$E$5","v":2.8999999999999998E-3}]
[null,null,null,null,null,null,null,null,null,null,null,null,null,null,null,null,null,null,null,null,null,null,null,null,"M","Moment","[n-m]",{"$f":"N17","v":0},{"$f":"AB157*Beam_Thickness_Calculator!AL165","v":0},"hc","height of core","[m]",{"$f":"Beam_Thickness_Calculator!AG156-2*Beam_Thickness_Calculator!AB158","v":1.774289335535126E+54},{"$f":"Beam_Thickness_Calculator!AH156-2*Beam_Thickness_Calculator!AC158","v":3.987161047429769E+71},"σs(allow)","Allowable stress in Sparcap","[Pa]",{"$f":"Global_Var!$E$6","v":115419999.99999999}]
[null,null,null,null,null,null,null,null,null,null,null,null,null,null,null,null,null,null,null,null,null,null,null,null,"t","Spar Cap Thickness","[m]",{"$f":"Q17","v":5740398089.0891371},{"$f":"U17","v":-1.9935805237148845E+71},"c","distance from neutral axis","[m]",{"$f":"Beam_Thickness_Calculator!AG156/2","v":8.87144667767563E+53},{"$f":"Beam_Thickness_Calculator!AH156/2","v":5.9142977851170861E+53},"EC","Modulus of Core","[Pa]",{"$f":"Global_Var!$E$7","v":3790000}]
[null,null,null,null,null,null,null,null,null,null,null,null,null,null,null,null,null,null,null,null,null,null,null,null,"σs(max)","Max Stress in Sparcap","[Pa]",{"$f":"(AB157*(Beam_Thickness_Calculator!AG156/2)*Beam_Thickness_Calculator!AL154)/(Beam_Thickness_Calculator!AL154*Beam_Thickness_Calculator!AG159+Beam_Thickness_Calculator!AL158*Beam_Thickness_Calculator!AG160)","v":0},{"$f":"(AC157*(Beam_Thickness_Calculator!AH156/2)*Beam_Thickness_Calculator!AL154)/(Beam_Thickness_Calculator!AL154*Beam_Thickness_Calculator!AH159+Beam_Thickness_Calculator!AL158*Beam_Thickness_Calculator!AH160)","v":0},"Is","Moment of inertia Spar","[m4]",{"$f":"(Beam_Thickness_Calculator!AG154/12)*(Beam_Thickness_Calculator!AG156^3-Beam_Thickness_Calculator!AG157^3)","v":0},{"$f":"(Beam_Thickness_Calculator!AH154/12)*(Beam_Thickness_Calculator!AH156^3-Beam_Thickness_Calculator!AH157^3)","v":-1.5235953537385094E+213},"ρc","Density of core","[kg/m3]",{"$f":"Global_Var!$E$8","v":673}]
[null,null,null,null,null,null,null,null,null,null,null,null,null,null,null,null,null,null,null,null,null,null,null,null,"Ww","Wet Weight","[kg]",{"$f":"Beam_Thickness_Calculator!AG164+Beam_Thickness_Calculator!AG163-Beam_Thickness_Calculator!AG166","v":-2.0269078842341738E+56},{"$f":"Beam_Thickness_Calculator!AH164+Beam_Thickness_Calculator!AH163-Beam_Thickness_Calculator!AH166","v":-1.063649509287447E+74},"Ic","Moment of inertia Core","[m4]",{"$f":"(Beam_Thickness_Calculator!AG154/12)*Beam_Thickness_Calculator!AG157^3","v":2.013923139107573E+161},{"$f":"(Beam_Thickness_Calculator!AH154/12)*Beam_Thickness_Calculator!AH157^3","v":1.5235953537385094E+213},"ρw","Density of Seawater","[kg/m3]",{"$f":"Global_Var!$E$9","v":1029}]
[null,null,null,null,null,null,null,null,null,null,null,null,null,null,null,null,null,null,null,null,null,null,null,null,"Ww(rotor)","Wet Weight segment of rotor (+ floats)","[kg]",{"$f":"AB160*2","v":-4.0538157684683475E+56},{"$f":"AC160*3","v":-3.1909485278623413E+74},"Vs","Volume of Spar","[m3]",{"$f":"Beam_Thickness_Calculator!AG154*Beam_Thickness_Calculator!AB158*Beam_Thickness_Calculator!AL161*2","v":3684101430.6590567},{"$f":"Beam_Thickness_Calculator!AH154*Beam_Thickness_Calculator!AC158*Beam_Thickness_Calculator!AL161*2","v":-8.5296672757614046E+70},"L","Section Length","[m]",{"$f":"Global_Var!$E$10","v":0.74166666666666647}]
[null,null,null,null,null,null,null,null,null,null,null,null,null,null,null,null,null,null,null,null,null,null,null,null,null,null,null,null,null,"Vc","Volume of Core","[m3]",{"$f":"Beam_Thickness_Calculator!AG157*Beam_Thickness_Calculator!AG154*Beam_Thickness_Calculator!AL161","v":5.6935614725679035E+53},{"$f":"Beam_Thickness_Calculator!AH157*Beam_Thickness_Calculator!AH154*Beam_Thickness_Calculator!AL161","v":8.5296672757614046E+70},null,"Beam width in terms of chord","[-]",{"$f":"Global_Var!$E$11","v":0.6}]
[null,null,null,null,null,null,null,null,null,null,null,null,null,null,null,null,null,null,null,null,null,null,null,null,null,"Spar Strain Limit (Goal Seek to 1)",null,{"$f":"(AB159/$AL$7)","v":0},{"$f":"(AC159/$AL$7)","v":0},"Ms","Mass of Spar","[kg]",{"$f":"Beam_Thickness_Calculator!AL155*AG161","v":7073474746865.3887},{"$f":"Beam_Thickness_Calculator!AL155*AH161","v":-1.6376961169461896E+74},null,"Beam height in terms of thickness","[-]",0.85]
[null,null,null,null,null,null,null,null,null,null,null,null,null,null,null,null,null,null,null,null,null,null,null,null,null,null,null,null,null,"Mc","Mass of Core","[kg]",{"$f":"AG162*Beam_Thickness_Calculator!AL159","v":3.8317668710381989E+56},{"$f":"AH162*Beam_Thickness_Calculator!AL159","v":5.7404660765874256E+73},null,"Chord Ratio Blade A/Blade B","[-]",{"$f":"Global_Var!$E$13","v":0.66666666666666663}]
[null,null,null,null,null,null,null,null,null,null,null,null,null,null,null,null,null,null,null,null,null,null,null,null,null,null,null,null,null,"Vd","Displaced Volume","[m3]",{"$f":"Beam_Thickness_Calculator!AG156*Beam_Thickness_Calculator!AG154*Beam_Thickness_Calculator!AL161","v":5.6935614725679035E+53},{"$f":"Beam_Thickness_Calculator!AH156*Beam_Thickness_Calculator!AH154*Beam_Thickness_Calculator!AL161","v":2.5304717655857344E+53},null,"Moment Ratio Blade A/Blade B","[-]",{"$f":"Global_Var!$E$14","v":0.66666666666666663}]
[null,null,null,null,null,null,null,null,null,null,null,null,null,null,null,null,null,null,null,null,null,null,null,null,null,null,null,null,null,"Mw","Mass of disp. Seawater","[kg]",{"$f":"Beam_Thickness_Calculator!AL160*Beam_Thickness_Calculator!AG165","v":5.8586747552723726E+56},{"$f":"Beam_Thickness_Calculator!AL160*Beam_Thickness_Calculator!AH165","v":2.6038554467877205E+56}]
[]
[null,null,null,null,null,null,null,null,null,null,null,null,null,null,null,null,null,null,null,null,null,null,null,null,"Input/Output",null,null,null,null,"Intermediate Calculations",null,null,null,null,"Constants"]
[null,null,null,null,null,null,null,null,null,null,null,null,null,null,null,null,null,null,null,null,null,null,null,null,12,null,null,"Blade A","Blade B","b","Spar Cap Width","[m]",{"$f":"Beam_Thickness_Calculator!AB170*Beam_Thickness_Calculator!AL177","v":0},{"$f":"Beam_Thickness_Calculator!AC170*Beam_Thickness_Calculator!AL177","v":0},"EUD","Modulus of Sparcap","[Pa]",{"$f":"Global_Var!$E$3","v":39800000000}]
[null,null,null,null,null,null,null,null,null,null,null,null,null,null,null,null,null,null,null,null,null,null,null,null,"C","Chord","[m]",{"$f":"L18","v":0},{"$f":"AB170*Beam_Thickness_Calculator!AL179","v":0},"t","Airfoil thickness","[m]",{"$f":"Beam_Thickness_Calculator!AB171*Beam_Thickness_Calculator!AB170/100","v":0},{"$f":"Beam_Thickness_Calculator!AC171*Beam_Thickness_Calculator!AC170/100","v":0},"ρs","Density of sparcap","[kg/m3]",{"$f":"Global_Var!$E$4","v":1920}]
[null,null,null,null,null,null,null,null,null,null,null,null,null,null,null,null,null,null,null,null,null,null,null,null,"AF%","% thickness of foil","[%]",{"$f":"P18","v":24.653875268834554},{"$f":"T18","v":22.967952388844765},"ho","Section height outer","[m]",{"$f":"AG170*Beam_Thickness_Calculator!AL178","v":0},{"$f":"AH170*Beam_Thickness_Calculator!AL178","v":0},"ϵUD(max)","Max allow design strain Sparcap","[-]",{"$f":"Global_Var!$E$5","v":2.8999999999999998E-3}]
[null,null,null,null,null,null,null,null,null,null,null,null,null,null,null,null,null,null,null,null,null,null,null,null,"M","Moment","[n-m]",{"$f":"N18","v":0},{"$f":"AB172*Beam_Thickness_Calculator!AL180","v":0},"hc","height of core","[m]",{"$f":"Beam_Thickness_Calculator!AG171-2*Beam_Thickness_Calculator!AB173","v":-0.08},{"$f":"Beam_Thickness_Calculator!AH171-2*Beam_Thickness_Calculator!AC173","v":-0.57499897790586052},"σs(allow)","Allowable stress in Sparcap","[Pa]",{"$f":"Global_Var!$E$6","v":115419999.99999999}]
[null,null,null,null,null,null,null,null,null,null,null,null,null,null,null,null,null,null,null,null,null,null,null,null,"t","Spar Cap Thickness","[m]",{"$f":"Q18","v":0.04},{"$f":"U18","v":0.28749948895293026},"c","distance from neutral axis","[m]",{"$f":"Beam_Thickness_Calculator!AG171/2","v":0},{"$f":"Beam_Thickness_Calculator!AH171/2","v":0},"EC","Modulus of Core","[Pa]",{"$f":"Global_Var!$E$7","v":3790000}]
[null,null,null,null,null,null,null,null,null,null,null,null,null,null,null,null,null,null,null,null,null,null,null,null,"σs(max)","Max Stress in Sparcap","[Pa]",{"$f":"(AB172*(Beam_Thickness_Calculator!AG171/2)*Beam_Thickness_Calculator!AL169)/(Beam_Thickness_Calculator!AL169*Beam_Thickness_Calculator!AG174+Beam_Thickness_Calculator!AL173*Beam_Thickness_Calculator!AG175)","v":{"$error":"#DIV/0!"}},{"$f":"(AC172*(Beam_Thickness_Calculator!AH171/2)*Beam_Thickness_Calculator!AL169)/(Beam_Thickness_Calculator!AL169*Beam_Thickness_Calculator!AH174+Beam_Thickness_Calculator!AL173*Beam_Thickness_Calculator!AH175)","v":{"$error":"#DIV/0!"}},"Is","Moment of inertia Spar","[m4]",{"$f":"(Beam_Thickness_Calculator!AG169/12)*(Beam_Thickness_Calculator!AG171^3-Beam_Thickness_Calculator!AG172^3)","v":0},{"$f":"(Beam_Thickness_Calculator!AH169/12)*(Beam_Thickness_Calculator!AH171^3-Beam_Thickness_Calculator!AH172^3)","v":0},"ρc","Density of core","[kg/m3]",{"$f":"Global_Var!$E$8","v":673}]
[null,null,null,null,null,null,null,null,null,null,null,null,null,null,null,null,null,null,null,null,null,null,null,null,"Ww","Wet Weight","[kg]",{"$f":"Beam_Thickness_Calculator!AG179+Beam_Thickness_Calculator!AG178-Beam_Thickness_Calculator!AG181","v":0},{"$f":"Beam_Thickness_Calculator!AH179+Beam_Thickness_Calculator!AH178-Beam_Thickness_Calculator!AH181","v":0},"Ic","Moment of inertia Core","[m4]",{"$f":"(Beam_Thickness_Calculator!AG169/12)*Beam_Thickness_Calculator!AG172^3","v":0},{"$f":"(Beam_Thickness_Calculator!AH169/12)*Beam_Thickness_Calculator!AH172^3","v":0},"ρw","Density of Seawater","[kg/m3]",{"$f":"Global_Var!$E$9","v":1029}]
[null,null,null,null,null,null,null,null,null,null,null,null,null,null,null,null,null,null,null,null,null,null,null,null,"Ww(rotor)","Wet Weight segment of rotor (+ floats)","[kg]",{"$f":"AB175*2","v":0},{"$f":"AC175*3","v":0},"Vs","Volume of Spar","[m3]",{"$f":"Beam_Thickness_Calculator!AG169*Beam_Thickness_Calculator!AB173*Beam_Thickness_Calculator!AL176*2","v":0},{"$f":"Beam_Thickness_Calculator!AH169*Beam_Thickness_Calculator!AC173*Beam_Thickness_Calculator!AL176*2","v":0},"L","Section Length","[m]",{"$f":"Global_Var!$E$10","v":0.74166666666666647}]
[null,null,null,null,null,null,null,null,null,null,null,null,null,null,null,null,null,null,null,null,null,null,null,null,null,null,null,null,null,"Vc","Volume of Core","[m3]",{"$f":"Beam_Thickness_Calculator!AG172*Beam_Thickness_Calculator!AG169*Beam_Thickness_Calculator!AL176","v":0},{"$f":"Beam_Thickness_Calculator!AH172*Beam_Thickness_Calculator!AH169*Beam_Thickness_Calculator!AL176","v":0},null,"Beam width in terms of chord","[-]",{"$f":"Global_Var!$E$11","v":0.6}]
[null,null,null,null,null,null,null,null,null,null,null,null,null,null,null,null,null,null,null,null,null,null,null,null,null,"Spar Strain Limit (Goal Seek to 1)",null,{"$f":"(AB174/$AL$7)","v":{"$error":"#DIV/0!"}},{"$f":"(AC174/$AL$7)","v":{"$error":"#DIV/0!"}},"Ms","Mass of Spar","[kg]",{"$f":"Beam_Thickness_Calculator!AL170*AG176","v":0},{"$f":"Beam_Thickness_Calculator!AL170*AH176","v":0},null,"Beam height in terms of thickness","[-]",0.85]
[null,null,null,null,null,null,null,null,null,null,null,null,null,null,null,null,null,null,null,null,null,null,null,null,null,null,null,null,null,"Mc","Mass of Core","[kg]",{"$f":"AG177*Beam_Thickness_Calculator!AL174","v":0},{"$f":"AH177*Beam_Thickness_Calculator!AL174","v":0},null,"Chord Ratio Blade A/Blade B","[-]",{"$f":"Global_Var!$E$13","v":0.66666666666666663}]
[null,null,null,null,null,null,null,null,null,null,null,null,null,null,null,null,null,null,null,null,null,null,null,null,null,null,null,null,null,"Vd","Displaced Volume","[m3]",{"$f":"Beam_Thickness_Calculator!AG171*Beam_Thickness_Calculator!AG169*Beam_Thickness_Calculator!AL176","v":0},{"$f":"Beam_Thickness_Calculator!AH171*Beam_Thickness_Calculator!AH169*Beam_Thickness_Calculator!AL176","v":0},null,"Moment Ratio Blade A/Blade B","[-]",{"$f":"Global_Var!$E$14","v":0.66666666666666663}]
[null,null,null,null,null,null,null,null,null,null,null,null,null,null,null,null,null,null,null,null,null,null,null,null,null,null,null,null,null,"Mw","Mass of disp. Seawater","[kg]",{"$f":"Beam_Thickness_Calculator!AL175*Beam_Thickness_Calculator!AG180","v":0},{"$f":"Beam_Thickness_Calculator!AL175*Beam_Thickness_Calculator!AH180","v":0}]
[]
[null,null,null,null,null,null,null,null,null,null,null,null,null,null,null,null,null,null,null,null,null,null,null,null,"Input/Output",null,null,null,null,"Intermediate Calculations",null,null,null,null,"Constants"]
[null,null,null,null,null,null,null,null,null,null,null,null,null,null,null,null,null,null,null,null,null,null,null,null,13,null,null,"Blade A","Blade B","b","Spar Cap Width","[m]",{"$f":"Beam_Thickness_Calculator!AB185*Beam_Thickness_Calculator!AL192","v":0},{"$f":"Beam_Thickness_Calculator!AC185*Beam_Thickness_Calculator!AL192","v":0},"EUD","Modulus of Sparcap","[Pa]",{"$f":"Global_Var!$E$3","v":39800000000}]
[null,null,null,null,null,null,null,null,null,null,null,null,null,null,null,null,null,null,null,null,null,null,null,null,"C","Chord","[m]",{"$f":"L19","v":0},{"$f":"AB185*Beam_Thickness_Calculator!AL194","v":0},"t","Airfoil thickness","[m]",{"$f":"Beam_Thickness_Calculator!AB186*Beam_Thickness_Calculator!AB185/100","v":0},{"$f":"Beam_Thickness_Calculator!AC186*Beam_Thickness_Calculator!AC185/100","v":0},"ρs","Density of sparcap","[kg/m3]",{"$f":"Global_Var!$E$4","v":1920}]
[null,null,null,null,null,null,null,null,null,null,null,null,null,null,null,null,null,null,null,null,null,null,null,null,"AF%","% thickness of foil","[%]",{"$f":"P19","v":24.299694327003216},{"$f":"T19","v":24.73467368600928},"ho","Section height outer","[m]",{"$f":"AG185*Beam_Thickness_Calculator!AL193","v":0},{"$f":"AH185*Beam_Thickness_Calculator!AL193","v":0},"ϵUD(max)","Max allow design strain Sparcap","[-]",{"$f":"Global_Var!$E$5","v":2.8999999999999998E-3}]
[null,null,null,null,null,null,null,null,null,null,null,null,null,null,null,null,null,null,null,null,null,null,null,null,"M","Moment","[n-m]",{"$f":"N19","v":0},{"$f":"AB187*Beam_Thickness_Calculator!AL195","v":0},"hc","height of core","[m]",{"$f":"Beam_Thickness_Calculator!AG186-2*Beam_Thickness_Calculator!AB188","v":-0.08},{"$f":"Beam_Thickness_Calculator!AH186-2*Beam_Thickness_Calculator!AC188","v":-0.56152625653265986},"σs(allow)","Allowable stress in Sparcap","[Pa]",{"$f":"Global_Var!$E$6","v":115419999.99999999}]
[null,null,null,null,null,null,null,null,null,null,null,null,null,null,null,null,null,null,null,null,null,null,null,null,"t","Spar Cap Thickness","[m]",{"$f":"Q19","v":0.04},{"$f":"U19","v":0.28076312826632993},"c","distance from neutral axis","[m]",{"$f":"Beam_Thickness_Calculator!AG186/2","v":0},{"$f":"Beam_Thickness_Calculator!AH186/2","v":0},"EC","Modulus of Core","[Pa]",{"$f":"Global_Var!$E$7","v":3790000}]
[null,null,null,null,null,null,null,null,null,null,null,null,null,null,null,null,null,null,null,null,null,null,null,null,"σs(max)","Max Stress in Sparcap","[Pa]",{"$f":"(AB187*(Beam_Thickness_Calculator!AG186/2)*Beam_Thickness_Calculator!AL184)/(Beam_Thickness_Calculator!AL184*Beam_Thickness_Calculator!AG189+Beam_Thickness_Calculator!AL188*Beam_Thickness_Calculator!AG190)","v":{"$error":"#DIV/0!"}},{"$f":"(AC187*(Beam_Thickness_Calculator!AH186/2)*Beam_Thickness_Calculator!AL184)/(Beam_Thickness_Calculator!AL184*Beam_Thickness_Calculator!AH189+Beam_Thickness_Calculator!AL188*Beam_Thickness_Calculator!AH190)","v":{"$error":"#DIV/0!"}},"Is","Moment of inertia Spar","[m4]",{"$f":"(Beam_Thickness_Calculator!AG184/12)*(Beam_Thickness_Calculator!AG186^3-Beam_Thickness_Calculator!AG187^3)","v":0},{"$f":"(Beam_Thickness_Calculator!AH184/12)*(Beam_Thickness_Calculator!AH186^3-Beam_Thickness_Calculator!AH187^3)","v":0},"ρc","Density of core","[kg/m3]",{"$f":"Global_Var!$E$8","v":673}]
[null,null,null,null,null,null,null,null,null,null,null,null,null,null,null,null,null,null,null,null,null,null,null,null,"Ww","Wet Weight","[kg]",{"$f":"Beam_Thickness_Calculator!AG194+Beam_Thickness_Calculator!AG193-Beam_Thickness_Calculator!AG196","v":0},{"$f":"Beam_Thickness_Calculator!AH194+Beam_Thickness_Calculator!AH193-Beam_Thickness_Calculator!AH196","v":0},"Ic","Moment of inertia Core","[m4]",{"$f":"(Beam_Thickness_Calculator!AG184/12)*Beam_Thickness_Calculator!AG187^3","v":0},{"$f":"(Beam_Thickness_Calculator!AH184/12)*Beam_Thickness_Calculator!AH187^3","v":0},"ρw","Density of Seawater","[kg/m3]",{"$f":"Global_Var!$E$9","v":1029}]
[null,null,null,null,null,null,null,null,null,null,null,null,null,null,null,null,null,null,null,null,null,null,null,null,"Ww(rotor)","Wet Weight segment of rotor (+ floats)","[kg]",{"$f":"AB190*2","v":0},{"$f":"AC190*3","v":0},"Vs","Volume of Spar","[m3]",{"$f":"Beam_Thickness_Calculator!AG184*Beam_Thickness_Calculator!AB188*Beam_Thickness_Calculator!AL191*2","v":0},{"$f":"Beam_Thickness_Calculator!AH184*Beam_Thickness_Calculator!AC188*Beam_Thickness_Calculator!AL191*2","v":0},"L","Section Length","[m]",{"$f":"Global_Var!$E$10","v":0.74166666666666647}]
[null,null,null,null,null,null,null,null,null,null,null,null,null,null,null,null,null,null,null,null,null,null,null,null,null,null,null,null,null,"Vc","Volume of Core","[m3]",{"$f":"Beam_Thickness_Calculator!AG187*Beam_Thickness_Calculator!AG184*Beam_Thickness_Calculator!AL191","v":0},{"$f":"Beam_Thickness_Calculator!AH187*Beam_Thickness_Calculator!AH184*Beam_Thickness_Calculator!AL191","v":0},null,"Beam width in terms of chord","[-]",{"$f":"Global_Var!$E$11","v":0.6}]
[null,null,null,null,null,null,null,null,null,null,null,null,null,null,null,null,null,null,null,null,null,null,null,null,null,"Spar Strain Limit (Goal Seek to 1)",null,{"$f":"(AB189/$AL$7)","v":{"$error":"#DIV/0!"}},{"$f":"(AC189/$AL$7)","v":{"$error":"#DIV/0!"}},"Ms","Mass of Spar","[kg]",{"$f":"Beam_Thickness_Calculator!AL185*AG191","v":0},{"$f":"Beam_Thickness_Calculator!AL185*AH191","v":0},null,"Beam height in terms of thickness","[-]",0.85]
[null,null,null,null,null,null,null,null,null,null,null,null,null,null,null,null,null,null,null,null,null,null,null,null,null,null,null,null,null,"Mc","Mass of Core","[kg]",{"$f":"AG192*Beam_Thickness_Calculator!AL189","v":0},{"$f":"AH192*Beam_Thickness_Calculator!AL189","v":0},null,"Chord Ratio Blade A/Blade B","[-]",{"$f":"Global_Var!$E$13","v":0.66666666666666663}]
[null,null,null,null,null,null,null,null,null,null,null,null,null,null,null,null,null,null,null,null,null,null,null,null,null,null,null,null,null,"Vd","Displaced Volume","[m3]",{"$f":"Beam_Thickness_Calculator!AG186*Beam_Thickness_Calculator!AG184*Beam_Thickness_Calculator!AL191","v":0},{"$f":"Beam_Thickness_Calculator!AH186*Beam_Thickness_Calculator!AH184*Beam_Thickness_Calculator!AL191","v":0},null,"Moment Ratio Blade A/Blade B","[-]",{"$f":"Global_Var!$E$14","v":0.66666666666666663}]
[null,null,null,null,null,null,null,null,null,null,null,null,null,null,null,null,null,null,null,null,null,null,null,null,null,null,null,null,null,"Mw","Mass of disp. Seawater","[kg]",{"$f":"Beam_Thickness_Calculator!AL190*Beam_Thickness_Calculator!AG195","v":0},{"$f":"Beam_Thickness_Calculator!AL190*Beam_Thickness_Calculator!AH195","v":0}]
[]
[null,null,null,null,null,null,null,null,null,null,null,null,null,null,null,null,null,null,null,null,null,null,null,null,"Input/Output",null,null,null,null,"Intermediate Calculations",null,null,null,null,"Constants"]
[null,null,null,null,null,null,null,null,null,null,null,null,null,null,null,null,null,null,null,null,null,null,null,null,14,null,null,"Blade A","Blade B","b","Spar Cap Width","[m]",{"$f":"Beam_Thickness_Calculator!AB200*Beam_Thickness_Calculator!AL207","v":0},{"$f":"Beam_Thickness_Calculator!AC200*Beam_Thickness_Calculator!AL207","v":0},"EUD","Modulus of Sparcap","[Pa]",{"$f":"Global_Var!$E$3","v":39800000000}]
[null,null,null,null,null,null,null,null,null,null,null,null,null,null,null,null,null,null,null,null,null,null,null,null,"C","Chord","[m]",{"$f":"L20","v":0},{"$f":"AB200*Beam_Thickness_Calculator!AL209","v":0},"t","Airfoil thickness","[m]",{"$f":"Beam_Thickness_Calculator!AB201*Beam_Thickness_Calculator!AB200/100","v":0},{"$f":"Beam_Thickness_Calculator!AC201*Beam_Thickness_Calculator!AC200/100","v":0},"ρs","Density of sparcap","[kg/m3]",{"$f":"Global_Var!$E$4","v":1920}]
[null,null,null,null,null,null,null,null,null,null,null,null,null,null,null,null,null,null,null,null,null,null,null,null,"AF%","% thickness of foil","[%]",{"$f":"P20","v":23.826574762774325},{"$f":"T20","v":24.479202867647345},"ho","Section height outer","[m]",{"$f":"AG200*Beam_Thickness_Calculator!AL208","v":0},{"$f":"AH200*Beam_Thickness_Calculator!AL208","v":0},"ϵUD(max)","Max allow design strain Sparcap","[-]",{"$f":"Global_Var!$E$5","v":2.8999999999999998E-3}]
[null,null,null,null,null,null,null,null,null,null,null,null,null,null,null,null,null,null,null,null,null,null,null,null,"M","Moment","[n-m]",{"$f":"N20","v":0},{"$f":"AB202*Beam_Thickness_Calculator!AL210","v":0},"hc","height of core","[m]",{"$f":"Beam_Thickness_Calculator!AG201-2*Beam_Thickness_Calculator!AB203","v":-0.08},{"$f":"Beam_Thickness_Calculator!AH201-2*Beam_Thickness_Calculator!AC203","v":-0.54411457294897714},"σs(allow)","Allowable stress in Sparcap","[Pa]",{"$f":"Global_Var!$E$6","v":115419999.99999999}]
[null,null,null,null,null,null,null,null,null,null,null,null,null,null,null,null,null,null,null,null,null,null,null,null,"t","Spar Cap Thickness","[m]",{"$f":"Q20","v":0.04},{"$f":"U20","v":0.27205728647448857},"c","distance from neutral axis","[m]",{"$f":"Beam_Thickness_Calculator!AG201/2","v":0},{"$f":"Beam_Thickness_Calculator!AH201/2","v":0},"EC","Modulus of Core","[Pa]",{"$f":"Global_Var!$E$7","v":3790000}]
[null,null,null,null,null,null,null,null,null,null,null,null,null,null,null,null,null,null,null,null,null,null,null,null,"σs(max)","Max Stress in Sparcap","[Pa]",{"$f":"(AB202*(Beam_Thickness_Calculator!AG201/2)*Beam_Thickness_Calculator!AL199)/(Beam_Thickness_Calculator!AL199*Beam_Thickness_Calculator!AG204+Beam_Thickness_Calculator!AL203*Beam_Thickness_Calculator!AG205)","v":{"$error":"#DIV/0!"}},{"$f":"(AC202*(Beam_Thickness_Calculator!AH201/2)*Beam_Thickness_Calculator!AL199)/(Beam_Thickness_Calculator!AL199*Beam_Thickness_Calculator!AH204+Beam_Thickness_Calculator!AL203*Beam_Thickness_Calculator!AH205)","v":{"$error":"#DIV/0!"}},"Is","Moment of inertia Spar","[m4]",{"$f":"(Beam_Thickness_Calculator!AG199/12)*(Beam_Thickness_Calculator!AG201^3-Beam_Thickness_Calculator!AG202^3)","v":0},{"$f":"(Beam_Thickness_Calculator!AH199/12)*(Beam_Thickness_Calculator!AH201^3-Beam_Thickness_Calculator!AH202^3)","v":0},"ρc","Density of core","[kg/m3]",{"$f":"Global_Var!$E$8","v":673}]
[null,null,null,null,null,null,null,null,null,null,null,null,null,null,null,null,null,null,null,null,null,null,null,null,"Ww","Wet Weight","[kg]",{"$f":"Beam_Thickness_Calculator!AG209+Beam_Thickness_Calculator!AG208-Beam_Thickness_Calculator!AG211","v":0},{"$f":"Beam_Thickness_Calculator!AH209+Beam_Thickness_Calculator!AH208-Beam_Thickness_Calculator!AH211","v":0},"Ic","Moment of inertia Core","[m4]",{"$f":"(Beam_Thickness_Calculator!AG199/12)*Beam_Thickness_Calculator!AG202^3","v":0},{"$f":"(Beam_Thickness_Calculator!AH199/12)*Beam_Thickness_Calculator!AH202^3","v":0},"ρw","Density of Seawater","[kg/m3]",{"$f":"Global_Var!$E$9","v":1029}]
[null,null,null,null,null,null,null,null,null,null,null,null,null,null,null,null,null,null,null,null,null,null,null,null,"Ww(rotor)","Wet Weight segment of rotor (+ floats)","[kg]",{"$f":"AB205*2","v":0},{"$f":"AC205*3","v":0},"Vs","Volume of Spar","[m3]",{"$f":"Beam_Thickness_Calculator!AG199*Beam_Thickness_Calculator!AB203*Beam_Thickness_Calculator!AL206*2","v":0},{"$f":"Beam_Thickness_Calculator!AH199*Beam_Thickness_Calculator!AC203*Beam_Thickness_Calculator!AL206*2","v":0},"L","Section Length","[m]",{"$f":"Global_Var!$E$10","v":0.74166666666666647}]
[null,null,null,null,null,null,null,null,null,null,null,null,null,null,null,null,null,null,null,null,null,null,null,null,null,null,null,null,null,"Vc","Volume of Core","[m3]",{"$f":"Beam_Thickness_Calculator!AG202*Beam_Thickness_Calculator!AG199*Beam_Thickness_Calculator!AL206","v":0},{"$f":"Beam_Thickness_Calculator!AH202*Beam_Thickness_Calculator!AH199*Beam_Thickness_Calculator!AL206","v":0},null,"Beam width in terms of chord","[-]",{"$f":"Global_Var!$E$11","v":0.6}]
[null,null,null,null,null,null,null,null,null,null,null,null,null,null,null,null,null,null,null,null,null,null,null,null,null,"Spar Strain Limit (Goal Seek to 1)",null,{"$f":"(AB204/$AL$7)","v":{"$error":"#DIV/0!"}},{"$f":"(AC204/$AL$7)","v":{"$error":"#DIV/0!"}},"Ms","Mass of Spar","[kg]",{"$f":"Beam_Thickness_Calculator!AL200*AG206","v":0},{"$f":"Beam_Thickness_Calculator!AL200*AH206","v":0},null,"Beam height in terms of thickness","[-]",0.85]
[null,null,null,null,null,null,null,null,null,null,null,null,null,null,null,null,null,null,null,null,null,null,null,null,null,null,null,null,null,"Mc","Mass of Core","[kg]",{"$f":"AG207*Beam_Thickness_Calculator!AL204","v":0},{"$f":"AH207*Beam_Thickness_Calculator!AL204","v":0},null,"Chord Ratio Blade A/Blade B","[-]",{"$f":"Global_Var!$E$13","v":0.66666666666666663}]
[null,null,null,null,null,null,null,null,null,null,null,null,null,null,null,null,null,null,null,null,null,null,null,null,null,null,null,null,null,"Vd","Displaced Volume","[m3]",{"$f":"Beam_Thickness_Calculator!AG201*Beam_Thickness_Calculator!AG199*Beam_Thickness_Calculator!AL206","v":0},{"$f":"Beam_Thickness_Calculator!AH201*Beam_Thickness_Calculator!AH199*Beam_Thickness_Calculator!AL206","v":0},null,"Moment Ratio Blade A/Blade B","[-]",{"$f":"Global_Var!$E$14","v":0.66666666666666663}]
[null,null,null,null,null,null,null,null,null,null,null,null,null,null,null,null,null,null,null,null,null,null,null,null,null,null,null,null,null,"Mw","Mass of disp. Seawater","[kg]",{"$f":"Beam_Thickness_Calculator!AL205*Beam_Thickness_Calculator!AG210","v":0},{"$f":"Beam_Thickness_Calculator!AL205*Beam_Thickness_Calculator!AH210","v":0}]
[]
[null,null,null,null,null,null,null,null,null,null,null,null,null,null,null,null,null,null,null,null,null,null,null,null,"Input/Output",null,null,null,null,"Intermediate Calculations",null,null,null,null,"Constants"]
[null,null,null,null,null,null,null,null,null,null,null,null,null,null,null,null,null,null,null,null,null,null,null,null,15,null,null,"Blade A","Blade B","b","Spar Cap Width","[m]",{"$f":"Beam_Thickness_Calculator!AB215*Beam_Thickness_Calculator!AL222","v":0},{"$f":"Beam_Thickness_Calculator!AC215*Beam_Thickness_Calculator!AL222","v":0},"EUD","Modulus of Sparcap","[Pa]",{"$f":"Global_Var!$E$3","v":39800000000}]
[null,null,null,null,null,null,null,null,null,null,null,null,null,null,null,null,null,null,null,null,null,null,null,null,"C","Chord","[m]",{"$f":"L21","v":0},{"$f":"AB215*Beam_Thickness_Calculator!AL224","v":0},"t","Airfoil thickness","[m]",{"$f":"Beam_Thickness_Calculator!AB216*Beam_Thickness_Calculator!AB215/100","v":0},{"$f":"Beam_Thickness_Calculator!AC216*Beam_Thickness_Calculator!AC215/100","v":0},"ρs","Density of sparcap","[kg/m3]",{"$f":"Global_Var!$E$4","v":1920}]
[null,null,null,null,null,null,null,null,null,null,null,null,null,null,null,null,null,null,null,null,null,null,null,null,"AF%","% thickness of foil","[%]",{"$f":"P21","v":23.266124148267384},{"$f":"T21","v":24.139263049324821},"ho","Section height outer","[m]",{"$f":"AG215*Beam_Thickness_Calculator!AL223","v":0},{"$f":"AH215*Beam_Thickness_Calculator!AL223","v":0},"ϵUD(max)","Max allow design strain Sparcap","[-]",{"$f":"Global_Var!$E$5","v":2.8999999999999998E-3}]
[null,null,null,null,null,null,null,null,null,null,null,null,null,null,null,null,null,null,null,null,null,null,null,null,"M","Moment","[n-m]",{"$f":"N21","v":0},{"$f":"AB217*Beam_Thickness_Calculator!AL225","v":0},"hc","height of core","[m]",{"$f":"Beam_Thickness_Calculator!AG216-2*Beam_Thickness_Calculator!AB218","v":-0.08},{"$f":"Beam_Thickness_Calculator!AH216-2*Beam_Thickness_Calculator!AC218","v":-0.52314763449495105},"σs(allow)","Allowable stress in Sparcap","[Pa]",{"$f":"Global_Var!$E$6","v":115419999.99999999}]
[null,null,null,null,null,null,null,null,null,null,null,null,null,null,null,null,null,null,null,null,null,null,null,null,"t","Spar Cap Thickness","[m]",{"$f":"Q21","v":0.04},{"$f":"U21","v":0.26157381724747553},"c","distance from neutral axis","[m]",{"$f":"Beam_Thickness_Calculator!AG216/2","v":0},{"$f":"Beam_Thickness_Calculator!AH216/2","v":0},"EC","Modulus of Core","[Pa]",{"$f":"Global_Var!$E$7","v":3790000}]
[null,null,null,null,null,null,null,null,null,null,null,null,null,null,null,null,null,null,null,null,null,null,null,null,"σs(max)","Max Stress in Sparcap","[Pa]",{"$f":"(AB217*(Beam_Thickness_Calculator!AG216/2)*Beam_Thickness_Calculator!AL214)/(Beam_Thickness_Calculator!AL214*Beam_Thickness_Calculator!AG219+Beam_Thickness_Calculator!AL218*Beam_Thickness_Calculator!AG220)","v":{"$error":"#DIV/0!"}},{"$f":"(AC217*(Beam_Thickness_Calculator!AH216/2)*Beam_Thickness_Calculator!AL214)/(Beam_Thickness_Calculator!AL214*Beam_Thickness_Calculator!AH219+Beam_Thickness_Calculator!AL218*Beam_Thickness_Calculator!AH220)","v":{"$error":"#DIV/0!"}},"Is","Moment of inertia Spar","[m4]",{"$f":"(Beam_Thickness_Calculator!AG214/12)*(Beam_Thickness_Calculator!AG216^3-Beam_Thickness_Calculator!AG217^3)","v":0},{"$f":"(Beam_Thickness_Calculator!AH214/12)*(Beam_Thickness_Calculator!AH216^3-Beam_Thickness_Calculator!AH217^3)","v":0},"ρc","Density of core","[kg/m3]",{"$f":"Global_Var!$E$8","v":673}]
[null,null,null,null,null,null,null,null,null,null,null,null,null,null,null,null,null,null,null,null,null,null,null,null,"Ww","Wet Weight","[kg]",{"$f":"Beam_Thickness_Calculator!AG224+Beam_Thickness_Calculator!AG223-Beam_Thickness_Calculator!AG226","v":0},{"$f":"Beam_Thickness_Calculator!AH224+Beam_Thickness_Calculator!AH223-Beam_Thickness_Calculator!AH226","v":0},"Ic","Moment of inertia Core","[m4]",{"$f":"(Beam_Thickness_Calculator!AG214/12)*Beam_Thickness_Calculator!AG217^3","v":0},{"$f":"(Beam_Thickness_Calculator!AH214/12)*Beam_Thickness_Calculator!AH217^3","v":0},"ρw","Density of Seawater","[kg/m3]",{"$f":"Global_Var!$E$9","v":1029}]
[null,null,null,null,null,null,null,null,null,null,null,null,null,null,null,null,null,null,null,null,null,null,null,null,"Ww(rotor)","Wet Weight segment of rotor (+ floats)","[kg]",{"$f":"AB220*2","v":0},{"$f":"AC220*3","v":0},"Vs","Volume of Spar","[m3]",{"$f":"Beam_Thickness_Calculator!AG214*Beam_Thickness_Calculator!AB218*Beam_Thickness_Calculator!AL221*2","v":0},{"$f":"Beam_Thickness_Calculator!AH214*Beam_Thickness_Calculator!AC218*Beam_Thickness_Calculator!AL221*2","v":0},"L","Section Length","[m]",{"$f":"Global_Var!$E$10","v":0.74166666666666647}]
[null,null,null,null,null,null,null,null,null,null,null,null,null,null,null,null,null,null,null,null,null,null,null,null,null,null,null,null,null,"Vc","Volume of Core","[m3]",{"$f":"Beam_Thickness_Calculator!AG217*Beam_Thickness_Calculator!AG214*Beam_Thickness_Calculator!AL221","v":0},{"$f":"Beam_Thickness_Calculator!AH217*Beam_Thickness_Calculator!AH214*Beam_Thickness_Calculator!AL221","v":0},null,"Beam width in terms of chord","[-]",{"$f":"Global_Var!$E$11","v":0.6}]
[null,null,null,null,null,null,null,null,null,null,null,null,null,null,null,null,null,null,null,null,null,null,null,null,null,"Spar Strain Limit (Goal Seek to 1)",null,{"$f":"(AB219/$AL$7)","v":{"$error":"#DIV/0!"}},{"$f":"(AC219/$AL$7)","v":{"$error":"#DIV/0!"}},"Ms","Mass of Spar","[kg]",{"$f":"Beam_Thickness_Calculator!AL215*AG221","v":0},{"$f":"Beam_Thickness_Calculator!AL215*AH221","v":0},null,"Beam height in terms of thickness","[-]",0.85]
[null,null,null,null,null,null,null,null,null,null,null,null,null,null,null,null,null,null,null,null,null,null,null,null,null,null,null,null,null,"Mc","Mass of Core","[kg]",{"$f":"AG222*Beam_Thickness_Calculator!AL219","v":0},{"$f":"AH222*Beam_Thickness_Calculator!AL219","v":0},null,"Chord Ratio Blade A/Blade B","[-]",{"$f":"Global_Var!$E$13","v":0.66666666666666663}]
[null,null,null,null,null,null,null,null,null,null,null,null,null,null,null,null,null,null,null,null,null,null,null,null,null,null,null,null,null,"Vd","Displaced Volume","[m3]",{"$f":"Beam_Thickness_Calculator!AG216*Beam_Thickness_Calculator!AG214*Beam_Thickness_Calculator!AL221","v":0},{"$f":"Beam_Thickness_Calculator!AH216*Beam_Thickness_Calculator!AH214*Beam_Thickness_Calculator!AL221","v":0},null,"Moment Ratio Blade A/Blade B","[-]",{"$f":"Global_Var!$E$14","v":0.66666666666666663}]
[null,null,null,null,null,null,null,null,null,null,null,null,null,null,null,null,null,null,null,null,null,null,null,null,null,null,null,null,null,"Mw","Mass of disp. Seawater","[kg]",{"$f":"Beam_Thickness_Calculator!AL220*Beam_Thickness_Calculator!AG225","v":0},{"$f":"Beam_Thickness_Calculator!AL220*Beam_Thickness_Calculator!AH225","v":0}]
[]
[null,null,null,null,null,null,null,null,null,null,null,null,null,null,null,null,null,null,null,null,null,null,null,null,"Input/Output",null,null,null,null,"Intermediate Calculations",null,null,null,null,"Constants"]
[null,null,null,null,null,null,null,null,null,null,null,null,null,null,null,null,null,null,null,null,null,null,null,null,16,null,null,"Blade A","Blade B","b","Spar Cap Width","[m]",{"$f":"Beam_Thickness_Calculator!AB230*Beam_Thickness_Calculator!AL237","v":0},{"$f":"Beam_Thickness_Calculator!AC230*Beam_Thickness_Calculator!AL237","v":0},"EUD","Modulus of Sparcap","[Pa]",{"$f":"Global_Var!$E$3","v":39800000000}]
[null,null,null,null,null,null,null,null,null,null,null,null,null,null,null,null,null,null,null,null,null,null,null,null,"C","Chord","[m]",{"$f":"L22","v":0},{"$f":"AB230*Beam_Thickness_Calculator!AL239","v":0},"t","Airfoil thickness","[m]",{"$f":"Beam_Thickness_Calculator!AB231*Beam_Thickness_Calculator!AB230/100","v":0},{"$f":"Beam_Thickness_Calculator!AC231*Beam_Thickness_Calculator!AC230/100","v":0},"ρs","Density of sparcap","[kg/m3]",{"$f":"Global_Var!$E$4","v":1920}]
[null,null,null,null,null,null,null,null,null,null,null,null,null,null,null,null,null,null,null,null,null,null,null,null,"AF%","% thickness of foil","[%]",{"$f":"P22","v":22.586271474328424},{"$f":"T22","v":23.71285198105759},"ho","Section height outer","[m]",{"$f":"AG230*Beam_Thickness_Calculator!AL238","v":0},{"$f":"AH230*Beam_Thickness_Calculator!AL238","v":0},"ϵUD(max)","Max allow design strain Sparcap","[-]",{"$f":"Global_Var!$E$5","v":2.8999999999999998E-3}]
[null,null,null,null,null,null,null,null,null,null,null,null,null,null,null,null,null,null,null,null,null,null,null,null,"M","Moment","[n-m]",{"$f":"N22","v":0},{"$f":"AB232*Beam_Thickness_Calculator!AL240","v":0},"hc","height of core","[m]",{"$f":"Beam_Thickness_Calculator!AG231-2*Beam_Thickness_Calculator!AB233","v":-0.08},{"$f":"Beam_Thickness_Calculator!AH231-2*Beam_Thickness_Calculator!AC233","v":-0.50163282683581245},"σs(allow)","Allowable stress in Sparcap","[Pa]",{"$f":"Global_Var!$E$6","v":115419999.99999999}]
[null,null,null,null,null,null,null,null,null,null,null,null,null,null,null,null,null,null,null,null,null,null,null,null,"t","Spar Cap Thickness","[m]",{"$f":"Q22","v":0.04},{"$f":"U22","v":0.25081641341790623},"c","distance from neutral axis","[m]",{"$f":"Beam_Thickness_Calculator!AG231/2","v":0},{"$f":"Beam_Thickness_Calculator!AH231/2","v":0},"EC","Modulus of Core","[Pa]",{"$f":"Global_Var!$E$7","v":3790000}]
[null,null,null,null,null,null,null,null,null,null,null,null,null,null,null,null,null,null,null,null,null,null,null,null,"σs(max)","Max Stress in Sparcap","[Pa]",{"$f":"(AB232*(Beam_Thickness_Calculator!AG231/2)*Beam_Thickness_Calculator!AL229)/(Beam_Thickness_Calculator!AL229*Beam_Thickness_Calculator!AG234+Beam_Thickness_Calculator!AL233*Beam_Thickness_Calculator!AG235)","v":{"$error":"#DIV/0!"}},{"$f":"(AC232*(Beam_Thickness_Calculator!AH231/2)*Beam_Thickness_Calculator!AL229)/(Beam_Thickness_Calculator!AL229*Beam_Thickness_Calculator!AH234+Beam_Thickness_Calculator!AL233*Beam_Thickness_Calculator!AH235)","v":{"$error":"#DIV/0!"}},"Is","Moment of inertia Spar","[m4]",{"$f":"(Beam_Thickness_Calculator!AG229/12)*(Beam_Thickness_Calculator!AG231^3-Beam_Thickness_Calculator!AG232^3)","v":0},{"$f":"(Beam_Thickness_Calculator!AH229/12)*(Beam_Thickness_Calculator!AH231^3-Beam_Thickness_Calculator!AH232^3)","v":0},"ρc","Density of core","[kg/m3]",{"$f":"Global_Var!$E$8","v":673}]
[null,null,null,null,null,null,null,null,null,null,null,null,null,null,null,null,null,null,null,null,null,null,null,null,"Ww","Wet Weight","[kg]",{"$f":"Beam_Thickness_Calculator!AG239+Beam_Thickness_Calculator!AG238-Beam_Thickness_Calculator!AG241","v":0},{"$f":"Beam_Thickness_Calculator!AH239+Beam_Thickness_Calculator!AH238-Beam_Thickness_Calculator!AH241","v":0},"Ic","Moment of inertia Core","[m4]",{"$f":"(Beam_Thickness_Calculator!AG229/12)*Beam_Thickness_Calculator!AG232^3","v":0},{"$f":"(Beam_Thickness_Calculator!AH229/12)*Beam_Thickness_Calculator!AH232^3","v":0},"ρw","Density of Seawater","[kg/m3]",{"$f":"Global_Var!$E$9","v":1029}]
[null,null,null,null,null,null,null,null,null,null,null,null,null,null,null,null,null,null,null,null,null,null,null,null,"Ww(rotor)","Wet Weight segment of rotor (+ floats)","[kg]",{"$f":"AB235*2","v":0},{"$f":"AC235*3","v":0},"Vs","Volume of Spar","[m3]",{"$f":"Beam_Thickness_Calculator!AG229*Beam_Thickness_Calculator!AB233*Beam_Thickness_Calculator!AL236*2","v":0},{"$f":"Beam_Thickness_Calculator!AH229*Beam_Thickness_Calculator!AC233*Beam_Thickness_Calculator!AL236*2","v":0},"L","Section Length","[m]",{"$f":"Global_Var!$E$10","v":0.74166666666666647}]
[null,null,null,null,null,null,null,null,null,null,null,null,null,null,null,null,null,null,null,null,null,null,null,null,null,null,null,null,null,"Vc","Volume of Core","[m3]",{"$f":"Beam_Thickness_Calculator!AG232*Beam_Thickness_Calculator!AG229*Beam_Thickness_Calculator!AL236","v":0},{"$f":"Beam_Thickness_Calculator!AH232*Beam_Thickness_Calculator!AH229*Beam_Thickness_Calculator!AL236","v":0},null,"Beam width in terms of chord","[-]",{"$f":"Global_Var!$E$11","v":0.6}]
[null,null,null,null,null,null,null,null,null,null,null,null,null,null,null,null,null,null,null,null,null,null,null,null,null,"Spar Strain Limit (Goal Seek to 1)",null,{"$f":"(AB234/$AL$7)","v":{"$error":"#DIV/0!"}},{"$f":"(AC234/$AL$7)","v":{"$error":"#DIV/0!"}},"Ms","Mass of Spar","[kg]",{"$f":"Beam_Thickness_Calculator!AL230*AG236","v":0},{"$f":"Beam_Thickness_Calculator!AL230*AH236","v":0},null,"Beam height in terms of thickness","[-]",0.85]
[null,null,null,null,null,null,null,null,null,null,null,null,null,null,null,null,null,null,null,null,null,null,null,null,null,null,null,null,null,"Mc","Mass of Core","[kg]",{"$f":"AG237*Beam_Thickness_Calculator!AL234","v":0},{"$f":"AH237*Beam_Thickness_Calculator!AL234","v":0},null,"Chord Ratio Blade A/Blade B","[-]",{"$f":"Global_Var!$E$13","v":0.66666666666666663}]
[null,null,null,null,null,null,null,null,null,null,null,null,null,null,null,null,null,null,null,null,null,null,null,null,null,null,null,null,null,"Vd","Displaced Volume","[m3]",{"$f":"Beam_Thickness_Calculator!AG231*Beam_Thickness_Calculator!AG229*Beam_Thickness_Calculator!AL236","v":0},{"$f":"Beam_Thickness_Calculator!AH231*Beam_Thickness_Calculator!AH229*Beam_Thickness_Calculator!AL236","v":0},null,"Moment Ratio Blade A/Blade B","[-]",{"$f":"Global_Var!$E$14","v":0.66666666666666663}]
[null,null,null,null,null,null,null,null,null,null,null,null,null,null,null,null,null,null,null,null,null,null,null,null,null,null,null,null,null,"Mw","Mass of disp. Seawater","[kg]",{"$f":"Beam_Thickness_Calculator!AL235*Beam_Thickness_Calculator!AG240","v":0},{"$f":"Beam_Thickness_Calculator!AL235*Beam_Thickness_Calculator!AH240","v":0}]
[]
[null,null,null,null,null,null,null,null,null,null,null,null,null,null,null,null,null,null,null,null,null,null,null,null,"Input/Output",null,null,null,null,"Intermediate Calculations",null,null,null,null,"Constants"]
[null,null,null,null,null,null,null,null,null,null,null,null,null,null,null,null,null,null,null,null,null,null,null,null,17,null,null,"Blade A","Blade B","b","Spar Cap Width","[m]",{"$f":"Beam_Thickness_Calculator!AB245*Beam_Thickness_Calculator!AL252","v":0},{"$f":"Beam_Thickness_Calculator!AC245*Beam_Thickness_Calculator!AL252","v":0},"EUD","Modulus of Sparcap","[Pa]",{"$f":"Global_Var!$E$3","v":39800000000}]
[null,null,null,null,null,null,null,null,null,null,null,null,null,null,null,null,null,null,null,null,null,null,null,null,"C","Chord","[m]",{"$f":"L23","v":0},{"$f":"AB245*Beam_Thickness_Calculator!AL254","v":0},"t","Airfoil thickness","[m]",{"$f":"Beam_Thickness_Calculator!AB246*Beam_Thickness_Calculator!AB245/100","v":0},{"$f":"Beam_Thickness_Calculator!AC246*Beam_Thickness_Calculator!AC245/100","v":0},"ρs","Density of sparcap","[kg/m3]",{"$f":"Global_Var!$E$4","v":1920}]
[null,null,null,null,null,null,null,null,null,null,null,null,null,null,null,null,null,null,null,null,null,null,null,null,"AF%","% thickness of foil","[%]",{"$f":"P23","v":21.776144775340548},{"$f":"T23","v":23.19242770244076},"ho","Section height outer","[m]",{"$f":"AG245*Beam_Thickness_Calculator!AL253","v":0},{"$f":"AH245*Beam_Thickness_Calculator!AL253","v":0},"ϵUD(max)","Max allow design strain Sparcap","[-]",{"$f":"Global_Var!$E$5","v":2.8999999999999998E-3}]
[null,null,null,null,null,null,null,null,null,null,null,null,null,null,null,null,null,null,null,null,null,null,null,null,"M","Moment","[n-m]",{"$f":"N23","v":0},{"$f":"AB247*Beam_Thickness_Calculator!AL255","v":0},"hc","height of core","[m]",{"$f":"Beam_Thickness_Calculator!AG246-2*Beam_Thickness_Calculator!AB248","v":-0.08},{"$f":"Beam_Thickness_Calculator!AH246-2*Beam_Thickness_Calculator!AC248","v":-0.47297123191579576},"σs(allow)","Allowable stress in Sparcap","[Pa]",{"$f":"Global_Var!$E$6","v":115419999.99999999}]
[null,null,null,null,null,null,null,null,null,null,null,null,null,null,null,null,null,null,null,null,null,null,null,null,"t","Spar Cap Thickness","[m]",{"$f":"Q23","v":0.04},{"$f":"U23","v":0.23648561595789788},"c","distance from neutral axis","[m]",{"$f":"Beam_Thickness_Calculator!AG246/2","v":0},{"$f":"Beam_Thickness_Calculator!AH246/2","v":0},"EC","Modulus of Core","[Pa]",{"$f":"Global_Var!$E$7","v":3790000}]
[null,null,null,null,null,null,null,null,null,null,null,null,null,null,null,null,null,null,null,null,null,null,null,null,"σs(max)","Max Stress in Sparcap","[Pa]",{"$f":"(AB247*(Beam_Thickness_Calculator!AG246/2)*Beam_Thickness_Calculator!AL244)/(Beam_Thickness_Calculator!AL244*Beam_Thickness_Calculator!AG249+Beam_Thickness_Calculator!AL248*Beam_Thickness_Calculator!AG250)","v":{"$error":"#DIV/0!"}},{"$f":"(AC247*(Beam_Thickness_Calculator!AH246/2)*Beam_Thickness_Calculator!AL244)/(Beam_Thickness_Calculator!AL244*Beam_Thickness_Calculator!AH249+Beam_Thickness_Calculator!AL248*Beam_Thickness_Calculator!AH250)","v":{"$error":"#DIV/0!"}},"Is","Moment of inertia Spar","[m4]",{"$f":"(Beam_Thickness_Calculator!AG244/12)*(Beam_Thickness_Calculator!AG246^3-Beam_Thickness_Calculator!AG247^3)","v":0},{"$f":"(Beam_Thickness_Calculator!AH244/12)*(Beam_Thickness_Calculator!AH246^3-Beam_Thickness_Calculator!AH247^3)","v":0},"ρc","Density of core","[kg/m3]",{"$f":"Global_Var!$E$8","v":673}]
[null,null,null,null,null,null,null,null,null,null,null,null,null,null,null,null,null,null,null,null,null,null,null,null,"Ww","Wet Weight","[kg]",{"$f":"Beam_Thickness_Calculator!AG254+Beam_Thickness_Calculator!AG253-Beam_Thickness_Calculator!AG256","v":0},{"$f":"Beam_Thickness_Calculator!AH254+Beam_Thickness_Calculator!AH253-Beam_Thickness_Calculator!AH256","v":0},"Ic","Moment of inertia Core","[m4]",{"$f":"(Beam_Thickness_Calculator!AG244/12)*Beam_Thickness_Calculator!AG247^3","v":0},{"$f":"(Beam_Thickness_Calculator!AH244/12)*Beam_Thickness_Calculator!AH247^3","v":0},"ρw","Density of Seawater","[kg/m3]",{"$f":"Global_Var!$E$9","v":1029}]
[null,null,null,null,null,null,null,null,null,null,null,null,null,null,null,null,null,null,null,null,null,null,null,null,"Ww(rotor)","Wet Weight segment of rotor (+ floats)","[kg]",{"$f":"AB250*2","v":0},{"$f":"AC250*3","v":0},"Vs","Volume of Spar","[m3]",{"$f":"Beam_Thickness_Calculator!AG244*Beam_Thickness_Calculator!AB248*Beam_Thickness_Calculator!AL251*2","v":0},{"$f":"Beam_Thickness_Calculator!AH244*Beam_Thickness_Calculator!AC248*Beam_Thickness_Calculator!AL251*2","v":0},"L","Section Length","[m]",{"$f":"Global_Var!$E$10","v":0.74166666666666647}]
[null,null,null,null,null,null,null,null,null,null,null,null,null,null,null,null,null,null,null,null,null,null,null,null,null,null,null,null,null,"Vc","Volume of Core","[m3]",{"$f":"Beam_Thickness_Calculator!AG247*Beam_Thickness_Calculator!AG244*Beam_Thickness_Calculator!AL251","v":0},{"$f":"Beam_Thickness_Calculator!AH247*Beam_Thickness_Calculator!AH244*Beam_Thickness_Calculator!AL251","v":0},null,"Beam width in terms of chord","[-]",{"$f":"Global_Var!$E$11","v":0.6}]
[null,null,null,null,null,null,null,null,null,null,null,null,null,null,null,null,null,null,null,null,null,null,null,null,null,"Spar Strain Limit (Goal Seek to 1)",null,{"$f":"(AB249/$AL$7)","v":{"$error":"#DIV/0!"}},{"$f":"(AC249/$AL$7)","v":{"$error":"#DIV/0!"}},"Ms","Mass of Spar","[kg]",{"$f":"Beam_Thickness_Calculator!AL245*AG251","v":0},{"$f":"Beam_Thickness_Calculator!AL245*AH251","v":0},null,"Beam height in terms of thickness","[-]",0.85]
[null,null,null,null,null,null,null,null,null,null,null,null,null,null,null,null,null,null,null,null,null,null,null,null,null,null,null,null,null,"Mc","Mass of Core","[kg]",{"$f":"AG252*Beam_Thickness_Calculator!AL249","v":0},{"$f":"AH252*Beam_Thickness_Calculator!AL249","v":0},null,"Chord Ratio Blade A/Blade B","[-]",{"$f":"Global_Var!$E$13","v":0.66666666666666663}]
[null,null,null,null,null,null,null,null,null,null,null,null,null,null,null,null,null,null,null,null,null,null,null,null,null,null,null,null,null,"Vd","Displaced Volume","[m3]",{"$f":"Beam_Thickness_Calculator!AG246*Beam_Thickness_Calculator!AG244*Beam_Thickness_Calculator!AL251","v":0},{"$f":"Beam_Thickness_Calculator!AH246*Beam_Thickness_Calculator!AH244*Beam_Thickness_Calculator!AL251","v":0},null,"Moment Ratio Blade A/Blade B","[-]",{"$f":"Global_Var!$E$14","v":0.66666666666666663}]
[null,null,null,null,null,null,null,null,null,null,null,null,null,null,null,null,null,null,null,null,null,null,null,null,null,null,null,null,null,"Mw","Mass of disp. Seawater","[kg]",{"$f":"Beam_Thickness_Calculator!AL250*Beam_Thickness_Calculator!AG255","v":0},{"$f":"Beam_Thickness_Calculator!AL250*Beam_Thickness_Calculator!AH255","v":0}]
[]
[null,null,null,null,null,null,null,null,null,null,null,null,null,null,null,null,null,null,null,null,null,null,null,null,"Input/Output",null,null,null,null,"Intermediate Calculations",null,null,null,null,"Constants"]
[null,null,null,null,null,null,null,null,null,null,null,null,null,null,null,null,null,null,null,null,null,null,null,null,18,null,null,"Blade A","Blade B","b","Spar Cap Width","[m]",{"$f":"Beam_Thickness_Calculator!AB260*Beam_Thickness_Calculator!AL267","v":0},{"$f":"Beam_Thickness_Calculator!AC260*Beam_Thickness_Calculator!AL267","v":0},"EUD","Modulus of Sparcap","[Pa]",{"$f":"Global_Var!$E$3","v":39800000000}]
[null,null,null,null,null,null,null,null,null,null,null,null,null,null,null,null,null,null,null,null,null,null,null,null,"C","Chord","[m]",{"$f":"L24","v":0},{"$f":"AB260*Beam_Thickness_Calculator!AL269","v":0},"t","Airfoil thickness","[m]",{"$f":"Beam_Thickness_Calculator!AB261*Beam_Thickness_Calculator!AB260/100","v":0},{"$f":"Beam_Thickness_Calculator!AC261*Beam_Thickness_Calculator!AC260/100","v":0},"ρs","Density of sparcap","[kg/m3]",{"$f":"Global_Var!$E$4","v":1920}]
[null,null,null,null,null,null,null,null,null,null,null,null,null,null,null,null,null,null,null,null,null,null,null,null,"AF%","% thickness of foil","[%]",{"$f":"P24","v":21.3},{"$f":"T24","v":22.576391548868354},"ho","Section height outer","[m]",{"$f":"AG260*Beam_Thickness_Calculator!AL268","v":0},{"$f":"AH260*Beam_Thickness_Calculator!AL268","v":0},"ϵUD(max)","Max allow design strain Sparcap","[-]",{"$f":"Global_Var!$E$5","v":2.8999999999999998E-3}]
[null,null,null,null,null,null,null,null,null,null,null,null,null,null,null,null,null,null,null,null,null,null,null,null,"M","Moment","[n-m]",{"$f":"N24","v":0},{"$f":"AB262*Beam_Thickness_Calculator!AL270","v":0},"hc","height of core","[m]",{"$f":"Beam_Thickness_Calculator!AG261-2*Beam_Thickness_Calculator!AB263","v":-7.6597313667032402E-2},{"$f":"Beam_Thickness_Calculator!AH261-2*Beam_Thickness_Calculator!AC263","v":-0.43727188442760895},"σs(allow)","Allowable stress in Sparcap","[Pa]",{"$f":"Global_Var!$E$6","v":115419999.99999999}]
[null,null,null,null,null,null,null,null,null,null,null,null,null,null,null,null,null,null,null,null,null,null,null,null,"t","Spar Cap Thickness","[m]",{"$f":"Q24","v":3.8298656833516201E-2},{"$f":"U24","v":0.21863594221380447},"c","distance from neutral axis","[m]",{"$f":"Beam_Thickness_Calculator!AG261/2","v":0},{"$f":"Beam_Thickness_Calculator!AH261/2","v":0},"EC","Modulus of Core","[Pa]",{"$f":"Global_Var!$E$7","v":3790000}]
[null,null,null,null,null,null,null,null,null,null,null,null,null,null,null,null,null,null,null,null,null,null,null,null,"σs(max)","Max Stress in Sparcap","[Pa]",{"$f":"(AB262*(Beam_Thickness_Calculator!AG261/2)*Beam_Thickness_Calculator!AL259)/(Beam_Thickness_Calculator!AL259*Beam_Thickness_Calculator!AG264+Beam_Thickness_Calculator!AL263*Beam_Thickness_Calculator!AG265)","v":{"$error":"#DIV/0!"}},{"$f":"(AC262*(Beam_Thickness_Calculator!AH261/2)*Beam_Thickness_Calculator!AL259)/(Beam_Thickness_Calculator!AL259*Beam_Thickness_Calculator!AH264+Beam_Thickness_Calculator!AL263*Beam_Thickness_Calculator!AH265)","v":{"$error":"#DIV/0!"}},"Is","Moment of inertia Spar","[m4]",{"$f":"(Beam_Thickness_Calculator!AG259/12)*(Beam_Thickness_Calculator!AG261^3-Beam_Thickness_Calculator!AG262^3)","v":0},{"$f":"(Beam_Thickness_Calculator!AH259/12)*(Beam_Thickness_Calculator!AH261^3-Beam_Thickness_Calculator!AH262^3)","v":0},"ρc","Density of core","[kg/m3]",{"$f":"Global_Var!$E$8","v":673}]
[null,null,null,null,null,null,null,null,null,null,null,null,null,null,null,null,null,null,null,null,null,null,null,null,"Ww","Wet Weight","[kg]",{"$f":"Beam_Thickness_Calculator!AG269+Beam_Thickness_Calculator!AG268-Beam_Thickness_Calculator!AG271","v":0},{"$f":"Beam_Thickness_Calculator!AH269+Beam_Thickness_Calculator!AH268-Beam_Thickness_Calculator!AH271","v":0},"Ic","Moment of inertia Core","[m4]",{"$f":"(Beam_Thickness_Calculator!AG259/12)*Beam_Thickness_Calculator!AG262^3","v":0},{"$f":"(Beam_Thickness_Calculator!AH259/12)*Beam_Thickness_Calculator!AH262^3","v":0},"ρw","Density of Seawater","[kg/m3]",{"$f":"Global_Var!$E$9","v":1029}]
[null,null,null,null,null,null,null,null,null,null,null,null,null,null,null,null,null,null,null,null,null,null,null,null,"Ww(rotor)","Wet Weight segment of rotor (+ floats)","[kg]",{"$f":"AB265*2","v":0},{"$f":"AC265*3","v":0},"Vs","Volume of Spar","[m3]",{"$f":"Beam_Thickness_Calculator!AG259*Beam_Thickness_Calculator!AB263*Beam_Thickness_Calculator!AL266*2","v":0},{"$f":"Beam_Thickness_Calculator!AH259*Beam_Thickness_Calculator!AC263*Beam_Thickness_Calculator!AL266*2","v":0},"L","Section Length","[m]",{"$f":"Global_Var!$E$10","v":0.74166666666666647}]
[null,null,null,null,null,null,null,null,null,null,null,null,null,null,null,null,null,null,null,null,null,null,null,null,null,null,null,null,null,"Vc","Volume of Core","[m3]",{"$f":"Beam_Thickness_Calculator!AG262*Beam_Thickness_Calculator!AG259*Beam_Thickness_Calculator!AL266","v":0},{"$f":"Beam_Thickness_Calculator!AH262*Beam_Thickness_Calculator!AH259*Beam_Thickness_Calculator!AL266","v":0},null,"Beam width in terms of chord","[-]",{"$f":"Global_Var!$E$11","v":0.6}]
[null,null,null,null,null,null,null,null,null,null,null,null,null,null,null,null,null,null,null,null,null,null,null,null,null,"Spar Strain Limit (Goal Seek to 1)",null,{"$f":"(AB264/$AL$7)","v":{"$error":"#DIV/0!"}},{"$f":"(AC264/$AL$7)","v":{"$error":"#DIV/0!"}},"Ms","Mass of Spar","[kg]",{"$f":"Beam_Thickness_Calculator!AL260*AG266","v":0},{"$f":"Beam_Thickness_Calculator!AL260*AH266","v":0},null,"Beam height in terms of thickness","[-]",0.85]
[null,null,null,null,null,null,null,null,null,null,null,null,null,null,null,null,null,null,null,null,null,null,null,null,null,null,null,null,null,"Mc","Mass of Core","[kg]",{"$f":"AG267*Beam_Thickness_Calculator!AL264","v":0},{"$f":"AH267*Beam_Thickness_Calculator!AL264","v":0},null,"Chord Ratio Blade A/Blade B","[-]",{"$f":"Global_Var!$E$13","v":0.66666666666666663}]
[null,null,null,null,null,null,null,null,null,null,null,null,null,null,null,null,null,null,null,null,null,null,null,null,null,null,null,null,null,"Vd","Displaced Volume","[m3]",{"$f":"Beam_Thickness_Calculator!AG261*Beam_Thickness_Calculator!AG259*Beam_Thickness_Calculator!AL266","v":0},{"$f":"Beam_Thickness_Calculator!AH261*Beam_Thickness_Calculator!AH259*Beam_Thickness_Calculator!AL266","v":0},null,"Moment Ratio Blade A/Blade B","[-]",{"$f":"Global_Var!$E$14","v":0.66666666666666663}]
[null,null,null,null,null,null,null,null,null,null,null,null,null,null,null,null,null,null,null,null,null,null,null,null,null,null,null,null,null,"Mw","Mass of disp. Seawater","[kg]",{"$f":"Beam_Thickness_Calculator!AL265*Beam_Thickness_Calculator!AG270","v":0},{"$f":"Beam_Thickness_Calculator!AL265*Beam_Thickness_Calculator!AH270","v":0}]
[]
[null,null,null,null,null,null,null,null,null,null,null,null,null,null,null,null,null,null,null,null,null,null,null,null,"Input/Output",null,null,null,null,"Intermediate Calculations",null,null,null,null,"Constants"]
[null,null,null,null,null,null,null,null,null,null,null,null,null,null,null,null,null,null,null,null,null,null,null,null,19,null,null,"Blade A","Blade B","b","Spar Cap Width","[m]",{"$f":"Beam_Thickness_Calculator!AB275*Beam_Thickness_Calculator!AL282","v":0},{"$f":"Beam_Thickness_Calculator!AC275*Beam_Thickness_Calculator!AL282","v":0},"EUD","Modulus of Sparcap","[Pa]",{"$f":"Global_Var!$E$3","v":39800000000}]
[null,null,null,null,null,null,null,null,null,null,null,null,null,null,null,null,null,null,null,null,null,null,null,null,"C","Chord","[m]",{"$f":"L25","v":0},{"$f":"AB275*Beam_Thickness_Calculator!AL284","v":0},"t","Airfoil thickness","[m]",{"$f":"Beam_Thickness_Calculator!AB276*Beam_Thickness_Calculator!AB275/100","v":0},{"$f":"Beam_Thickness_Calculator!AC276*Beam_Thickness_Calculator!AC275/100","v":0},"ρs","Density of sparcap","[kg/m3]",{"$f":"Global_Var!$E$4","v":1920}]
[null,null,null,null,null,null,null,null,null,null,null,null,null,null,null,null,null,null,null,null,null,null,null,null,"AF%","% thickness of foil","[%]",{"$f":"P25","v":21.2},{"$f":"T25","v":21.857487900873188},"ho","Section height outer","[m]",{"$f":"AG275*Beam_Thickness_Calculator!AL283","v":0},{"$f":"AH275*Beam_Thickness_Calculator!AL283","v":0},"ϵUD(max)","Max allow design strain Sparcap","[-]",{"$f":"Global_Var!$E$5","v":2.8999999999999998E-3}]
[null,null,null,null,null,null,null,null,null,null,null,null,null,null,null,null,null,null,null,null,null,null,null,null,"M","Moment","[n-m]",{"$f":"N25","v":0},{"$f":"AB277*Beam_Thickness_Calculator!AL285","v":0},"hc","height of core","[m]",{"$f":"Beam_Thickness_Calculator!AG276-2*Beam_Thickness_Calculator!AB278","v":-6.9456700902931948E-2},{"$f":"Beam_Thickness_Calculator!AH276-2*Beam_Thickness_Calculator!AC278","v":-0.38435879665410416},"σs(allow)","Allowable stress in Sparcap","[Pa]",{"$f":"Global_Var!$E$6","v":115419999.99999999}]
[null,null,null,null,null,null,null,null,null,null,null,null,null,null,null,null,null,null,null,null,null,null,null,null,"t","Spar Cap Thickness","[m]",{"$f":"Q25","v":3.4728350451465974E-2},{"$f":"U25","v":0.19217939832705208},"c","distance from neutral axis","[m]",{"$f":"Beam_Thickness_Calculator!AG276/2","v":0},{"$f":"Beam_Thickness_Calculator!AH276/2","v":0},"EC","Modulus of Core","[Pa]",{"$f":"Global_Var!$E$7","v":3790000}]
[null,null,null,null,null,null,null,null,null,null,null,null,null,null,null,null,null,null,null,null,null,null,null,null,"σs(max)","Max Stress in Sparcap","[Pa]",{"$f":"(AB277*(Beam_Thickness_Calculator!AG276/2)*Beam_Thickness_Calculator!AL274)/(Beam_Thickness_Calculator!AL274*Beam_Thickness_Calculator!AG279+Beam_Thickness_Calculator!AL278*Beam_Thickness_Calculator!AG280)","v":{"$error":"#DIV/0!"}},{"$f":"(AC277*(Beam_Thickness_Calculator!AH276/2)*Beam_Thickness_Calculator!AL274)/(Beam_Thickness_Calculator!AL274*Beam_Thickness_Calculator!AH279+Beam_Thickness_Calculator!AL278*Beam_Thickness_Calculator!AH280)","v":{"$error":"#DIV/0!"}},"Is","Moment of inertia Spar","[m4]",{"$f":"(Beam_Thickness_Calculator!AG274/12)*(Beam_Thickness_Calculator!AG276^3-Beam_Thickness_Calculator!AG277^3)","v":0},{"$f":"(Beam_Thickness_Calculator!AH274/12)*(Beam_Thickness_Calculator!AH276^3-Beam_Thickness_Calculator!AH277^3)","v":0},"ρc","Density of core","[kg/m3]",{"$f":"Global_Var!$E$8","v":673}]
[null,null,null,null,null,null,null,null,null,null,null,null,null,null,null,null,null,null,null,null,null,null,null,null,"Ww","Wet Weight","[kg]",{"$f":"Beam_Thickness_Calculator!AG284+Beam_Thickness_Calculator!AG283-Beam_Thickness_Calculator!AG286","v":0},{"$f":"Beam_Thickness_Calculator!AH284+Beam_Thickness_Calculator!AH283-Beam_Thickness_Calculator!AH286","v":0},"Ic","Moment of inertia Core","[m4]",{"$f":"(Beam_Thickness_Calculator!AG274/12)*Beam_Thickness_Calculator!AG277^3","v":0},{"$f":"(Beam_Thickness_Calculator!AH274/12)*Beam_Thickness_Calculator!AH277^3","v":0},"ρw","Density of Seawater","[kg/m3]",{"$f":"Global_Var!$E$9","v":1029}]
[null,null,null,null,null,null,null,null,null,null,null,null,null,null,null,null,null,null,null,null,null,null,null,null,"Ww(rotor)","Wet Weight segment of rotor (+ floats)","[kg]",{"$f":"AB280*2","v":0},{"$f":"AC280*3","v":0},"Vs","Volume of Spar","[m3]",{"$f":"Beam_Thickness_Calculator!AG274*Beam_Thickness_Calculator!AB278*Beam_Thickness_Calculator!AL281*2","v":0},{"$f":"Beam_Thickness_Calculator!AH274*Beam_Thickness_Calculator!AC278*Beam_Thickness_Calculator!AL281*2","v":0},"L","Section Length","[m]",{"$f":"Global_Var!$E$10","v":0.74166666666666647}]
[null,null,null,null,null,null,null,null,null,null,null,null,null,null,null,null,null,null,null,null,null,null,null,null,null,null,null,null,null,"Vc","Volume of Core","[m3]",{"$f":"Beam_Thickness_Calculator!AG277*Beam_Thickness_Calculator!AG274*Beam_Thickness_Calculator!AL281","v":0},{"$f":"Beam_Thickness_Calculator!AH277*Beam_Thickness_Calculator!AH274*Beam_Thickness_Calculator!AL281","v":0},null,"Beam width in terms of chord","[-]",{"$f":"Global_Var!$E$11","v":0.6}]
[null,null,null,null,null,null,null,null,null,null,null,null,null,null,null,null,null,null,null,null,null,null,null,null,null,"Spar Strain Limit (Goal Seek to 1)",null,{"$f":"(AB279/$AL$7)","v":{"$error":"#DIV/0!"}},{"$f":"(AC279/$AL$7)","v":{"$error":"#DIV/0!"}},"Ms","Mass of Spar","[kg]",{"$f":"Beam_Thickness_Calculator!AL275*AG281","v":0},{"$f":"Beam_Thickness_Calculator!AL275*AH281","v":0},null,"Beam height in terms of thickness","[-]",0.85]
[null,null,null,null,null,null,null,null,null,null,null,null,null,null,null,null,null,null,null,null,null,null,null,null,null,null,null,null,null,"Mc","Mass of Core","[kg]",{"$f":"AG282*Beam_Thickness_Calculator!AL279","v":0},{"$f":"AH282*Beam_Thickness_Calculator!AL279","v":0},null,"Chord Ratio Blade A/Blade B","[-]",{"$f":"Global_Var!$E$13","v":0.66666666666666663}]
[null,null,null,null,null,null,null,null,null,null,null,null,null,null,null,null,null,null,null,null,null,null,null,null,null,null,null,null,null,"Vd","Displaced Volume","[m3]",{"$f":"Beam_Thickness_Calculator!AG276*Beam_Thickness_Calculator!AG274*Beam_Thickness_Calculator!AL281","v":0},{"$f":"Beam_Thickness_Calculator!AH276*Beam_Thickness_Calculator!AH274*Beam_Thickness_Calculator!AL281","v":0},null,"Moment Ratio Blade A/Blade B","[-]",{"$f":"Global_Var!$E$14","v":0.66666666666666663}]
[null,null,null,null,null,null,null,null,null,null,null,null,null,null,null,null,null,null,null,null,null,null,null,null,null,null,null,null,null,"Mw","Mass of disp. Seawater","[kg]",{"$f":"Beam_Thickness_Calculator!AL280*Beam_Thickness_Calculator!AG285","v":0},{"$f":"Beam_Thickness_Calculator!AL280*Beam_Thickness_Calculator!AH285","v":0}]
[]
[null,null,null,null,null,null,null,null,null,null,null,null,null,null,null,null,null,null,null,null,null,null,null,null,"Input/Output",null,null,null,null,"Intermediate Calculations",null,null,null,null,"Constants"]
[null,null,null,null,null,null,null,null,null,null,null,null,null,null,null,null,null,null,null,null,null,null,null,null,20,null,null,"Blade A","Blade B","b","Spar Cap Width","[m]",{"$f":"Beam_Thickness_Calculator!AB290*Beam_Thickness_Calculator!AL297","v":0},{"$f":"Beam_Thickness_Calculator!AC290*Beam_Thickness_Calculator!AL297","v":0},"EUD","Modulus of Sparcap","[Pa]",{"$f":"Global_Var!$E$3","v":39800000000}]
[null,null,null,null,null,null,null,null,null,null,null,null,null,null,null,null,null,null,null,null,null,null,null,null,"C","Chord","[m]",{"$f":"L26","v":0},{"$f":"AB290*Beam_Thickness_Calculator!AL299","v":0},"t","Airfoil thickness","[m]",{"$f":"Beam_Thickness_Calculator!AB291*Beam_Thickness_Calculator!AB290/100","v":0},{"$f":"Beam_Thickness_Calculator!AC291*Beam_Thickness_Calculator!AC290/100","v":0},"ρs","Density of sparcap","[kg/m3]",{"$f":"Global_Var!$E$4","v":1920}]
[null,null,null,null,null,null,null,null,null,null,null,null,null,null,null,null,null,null,null,null,null,null,null,null,"AF%","% thickness of foil","[%]",{"$f":"P26","v":21.1},{"$f":"T26","v":21.027899761624855},"ho","Section height outer","[m]",{"$f":"AG290*Beam_Thickness_Calculator!AL298","v":0},{"$f":"AH290*Beam_Thickness_Calculator!AL298","v":0},"ϵUD(max)","Max allow design strain Sparcap","[-]",{"$f":"Global_Var!$E$5","v":2.8999999999999998E-3}]
[null,null,null,null,null,null,null,null,null,null,null,null,null,null,null,null,null,null,null,null,null,null,null,null,"M","Moment","[n-m]",{"$f":"N26","v":0},{"$f":"AB292*Beam_Thickness_Calculator!AL300","v":0},"hc","height of core","[m]",{"$f":"Beam_Thickness_Calculator!AG291-2*Beam_Thickness_Calculator!AB293","v":-6.1706302817626096E-2},{"$f":"Beam_Thickness_Calculator!AH291-2*Beam_Thickness_Calculator!AC293","v":-0.19405852613476782},"σs(allow)","Allowable stress in Sparcap","[Pa]",{"$f":"Global_Var!$E$6","v":115419999.99999999}]
[null,null,null,null,null,null,null,null,null,null,null,null,null,null,null,null,null,null,null,null,null,null,null,null,"t","Spar Cap Thickness","[m]",{"$f":"Q26","v":3.0853151408813048E-2},{"$f":"U26","v":9.7029263067383908E-2},"c","distance from neutral axis","[m]",{"$f":"Beam_Thickness_Calculator!AG291/2","v":0},{"$f":"Beam_Thickness_Calculator!AH291/2","v":0},"EC","Modulus of Core","[Pa]",{"$f":"Global_Var!$E$7","v":3790000}]
[null,null,null,null,null,null,null,null,null,null,null,null,null,null,null,null,null,null,null,null,null,null,null,null,"σs(max)","Max Stress in Sparcap","[Pa]",{"$f":"(AB292*(Beam_Thickness_Calculator!AG291/2)*Beam_Thickness_Calculator!AL289)/(Beam_Thickness_Calculator!AL289*Beam_Thickness_Calculator!AG294+Beam_Thickness_Calculator!AL293*Beam_Thickness_Calculator!AG295)","v":{"$error":"#DIV/0!"}},{"$f":"(AC292*(Beam_Thickness_Calculator!AH291/2)*Beam_Thickness_Calculator!AL289)/(Beam_Thickness_Calculator!AL289*Beam_Thickness_Calculator!AH294+Beam_Thickness_Calculator!AL293*Beam_Thickness_Calculator!AH295)","v":{"$error":"#DIV/0!"}},"Is","Moment of inertia Spar","[m4]",{"$f":"(Beam_Thickness_Calculator!AG289/12)*(Beam_Thickness_Calculator!AG291^3-Beam_Thickness_Calculator!AG292^3)","v":0},{"$f":"(Beam_Thickness_Calculator!AH289/12)*(Beam_Thickness_Calculator!AH291^3-Beam_Thickness_Calculator!AH292^3)","v":0},"ρc","Density of core","[kg/m3]",{"$f":"Global_Var!$E$8","v":673}]
[null,null,null,null,null,null,null,null,null,null,null,null,null,null,null,null,null,null,null,null,null,null,null,null,"Ww","Wet Weight","[kg]",{"$f":"Beam_Thickness_Calculator!AG299+Beam_Thickness_Calculator!AG298-Beam_Thickness_Calculator!AG301","v":0},{"$f":"Beam_Thickness_Calculator!AH299+Beam_Thickness_Calculator!AH298-Beam_Thickness_Calculator!AH301","v":0},"Ic","Moment of inertia Core","[m4]",{"$f":"(Beam_Thickness_Calculator!AG289/12)*Beam_Thickness_Calculator!AG292^3","v":0},{"$f":"(Beam_Thickness_Calculator!AH289/12)*Beam_Thickness_Calculator!AH292^3","v":0},"ρw","Density of Seawater","[kg/m3]",{"$f":"Global_Var!$E$9","v":1029}]
[null,null,null,null,null,null,null,null,null,null,null,null,null,null,null,null,null,null,null,null,null,null,null,null,"Ww(rotor)","Wet Weight segment of rotor (+ floats)","[kg]",{"$f":"AB295*2","v":0},{"$f":"AC295*3","v":0},"Vs","Volume of Spar","[m3]",{"$f":"Beam_Thickness_Calculator!AG289*Beam_Thickness_Calculator!AB293*Beam_Thickness_Calculator!AL296*2","v":0},{"$f":"Beam_Thickness_Calculator!AH289*Beam_Thickness_Calculator!AC293*Beam_Thickness_Calculator!AL296*2","v":0},"L","Section Length","[m]",{"$f":"Global_Var!$E$10","v":0.74166666666666647}]
[null,null,null,null,null,null,null,null,null,null,null,null,null,null,null,null,null,null,null,null,null,null,null,null,null,null,null,null,null,"Vc","Volume of Core","[m3]",{"$f":"Beam_Thickness_Calculator!AG292*Beam_Thickness_Calculator!AG289*Beam_Thickness_Calculator!AL296","v":0},{"$f":"Beam_Thickness_Calculator!AH292*Beam_Thickness_Calculator!AH289*Beam_Thickness_Calculator!AL296","v":0},null,"Beam width in terms of chord","[-]",{"$f":"Global_Var!$E$11","v":0.6}]
[null,null,null,null,null,null,null,null,null,null,null,null,null,null,null,null,null,null,null,null,null,null,null,null,null,"Spar Strain Limit (Goal Seek to 1)",null,{"$f":"(AB294/$AL$7)","v":{"$error":"#DIV/0!"}},{"$f":"(AC294/$AL$7)","v":{"$error":"#DIV/0!"}},"Ms","Mass of Spar","[kg]",{"$f":"Beam_Thickness_Calculator!AL290*AG296","v":0},{"$f":"Beam_Thickness_Calculator!AL290*AH296","v":0},null,"Beam height in terms of thickness","[-]",0.85]
[null,null,null,null,null,null,null,null,null,null,null,null,null,null,null,null,null,null,null,null,null,null,null,null,null,null,null,null,null,"Mc","Mass of Core","[kg]",{"$f":"AG297*Beam_Thickness_Calculator!AL294","v":0},{"$f":"AH297*Beam_Thickness_Calculator!AL294","v":0},null,"Chord Ratio Blade A/Blade B","[-]",{"$f":"Global_Var!$E$13","v":0.66666666666666663}]
[null,null,null,null,null,null,null,null,null,null,null,null,null,null,null,null,null,null,null,null,null,null,null,null,null,null,null,null,null,"Vd","Displaced Volume","[m3]",{"$f":"Beam_Thickness_Calculator!AG291*Beam_Thickness_Calculator!AG289*Beam_Thickness_Calculator!AL296","v":0},{"$f":"Beam_Thickness_Calculator!AH291*Beam_Thickness_Calculator!AH289*Beam_Thickness_Calculator!AL296","v":0},null,"Moment Ratio Blade A/Blade B","[-]",{"$f":"Global_Var!$E$14","v":0.66666666666666663}]
[null,null,null,null,null,null,null,null,null,null,null,null,null,null,null,null,null,null,null,null,null,null,null,null,null,null,null,null,null,"Mw","Mass of disp. Seawater","[kg]",{"$f":"Beam_Thickness_Calculator!AL295*Beam_Thickness_Calculator!AG300","v":0},{"$f":"Beam_Thickness_Calculator!AL295*Beam_Thickness_Calculator!AH300","v":0}]
[]
[null,null,null,null,null,null,null,null,null,null,null,null,null,null,null,null,null,null,null,null,null,null,null,null,"Input/Output",null,null,null,null,"Intermediate Calculations",null,null,null,null,"Constants"]
[null,null,null,null,null,null,null,null,null,null,null,null,null,null,null,null,null,null,null,null,null,null,null,null,21,null,null,"Blade A","Blade B","b","Spar Cap Width","[m]",{"$f":"Beam_Thickness_Calculator!AB305*Beam_Thickness_Calculator!AL312","v":0},{"$f":"Beam_Thickness_Calculator!AC305*Beam_Thickness_Calculator!AL312","v":0},"EUD","Modulus of Sparcap","[Pa]",{"$f":"Global_Var!$E$3","v":39800000000}]
[null,null,null,null,null,null,null,null,null,null,null,null,null,null,null,null,null,null,null,null,null,null,null,null,"C","Chord","[m]",{"$f":"L27","v":0},{"$f":"AB305*Beam_Thickness_Calculator!AL314","v":0},"t","Airfoil thickness","[m]",{"$f":"Beam_Thickness_Calculator!AB306*Beam_Thickness_Calculator!AB305/100","v":0},{"$f":"Beam_Thickness_Calculator!AC306*Beam_Thickness_Calculator!AC305/100","v":0},"ρs","Density of sparcap","[kg/m3]",{"$f":"Global_Var!$E$4","v":1920}]
[null,null,null,null,null,null,null,null,null,null,null,null,null,null,null,null,null,null,null,null,null,null,null,null,"AF%","% thickness of foil","[%]",{"$f":"P27","v":20.8},{"$f":"T27","v":20.8},"ho","Section height outer","[m]",{"$f":"AG305*Beam_Thickness_Calculator!AL313","v":0},{"$f":"AH305*Beam_Thickness_Calculator!AL313","v":0},"ϵUD(max)","Max allow design strain Sparcap","[-]",{"$f":"Global_Var!$E$5","v":2.8999999999999998E-3}]
[null,null,null,null,null,null,null,null,null,null,null,null,null,null,null,null,null,null,null,null,null,null,null,null,"M","Moment","[n-m]",{"$f":"N27","v":0},{"$f":"AB307*Beam_Thickness_Calculator!AL315","v":0},"hc","height of core","[m]",{"$f":"Beam_Thickness_Calculator!AG306-2*Beam_Thickness_Calculator!AB308","v":-5.4447162272208603E-2},{"$f":"Beam_Thickness_Calculator!AH306-2*Beam_Thickness_Calculator!AC308","v":-0.1526728670256744},"σs(allow)","Allowable stress in Sparcap","[Pa]",{"$f":"Global_Var!$E$6","v":115419999.99999999}]
[null,null,null,null,null,null,null,null,null,null,null,null,null,null,null,null,null,null,null,null,null,null,null,null,"t","Spar Cap Thickness","[m]",{"$f":"Q27","v":2.7223581136104302E-2},{"$f":"U27","v":7.6336433512837198E-2},"c","distance from neutral axis","[m]",{"$f":"Beam_Thickness_Calculator!AG306/2","v":0},{"$f":"Beam_Thickness_Calculator!AH306/2","v":0},"EC","Modulus of Core","[Pa]",{"$f":"Global_Var!$E$7","v":3790000}]
[null,null,null,null,null,null,null,null,null,null,null,null,null,null,null,null,null,null,null,null,null,null,null,null,"σs(max)","Max Stress in Sparcap","[Pa]",{"$f":"(AB307*(Beam_Thickness_Calculator!AG306/2)*Beam_Thickness_Calculator!AL304)/(Beam_Thickness_Calculator!AL304*Beam_Thickness_Calculator!AG309+Beam_Thickness_Calculator!AL308*Beam_Thickness_Calculator!AG310)","v":{"$error":"#DIV/0!"}},{"$f":"(AC307*(Beam_Thickness_Calculator!AH306/2)*Beam_Thickness_Calculator!AL304)/(Beam_Thickness_Calculator!AL304*Beam_Thickness_Calculator!AH309+Beam_Thickness_Calculator!AL308*Beam_Thickness_Calculator!AH310)","v":{"$error":"#DIV/0!"}},"Is","Moment of inertia Spar","[m4]",{"$f":"(Beam_Thickness_Calculator!AG304/12)*(Beam_Thickness_Calculator!AG306^3-Beam_Thickness_Calculator!AG307^3)","v":0},{"$f":"(Beam_Thickness_Calculator!AH304/12)*(Beam_Thickness_Calculator!AH306^3-Beam_Thickness_Calculator!AH307^3)","v":0},"ρc","Density of core","[kg/m3]",{"$f":"Global_Var!$E$8","v":673}]
[null,null,null,null,null,null,null,null,null,null,null,null,null,null,null,null,null,null,null,null,null,null,null,null,"Ww","Wet Weight","[kg]",{"$f":"Beam_Thickness_Calculator!AG314+Beam_Thickness_Calculator!AG313-Beam_Thickness_Calculator!AG316","v":0},{"$f":"Beam_Thickness_Calculator!AH314+Beam_Thickness_Calculator!AH313-Beam_Thickness_Calculator!AH316","v":0},"Ic","Moment of inertia Core","[m4]",{"$f":"(Beam_Thickness_Calculator!AG304/12)*Beam_Thickness_Calculator!AG307^3","v":0},{"$f":"(Beam_Thickness_Calculator!AH304/12)*Beam_Thickness_Calculator!AH307^3","v":0},"ρw","Density of Seawater","[kg/m3]",{"$f":"Global_Var!$E$9","v":1029}]
[null,null,null,null,null,null,null,null,null,null,null,null,null,null,null,null,null,null,null,null,null,null,null,null,"Ww(rotor)","Wet Weight segment of rotor (+ floats)","[kg]",{"$f":"AB310*2","v":0},{"$f":"AC310*3","v":0},"Vs","Volume of Spar","[m3]",{"$f":"Beam_Thickness_Calculator!AG304*Beam_Thickness_Calculator!AB308*Beam_Thickness_Calculator!AL311*2","v":0},{"$f":"Beam_Thickness_Calculator!AH304*Beam_Thickness_Calculator!AC308*Beam_Thickness_Calculator!AL311*2","v":0},"L","Section Length","[m]",{"$f":"Global_Var!$E$10","v":0.74166666666666647}]
[null,null,null,null,null,null,null,null,null,null,null,null,null,null,null,null,null,null,null,null,null,null,null,null,null,null,null,null,null,"Vc","Volume of Core","[m3]",{"$f":"Beam_Thickness_Calculator!AG307*Beam_Thickness_Calculator!AG304*Beam_Thickness_Calculator!AL311","v":0},{"$f":"Beam_Thickness_Calculator!AH307*Beam_Thickness_Calculator!AH304*Beam_Thickness_Calculator!AL311","v":0},null,"Beam width in terms of chord","[-]",{"$f":"Global_Var!$E$11","v":0.6}]
[null,null,null,null,null,null,null,null,null,null,null,null,null,null,null,null,null,null,null,null,null,null,null,null,null,"Spar Strain Limit (Goal Seek to 1)",null,{"$f":"(AB309/$AL$7)","v":{"$error":"#DIV/0!"}},{"$f":"(AC309/$AL$7)","v":{"$error":"#DIV/0!"}},"Ms","Mass of Spar","[kg]",{"$f":"Beam_Thickness_Calculator!AL305*AG311","v":0},{"$f":"Beam_Thickness_Calculator!AL305*AH311","v":0},null,"Beam height in terms of thickness","[-]",0.85]
[null,null,null,null,null,null,null,null,null,null,null,null,null,null,null,null,null,null,null,null,null,null,null,null,null,null,null,null,null,"Mc","Mass of Core","[kg]",{"$f":"AG312*Beam_Thickness_Calculator!AL309","v":0},{"$f":"AH312*Beam_Thickness_Calculator!AL309","v":0},null,"Chord Ratio Blade A/Blade B","[-]",{"$f":"Global_Var!$E$13","v":0.66666666666666663}]
[null,null,null,null,null,null,null,null,null,null,null,null,null,null,null,null,null,null,null,null,null,null,null,null,null,null,null,null,null,"Vd","Displaced Volume","[m3]",{"$f":"Beam_Thickness_Calculator!AG306*Beam_Thickness_Calculator!AG304*Beam_Thickness_Calculator!AL311","v":0},{"$f":"Beam_Thickness_Calculator!AH306*Beam_Thickness_Calculator!AH304*Beam_Thickness_Calculator!AL311","v":0},null,"Moment Ratio Blade A/Blade B","[-]",{"$f":"Global_Var!$E$14","v":0.66666666666666663}]
[null,null,null,null,null,null,null,null,null,null,null,null,null,null,null,null,null,null,null,null,null,null,null,null,null,null,null,null,null,"Mw","Mass of disp. Seawater","[kg]",{"$f":"Beam_Thickness_Calculator!AL310*Beam_Thickness_Calculator!AG315","v":0},{"$f":"Beam_Thickness_Calculator!AL310*Beam_Thickness_Calculator!AH315","v":0}]
[]
[null,null,null,null,null,null,null,null,null,null,null,null,null,null,null,null,null,null,null,null,null,null,null,null,"Input/Output",null,null,null,null,"Intermediate Calculations",null,null,null,null,"Constants"]
[null,null,null,null,null,null,null,null,null,null,null,null,null,null,null,null,null,null,null,null,null,null,null,null,22,null,null,"Blade A","Blade B","b","Spar Cap Width","[m]",{"$f":"Beam_Thickness_Calculator!AB320*Beam_Thickness_Calculator!AL327","v":0},{"$f":"Beam_Thickness_Calculator!AC320*Beam_Thickness_Calculator!AL327","v":0},"EUD","Modulus of Sparcap","[Pa]",{"$f":"Global_Var!$E$3","v":39800000000}]
[null,null,null,null,null,null,null,null,null,null,null,null,null,null,null,null,null,null,null,null,null,null,null,null,"C","Chord","[m]",{"$f":"L28","v":0},{"$f":"AB320*Beam_Thickness_Calculator!AL329","v":0},"t","Airfoil thickness","[m]",{"$f":"Beam_Thickness_Calculator!AB321*Beam_Thickness_Calculator!AB320/100","v":0},{"$f":"Beam_Thickness_Calculator!AC321*Beam_Thickness_Calculator!AC320/100","v":0},"ρs","Density of sparcap","[kg/m3]",{"$f":"Global_Var!$E$4","v":1920}]
[null,null,null,null,null,null,null,null,null,null,null,null,null,null,null,null,null,null,null,null,null,null,null,null,"AF%","% thickness of foil","[%]",{"$f":"P28","v":20.399999999999999},{"$f":"T28","v":20.399999999999999},"ho","Section height outer","[m]",{"$f":"AG320*Beam_Thickness_Calculator!AL328","v":0},{"$f":"AH320*Beam_Thickness_Calculator!AL328","v":0},"ϵUD(max)","Max allow design strain Sparcap","[-]",{"$f":"Global_Var!$E$5","v":2.8999999999999998E-3}]
[null,null,null,null,null,null,null,null,null,null,null,null,null,null,null,null,null,null,null,null,null,null,null,null,"M","Moment","[n-m]",{"$f":"N28","v":0},{"$f":"AB322*Beam_Thickness_Calculator!AL330","v":0},"hc","height of core","[m]",{"$f":"Beam_Thickness_Calculator!AG321-2*Beam_Thickness_Calculator!AB323","v":-4.7128236803893581E-2},{"$f":"Beam_Thickness_Calculator!AH321-2*Beam_Thickness_Calculator!AC323","v":-0.12283535896616969},"σs(allow)","Allowable stress in Sparcap","[Pa]",{"$f":"Global_Var!$E$6","v":115419999.99999999}]
[null,null,null,null,null,null,null,null,null,null,null,null,null,null,null,null,null,null,null,null,null,null,null,null,"t","Spar Cap Thickness","[m]",{"$f":"Q28","v":2.356411840194679E-2},{"$f":"U28","v":6.1417679483084846E-2},"c","distance from neutral axis","[m]",{"$f":"Beam_Thickness_Calculator!AG321/2","v":0},{"$f":"Beam_Thickness_Calculator!AH321/2","v":0},"EC","Modulus of Core","[Pa]",{"$f":"Global_Var!$E$7","v":3790000}]
[null,null,null,null,null,null,null,null,null,null,null,null,null,null,null,null,null,null,null,null,null,null,null,null,"σs(max)","Max Stress in Sparcap","[Pa]",{"$f":"(AB322*(Beam_Thickness_Calculator!AG321/2)*Beam_Thickness_Calculator!AL319)/(Beam_Thickness_Calculator!AL319*Beam_Thickness_Calculator!AG324+Beam_Thickness_Calculator!AL323*Beam_Thickness_Calculator!AG325)","v":{"$error":"#DIV/0!"}},{"$f":"(AC322*(Beam_Thickness_Calculator!AH321/2)*Beam_Thickness_Calculator!AL319)/(Beam_Thickness_Calculator!AL319*Beam_Thickness_Calculator!AH324+Beam_Thickness_Calculator!AL323*Beam_Thickness_Calculator!AH325)","v":{"$error":"#DIV/0!"}},"Is","Moment of inertia Spar","[m4]",{"$f":"(Beam_Thickness_Calculator!AG319/12)*(Beam_Thickness_Calculator!AG321^3-Beam_Thickness_Calculator!AG322^3)","v":0},{"$f":"(Beam_Thickness_Calculator!AH319/12)*(Beam_Thickness_Calculator!AH321^3-Beam_Thickness_Calculator!AH322^3)","v":0},"ρc","Density of core","[kg/m3]",{"$f":"Global_Var!$E$8","v":673}]
[null,null,null,null,null,null,null,null,null,null,null,null,null,null,null,null,null,null,null,null,null,null,null,null,"Ww","Wet Weight","[kg]",{"$f":"Beam_Thickness_Calculator!AG329+Beam_Thickness_Calculator!AG328-Beam_Thickness_Calculator!AG331","v":0},{"$f":"Beam_Thickness_Calculator!AH329+Beam_Thickness_Calculator!AH328-Beam_Thickness_Calculator!AH331","v":0},"Ic","Moment of inertia Core","[m4]",{"$f":"(Beam_Thickness_Calculator!AG319/12)*Beam_Thickness_Calculator!AG322^3","v":0},{"$f":"(Beam_Thickness_Calculator!AH319/12)*Beam_Thickness_Calculator!AH322^3","v":0},"ρw","Density of Seawater","[kg/m3]",{"$f":"Global_Var!$E$9","v":1029}]
[null,null,null,null,null,null,null,null,null,null,null,null,null,null,null,null,null,null,null,null,null,null,null,null,"Ww(rotor)","Wet Weight segment of rotor (+ floats)","[kg]",{"$f":"AB325*2","v":0},{"$f":"AC325*3","v":0},"Vs","Volume of Spar","[m3]",{"$f":"Beam_Thickness_Calculator!AG319*Beam_Thickness_Calculator!AB323*Beam_Thickness_Calculator!AL326*2","v":0},{"$f":"Beam_Thickness_Calculator!AH319*Beam_Thickness_Calculator!AC323*Beam_Thickness_Calculator!AL326*2","v":0},"L","Section Length","[m]",{"$f":"Global_Var!$E$10","v":0.74166666666666647}]
[null,null,null,null,null,null,null,null,null,null,null,null,null,null,null,null,null,null,null,null,null,null,null,null,null,null,null,null,null,"Vc","Volume of Core","[m3]",{"$f":"Beam_Thickness_Calculator!AG322*Beam_Thickness_Calculator!AG319*Beam_Thickness_Calculator!AL326","v":0},{"$f":"Beam_Thickness_Calculator!AH322*Beam_Thickness_Calculator!AH319*Beam_Thickness_Calculator!AL326","v":0},null,"Beam width in terms of chord","[-]",{"$f":"Global_Var!$E$11","v":0.6}]
[null,null,null,null,null,null,null,null,null,null,null,null,null,null,null,null,null,null,null,null,null,null,null,null,null,"Spar Strain Limit (Goal Seek to 1)",null,{"$f":"(AB324/$AL$7)","v":{"$error":"#DIV/0!"}},{"$f":"(AC324/$AL$7)","v":{"$error":"#DIV/0!"}},"Ms","Mass of Spar","[kg]",{"$f":"Beam_Thickness_Calculator!AL320*AG326","v":0},{"$f":"Beam_Thickness_Calculator!AL320*AH326","v":0},null,"Beam height in terms of thickness","[-]",0.85]
[null,null,null,null,null,null,null,null,null,null,null,null,null,null,null,null,null,null,null,null,null,null,null,null,null,null,null,null,null,"Mc","Mass of Core","[kg]",{"$f":"AG327*Beam_Thickness_Calculator!AL324","v":0},{"$f":"AH327*Beam_Thickness_Calculator!AL324","v":0},null,"Chord Ratio Blade A/Blade B","[-]",{"$f":"Global_Var!$E$13","v":0.66666666666666663}]
[null,null,null,null,null,null,null,null,null,null,null,null,null,null,null,null,null,null,null,null,null,null,null,null,null,null,null,null,null,"Vd","Displaced Volume","[m3]",{"$f":"Beam_Thickness_Calculator!AG321*Beam_Thickness_Calculator!AG319*Beam_Thickness_Calculator!AL326","v":0},{"$f":"Beam_Thickness_Calculator!AH321*Beam_Thickness_Calculator!AH319*Beam_Thickness_Calculator!AL326","v":0},null,"Moment Ratio Blade A/Blade B","[-]",{"$f":"Global_Var!$E$14","v":0.66666666666666663}]
[null,null,null,null,null,null,null,null,null,null,null,null,null,null,null,null,null,null,null,null,null,null,null,null,null,null,null,null,null,"Mw","Mass of disp. Seawater","[kg]",{"$f":"Beam_Thickness_Calculator!AL325*Beam_Thickness_Calculator!AG330","v":0},{"$f":"Beam_Thickness_Calculator!AL325*Beam_Thickness_Calculator!AH330","v":0}]
[]
[null,null,null,null,null,null,null,null,null,null,null,null,null,null,null,null,null,null,null,null,null,null,null,null,"Input/Output",null,null,null,null,"Intermediate Calculations",null,null,null,null,"Constants"]
[null,null,null,null,null,null,null,null,null,null,null,null,null,null,null,null,null,null,null,null,null,null,null,null,23,null,null,"Blade A","Blade B","b","Spar Cap Width","[m]",{"$f":"Beam_Thickness_Calculator!AB335*Beam_Thickness_Calculator!AL342","v":0},{"$f":"Beam_Thickness_Calculator!AC335*Beam_Thickness_Calculator!AL342","v":0},"EUD","Modulus of Sparcap","[Pa]",{"$f":"Global_Var!$E$3","v":39800000000}]
[null,null,null,null,null,null,null,null,null,null,null,null,null,null,null,null,null,null,null,null,null,null,null,null,"C","Chord","[m]",{"$f":"L29","v":0},{"$f":"AB335*Beam_Thickness_Calculator!AL344","v":0},"t","Airfoil thickness","[m]",{"$f":"Beam_Thickness_Calculator!AB336*Beam_Thickness_Calculator!AB335/100","v":0},{"$f":"Beam_Thickness_Calculator!AC336*Beam_Thickness_Calculator!AC335/100","v":0},"ρs","Density of sparcap","[kg/m3]",{"$f":"Global_Var!$E$4","v":1920}]
[null,null,null,null,null,null,null,null,null,null,null,null,null,null,null,null,null,null,null,null,null,null,null,null,"AF%","% thickness of foil","[%]",{"$f":"P29","v":19.899999999999999},{"$f":"T29","v":19.899999999999999},"ho","Section height outer","[m]",{"$f":"AG335*Beam_Thickness_Calculator!AL343","v":0},{"$f":"AH335*Beam_Thickness_Calculator!AL343","v":0},"ϵUD(max)","Max allow design strain Sparcap","[-]",{"$f":"Global_Var!$E$5","v":2.8999999999999998E-3}]
[null,null,null,null,null,null,null,null,null,null,null,null,null,null,null,null,null,null,null,null,null,null,null,null,"M","Moment","[n-m]",{"$f":"N29","v":0},{"$f":"AB337*Beam_Thickness_Calculator!AL345","v":0},"hc","height of core","[m]",{"$f":"Beam_Thickness_Calculator!AG336-2*Beam_Thickness_Calculator!AB338","v":-3.9656697592994457E-2},{"$f":"Beam_Thickness_Calculator!AH336-2*Beam_Thickness_Calculator!AC338","v":-9.8097895114948014E-2},"σs(allow)","Allowable stress in Sparcap","[Pa]",{"$f":"Global_Var!$E$6","v":115419999.99999999}]
[null,null,null,null,null,null,null,null,null,null,null,null,null,null,null,null,null,null,null,null,null,null,null,null,"t","Spar Cap Thickness","[m]",{"$f":"Q29","v":1.9828348796497228E-2},{"$f":"U29","v":4.9048947557474007E-2},"c","distance from neutral axis","[m]",{"$f":"Beam_Thickness_Calculator!AG336/2","v":0},{"$f":"Beam_Thickness_Calculator!AH336/2","v":0},"EC","Modulus of Core","[Pa]",{"$f":"Global_Var!$E$7","v":3790000}]
[null,null,null,null,null,null,null,null,null,null,null,null,null,null,null,null,null,null,null,null,null,null,null,null,"σs(max)","Max Stress in Sparcap","[Pa]",{"$f":"(AB337*(Beam_Thickness_Calculator!AG336/2)*Beam_Thickness_Calculator!AL334)/(Beam_Thickness_Calculator!AL334*Beam_Thickness_Calculator!AG339+Beam_Thickness_Calculator!AL338*Beam_Thickness_Calculator!AG340)","v":{"$error":"#DIV/0!"}},{"$f":"(AC337*(Beam_Thickness_Calculator!AH336/2)*Beam_Thickness_Calculator!AL334)/(Beam_Thickness_Calculator!AL334*Beam_Thickness_Calculator!AH339+Beam_Thickness_Calculator!AL338*Beam_Thickness_Calculator!AH340)","v":{"$error":"#DIV/0!"}},"Is","Moment of inertia Spar","[m4]",{"$f":"(Beam_Thickness_Calculator!AG334/12)*(Beam_Thickness_Calculator!AG336^3-Beam_Thickness_Calculator!AG337^3)","v":0},{"$f":"(Beam_Thickness_Calculator!AH334/12)*(Beam_Thickness_Calculator!AH336^3-Beam_Thickness_Calculator!AH337^3)","v":0},"ρc","Density of core","[kg/m3]",{"$f":"Global_Var!$E$8","v":673}]
[null,null,null,null,null,null,null,null,null,null,null,null,null,null,null,null,null,null,null,null,null,null,null,null,"Ww","Wet Weight","[kg]",{"$f":"Beam_Thickness_Calculator!AG344+Beam_Thickness_Calculator!AG343-Beam_Thickness_Calculator!AG346","v":0},{"$f":"Beam_Thickness_Calculator!AH344+Beam_Thickness_Calculator!AH343-Beam_Thickness_Calculator!AH346","v":0},"Ic","Moment of inertia Core","[m4]",{"$f":"(Beam_Thickness_Calculator!AG334/12)*Beam_Thickness_Calculator!AG337^3","v":0},{"$f":"(Beam_Thickness_Calculator!AH334/12)*Beam_Thickness_Calculator!AH337^3","v":0},"ρw","Density of Seawater","[kg/m3]",{"$f":"Global_Var!$E$9","v":1029}]
[null,null,null,null,null,null,null,null,null,null,null,null,null,null,null,null,null,null,null,null,null,null,null,null,"Ww(rotor)","Wet Weight segment of rotor (+ floats)","[kg]",{"$f":"AB340*2","v":0},{"$f":"AC340*3","v":0},"Vs","Volume of Spar","[m3]",{"$f":"Beam_Thickness_Calculator!AG334*Beam_Thickness_Calculator!AB338*Beam_Thickness_Calculator!AL341*2","v":0},{"$f":"Beam_Thickness_Calculator!AH334*Beam_Thickness_Calculator!AC338*Beam_Thickness_Calculator!AL341*2","v":0},"L","Section Length","[m]",{"$f":"Global_Var!$E$10","v":0.74166666666666647}]
[null,null,null,null,null,null,null,null,null,null,null,null,null,null,null,null,null,null,null,null,null,null,null,null,null,null,null,null,null,"Vc","Volume of Core","[m3]",{"$f":"Beam_Thickness_Calculator!AG337*Beam_Thickness_Calculator!AG334*Beam_Thickness_Calculator!AL341","v":0},{"$f":"Beam_Thickness_Calculator!AH337*Beam_Thickness_Calculator!AH334*Beam_Thickness_Calculator!AL341","v":0},null,"Beam width in terms of chord","[-]",{"$f":"Global_Var!$E$11","v":0.6}]
[null,null,null,null,null,null,null,null,null,null,null,null,null,null,null,null,null,null,null,null,null,null,null,null,null,"Spar Strain Limit (Goal Seek to 1)",null,{"$f":"(AB339/$AL$7)","v":{"$error":"#DIV/0!"}},{"$f":"(AC339/$AL$7)","v":{"$error":"#DIV/0!"}},"Ms","Mass of Spar","[kg]",{"$f":"Beam_Thickness_Calculator!AL335*AG341","v":0},{"$f":"Beam_Thickness_Calculator!AL335*AH341","v":0},null,"Beam height in terms of thickness","[-]",0.85]
[null,null,null,null,null,null,null,null,null,null,null,null,null,null,null,null,null,null,null,null,null,null,null,null,null,null,null,null,null,"Mc","Mass of Core","[kg]",{"$f":"AG342*Beam_Thickness_Calculator!AL339","v":0},{"$f":"AH342*Beam_Thickness_Calculator!AL339","v":0},null,"Chord Ratio Blade A/Blade B","[-]",{"$f":"Global_Var!$E$13","v":0.66666666666666663}]
[null,null,null,null,null,null,null,null,null,null,null,null,null,null,null,null,null,null,null,null,null,null,null,null,null,null,null,null,null,"Vd","Displaced Volume","[m3]",{"$f":"Beam_Thickness_Calculator!AG336*Beam_Thickness_Calculator!AG334*Beam_Thickness_Calculator!AL341","v":0},{"$f":"Beam_Thickness_Calculator!AH336*Beam_Thickness_Calculator!AH334*Beam_Thickness_Calculator!AL341","v":0},null,"Moment Ratio Blade A/Blade B","[-]",{"$f":"Global_Var!$E$14","v":0.66666666666666663}]
[null,null,null,null,null,null,null,null,null,null,null,null,null,null,null,null,null,null,null,null,null,null,null,null,null,null,null,null,null,"Mw","Mass of disp. Seawater","[kg]",{"$f":"Beam_Thickness_Calculator!AL340*Beam_Thickness_Calculator!AG345","v":0},{"$f":"Beam_Thickness_Calculator!AL340*Beam_Thickness_Calculator!AH345","v":0}]
[]
[null,null,null,null,null,null,null,null,null,null,null,null,null,null,null,null,null,null,null,null,null,null,null,null,"Input/Output",null,null,null,null,"Intermediate Calculations",null,null,null,null,"Constants"]
[null,null,null,null,null,null,null,null,null,null,null,null,null,null,null,null,null,null,null,null,null,null,null,null,24,null,null,"Blade A","Blade B","b","Spar Cap Width","[m]",{"$f":"Beam_Thickness_Calculator!AB350*Beam_Thickness_Calculator!AL357","v":0},{"$f":"Beam_Thickness_Calculator!AC350*Beam_Thickness_Calculator!AL357","v":0},"EUD","Modulus of Sparcap","[Pa]",{"$f":"Global_Var!$E$3","v":39800000000}]
[null,null,null,null,null,null,null,null,null,null,null,null,null,null,null,null,null,null,null,null,null,null,null,null,"C","Chord","[m]",{"$f":"L30","v":0},{"$f":"AB350*Beam_Thickness_Calculator!AL359","v":0},"t","Airfoil thickness","[m]",{"$f":"Beam_Thickness_Calculator!AB351*Beam_Thickness_Calculator!AB350/100","v":0},{"$f":"Beam_Thickness_Calculator!AC351*Beam_Thickness_Calculator!AC350/100","v":0},"ρs","Density of sparcap","[kg/m3]",{"$f":"Global_Var!$E$4","v":1920}]
[null,null,null,null,null,null,null,null,null,null,null,null,null,null,null,null,null,null,null,null,null,null,null,null,"AF%","% thickness of foil","[%]",{"$f":"P30","v":19.5},{"$f":"T30","v":19.5},"ho","Section height outer","[m]",{"$f":"AG350*Beam_Thickness_Calculator!AL358","v":0},{"$f":"AH350*Beam_Thickness_Calculator!AL358","v":0},"ϵUD(max)","Max allow design strain Sparcap","[-]",{"$f":"Global_Var!$E$5","v":2.8999999999999998E-3}]
[null,null,null,null,null,null,null,null,null,null,null,null,null,null,null,null,null,null,null,null,null,null,null,null,"M","Moment","[n-m]",{"$f":"N30","v":0},{"$f":"AB352*Beam_Thickness_Calculator!AL360","v":0},"hc","height of core","[m]",{"$f":"Beam_Thickness_Calculator!AG351-2*Beam_Thickness_Calculator!AB353","v":-3.1457353875792078E-2},{"$f":"Beam_Thickness_Calculator!AH351-2*Beam_Thickness_Calculator!AC353","v":-7.4608148085761938E-2},"σs(allow)","Allowable stress in Sparcap","[Pa]",{"$f":"Global_Var!$E$6","v":115419999.99999999}]
[null,null,null,null,null,null,null,null,null,null,null,null,null,null,null,null,null,null,null,null,null,null,null,null,"t","Spar Cap Thickness","[m]",{"$f":"Q30","v":1.5728676937896039E-2},{"$f":"U30","v":3.7304074042880969E-2},"c","distance from neutral axis","[m]",{"$f":"Beam_Thickness_Calculator!AG351/2","v":0},{"$f":"Beam_Thickness_Calculator!AH351/2","v":0},"EC","Modulus of Core","[Pa]",{"$f":"Global_Var!$E$7","v":3790000}]
[null,null,null,null,null,null,null,null,null,null,null,null,null,null,null,null,null,null,null,null,null,null,null,null,"σs(max)","Max Stress in Sparcap","[Pa]",{"$f":"(AB352*(Beam_Thickness_Calculator!AG351/2)*Beam_Thickness_Calculator!AL349)/(Beam_Thickness_Calculator!AL349*Beam_Thickness_Calculator!AG354+Beam_Thickness_Calculator!AL353*Beam_Thickness_Calculator!AG355)","v":{"$error":"#DIV/0!"}},{"$f":"(AC352*(Beam_Thickness_Calculator!AH351/2)*Beam_Thickness_Calculator!AL349)/(Beam_Thickness_Calculator!AL349*Beam_Thickness_Calculator!AH354+Beam_Thickness_Calculator!AL353*Beam_Thickness_Calculator!AH355)","v":{"$error":"#DIV/0!"}},"Is","Moment of inertia Spar","[m4]",{"$f":"(Beam_Thickness_Calculator!AG349/12)*(Beam_Thickness_Calculator!AG351^3-Beam_Thickness_Calculator!AG352^3)","v":0},{"$f":"(Beam_Thickness_Calculator!AH349/12)*(Beam_Thickness_Calculator!AH351^3-Beam_Thickness_Calculator!AH352^3)","v":0},"ρc","Density of core","[kg/m3]",{"$f":"Global_Var!$E$8","v":673}]
[null,null,null,null,null,null,null,null,null,null,null,null,null,null,null,null,null,null,null,null,null,null,null,null,"Ww","Wet Weight","[kg]",{"$f":"Beam_Thickness_Calculator!AG359+Beam_Thickness_Calculator!AG358-Beam_Thickness_Calculator!AG361","v":0},{"$f":"Beam_Thickness_Calculator!AH359+Beam_Thickness_Calculator!AH358-Beam_Thickness_Calculator!AH361","v":0},"Ic","Moment of inertia Core","[m4]",{"$f":"(Beam_Thickness_Calculator!AG349/12)*Beam_Thickness_Calculator!AG352^3","v":0},{"$f":"(Beam_Thickness_Calculator!AH349/12)*Beam_Thickness_Calculator!AH352^3","v":0},"ρw","Density of Seawater","[kg/m3]",{"$f":"Global_Var!$E$9","v":1029}]
[null,null,null,null,null,null,null,null,null,null,null,null,null,null,null,null,null,null,null,null,null,null,null,null,"Ww(rotor)","Wet Weight segment of rotor (+ floats)","[kg]",{"$f":"AB355*2","v":0},{"$f":"AC355*3","v":0},"Vs","Volume of Spar","[m3]",{"$f":"Beam_Thickness_Calculator!AG349*Beam_Thickness_Calculator!AB353*Beam_Thickness_Calculator!AL356*2","v":0},{"$f":"Beam_Thickness_Calculator!AH349*Beam_Thickness_Calculator!AC353*Beam_Thickness_Calculator!AL356*2","v":0},"L","Section Length","[m]",{"$f":"Global_Var!$E$10","v":0.74166666666666647}]
[null,null,null,null,null,null,null,null,null,null,null,null,null,null,null,null,null,null,null,null,null,null,null,null,null,null,null,null,null,"Vc","Volume of Core","[m3]",{"$f":"Beam_Thickness_Calculator!AG352*Beam_Thickness_Calculator!AG349*Beam_Thickness_Calculator!AL356","v":0},{"$f":"Beam_Thickness_Calculator!AH352*Beam_Thickness_Calculator!AH349*Beam_Thickness_Calculator!AL356","v":0},null,"Beam width in terms of chord","[-]",{"$f":"Global_Var!$E$11","v":0.6}]
[null,null,null,null,null,null,null,null,null,null,null,null,null,null,null,null,null,null,null,null,null,null,null,null,null,"Spar Strain Limit (Goal Seek to 1)",null,{"$f":"(AB354/$AL$7)","v":{"$error":"#DIV/0!"}},{"$f":"(AC354/$AL$7)","v":{"$error":"#DIV/0!"}},"Ms","Mass of Spar","[kg]",{"$f":"Beam_Thickness_Calculator!AL350*AG356","v":0},{"$f":"Beam_Thickness_Calculator!AL350*AH356","v":0},null,"Beam height in terms of thickness","[-]",0.85]
[null,null,null,null,null,null,null,null,null,null,null,null,null,null,null,null,null,null,null,null,null,null,null,null,null,null,null,null,null,"Mc","Mass of Core","[kg]",{"$f":"AG357*Beam_Thickness_Calculator!AL354","v":0},{"$f":"AH357*Beam_Thickness_Calculator!AL354","v":0},null,"Chord Ratio Blade A/Blade B","[-]",{"$f":"Global_Var!$E$13","v":0.66666666666666663}]
[null,null,null,null,null,null,null,null,null,null,null,null,null,null,null,null,null,null,null,null,null,null,null,null,null,null,null,null,null,"Vd","Displaced Volume","[m3]",{"$f":"Beam_Thickness_Calculator!AG351*Beam_Thickness_Calculator!AG349*Beam_Thickness_Calculator!AL356","v":0},{"$f":"Beam_Thickness_Calculator!AH351*Beam_Thickness_Calculator!AH349*Beam_Thickness_Calculator!AL356","v":0},null,"Moment Ratio Blade A/Blade B","[-]",{"$f":"Global_Var!$E$14","v":0.66666666666666663}]
[null,null,null,null,null,null,null,null,null,null,null,null,null,null,null,null,null,null,null,null,null,null,null,null,null,null,null,null,null,"Mw","Mass of disp. Seawater","[kg]",{"$f":"Beam_Thickness_Calculator!AL355*Beam_Thickness_Calculator!AG360","v":0},{"$f":"Beam_Thickness_Calculator!AL355*Beam_Thickness_Calculator!AH360","v":0}]
[]
[null,null,null,null,null,null,null,null,null,null,null,null,null,null,null,null,null,null,null,null,null,null,null,null,"Input/Output",null,null,null,null,"Intermediate Calculations",null,null,null,null,"Constants"]
[null,null,null,null,null,null,null,null,null,null,null,null,null,null,null,null,null,null,null,null,null,null,null,null,25,null,null,"Blade A","Blade B","b","Spar Cap Width","[m]",{"$f":"Beam_Thickness_Calculator!AB365*Beam_Thickness_Calculator!AL372","v":0},{"$f":"Beam_Thickness_Calculator!AC365*Beam_Thickness_Calculator!AL372","v":0},"EUD","Modulus of Sparcap","[Pa]",{"$f":"Global_Var!$E$3","v":39800000000}]
[null,null,null,null,null,null,null,null,null,null,null,null,null,null,null,null,null,null,null,null,null,null,null,null,"C","Chord","[m]",{"$f":"L31","v":0},{"$f":"AB365*Beam_Thickness_Calculator!AL374","v":0},"t","Airfoil thickness","[m]",{"$f":"Beam_Thickness_Calculator!AB366*Beam_Thickness_Calculator!AB365/100","v":0},{"$f":"Beam_Thickness_Calculator!AC366*Beam_Thickness_Calculator!AC365/100","v":0},"ρs","Density of sparcap","[kg/m3]",{"$f":"Global_Var!$E$4","v":1920}]
[null,null,null,null,null,null,null,null,null,null,null,null,null,null,null,null,null,null,null,null,null,null,null,null,"AF%","% thickness of foil","[%]",{"$f":"P31","v":19},{"$f":"T31","v":19},"ho","Section height outer","[m]",{"$f":"AG365*Beam_Thickness_Calculator!AL373","v":0},{"$f":"AH365*Beam_Thickness_Calculator!AL373","v":0},"ϵUD(max)","Max allow design strain Sparcap","[-]",{"$f":"Global_Var!$E$5","v":2.8999999999999998E-3}]
[null,null,null,null,null,null,null,null,null,null,null,null,null,null,null,null,null,null,null,null,null,null,null,null,"M","Moment","[n-m]",{"$f":"N31","v":0},{"$f":"AB367*Beam_Thickness_Calculator!AL375","v":0},"hc","height of core","[m]",{"$f":"Beam_Thickness_Calculator!AG366-2*Beam_Thickness_Calculator!AB368","v":-2.3451245754026597E-2},{"$f":"Beam_Thickness_Calculator!AH366-2*Beam_Thickness_Calculator!AC368","v":-5.5067193647641829E-2},"σs(allow)","Allowable stress in Sparcap","[Pa]",{"$f":"Global_Var!$E$6","v":115419999.99999999}]
[null,null,null,null,null,null,null,null,null,null,null,null,null,null,null,null,null,null,null,null,null,null,null,null,"t","Spar Cap Thickness","[m]",{"$f":"Q31","v":1.1725622877013299E-2},{"$f":"U31","v":2.7533596823820915E-2},"c","distance from neutral axis","[m]",{"$f":"Beam_Thickness_Calculator!AG366/2","v":0},{"$f":"Beam_Thickness_Calculator!AH366/2","v":0},"EC","Modulus of Core","[Pa]",{"$f":"Global_Var!$E$7","v":3790000}]
[null,null,null,null,null,null,null,null,null,null,null,null,null,null,null,null,null,null,null,null,null,null,null,null,"σs(max)","Max Stress in Sparcap","[Pa]",{"$f":"(AB367*(Beam_Thickness_Calculator!AG366/2)*Beam_Thickness_Calculator!AL364)/(Beam_Thickness_Calculator!AL364*Beam_Thickness_Calculator!AG369+Beam_Thickness_Calculator!AL368*Beam_Thickness_Calculator!AG370)","v":{"$error":"#DIV/0!"}},{"$f":"(AC367*(Beam_Thickness_Calculator!AH366/2)*Beam_Thickness_Calculator!AL364)/(Beam_Thickness_Calculator!AL364*Beam_Thickness_Calculator!AH369+Beam_Thickness_Calculator!AL368*Beam_Thickness_Calculator!AH370)","v":{"$error":"#DIV/0!"}},"Is","Moment of inertia Spar","[m4]",{"$f":"(Beam_Thickness_Calculator!AG364/12)*(Beam_Thickness_Calculator!AG366^3-Beam_Thickness_Calculator!AG367^3)","v":0},{"$f":"(Beam_Thickness_Calculator!AH364/12)*(Beam_Thickness_Calculator!AH366^3-Beam_Thickness_Calculator!AH367^3)","v":0},"ρc","Density of core","[kg/m3]",{"$f":"Global_Var!$E$8","v":673}]
[null,null,null,null,null,null,null,null,null,null,null,null,null,null,null,null,null,null,null,null,null,null,null,null,"Ww","Wet Weight","[kg]",{"$f":"Beam_Thickness_Calculator!AG374+Beam_Thickness_Calculator!AG373-Beam_Thickness_Calculator!AG376","v":0},{"$f":"Beam_Thickness_Calculator!AH374+Beam_Thickness_Calculator!AH373-Beam_Thickness_Calculator!AH376","v":0},"Ic","Moment of inertia Core","[m4]",{"$f":"(Beam_Thickness_Calculator!AG364/12)*Beam_Thickness_Calculator!AG367^3","v":0},{"$f":"(Beam_Thickness_Calculator!AH364/12)*Beam_Thickness_Calculator!AH367^3","v":0},"ρw","Density of Seawater","[kg/m3]",{"$f":"Global_Var!$E$9","v":1029}]
[null,null,null,null,null,null,null,null,null,null,null,null,null,null,null,null,null,null,null,null,null,null,null,null,"Ww(rotor)","Wet Weight segment of rotor (+ floats)","[kg]",{"$f":"AB370*2","v":0},{"$f":"AC370*3","v":0},"Vs","Volume of Spar","[m3]",{"$f":"Beam_Thickness_Calculator!AG364*Beam_Thickness_Calculator!AB368*Beam_Thickness_Calculator!AL371*2","v":0},{"$f":"Beam_Thickness_Calculator!AH364*Beam_Thickness_Calculator!AC368*Beam_Thickness_Calculator!AL371*2","v":0},"L","Section Length","[m]",{"$f":"Global_Var!$E$10","v":0.74166666666666647}]
[null,null,null,null,null,null,null,null,null,null,null,null,null,null,null,null,null,null,null,null,null,null,null,null,null,null,null,null,null,"Vc","Volume of Core","[m3]",{"$f":"Beam_Thickness_Calculator!AG367*Beam_Thickness_Calculator!AG364*Beam_Thickness_Calculator!AL371","v":0},{"$f":"Beam_Thickness_Calculator!AH367*Beam_Thickness_Calculator!AH364*Beam_Thickness_Calculator!AL371","v":0},null,"Beam width in terms of chord","[-]",{"$f":"Global_Var!$E$11","v":0.6}]
[null,null,null,null,null,null,null,null,null,null,null,null,null,null,null,null,null,null,null,null,null,null,null,null,null,"Spar Strain Limit (Goal Seek to 1)",null,{"$f":"(AB369/$AL$7)","v":{"$error":"#DIV/0!"}},{"$f":"(AC369/$AL$7)","v":{"$error":"#DIV/0!"}},"Ms","Mass of Spar","[kg]",{"$f":"Beam_Thickness_Calculator!AL365*AG371","v":0},{"$f":"Beam_Thickness_Calculator!AL365*AH371","v":0},null,"Beam height in terms of thickness","[-]",0.85]
[null,null,null,null,null,null,null,null,null,null,null,null,null,null,null,null,null,null,null,null,null,null,null,null,null,null,null,null,null,"Mc","Mass of Core","[kg]",{"$f":"AG372*Beam_Thickness_Calculator!AL369","v":0},{"$f":"AH372*Beam_Thickness_Calculator!AL369","v":0},null,"Chord Ratio Blade A/Blade B","[-]",{"$f":"Global_Var!$E$13","v":0.66666666666666663}]
[null,null,null,null,null,null,null,null,null,null,null,null,null,null,null,null,null,null,null,null,null,null,null,null,null,null,null,null,null,"Vd","Displaced Volume","[m3]",{"$f":"Beam_Thickness_Calculator!AG366*Beam_Thickness_Calculator!AG364*Beam_Thickness_Calculator!AL371","v":0},{"$f":"Beam_Thickness_Calculator!AH366*Beam_Thickness_Calculator!AH364*Beam_Thickness_Calculator!AL371","v":0},null,"Moment Ratio Blade A/Blade B","[-]",{"$f":"Global_Var!$E$14","v":0.66666666666666663}]
[null,null,null,null,null,null,null,null,null,null,null,null,null,null,null,null,null,null,null,null,null,null,null,null,null,null,null,null,null,"Mw","Mass of disp. Seawater","[kg]",{"$f":"Beam_Thickness_Calculator!AL370*Beam_Thickness_Calculator!AG375","v":0},{"$f":"Beam_Thickness_Calculator!AL370*Beam_Thickness_Calculator!AH375","v":0}]
[]
[null,null,null,null,null,null,null,null,null,null,null,null,null,null,null,null,null,null,null,null,null,null,null,null,"Input/Output",null,null,null,null,"Intermediate Calculations",null,null,null,null,"Constants"]
[null,null,null,null,null,null,null,null,null,null,null,null,null,null,null,null,null,null,null,null,null,null,null,null,26,null,null,"Blade A","Blade B","b","Spar Cap Width","[m]",{"$f":"Beam_Thickness_Calculator!AB380*Beam_Thickness_Calculator!AL387","v":0},{"$f":"Beam_Thickness_Calculator!AC380*Beam_Thickness_Calculator!AL387","v":0},"EUD","Modulus of Sparcap","[Pa]",{"$f":"Global_Var!$E$3","v":39800000000}]
[null,null,null,null,null,null,null,null,null,null,null,null,null,null,null,null,null,null,null,null,null,null,null,null,"C","Chord","[m]",{"$f":"L32","v":0},{"$f":"AB380*Beam_Thickness_Calculator!AL389","v":0},"t","Airfoil thickness","[m]",{"$f":"Beam_Thickness_Calculator!AB381*Beam_Thickness_Calculator!AB380/100","v":0},{"$f":"Beam_Thickness_Calculator!AC381*Beam_Thickness_Calculator!AC380/100","v":0},"ρs","Density of sparcap","[kg/m3]",{"$f":"Global_Var!$E$4","v":1920}]
[null,null,null,null,null,null,null,null,null,null,null,null,null,null,null,null,null,null,null,null,null,null,null,null,"AF%","% thickness of foil","[%]",{"$f":"P32","v":18.5},{"$f":"T32","v":18.5},"ho","Section height outer","[m]",{"$f":"AG380*Beam_Thickness_Calculator!AL388","v":0},{"$f":"AH380*Beam_Thickness_Calculator!AL388","v":0},"ϵUD(max)","Max allow design strain Sparcap","[-]",{"$f":"Global_Var!$E$5","v":2.8999999999999998E-3}]
[null,null,null,null,null,null,null,null,null,null,null,null,null,null,null,null,null,null,null,null,null,null,null,null,"M","Moment","[n-m]",{"$f":"N32","v":0},{"$f":"AB382*Beam_Thickness_Calculator!AL390","v":0},"hc","height of core","[m]",{"$f":"Beam_Thickness_Calculator!AG381-2*Beam_Thickness_Calculator!AB383","v":-1.5761922374514889E-2},{"$f":"Beam_Thickness_Calculator!AH381-2*Beam_Thickness_Calculator!AC383","v":-3.8054844646181106E-2},"σs(allow)","Allowable stress in Sparcap","[Pa]",{"$f":"Global_Var!$E$6","v":115419999.99999999}]
[null,null,null,null,null,null,null,null,null,null,null,null,null,null,null,null,null,null,null,null,null,null,null,null,"t","Spar Cap Thickness","[m]",{"$f":"Q32","v":7.8809611872574445E-3},{"$f":"U32","v":1.9027422323090553E-2},"c","distance from neutral axis","[m]",{"$f":"Beam_Thickness_Calculator!AG381/2","v":0},{"$f":"Beam_Thickness_Calculator!AH381/2","v":0},"EC","Modulus of Core","[Pa]",{"$f":"Global_Var!$E$7","v":3790000}]
[null,null,null,null,null,null,null,null,null,null,null,null,null,null,null,null,null,null,null,null,null,null,null,null,"σs(max)","Max Stress in Sparcap","[Pa]",{"$f":"(AB382*(Beam_Thickness_Calculator!AG381/2)*Beam_Thickness_Calculator!AL379)/(Beam_Thickness_Calculator!AL379*Beam_Thickness_Calculator!AG384+Beam_Thickness_Calculator!AL383*Beam_Thickness_Calculator!AG385)","v":{"$error":"#DIV/0!"}},{"$f":"(AC382*(Beam_Thickness_Calculator!AH381/2)*Beam_Thickness_Calculator!AL379)/(Beam_Thickness_Calculator!AL379*Beam_Thickness_Calculator!AH384+Beam_Thickness_Calculator!AL383*Beam_Thickness_Calculator!AH385)","v":{"$error":"#DIV/0!"}},"Is","Moment of inertia Spar","[m4]",{"$f":"(Beam_Thickness_Calculator!AG379/12)*(Beam_Thickness_Calculator!AG381^3-Beam_Thickness_Calculator!AG382^3)","v":0},{"$f":"(Beam_Thickness_Calculator!AH379/12)*(Beam_Thickness_Calculator!AH381^3-Beam_Thickness_Calculator!AH382^3)","v":0},"ρc","Density of core","[kg/m3]",{"$f":"Global_Var!$E$8","v":673}]
[null,null,null,null,null,null,null,null,null,null,null,null,null,null,null,null,null,null,null,null,null,null,null,null,"Ww","Wet Weight","[kg]",{"$f":"Beam_Thickness_Calculator!AG389+Beam_Thickness_Calculator!AG388-Beam_Thickness_Calculator!AG391","v":0},{"$f":"Beam_Thickness_Calculator!AH389+Beam_Thickness_Calculator!AH388-Beam_Thickness_Calculator!AH391","v":0},"Ic","Moment of inertia Core","[m4]",{"$f":"(Beam_Thickness_Calculator!AG379/12)*Beam_Thickness_Calculator!AG382^3","v":0},{"$f":"(Beam_Thickness_Calculator!AH379/12)*Beam_Thickness_Calculator!AH382^3","v":0},"ρw","Density of Seawater","[kg/m3]",{"$f":"Global_Var!$E$9","v":1029}]
[null,null,null,null,null,null,null,null,null,null,null,null,null,null,null,null,null,null,null,null,null,null,null,null,"Ww(rotor)","Wet Weight segment of rotor (+ floats)","[kg]",{"$f":"AB385*2","v":0},{"$f":"AC385*3","v":0},"Vs","Volume of Spar","[m3]",{"$f":"Beam_Thickness_Calculator!AG379*Beam_Thickness_Calculator!AB383*Beam_Thickness_Calculator!AL386*2","v":0},{"$f":"Beam_Thickness_Calculator!AH379*Beam_Thickness_Calculator!AC383*Beam_Thickness_Calculator!AL386*2","v":0},"L","Section Length","[m]",{"$f":"Global_Var!$E$10","v":0.74166666666666647}]
[null,null,null,null,null,null,null,null,null,null,null,null,null,null,null,null,null,null,null,null,null,null,null,null,null,null,null,null,null,"Vc","Volume of Core","[m3]",{"$f":"Beam_Thickness_Calculator!AG382*Beam_Thickness_Calculator!AG379*Beam_Thickness_Calculator!AL386","v":0},{"$f":"Beam_Thickness_Calculator!AH382*Beam_Thickness_Calculator!AH379*Beam_Thickness_Calculator!AL386","v":0},null,"Beam width in terms of chord","[-]",{"$f":"Global_Var!$E$11","v":0.6}]
[null,null,null,null,null,null,null,null,null,null,null,null,null,null,null,null,null,null,null,null,null,null,null,null,null,"Spar Strain Limit (Goal Seek to 1)",null,{"$f":"(AB384/$AL$7)","v":{"$error":"#DIV/0!"}},{"$f":"(AC384/$AL$7)","v":{"$error":"#DIV/0!"}},"Ms","Mass of Spar","[kg]",{"$f":"Beam_Thickness_Calculator!AL380*AG386","v":0},{"$f":"Beam_Thickness_Calculator!AL380*AH386","v":0},null,"Beam height in terms of thickness","[-]",0.85]
[null,null,null,null,null,null,null,null,null,null,null,null,null,null,null,null,null,null,null,null,null,null,null,null,null,null,null,null,null,"Mc","Mass of Core","[kg]",{"$f":"AG387*Beam_Thickness_Calculator!AL384","v":0},{"$f":"AH387*Beam_Thickness_Calculator!AL384","v":0},null,"Chord Ratio Blade A/Blade B","[-]",{"$f":"Global_Var!$E$13","v":0.66666666666666663}]
[null,null,null,null,null,null,null,null,null,null,null,null,null,null,null,null,null,null,null,null,null,null,null,null,null,null,null,null,null,"Vd","Displaced Volume","[m3]",{"$f":"Beam_Thickness_Calculator!AG381*Beam_Thickness_Calculator!AG379*Beam_Thickness_Calculator!AL386","v":0},{"$f":"Beam_Thickness_Calculator!AH381*Beam_Thickness_Calculator!AH379*Beam_Thickness_Calculator!AL386","v":0},null,"Moment Ratio Blade A/Blade B","[-]",{"$f":"Global_Var!$E$14","v":0.66666666666666663}]
[null,null,null,null,null,null,null,null,null,null,null,null,null,null,null,null,null,null,null,null,null,null,null,null,null,null,null,null,null,"Mw","Mass of disp. Seawater","[kg]",{"$f":"Beam_Thickness_Calculator!AL385*Beam_Thickness_Calculator!AG390","v":0},{"$f":"Beam_Thickness_Calculator!AL385*Beam_Thickness_Calculator!AH390","v":0}]
[]
[null,null,null,null,null,null,null,null,null,null,null,null,null,null,null,null,null,null,null,null,null,null,null,null,"Input/Output",null,null,null,null,"Intermediate Calculations",null,null,null,null,"Constants"]
[null,null,null,null,null,null,null,null,null,null,null,null,null,null,null,null,null,null,null,null,null,null,null,null,27,null,null,"Blade A","Blade B","b","Spar Cap Width","[m]",{"$f":"Beam_Thickness_Calculator!AB395*Beam_Thickness_Calculator!AL402","v":0},{"$f":"Beam_Thickness_Calculator!AC395*Beam_Thickness_Calculator!AL402","v":0},"EUD","Modulus of Sparcap","[Pa]",{"$f":"Global_Var!$E$3","v":39800000000}]
[null,null,null,null,null,null,null,null,null,null,null,null,null,null,null,null,null,null,null,null,null,null,null,null,"C","Chord","[m]",{"$f":"L33","v":0},{"$f":"AB395*Beam_Thickness_Calculator!AL404","v":0},"t","Airfoil thickness","[m]",{"$f":"Beam_Thickness_Calculator!AB396*Beam_Thickness_Calculator!AB395/100","v":0},{"$f":"Beam_Thickness_Calculator!AC396*Beam_Thickness_Calculator!AC395/100","v":0},"ρs","Density of sparcap","[kg/m3]",{"$f":"Global_Var!$E$4","v":1920}]
[null,null,null,null,null,null,null,null,null,null,null,null,null,null,null,null,null,null,null,null,null,null,null,null,"AF%","% thickness of foil","[%]",{"$f":"P33","v":18.100000000000001},{"$f":"T33","v":18.100000000000001},"ho","Section height outer","[m]",{"$f":"AG395*Beam_Thickness_Calculator!AL403","v":0},{"$f":"AH395*Beam_Thickness_Calculator!AL403","v":0},"ϵUD(max)","Max allow design strain Sparcap","[-]",{"$f":"Global_Var!$E$5","v":2.8999999999999998E-3}]
[null,null,null,null,null,null,null,null,null,null,null,null,null,null,null,null,null,null,null,null,null,null,null,null,"M","Moment","[n-m]",{"$f":"N33","v":0},{"$f":"AB397*Beam_Thickness_Calculator!AL405","v":0},"hc","height of core","[m]",{"$f":"Beam_Thickness_Calculator!AG396-2*Beam_Thickness_Calculator!AB398","v":-8.3822868011111228E-3},{"$f":"Beam_Thickness_Calculator!AH396-2*Beam_Thickness_Calculator!AC398","v":-2.3454792961076072E-2},"σs(allow)","Allowable stress in Sparcap","[Pa]",{"$f":"Global_Var!$E$6","v":115419999.99999999}]
[null,null,null,null,null,null,null,null,null,null,null,null,null,null,null,null,null,null,null,null,null,null,null,null,"t","Spar Cap Thickness","[m]",{"$f":"Q33","v":4.1911434005555614E-3},{"$f":"U33","v":1.1727396480538036E-2},"c","distance from neutral axis","[m]",{"$f":"Beam_Thickness_Calculator!AG396/2","v":0},{"$f":"Beam_Thickness_Calculator!AH396/2","v":0},"EC","Modulus of Core","[Pa]",{"$f":"Global_Var!$E$7","v":3790000}]
[null,null,null,null,null,null,null,null,null,null,null,null,null,null,null,null,null,null,null,null,null,null,null,null,"σs(max)","Max Stress in Sparcap","[Pa]",{"$f":"(AB397*(Beam_Thickness_Calculator!AG396/2)*Beam_Thickness_Calculator!AL394)/(Beam_Thickness_Calculator!AL394*Beam_Thickness_Calculator!AG399+Beam_Thickness_Calculator!AL398*Beam_Thickness_Calculator!AG400)","v":{"$error":"#DIV/0!"}},{"$f":"(AC397*(Beam_Thickness_Calculator!AH396/2)*Beam_Thickness_Calculator!AL394)/(Beam_Thickness_Calculator!AL394*Beam_Thickness_Calculator!AH399+Beam_Thickness_Calculator!AL398*Beam_Thickness_Calculator!AH400)","v":{"$error":"#DIV/0!"}},"Is","Moment of inertia Spar","[m4]",{"$f":"(Beam_Thickness_Calculator!AG394/12)*(Beam_Thickness_Calculator!AG396^3-Beam_Thickness_Calculator!AG397^3)","v":0},{"$f":"(Beam_Thickness_Calculator!AH394/12)*(Beam_Thickness_Calculator!AH396^3-Beam_Thickness_Calculator!AH397^3)","v":0},"ρc","Density of core","[kg/m3]",{"$f":"Global_Var!$E$8","v":673}]
[null,null,null,null,null,null,null,null,null,null,null,null,null,null,null,null,null,null,null,null,null,null,null,null,"Ww","Wet Weight","[kg]",{"$f":"Beam_Thickness_Calculator!AG404+Beam_Thickness_Calculator!AG403-Beam_Thickness_Calculator!AG406","v":0},{"$f":"Beam_Thickness_Calculator!AH404+Beam_Thickness_Calculator!AH403-Beam_Thickness_Calculator!AH406","v":0},"Ic","Moment of inertia Core","[m4]",{"$f":"(Beam_Thickness_Calculator!AG394/12)*Beam_Thickness_Calculator!AG397^3","v":0},{"$f":"(Beam_Thickness_Calculator!AH394/12)*Beam_Thickness_Calculator!AH397^3","v":0},"ρw","Density of Seawater","[kg/m3]",{"$f":"Global_Var!$E$9","v":1029}]
[null,null,null,null,null,null,null,null,null,null,null,null,null,null,null,null,null,null,null,null,null,null,null,null,"Ww(rotor)","Wet Weight segment of rotor (+ floats)","[kg]",{"$f":"AB400*2","v":0},{"$f":"AC400*3","v":0},"Vs","Volume of Spar","[m3]",{"$f":"Beam_Thickness_Calculator!AG394*Beam_Thickness_Calculator!AB398*Beam_Thickness_Calculator!AL401*2","v":0},{"$f":"Beam_Thickness_Calculator!AH394*Beam_Thickness_Calculator!AC398*Beam_Thickness_Calculator!AL401*2","v":0},"L","Section Length","[m]",{"$f":"Global_Var!$E$10","v":0.74166666666666647}]
[null,null,null,null,null,null,null,null,null,null,null,null,null,null,null,null,null,null,null,null,null,null,null,null,null,null,null,null,null,"Vc","Volume of Core","[m3]",{"$f":"Beam_Thickness_Calculator!AG397*Beam_Thickness_Calculator!AG394*Beam_Thickness_Calculator!AL401","v":0},{"$f":"Beam_Thickness_Calculator!AH397*Beam_Thickness_Calculator!AH394*Beam_Thickness_Calculator!AL401","v":0},null,"Beam width in terms of chord","[-]",{"$f":"Global_Var!$E$11","v":0.6}]
[null,null,null,null,null,null,null,null,null,null,null,null,null,null,null,null,null,null,null,null,null,null,null,null,null,"Spar Strain Limit (Goal Seek to 1)",null,{"$f":"(AB399/$AL$7)","v":{"$error":"#DIV/0!"}},{"$f":"(AC399/$AL$7)","v":{"$error":"#DIV/0!"}},"Ms","Mass of Spar","[kg]",{"$f":"Beam_Thickness_Calculator!AL395*AG401","v":0},{"$f":"Beam_Thickness_Calculator!AL395*AH401","v":0},null,"Beam height in terms of thickness","[-]",0.85]
[null,null,null,null,null,null,null,null,null,null,null,null,null,null,null,null,null,null,null,null,null,null,null,null,null,null,null,null,null,"Mc","Mass of Core","[kg]",{"$f":"AG402*Beam_Thickness_Calculator!AL399","v":0},{"$f":"AH402*Beam_Thickness_Calculator!AL399","v":0},null,"Chord Ratio Blade A/Blade B","[-]",{"$f":"Global_Var!$E$13","v":0.66666666666666663}]
[null,null,null,null,null,null,null,null,null,null,null,null,null,null,null,null,null,null,null,null,null,null,null,null,null,null,null,null,null,"Vd","Displaced Volume","[m3]",{"$f":"Beam_Thickness_Calculator!AG396*Beam_Thickness_Calculator!AG394*Beam_Thickness_Calculator!AL401","v":0},{"$f":"Beam_Thickness_Calculator!AH396*Beam_Thickness_Calculator!AH394*Beam_Thickness_Calculator!AL401","v":0},null,"Moment Ratio Blade A/Blade B","[-]",{"$f":"Global_Var!$E$14","v":0.66666666666666663}]
[null,null,null,null,null,null,null,null,null,null,null,null,null,null,null,null,null,null,null,null,null,null,null,null,null,null,null,null,null,"Mw","Mass of disp. Seawater","[kg]",{"$f":"Beam_Thickness_Calculator!AL400*Beam_Thickness_Calculator!AG405","v":0},{"$f":"Beam_Thickness_Calculator!AL400*Beam_Thickness_Calculator!AH405","v":0}]
[]
[null,null,null,null,null,null,null,null,null,null,null,null,null,null,null,null,null,null,null,null,null,null,null,null,"Input/Output",null,null,null,null,"Intermediate Calculations",null,null,null,null,"Constants"]
[null,null,null,null,null,null,null,null,null,null,null,null,null,null,null,null,null,null,null,null,null,null,null,null,28,null,null,"Blade A","Blade B","b","Spar Cap Width","[m]",{"$f":"Beam_Thickness_Calculator!AB410*Beam_Thickness_Calculator!AL417","v":0},{"$f":"Beam_Thickness_Calculator!AC410*Beam_Thickness_Calculator!AL417","v":0},"EUD","Modulus of Sparcap","[Pa]",{"$f":"Global_Var!$E$3","v":39800000000}]
[null,null,null,null,null,null,null,null,null,null,null,null,null,null,null,null,null,null,null,null,null,null,null,null,"C","Chord","[m]",{"$f":"L34","v":0},{"$f":"AB410*Beam_Thickness_Calculator!AL419","v":0},"t","Airfoil thickness","[m]",{"$f":"Beam_Thickness_Calculator!AB411*Beam_Thickness_Calculator!AB410/100","v":0},{"$f":"Beam_Thickness_Calculator!AC411*Beam_Thickness_Calculator!AC410/100","v":0},"ρs","Density of sparcap","[kg/m3]",{"$f":"Global_Var!$E$4","v":1920}]
[null,null,null,null,null,null,null,null,null,null,null,null,null,null,null,null,null,null,null,null,null,null,null,null,"AF%","% thickness of foil","[%]",{"$f":"P34","v":17.600000000000001},{"$f":"T34","v":17.600000000000001},"ho","Section height outer","[m]",{"$f":"AG410*Beam_Thickness_Calculator!AL418","v":0},{"$f":"AH410*Beam_Thickness_Calculator!AL418","v":0},"ϵUD(max)","Max allow design strain Sparcap","[-]",{"$f":"Global_Var!$E$5","v":2.8999999999999998E-3}]
[null,null,null,null,null,null,null,null,null,null,null,null,null,null,null,null,null,null,null,null,null,null,null,null,"M","Moment","[n-m]",{"$f":"N34","v":0},{"$f":"AB412*Beam_Thickness_Calculator!AL420","v":0},"hc","height of core","[m]",{"$f":"Beam_Thickness_Calculator!AG411-2*Beam_Thickness_Calculator!AB413","v":-2.1339566964823655E-3},{"$f":"Beam_Thickness_Calculator!AH411-2*Beam_Thickness_Calculator!AC413","v":-1.1984014655123608E-2},"σs(allow)","Allowable stress in Sparcap","[Pa]",{"$f":"Global_Var!$E$6","v":115419999.99999999}]
[null,null,null,null,null,null,null,null,null,null,null,null,null,null,null,null,null,null,null,null,null,null,null,null,"t","Spar Cap Thickness","[m]",{"$f":"Q34","v":1.0669783482411827E-3},{"$f":"U34","v":5.9920073275618038E-3},"c","distance from neutral axis","[m]",{"$f":"Beam_Thickness_Calculator!AG411/2","v":0},{"$f":"Beam_Thickness_Calculator!AH411/2","v":0},"EC","Modulus of Core","[Pa]",{"$f":"Global_Var!$E$7","v":3790000}]
[null,null,null,null,null,null,null,null,null,null,null,null,null,null,null,null,null,null,null,null,null,null,null,null,"σs(max)","Max Stress in Sparcap","[Pa]",{"$f":"(AB412*(Beam_Thickness_Calculator!AG411/2)*Beam_Thickness_Calculator!AL409)/(Beam_Thickness_Calculator!AL409*Beam_Thickness_Calculator!AG414+Beam_Thickness_Calculator!AL413*Beam_Thickness_Calculator!AG415)","v":{"$error":"#DIV/0!"}},{"$f":"(AC412*(Beam_Thickness_Calculator!AH411/2)*Beam_Thickness_Calculator!AL409)/(Beam_Thickness_Calculator!AL409*Beam_Thickness_Calculator!AH414+Beam_Thickness_Calculator!AL413*Beam_Thickness_Calculator!AH415)","v":{"$error":"#DIV/0!"}},"Is","Moment of inertia Spar","[m4]",{"$f":"(Beam_Thickness_Calculator!AG409/12)*(Beam_Thickness_Calculator!AG411^3-Beam_Thickness_Calculator!AG412^3)","v":0},{"$f":"(Beam_Thickness_Calculator!AH409/12)*(Beam_Thickness_Calculator!AH411^3-Beam_Thickness_Calculator!AH412^3)","v":0},"ρc","Density of core","[kg/m3]",{"$f":"Global_Var!$E$8","v":673}]
[null,null,null,null,null,null,null,null,null,null,null,null,null,null,null,null,null,null,null,null,null,null,null,null,"Ww","Wet Weight","[kg]",{"$f":"Beam_Thickness_Calculator!AG419+Beam_Thickness_Calculator!AG418-Beam_Thickness_Calculator!AG421","v":0},{"$f":"Beam_Thickness_Calculator!AH419+Beam_Thickness_Calculator!AH418-Beam_Thickness_Calculator!AH421","v":0},"Ic","Moment of inertia Core","[m4]",{"$f":"(Beam_Thickness_Calculator!AG409/12)*Beam_Thickness_Calculator!AG412^3","v":0},{"$f":"(Beam_Thickness_Calculator!AH409/12)*Beam_Thickness_Calculator!AH412^3","v":0},"ρw","Density of Seawater","[kg/m3]",{"$f":"Global_Var!$E$9","v":1029}]
[null,null,null,null,null,null,null,null,null,null,null,null,null,null,null,null,null,null,null,null,null,null,null,null,"Ww(rotor)","Wet Weight segment of rotor (+ floats)","[kg]",{"$f":"AB415*2","v":0},{"$f":"AC415*3","v":0},"Vs","Volume of Spar","[m3]",{"$f":"Beam_Thickness_Calculator!AG409*Beam_Thickness_Calculator!AB413*Beam_Thickness_Calculator!AL416*2","v":0},{"$f":"Beam_Thickness_Calculator!AH409*Beam_Thickness_Calculator!AC413*Beam_Thickness_Calculator!AL416*2","v":0},"L","Section Length","[m]",{"$f":"Global_Var!$E$10","v":0.74166666666666647}]
[null,null,null,null,null,null,null,null,null,null,null,null,null,null,null,null,null,null,null,null,null,null,null,null,null,null,null,null,null,"Vc","Volume of Core","[m3]",{"$f":"Beam_Thickness_Calculator!AG412*Beam_Thickness_Calculator!AG409*Beam_Thickness_Calculator!AL416","v":0},{"$f":"Beam_Thickness_Calculator!AH412*Beam_Thickness_Calculator!AH409*Beam_Thickness_Calculator!AL416","v":0},null,"Beam width in terms of chord","[-]",{"$f":"Global_Var!$E$11","v":0.6}]
[null,null,null,null,null,null,null,null,null,null,null,null,null,null,null,null,null,null,null,null,null,null,null,null,null,"Spar Strain Limit (Goal Seek to 1)",null,{"$f":"(AB414/$AL$7)","v":{"$error":"#DIV/0!"}},{"$f":"(AC414/$AL$7)","v":{"$error":"#DIV/0!"}},"Ms","Mass of Spar","[kg]",{"$f":"Beam_Thickness_Calculator!AL410*AG416","v":0},{"$f":"Beam_Thickness_Calculator!AL410*AH416","v":0},null,"Beam height in terms of thickness","[-]",0.85]
[null,null,null,null,null,null,null,null,null,null,null,null,null,null,null,null,null,null,null,null,null,null,null,null,null,null,null,null,null,"Mc","Mass of Core","[kg]",{"$f":"AG417*Beam_Thickness_Calculator!AL414","v":0},{"$f":"AH417*Beam_Thickness_Calculator!AL414","v":0},null,"Chord Ratio Blade A/Blade B","[-]",{"$f":"Global_Var!$E$13","v":0.66666666666666663}]
[null,null,null,null,null,null,null,null,null,null,null,null,null,null,null,null,null,null,null,null,null,null,null,null,null,null,null,null,null,"Vd","Displaced Volume","[m3]",{"$f":"Beam_Thickness_Calculator!AG411*Beam_Thickness_Calculator!AG409*Beam_Thickness_Calculator!AL416","v":0},{"$f":"Beam_Thickness_Calculator!AH411*Beam_Thickness_Calculator!AH409*Beam_Thickness_Calculator!AL416","v":0},null,"Moment Ratio Blade A/Blade B","[-]",{"$f":"Global_Var!$E$14","v":0.66666666666666663}]
[null,null,null,null,null,null,null,null,null,null,null,null,null,null,null,null,null,null,null,null,null,null,null,null,null,null,null,null,null,"Mw","Mass of disp. Seawater","[kg]",{"$f":"Beam_Thickness_Calculator!AL415*Beam_Thickness_Calculator!AG420","v":0},{"$f":"Beam_Thickness_Calculator!AL415*Beam_Thickness_Calculator!AH420","v":0}]
[]
[null,null,null,null,null,null,null,null,null,null,null,null,null,null,null,null,null,null,null,null,null,null,null,null,"Input/Output",null,null,null,null,"Intermediate Calculations",null,null,null,null,"Constants"]
[null,null,null,null,null,null,null,null,null,null,null,null,null,null,null,null,null,null,null,null,null,null,null,null,29,null,null,"Blade A","Blade B","b","Spar Cap Width","[m]",{"$f":"Beam_Thickness_Calculator!AB425*Beam_Thickness_Calculator!AL432","v":0},{"$f":"Beam_Thickness_Calculator!AC425*Beam_Thickness_Calculator!AL432","v":0},"EUD","Modulus of Sparcap","[Pa]",{"$f":"Global_Var!$E$3","v":39800000000}]
[null,null,null,null,null,null,null,null,null,null,null,null,null,null,null,null,null,null,null,null,null,null,null,null,"C","Chord","[m]",{"$f":"L35","v":0},{"$f":"AB425*Beam_Thickness_Calculator!AL434","v":0},"t","Airfoil thickness","[m]",{"$f":"Beam_Thickness_Calculator!AB426*Beam_Thickness_Calculator!AB425/100","v":0},{"$f":"Beam_Thickness_Calculator!AC426*Beam_Thickness_Calculator!AC425/100","v":0},"ρs","Density of sparcap","[kg/m3]",{"$f":"Global_Var!$E$4","v":1920}]
[null,null,null,null,null,null,null,null,null,null,null,null,null,null,null,null,null,null,null,null,null,null,null,null,"AF%","% thickness of foil","[%]",{"$f":"P35","v":17.2},{"$f":"T35","v":17.2},"ho","Section height outer","[m]",{"$f":"AG425*Beam_Thickness_Calculator!AL433","v":0},{"$f":"AH425*Beam_Thickness_Calculator!AL433","v":0},"ϵUD(max)","Max allow design strain Sparcap","[-]",{"$f":"Global_Var!$E$5","v":2.8999999999999998E-3}]
[null,null,null,null,null,null,null,null,null,null,null,null,null,null,null,null,null,null,null,null,null,null,null,null,"M","Moment","[n-m]",{"$f":"N35","v":0},{"$f":"AB427*Beam_Thickness_Calculator!AL435","v":0},"hc","height of core","[m]",{"$f":"Beam_Thickness_Calculator!AG426-2*Beam_Thickness_Calculator!AB428","v":2.9457019283908735E-3},{"$f":"Beam_Thickness_Calculator!AH426-2*Beam_Thickness_Calculator!AC428","v":-3.2002822668730875E-3},"σs(allow)","Allowable stress in Sparcap","[Pa]",{"$f":"Global_Var!$E$6","v":115419999.99999999}]
[null,null,null,null,null,null,null,null,null,null,null,null,null,null,null,null,null,null,null,null,null,null,null,null,"t","Spar Cap Thickness","[m]",{"$f":"Q35","v":-1.4728509641954368E-3},{"$f":"U35","v":1.6001411334365437E-3},"c","distance from neutral axis","[m]",{"$f":"Beam_Thickness_Calculator!AG426/2","v":0},{"$f":"Beam_Thickness_Calculator!AH426/2","v":0},"EC","Modulus of Core","[Pa]",{"$f":"Global_Var!$E$7","v":3790000}]
[null,null,null,null,null,null,null,null,null,null,null,null,null,null,null,null,null,null,null,null,null,null,null,null,"σs(max)","Max Stress in Sparcap","[Pa]",{"$f":"(AB427*(Beam_Thickness_Calculator!AG426/2)*Beam_Thickness_Calculator!AL424)/(Beam_Thickness_Calculator!AL424*Beam_Thickness_Calculator!AG429+Beam_Thickness_Calculator!AL428*Beam_Thickness_Calculator!AG430)","v":{"$error":"#DIV/0!"}},{"$f":"(AC427*(Beam_Thickness_Calculator!AH426/2)*Beam_Thickness_Calculator!AL424)/(Beam_Thickness_Calculator!AL424*Beam_Thickness_Calculator!AH429+Beam_Thickness_Calculator!AL428*Beam_Thickness_Calculator!AH430)","v":{"$error":"#DIV/0!"}},"Is","Moment of inertia Spar","[m4]",{"$f":"(Beam_Thickness_Calculator!AG424/12)*(Beam_Thickness_Calculator!AG426^3-Beam_Thickness_Calculator!AG427^3)","v":0},{"$f":"(Beam_Thickness_Calculator!AH424/12)*(Beam_Thickness_Calculator!AH426^3-Beam_Thickness_Calculator!AH427^3)","v":0},"ρc","Density of core","[kg/m3]",{"$f":"Global_Var!$E$8","v":673}]
[null,null,null,null,null,null,null,null,null,null,null,null,null,null,null,null,null,null,null,null,null,null,null,null,"Ww","Wet Weight","[kg]",{"$f":"Beam_Thickness_Calculator!AG434+Beam_Thickness_Calculator!AG433-Beam_Thickness_Calculator!AG436","v":0},{"$f":"Beam_Thickness_Calculator!AH434+Beam_Thickness_Calculator!AH433-Beam_Thickness_Calculator!AH436","v":0},"Ic","Moment of inertia Core","[m4]",{"$f":"(Beam_Thickness_Calculator!AG424/12)*Beam_Thickness_Calculator!AG427^3","v":0},{"$f":"(Beam_Thickness_Calculator!AH424/12)*Beam_Thickness_Calculator!AH427^3","v":0},"ρw","Density of Seawater","[kg/m3]",{"$f":"Global_Var!$E$9","v":1029}]
[null,null,null,null,null,null,null,null,null,null,null,null,null,null,null,null,null,null,null,null,null,null,null,null,"Ww(rotor)","Wet Weight segment of rotor (+ floats)","[kg]",{"$f":"AB430*2","v":0},{"$f":"AC430*3","v":0},"Vs","Volume of Spar","[m3]",{"$f":"Beam_Thickness_Calculator!AG424*Beam_Thickness_Calculator!AB428*Beam_Thickness_Calculator!AL431*2","v":0},{"$f":"Beam_Thickness_Calculator!AH424*Beam_Thickness_Calculator!AC428*Beam_Thickness_Calculator!AL431*2","v":0},"L","Section Length","[m]",{"$f":"Global_Var!$E$10","v":0.74166666666666647}]
[null,null,null,null,null,null,null,null,null,null,null,null,null,null,null,null,null,null,null,null,null,null,null,null,null,null,null,null,null,"Vc","Volume of Core","[m3]",{"$f":"Beam_Thickness_Calculator!AG427*Beam_Thickness_Calculator!AG424*Beam_Thickness_Calculator!AL431","v":0},{"$f":"Beam_Thickness_Calculator!AH427*Beam_Thickness_Calculator!AH424*Beam_Thickness_Calculator!AL431","v":0},null,"Beam width in terms of chord","[-]",{"$f":"Global_Var!$E$11","v":0.6}]
[null,null,null,null,null,null,null,null,null,null,null,null,null,null,null,null,null,null,null,null,null,null,null,null,null,"Spar Strain Limit (Goal Seek to 1)",null,{"$f":"(AB429/$AL$7)","v":{"$error":"#DIV/0!"}},{"$f":"(AC429/$AL$7)","v":{"$error":"#DIV/0!"}},"Ms","Mass of Spar","[kg]",{"$f":"Beam_Thickness_Calculator!AL425*AG431","v":0},{"$f":"Beam_Thickness_Calculator!AL425*AH431","v":0},null,"Beam height in terms of thickness","[-]",0.85]
[null,null,null,null,null,null,null,null,null,null,null,null,null,null,null,null,null,null,null,null,null,null,null,null,null,null,null,null,null,"Mc","Mass of Core","[kg]",{"$f":"AG432*Beam_Thickness_Calculator!AL429","v":0},{"$f":"AH432*Beam_Thickness_Calculator!AL429","v":0},null,"Chord Ratio Blade A/Blade B","[-]",{"$f":"Global_Var!$E$13","v":0.66666666666666663}]
[null,null,null,null,null,null,null,null,null,null,null,null,null,null,null,null,null,null,null,null,null,null,null,null,null,null,null,null,null,"Vd","Displaced Volume","[m3]",{"$f":"Beam_Thickness_Calculator!AG426*Beam_Thickness_Calculator!AG424*Beam_Thickness_Calculator!AL431","v":0},{"$f":"Beam_Thickness_Calculator!AH426*Beam_Thickness_Calculator!AH424*Beam_Thickness_Calculator!AL431","v":0},null,"Moment Ratio Blade A/Blade B","[-]",{"$f":"Global_Var!$E$14","v":0.66666666666666663}]
[null,null,null,null,null,null,null,null,null,null,null,null,null,null,null,null,null,null,null,null,null,null,null,null,null,null,null,null,null,"Mw","Mass of disp. Seawater","[kg]",{"$f":"Beam_Thickness_Calculator!AL430*Beam_Thickness_Calculator!AG435","v":0},{"$f":"Beam_Thickness_Calculator!AL430*Beam_Thickness_Calculator!AH435","v":0}]
[]
[null,null,null,null,null,null,null,null,null,null,null,null,null,null,null,null,null,null,null,null,null,null,null,null,"Input/Output",null,null,null,null,"Intermediate Calculations",null,null,null,null,"Constants"]
[null,null,null,null,null,null,null,null,null,null,null,null,null,null,null,null,null,null,null,null,null,null,null,null,30,null,null,"Blade A","Blade B","b","Spar Cap Width","[m]",{"$f":"Beam_Thickness_Calculator!AB440*Beam_Thickness_Calculator!AL447","v":0},{"$f":"Beam_Thickness_Calculator!AC440*Beam_Thickness_Calculator!AL447","v":0},"EUD","Modulus of Sparcap","[Pa]",{"$f":"Global_Var!$E$3","v":39800000000}]
[null,null,null,null,null,null,null,null,null,null,null,null,null,null,null,null,null,null,null,null,null,null,null,null,"C","Chord","[m]",{"$f":"L36","v":0},{"$f":"AB440*Beam_Thickness_Calculator!AL449","v":0},"t","Airfoil thickness","[m]",{"$f":"Beam_Thickness_Calculator!AB441*Beam_Thickness_Calculator!AB440/100","v":0},{"$f":"Beam_Thickness_Calculator!AC441*Beam_Thickness_Calculator!AC440/100","v":0},"ρs","Density of sparcap","[kg/m3]",{"$f":"Global_Var!$E$4","v":1920}]
[null,null,null,null,null,null,null,null,null,null,null,null,null,null,null,null,null,null,null,null,null,null,null,null,"AF%","% thickness of foil","[%]",{"$f":"P36","v":16.7},{"$f":"T36","v":16.7},"ho","Section height outer","[m]",{"$f":"AG440*Beam_Thickness_Calculator!AL448","v":0},{"$f":"AH440*Beam_Thickness_Calculator!AL448","v":0},"ϵUD(max)","Max allow design strain Sparcap","[-]",{"$f":"Global_Var!$E$5","v":2.8999999999999998E-3}]
[null,null,null,null,null,null,null,null,null,null,null,null,null,null,null,null,null,null,null,null,null,null,null,null,"M","Moment","[n-m]",{"$f":"N36","v":0},{"$f":"AB442*Beam_Thickness_Calculator!AL450","v":0},"hc","height of core","[m]",{"$f":"Beam_Thickness_Calculator!AG441-2*Beam_Thickness_Calculator!AB443","v":6.3144637712690835E-3},{"$f":"Beam_Thickness_Calculator!AH441-2*Beam_Thickness_Calculator!AC443","v":2.5160178828921636E-3},"σs(allow)","Allowable stress in Sparcap","[Pa]",{"$f":"Global_Var!$E$6","v":115419999.99999999}]
[null,null,null,null,null,null,null,null,null,null,null,null,null,null,null,null,null,null,null,null,null,null,null,null,"t","Spar Cap Thickness","[m]",{"$f":"Q36","v":-3.1572318856345418E-3},{"$f":"U36","v":-1.2580089414460818E-3},"c","distance from neutral axis","[m]",{"$f":"Beam_Thickness_Calculator!AG441/2","v":0},{"$f":"Beam_Thickness_Calculator!AH441/2","v":0},"EC","Modulus of Core","[Pa]",{"$f":"Global_Var!$E$7","v":3790000}]
[null,null,null,null,null,null,null,null,null,null,null,null,null,null,null,null,null,null,null,null,null,null,null,null,"σs(max)","Max Stress in Sparcap","[Pa]",{"$f":"(AB442*(Beam_Thickness_Calculator!AG441/2)*Beam_Thickness_Calculator!AL439)/(Beam_Thickness_Calculator!AL439*Beam_Thickness_Calculator!AG444+Beam_Thickness_Calculator!AL443*Beam_Thickness_Calculator!AG445)","v":{"$error":"#DIV/0!"}},{"$f":"(AC442*(Beam_Thickness_Calculator!AH441/2)*Beam_Thickness_Calculator!AL439)/(Beam_Thickness_Calculator!AL439*Beam_Thickness_Calculator!AH444+Beam_Thickness_Calculator!AL443*Beam_Thickness_Calculator!AH445)","v":{"$error":"#DIV/0!"}},"Is","Moment of inertia Spar","[m4]",{"$f":"(Beam_Thickness_Calculator!AG439/12)*(Beam_Thickness_Calculator!AG441^3-Beam_Thickness_Calculator!AG442^3)","v":0},{"$f":"(Beam_Thickness_Calculator!AH439/12)*(Beam_Thickness_Calculator!AH441^3-Beam_Thickness_Calculator!AH442^3)","v":0},"ρc","Density of core","[kg/m3]",{"$f":"Global_Var!$E$8","v":673}]
[null,null,null,null,null,null,null,null,null,null,null,null,null,null,null,null,null,null,null,null,null,null,null,null,"Ww","Wet Weight","[kg]",{"$f":"Beam_Thickness_Calculator!AG449+Beam_Thickness_Calculator!AG448-Beam_Thickness_Calculator!AG451","v":0},{"$f":"Beam_Thickness_Calculator!AH449+Beam_Thickness_Calculator!AH448-Beam_Thickness_Calculator!AH451","v":0},"Ic","Moment of inertia Core","[m4]",{"$f":"(Beam_Thickness_Calculator!AG439/12)*Beam_Thickness_Calculator!AG442^3","v":0},{"$f":"(Beam_Thickness_Calculator!AH439/12)*Beam_Thickness_Calculator!AH442^3","v":0},"ρw","Density of Seawater","[kg/m3]",{"$f":"Global_Var!$E$9","v":1029}]
[null,null,null,null,null,null,null,null,null,null,null,null,null,null,null,null,null,null,null,null,null,null,null,null,"Ww(rotor)","Wet Weight segment of rotor (+ floats)","[kg]",{"$f":"AB445*2","v":0},{"$f":"AC445*3","v":0},"Vs","Volume of Spar","[m3]",{"$f":"Beam_Thickness_Calculator!AG439*Beam_Thickness_Calculator!AB443*Beam_Thickness_Calculator!AL446*2","v":0},{"$f":"Beam_Thickness_Calculator!AH439*Beam_Thickness_Calculator!AC443*Beam_Thickness_Calculator!AL446*2","v":0},"L","Section Length","[m]",{"$f":"Global_Var!$E$10","v":0.74166666666666647}]
[null,null,null,null,null,null,null,null,null,null,null,null,null,null,null,null,null,null,null,null,null,null,null,null,null,null,null,null,null,"Vc","Volume of Core","[m3]",{"$f":"Beam_Thickness_Calculator!AG442*Beam_Thickness_Calculator!AG439*Beam_Thickness_Calculator!AL446","v":0},{"$f":"Beam_Thickness_Calculator!AH442*Beam_Thickness_Calculator!AH439*Beam_Thickness_Calculator!AL446","v":0},null,"Beam width in terms of chord","[-]",{"$f":"Global_Var!$E$11","v":0.6}]
[null,null,null,null,null,null,null,null,null,null,null,null,null,null,null,null,null,null,null,null,null,null,null,null,null,"Spar Strain Limit (Goal Seek to 1)",null,{"$f":"(AB444/$AL$7)","v":{"$error":"#DIV/0!"}},{"$f":"(AC444/$AL$7)","v":{"$error":"#DIV/0!"}},"Ms","Mass of Spar","[kg]",{"$f":"Beam_Thickness_Calculator!AL440*AG446","v":0},{"$f":"Beam_Thickness_Calculator!AL440*AH446","v":0},null,"Beam height in terms of thickness","[-]",0.85]
[null,null,null,null,null,null,null,null,null,null,null,null,null,null,null,null,null,null,null,null,null,null,null,null,null,null,null,null,null,"Mc","Mass of Core","[kg]",{"$f":"AG447*Beam_Thickness_Calculator!AL444","v":0},{"$f":"AH447*Beam_Thickness_Calculator!AL444","v":0},null,"Chord Ratio Blade A/Blade B","[-]",{"$f":"Global_Var!$E$13","v":0.66666666666666663}]
[null,null,null,null,null,null,null,null,null,null,null,null,null,null,null,null,null,null,null,null,null,null,null,null,null,null,null,null,null,"Vd","Displaced Volume","[m3]",{"$f":"Beam_Thickness_Calculator!AG441*Beam_Thickness_Calculator!AG439*Beam_Thickness_Calculator!AL446","v":0},{"$f":"Beam_Thickness_Calculator!AH441*Beam_Thickness_Calculator!AH439*Beam_Thickness_Calculator!AL446","v":0},null,"Moment Ratio Blade A/Blade B","[-]",{"$f":"Global_Var!$E$14","v":0.66666666666666663}]
[null,null,null,null,null,null,null,null,null,null,null,null,null,null,null,null,null,null,null,null,null,null,null,null,null,null,null,null,null,"Mw","Mass of disp. Seawater","[kg]",{"$f":"Beam_Thickness_Calculator!AL445*Beam_Thickness_Calculator!AG450","v":0},{"$f":"Beam_Thickness_Calculator!AL445*Beam_Thickness_Calculator!AH450","v":0}]
[]
[null,null,null,null,null,null,null,null,null,null,null,null,null,null,null,null,null,null,null,null,null,null,null,null,"Input/Output",null,null,null,null,"Intermediate Calculations",null,null,null,null,"Constants"]
[null,null,null,null,null,null,null,null,null,null,null,null,null,null,null,null,null,null,null,null,null,null,null,null,31,null,null,"Blade A","Blade B","b","Spar Cap Width","[m]",{"$f":"Beam_Thickness_Calculator!AB455*Beam_Thickness_Calculator!AL462","v":0},{"$f":"Beam_Thickness_Calculator!AC455*Beam_Thickness_Calculator!AL462","v":0},"EUD","Modulus of Sparcap","[Pa]",{"$f":"Global_Var!$E$3","v":39800000000}]
[null,null,null,null,null,null,null,null,null,null,null,null,null,null,null,null,null,null,null,null,null,null,null,null,"C","Chord","[m]",{"$f":"L37","v":0},{"$f":"AB455*Beam_Thickness_Calculator!AL464","v":0},"t","Airfoil thickness","[m]",{"$f":"Beam_Thickness_Calculator!AB456*Beam_Thickness_Calculator!AB455/100","v":0},{"$f":"Beam_Thickness_Calculator!AC456*Beam_Thickness_Calculator!AC455/100","v":0},"ρs","Density of sparcap","[kg/m3]",{"$f":"Global_Var!$E$4","v":1920}]
[null,null,null,null,null,null,null,null,null,null,null,null,null,null,null,null,null,null,null,null,null,null,null,null,"AF%","% thickness of foil","[%]",{"$f":"P37","v":-7.7580968271922526E+39},{"$f":"T37","v":-7.7580968271922526E+39},"ho","Section height outer","[m]",{"$f":"AG455*Beam_Thickness_Calculator!AL463","v":0},{"$f":"AH455*Beam_Thickness_Calculator!AL463","v":0},"ϵUD(max)","Max allow design strain Sparcap","[-]",{"$f":"Global_Var!$E$5","v":2.8999999999999998E-3}]
[null,null,null,null,null,null,null,null,null,null,null,null,null,null,null,null,null,null,null,null,null,null,null,null,"M","Moment","[n-m]",{"$f":"N37","v":0},{"$f":"AB457*Beam_Thickness_Calculator!AL465","v":0},"hc","height of core","[m]",{"$f":"Beam_Thickness_Calculator!AG456-2*Beam_Thickness_Calculator!AB458","v":-11760069752.959009},{"$f":"Beam_Thickness_Calculator!AH456-2*Beam_Thickness_Calculator!AC458","v":-27817381204.746754},"σs(allow)","Allowable stress in Sparcap","[Pa]",{"$f":"Global_Var!$E$6","v":115419999.99999999}]
[null,null,null,null,null,null,null,null,null,null,null,null,null,null,null,null,null,null,null,null,null,null,null,null,"t","Spar Cap Thickness","[m]",{"$f":"Q37","v":5880034876.4795046},{"$f":"U37","v":13908690602.373377},"c","distance from neutral axis","[m]",{"$f":"Beam_Thickness_Calculator!AG456/2","v":0},{"$f":"Beam_Thickness_Calculator!AH456/2","v":0},"EC","Modulus of Core","[Pa]",{"$f":"Global_Var!$E$7","v":3790000}]
[null,null,null,null,null,null,null,null,null,null,null,null,null,null,null,null,null,null,null,null,null,null,null,null,"σs(max)","Max Stress in Sparcap","[Pa]",{"$f":"(AB457*(Beam_Thickness_Calculator!AG456/2)*Beam_Thickness_Calculator!AL454)/(Beam_Thickness_Calculator!AL454*Beam_Thickness_Calculator!AG459+Beam_Thickness_Calculator!AL458*Beam_Thickness_Calculator!AG460)","v":{"$error":"#DIV/0!"}},{"$f":"(AC457*(Beam_Thickness_Calculator!AH456/2)*Beam_Thickness_Calculator!AL454)/(Beam_Thickness_Calculator!AL454*Beam_Thickness_Calculator!AH459+Beam_Thickness_Calculator!AL458*Beam_Thickness_Calculator!AH460)","v":{"$error":"#DIV/0!"}},"Is","Moment of inertia Spar","[m4]",{"$f":"(Beam_Thickness_Calculator!AG454/12)*(Beam_Thickness_Calculator!AG456^3-Beam_Thickness_Calculator!AG457^3)","v":0},{"$f":"(Beam_Thickness_Calculator!AH454/12)*(Beam_Thickness_Calculator!AH456^3-Beam_Thickness_Calculator!AH457^3)","v":0},"ρc","Density of core","[kg/m3]",{"$f":"Global_Var!$E$8","v":673}]
[null,null,null,null,null,null,null,null,null,null,null,null,null,null,null,null,null,null,null,null,null,null,null,null,"Ww","Wet Weight","[kg]",{"$f":"Beam_Thickness_Calculator!AG464+Beam_Thickness_Calculator!AG463-Beam_Thickness_Calculator!AG466","v":0},{"$f":"Beam_Thickness_Calculator!AH464+Beam_Thickness_Calculator!AH463-Beam_Thickness_Calculator!AH466","v":0},"Ic","Moment of inertia Core","[m4]",{"$f":"(Beam_Thickness_Calculator!AG454/12)*Beam_Thickness_Calculator!AG457^3","v":0},{"$f":"(Beam_Thickness_Calculator!AH454/12)*Beam_Thickness_Calculator!AH457^3","v":0},"ρw","Density of Seawater","[kg/m3]",{"$f":"Global_Var!$E$9","v":1029}]
[null,null,null,null,null,null,null,null,null,null,null,null,null,null,null,null,null,null,null,null,null,null,null,null,"Ww(rotor)","Wet Weight segment of rotor (+ floats)","[kg]",{"$f":"AB460*2","v":0},{"$f":"AC460*3","v":0},"Vs","Volume of Spar","[m3]",{"$f":"Beam_Thickness_Calculator!AG454*Beam_Thickness_Calculator!AB458*Beam_Thickness_Calculator!AL461*2","v":0},{"$f":"Beam_Thickness_Calculator!AH454*Beam_Thickness_Calculator!AC458*Beam_Thickness_Calculator!AL461*2","v":0},"L","Section Length","[m]",{"$f":"Global_Var!$E$10","v":0.74166666666666647}]
[null,null,null,null,null,null,null,null,null,null,null,null,null,null,null,null,null,null,null,null,null,null,null,null,null,null,null,null,null,"Vc","Volume of Core","[m3]",{"$f":"Beam_Thickness_Calculator!AG457*Beam_Thickness_Calculator!AG454*Beam_Thickness_Calculator!AL461","v":0},{"$f":"Beam_Thickness_Calculator!AH457*Beam_Thickness_Calculator!AH454*Beam_Thickness_Calculator!AL461","v":0},null,"Beam width in terms of chord","[-]",{"$f":"Global_Var!$E$11","v":0.6}]
[null,null,null,null,null,null,null,null,null,null,null,null,null,null,null,null,null,null,null,null,null,null,null,null,null,"Spar Strain Limit (Goal Seek to 1)",null,{"$f":"(AB459/$AL$7)","v":{"$error":"#DIV/0!"}},{"$f":"(AC459/$AL$7)","v":{"$error":"#DIV/0!"}},"Ms","Mass of Spar","[kg]",{"$f":"Beam_Thickness_Calculator!AL455*AG461","v":0},{"$f":"Beam_Thickness_Calculator!AL455*AH461","v":0},null,"Beam height in terms of thickness","[-]",0.85]
[null,null,null,null,null,null,null,null,null,null,null,null,null,null,null,null,null,null,null,null,null,null,null,null,null,null,null,null,null,"Mc","Mass of Core","[kg]",{"$f":"AG462*Beam_Thickness_Calculator!AL459","v":0},{"$f":"AH462*Beam_Thickness_Calculator!AL459","v":0},null,"Chord Ratio Blade A/Blade B","[-]",{"$f":"Global_Var!$E$13","v":0.66666666666666663}]
[null,null,null,null,null,null,null,null,null,null,null,null,null,null,null,null,null,null,null,null,null,null,null,null,null,null,null,null,null,"Vd","Displaced Volume","[m3]",{"$f":"Beam_Thickness_Calculator!AG456*Beam_Thickness_Calculator!AG454*Beam_Thickness_Calculator!AL461","v":0},{"$f":"Beam_Thickness_Calculator!AH456*Beam_Thickness_Calculator!AH454*Beam_Thickness_Calculator!AL461","v":0},null,"Moment Ratio Blade A/Blade B","[-]",{"$f":"Global_Var!$E$14","v":0.66666666666666663}]
[null,null,null,null,null,null,null,null,null,null,null,null,null,null,null,null,null,null,null,null,null,null,null,null,null,null,null,null,null,"Mw","Mass of disp. Seawater","[kg]",{"$f":"Beam_Thickness_Calculator!AL460*Beam_Thickness_Calculator!AG465","v":0},{"$f":"Beam_Thickness_Calculator!AL460*Beam_Thickness_Calculator!AH465","v":0}]